Workbook

Sheet contagem diaria
I1: RM ARMAZENAGEM E LOGISTICA
I2: Unidade I - Rod Ayrton Senna da Silva Km 25,5
I4: RELATORIO CERVEJA CUSQUENHA | M4: DATA DA CONTAGEM | N4: =TODAY() -> 44589 | O4: 2021-12-09 | AT4: SALDO ATUAL
B7: =LEFT(#REF!,2) ->  | C7: Classificação | D7: Vazio | E7: Ocupação | F7: Cap. | H7: Plts Ocupados | I7: Unidade | J7: N. F | K7: SKU | L7: Descrição | M7: Data de FABRICAÇÃO | N7: Data de vencimento | O7: Qtd Unit | P7: NF 5661 | Q7: NF 5648 | R7: NF 5646 | S7: NF 5647 | T7: NF 5649 | U7: NF 5664 | V7: 5758 | W7: 5775 | X7: 2005 | Y7: 2004 | Z7: 2003 | AA7: 2012 | AB7: 2011 | AC7: 2010 | AD7: 2009 | AE7: 5695 | AF7: 5863 | AG7: 5785 | AH7: 5776 | AI7: 4138 | AJ7: 2020 | AK7: 1109 | AL7: 2016 | AN7: 2014 | AO7: 5762 | AP7: 5761 | AQ7: 5790 | AR7: 5789 | AS7: 5788 | AT7: Quant Atual | AU7: Vida útil | AV7: Qtd Und.
B8: =LEFT(#REF!,1) ->  | C8: =IFERROR(VLOOKUP(K8,BANCO!A:J,10,0),"no") -> 0 | D8: =IF(H8<>0,0,1) -> 1 | E8: =IFERROR(ROUNDUP(#REF!,0)/F8,"NO") -> NO | F8: =IF(AND(#REF!="Drive em Manutenção",#REF!>0),7,35) ->  | H8: =IFERROR(IF(#REF!<=4,0,ROUNDUP(#REF!,0)),0) -> 0 | I8: WR/ABN | K8: STW-CDL330 | L8: =IFERROR(VLOOKUP(K8,BANCO!_xlnm.Print_Area,2,0),"") -> CERVEJA DARK | M8: 44549 | N8: =IFERROR(EDATE(M8,VLOOKUP(K8,BANCO!A:I,9,0)),"") -> 44914 | O8: 4 | AT8: =SUM(O8-P8-Q8-R8-S8-T8-U8-V8) -> 4 | AU8: =IFERROR(IF(OR(K8="",AND(O8="",N8="")),"",(N8-$N$4)/VLOOKUP(K8,Banco[#All],8,0)),"") -> 0.8904109589 | AV8: =IFERROR(O8*VLOOKUP(K8,Banco[#All],3,0)+(#REF!*VLOOKUP(K8,Banco[#All],4,0)),"") -> 
B9: =LEFT(#REF!,1) ->  | C9: =IFERROR(VLOOKUP(K9,BANCO!A:J,10,0),"no") -> 0 | D9: 1 | E9: =IFERROR(ROUNDUP(#REF!,0)/F9,"NO") -> NO | F9: =IF(AND(#REF!="Drive em Manutenção",#REF!>0),7,35) ->  | H9: =IFERROR(IF(#REF!<=4,0,ROUNDUP(#REF!,0)),0) -> 0 | I9: WR/ABN | K9: STW-CDL330 | L9: =IFERROR(VLOOKUP(K9,BANCO!_xlnm.Print_Area,2,0),"") -> CERVEJA DARK | M9: 44203 | N9: =IFERROR(EDATE(M9,VLOOKUP(K9,BANCO!A:I,9,0)),"") -> 44568 | O9: 62 | AT9: 62 | AU9: =IFERROR(IF(OR(K9="",AND(O9="",N9="")),"",(N9-$N$4)/VLOOKUP(K9,Banco[#All],8,0)),"") -> -0.05753424658 | AV9: =IFERROR(O9*VLOOKUP(K9,Banco[#All],3,0)+(#REF!*VLOOKUP(K9,Banco[#All],4,0)),"") -> 
B10: =LEFT(#REF!,1) ->  | C10: =IFERROR(VLOOKUP(K10,BANCO!A:J,10,0),"no") -> 0 | D10: 1 | E10: =IFERROR(ROUNDUP(#REF!,0)/F10,"NO") -> NO | F10: =IF(AND(#REF!="Drive em Manutenção",#REF!>0),7,35) ->  | H10: =IFERROR(IF(#REF!<=4,0,ROUNDUP(#REF!,0)),0) -> 0 | I10: WR/ABN | K10: STW-CDL330 | L10: =IFERROR(VLOOKUP(K10,BANCO!_xlnm.Print_Area,2,0),"") -> CERVEJA DARK | M10: 44256 | N10: =IFERROR(EDATE(M10,VLOOKUP(K10,BANCO!A:I,9,0)),"") -> 44621 | O10: 1253 | P10: 15 | Q10: 250 | R10: 250 | S10: 250 | T10: 450 | U10: 38 | AT10: 0 | AU10: =IFERROR(IF(OR(K10="",AND(O10="",N10="")),"",(N10-$N$4)/VLOOKUP(K10,Banco[#All],8,0)),"") -> 0.08767123288 | AV10: =IFERROR(O10*VLOOKUP(K10,Banco[#All],3,0)+(#REF!*VLOOKUP(K10,Banco[#All],4,0)),"") ->  | AW10: 7 CXS SAIU DP ESCRITORIO
B11: =LEFT(#REF!,1) ->  | C11: =IFERROR(VLOOKUP(K11,BANCO!A:J,10,0),"no") -> 0 | D11: 1 | E11: =IFERROR(ROUNDUP(#REF!,0)/F11,"NO") -> NO | F11: =IF(AND(#REF!="Drive em Manutenção",#REF!>0),7,35) ->  | H11: =IFERROR(IF(#REF!<=4,0,ROUNDUP(#REF!,0)),0) -> 0 | I11: WR/ABN | K11: STW-CCQ330 | L11: =IFERROR(VLOOKUP(K11,BANCO!_xlnm.Print_Area,2,0),"") -> CERVEJA QUINUA | M11: 44203 | N11: =IFERROR(EDATE(M11,VLOOKUP(K11,BANCO!A:I,9,0)),"") -> 44568 | O11: 22 | AT11: 22 | AU11: =IFERROR(IF(OR(K11="",AND(O11="",N11="")),"",(N11-$N$4)/VLOOKUP(K11,Banco[#All],8,0)),"") -> -0.05753424658 | AV11: =IFERROR(O11*VLOOKUP(K11,Banco[#All],3,0)+(#REF!*VLOOKUP(K11,Banco[#All],4,0)),"") -> 
B12: =LEFT(#REF!,1) ->  | C12: =IFERROR(VLOOKUP(K12,BANCO!A:J,10,0),"no") -> 0 | D12: =IF(H12<>0,0,1) -> 1 | E12: =IFERROR(ROUNDUP(#REF!,0)/F12,"NO") -> NO | F12: =IF(AND(#REF!="Drive em Manutenção",#REF!>0),7,35) ->  | H12: =IFERROR(IF(#REF!<=4,0,ROUNDUP(#REF!,0)),0) -> 0 | I12: WR/ABN | K12: STW-CGL330 | L12: =IFERROR(VLOOKUP(K12,BANCO!_xlnm.Print_Area,2,0),"") -> CERVEJA GOLDEN 6PACK 330 ML | M12: 44197 | N12: =IFERROR(EDATE(M12,VLOOKUP(K12,BANCO!A:I,9,0)),"") -> 44562 | O12: 1 | AT12: 1 | AU12: =IFERROR(IF(OR(K12="",AND(O12="",N12="")),"",(N12-$N$4)/VLOOKUP(K12,Banco[#All],8,0)),"") -> -0.07397260274 | AV12: =IFERROR(O12*VLOOKUP(K12,Banco[#All],3,0)+(#REF!*VLOOKUP(K12,Banco[#All],4,0)),"") -> 
B13: =LEFT(#REF!,1) ->  | C13: =IFERROR(VLOOKUP(K13,BANCO!A:J,10,0),"no") -> 0 | D13: 1 | E13: =IFERROR(ROUNDUP(#REF!,0)/F13,"NO") -> NO | F13: =IF(AND(#REF!="Drive em Manutenção",#REF!>0),7,35) ->  | H13: =IFERROR(IF(#REF!<=4,0,ROUNDUP(#REF!,0)),0) -> 0 | I13: WR/ABN | K13: STW-CGL620 | L13: =IFERROR(VLOOKUP(K13,BANCO!_xlnm.Print_Area,2,0),"") -> CERVEJA GOLDEN 620 ML | M13: 44166 | N13: =IFERROR(EDATE(M13,VLOOKUP(K13,BANCO!A:I,9,0)),"") -> 44531 | O13: 0 | AT13: 0 | AU13: =IFERROR(IF(OR(K13="",AND(O13="",N13="")),"",(N13-$N$4)/VLOOKUP(K13,Banco[#All],8,0)),"") -> -0.1589041096 | AV13: =IFERROR(O13*VLOOKUP(K13,Banco[#All],3,0)+(#REF!*VLOOKUP(K13,Banco[#All],4,0)),"") -> 
B14: =LEFT(#REF!,1) ->  | C14: =IFERROR(VLOOKUP(K14,BANCO!A:J,10,0),"no") -> 0 | D14: =IF(H14<>0,0,1) -> 1 | E14: =IFERROR(ROUNDUP(#REF!,0)/F14,"NO") -> NO | F14: =IF(AND(#REF!="Drive em Manutenção",#REF!>0),7,35) ->  | H14: =IFERROR(IF(#REF!<=4,0,ROUNDUP(#REF!,0)),0) -> 0 | I14: WR/ABN | K14: STW-CGL620 | L14: =IFERROR(VLOOKUP(K14,BANCO!_xlnm.Print_Area,2,0),"") -> CERVEJA GOLDEN 620 ML | M14: 44412 | N14: =IFERROR(EDATE(M14,VLOOKUP(K14,BANCO!A:I,9,0)),"") -> 44777 | O14: 1556 | AG14: 100 | AO14: 196 | AP14: 98 | AT14: =SUM(O14-AG14-AN14-AO14-AP14) -> 1162 | AU14: =IFERROR(IF(OR(K14="",AND(O14="",N14="")),"",(N14-$N$4)/VLOOKUP(K14,Banco[#All],8,0)),"") -> 0.5150684932 | AV14: =IFERROR(O14*VLOOKUP(K14,Banco[#All],3,0)+(#REF!*VLOOKUP(K14,Banco[#All],4,0)),"") -> 
B15: =LEFT(#REF!,1) ->  | C15: =IFERROR(VLOOKUP(K15,BANCO!A:J,10,0),"no") -> 0 | D15: 1 | E15: =IFERROR(ROUNDUP(#REF!,0)/F15,"NO") -> NO | F15: =IF(AND(#REF!="Drive em Manutenção",#REF!>0),7,35) ->  | H15: =IFERROR(IF(#REF!<=4,0,ROUNDUP(#REF!,0)),0) -> 0 | I15: WR/ABN | K15: STW-CGL620 | L15: =IFERROR(VLOOKUP(K15,BANCO!_xlnm.Print_Area,2,0),"") -> CERVEJA GOLDEN 620 ML | M15: 44412 | N15: =IFERROR(EDATE(M15,VLOOKUP(K15,BANCO!A:I,9,0)),"") -> 44777 | O15: 19 | AT15: 19 | AU15: =IFERROR(IF(OR(K15="",AND(O15="",N15="")),"",(N15-$N$4)/VLOOKUP(K15,Banco[#All],8,0)),"") -> 0.5150684932 | AV15: =IFERROR(O15*VLOOKUP(K15,Banco[#All],3,0)+(#REF!*VLOOKUP(K15,Banco[#All],4,0)),"") ->  | AW15: AVARIADA
I16: WR/ABN | K16: STW-CCT330 | L16: =IFERROR(VLOOKUP(K16,BANCO!_xlnm.Print_Area,2,0),"") -> CERVEJA TRIGO | M16: 44169 | N16: =IFERROR(EDATE(M16,VLOOKUP(K16,BANCO!A:I,9,0)),"") -> 44534 | O16: 6 | AT16: 6 | AU16: =IFERROR(IF(OR(K16="",AND(O16="",N16="")),"",(N16-$N$4)/VLOOKUP(K16,Banco[#All],8,0)),"") -> -0.1506849315 | AV16: =IFERROR(O16*VLOOKUP(K16,Banco[#All],3,0)+(#REF!*VLOOKUP(K16,Banco[#All],4,0)),"") -> 
I17: WR/ABN | K17: STW-CCT330 | L17: =IFERROR(VLOOKUP(K17,BANCO!_xlnm.Print_Area,2,0),"") -> CERVEJA TRIGO | M17: 44416 | N17: =IFERROR(EDATE(M17,VLOOKUP(K17,BANCO!A:I,9,0)),"") -> 44781 | O17: 299 | V17: 50 | W17: 50 | AE17: 12 | AH17: 2 | AR17: 7 | AS17: 10 | AT17: =SUM(O17-P17-Q17-R17-S17-T17-U17-V17-W17-AE17-AH17-AR17-AS17) -> 168 | AU17: =IFERROR(IF(OR(K17="",AND(O17="",N17="")),"",(N17-$N$4)/VLOOKUP(K17,Banco[#All],8,0)),"") -> 0.5260273973 | AV17: =IFERROR(O17*VLOOKUP(K17,Banco[#All],3,0)+(#REF!*VLOOKUP(K17,Banco[#All],4,0)),"") -> 
B18: =LEFT(#REF!,1) ->  | C18: =IFERROR(VLOOKUP(K18,BANCO!A:J,10,0),"no") -> 0 | D18: =IF(H18<>0,0,1) -> 1 | E18: =IFERROR(ROUNDUP(#REF!,0)/F18,"NO") -> NO | F18: =IF(AND(#REF!="Drive em Manutenção",#REF!>0),8,40) ->  | H18: =IFERROR(IF(#REF!<=4,0,ROUNDUP(#REF!,0)),0) -> 0 | I18: WR/MSN | K18: STW-CCQ330 | L18: =IFERROR(VLOOKUP(K18,BANCO!_xlnm.Print_Area,2,0),"") -> CERVEJA QUINUA | M18: 44197 | N18: =IFERROR(EDATE(M18,VLOOKUP(K18,BANCO!A:I,9,0)),"") -> 44562 | O18: 11 | AI18: 3 | AK18: 1 | AT18: =SUM(O18-P18-Q18-R18-S18-T18-U18-V18-AI18-AK18) -> 7 | AU18: =IFERROR(IF(OR(K18="",AND(O18="",N18="")),"",(N18-$N$4)/VLOOKUP(K18,Banco[#All],8,0)),"") -> -0.07397260274 | AV18: =IFERROR(O18*VLOOKUP(K18,Banco[#All],3,0)+(#REF!*VLOOKUP(K18,Banco[#All],4,0)),"") -> 
I19: WR/MSN | K19: STW-CGL620 | L19: =IFERROR(VLOOKUP(K19,BANCO!_xlnm.Print_Area,2,0),"") -> CERVEJA GOLDEN 620 ML | M19: 44166 | N19: =IFERROR(EDATE(M19,VLOOKUP(K19,BANCO!A:I,9,0)),"") -> 44531 | O19: 11 | AT19: =SUM(O19-P19-Q19-R19-S19-T19-U19-V19) -> 11 | AU19: =IFERROR(IF(OR(K19="",AND(O19="",N19="")),"",(N19-$N$4)/VLOOKUP(K19,Banco[#All],8,0)),"") -> -0.1589041096 | AV19: =IFERROR(O19*VLOOKUP(K19,Banco[#All],3,0)+(#REF!*VLOOKUP(K19,Banco[#All],4,0)),"") -> 
B20: =LEFT(#REF!,1) ->  | C20: =IFERROR(VLOOKUP(#REF!,BANCO!A:J,10,0),"no") -> no | D20: 1 | E20: =IFERROR(ROUNDUP(#REF!,0)/F20,"NO") -> NO | F20: =IF(AND(#REF!="Drive em Manutenção",#REF!>0),8,40) ->  | H20: =IFERROR(IF(#REF!<=4,0,ROUNDUP(#REF!,0)),0) -> 0 | I20: WR/MSN | K20: STW-CCT330 | L20: =IFERROR(VLOOKUP(K20,BANCO!_xlnm.Print_Area,2,0),"") -> CERVEJA TRIGO | M20: 44166 | N20: =IFERROR(EDATE(M20,VLOOKUP(K20,BANCO!A:I,9,0)),"") -> 44531 | O20: 45 | AT20: =SUM(O20-P20-Q20-R20-S20-T20-U20-V20) -> 45 | AU20: =IFERROR(IF(OR(K20="",AND(O20="",N20="")),"",(N20-$N$4)/VLOOKUP(K20,Banco[#All],8,0)),"") -> -0.1589041096 | AV20: =IFERROR(O20*VLOOKUP(K20,Banco[#All],3,0)+(#REF!*VLOOKUP(K20,Banco[#All],4,0)),"") -> 
B21: =LEFT(#REF!,1) ->  | C21: =IFERROR(VLOOKUP(K20,BANCO!A:J,10,0),"no") -> 0 | D21: 1 | E21: =IFERROR(ROUNDUP(#REF!,0)/F21,"NO") -> NO | F21: =IF(AND(#REF!="Drive em Manutenção",#REF!>0),8,40) ->  | H21: =IFERROR(IF(#REF!<=4,0,ROUNDUP(#REF!,0)),0) -> 0 | I21: WR/ABN | K21: STW-CGL355 | L21: =IFERROR(VLOOKUP(K21,BANCO!_xlnm.Print_Area,2,0),"") -> GOLDEN LATA | M21: 44180 | N21: =IFERROR(EDATE(M21,VLOOKUP(K21,BANCO!A:I,9,0)),"") -> 44545 | O21: 33 | AF21: 20 | AT21: =SUM(O21-P21-Q21-R21-S21-T21-U21-V21-AF21) -> 13 | AU21: =IFERROR(IF(OR(K21="",AND(O21="",N21="")),"",(N21-$N$4)/VLOOKUP(K21,Banco[#All],8,0)),"") -> -0.1205479452 | AV21: =IFERROR(O21*VLOOKUP(K21,Banco[#All],3,0)+(#REF!*VLOOKUP(K21,Banco[#All],4,0)),"") ->  | AW21: DEVOLUÇÃO ATACADÃO
I22: WR/ABN | K22: STW-CGL330 | L22: CERVEJA GOLDEN 330 ML | M22: 44412 | N22: =IFERROR(EDATE(M22,VLOOKUP(K22,BANCO!A:I,9,0)),"") -> 44777 | O22: 26 | AT22: =SUM(O22-P22-Q22-R22-S22-T22-U22-V22) -> 26 | AU22: =IFERROR(IF(OR(K22="",AND(O22="",N22="")),"",(N22-$N$4)/VLOOKUP(K22,Banco[#All],8,0)),"") -> 0.5150684932 | AW22: AVARIA
B23: =LEFT(#REF!,1) ->  | C23: =IFERROR(VLOOKUP(K23,BANCO!A:J,10,0),"no") -> 0 | D23: 1 | E23: =IFERROR(ROUNDUP(#REF!,0)/F23,"NO") -> NO | F23: =IF(AND(#REF!="Drive em Manutenção",#REF!>0),8,40) ->  | H23: =IFERROR(IF(#REF!<=4,0,ROUNDUP(#REF!,0)),0) -> 0 | I23: WR/ABN | J23: 5680/5682 | K23: STW-CGL330 | L23: CERVEJA GOLDEN 330 ML | M23: 44443 | N23: =IFERROR(EDATE(M23,VLOOKUP(K23,BANCO!A:I,9,0)),"") -> 44808 | O23: 5611 | AE23: 50 | AO23: 576 | AP23: 288 | AT23: =SUM(O23-P23-Q23-R23-S23-T23-U23-V23-AE23-AO23-AP23) -> 4697 | AU23: =IFERROR(IF(OR(K23="",AND(O23="",N23="")),"",(N23-$N$4)/VLOOKUP(K23,Banco[#All],8,0)),"") -> 0.6 | AV23: =IFERROR(O23*VLOOKUP(K23,Banco[#All],3,0)+(#REF!*VLOOKUP(K23,Banco[#All],4,0)),"") -> 
B24: =LEFT(#REF!,1) ->  | C24: =IFERROR(VLOOKUP(K24,BANCO!A:J,10,0),"no") -> 0 | D24: 1 | E24: =IFERROR(ROUNDUP(#REF!,0)/F24,"NO") -> NO | F24: =IF(AND(#REF!="Drive em manutenção",#REF!>0),8,32) ->  | H24: =IFERROR(IF(#REF!<=4,0,ROUNDUP(#REF!,0)),0) -> 0 | I24: WR/ABN | J24: 5694 | K24: STW-CGL330 | L24: CERVEJA GOLDEN 330 ML | M24: 44412 | N24: =IFERROR(EDATE(M24,VLOOKUP(K24,BANCO!A:I,9,0)),"") -> 44777 | O24: 3211 | V24: 288 | W24: 4 | AH24: 3 | AQ24: 2430 | AR24: 18 | AS24: 20 | AT24: =SUM(O24-V24-W24-AH24-AQ24-AR24-AS24) -> 448 | AU24: =IFERROR(IF(OR(K24="",AND(O24="",N24="")),"",(N24-$N$4)/VLOOKUP(K24,Banco[#All],8,0)),"") -> 0.5150684932 | AV24: =IFERROR(O24*VLOOKUP(K24,Banco[#All],3,0)+(#REF!*VLOOKUP(K24,Banco[#All],4,0)),"") -> 
I25: WR/MSN | J25: 1996 | K25: STW-CGL330 | L25: CERVEJA GOLDEN 330 ML | M25: 44412 | N25: =IFERROR(EDATE(M25,VLOOKUP(K25,BANCO!A:I,9,0)),"") -> 44777 | O25: 175 | X25: 6 | Y25: 3 | Z25: 4 | AA25: 6 | AB25: 5 | AC25: 96 | AD25: 15 | AJ25: 20 | AK25: 2 | AL25: 5 | AM25: 3 | AN25: 10 | AT25: =SUM(O25-X25-Y25-Z25-AA25-AB25-AC25-AD25-AJ25-AK25-AL25-AM25-AN25) -> 0 | AU25: =IFERROR(IF(OR(K25="",AND(O25="",N25="")),"",(N25-$N$4)/VLOOKUP(K25,Banco[#All],8,0)),"") -> 0.5150684932 | AV25: =IFERROR(O25*VLOOKUP(K25,Banco[#All],3,0)+(#REF!*VLOOKUP(K25,Banco[#All],4,0)),"") -> 
I26: WR/MSN | J26: 1996 | K26: STW-CCT330 | L26: =IFERROR(VLOOKUP(K26,BANCO!_xlnm.Print_Area,2,0),"") -> CERVEJA TRIGO | M26: 44416 | N26: =IFERROR(EDATE(M26,VLOOKUP(K26,BANCO!A:I,9,0)),"") -> 44781 | O26: 12 | X26: 2 | Y26: 2 | Z26: 2 | AA26: 6 | AT26: =SUM(O26-P26-Q26-R26-S26-T26-U26-V26-X26-Y26-Z26-AA26) -> 0 | AU26: =IFERROR(IF(OR(K26="",AND(O26="",N26="")),"",(N26-$N$4)/VLOOKUP(K26,Banco[#All],8,0)),"") -> 0.5260273973 | AV26: =IFERROR(O26*VLOOKUP(K26,Banco[#All],3,0)+(#REF!*VLOOKUP(K26,Banco[#All],4,0)),"") -> 
I27: WR/ABN | K27: STW-CGL330 | L27: CERVEJA GOLDEN 330 ML | M27: 44213 | N27: =IFERROR(EDATE(M27,VLOOKUP(K27,BANCO!A:I,9,0)),"") -> 44578 | O27: 60 | AT27: =SUM(O27-P27-Q27-R27-S27-T27-U27-V27) -> 60 | AU27: =IFERROR(IF(OR(K27="",AND(O27="",N27="")),"",(N27-$N$4)/VLOOKUP(K27,Banco[#All],8,0)),"") -> -0.0301369863 | AV27: =IFERROR(O27*VLOOKUP(K27,Banco[#All],3,0)+(#REF!*VLOOKUP(K27,Banco[#All],4,0)),"") -> 
I28: WR/MSN | J28: 2008 | K28: STW-CCT330 | L28: =IFERROR(VLOOKUP(K28,BANCO!_xlnm.Print_Area,2,0),"") -> CERVEJA TRIGO | M28: 44416 | N28: =IFERROR(EDATE(M28,VLOOKUP(K28,BANCO!A:I,9,0)),"") -> 44781 | O28: 42 | AJ28: 5 | AM28: 2 | AN28: 5 | AT28: =SUM(O28-P28-Q28-R28-S28-T28-U28-V28-AJ28-AM28-AN28) -> 30 | AU28: =IFERROR(IF(OR(K28="",AND(O28="",N28="")),"",(N28-$N$4)/VLOOKUP(K28,Banco[#All],8,0)),"") -> 0.5260273973 | AV28: =IFERROR(O28*VLOOKUP(K28,Banco[#All],3,0)+(#REF!*VLOOKUP(K28,Banco[#All],4,0)),"") -> 
I29: WR/MSN | J29: 2013 | K29: STW-CGL620 | L29: =IFERROR(VLOOKUP(K29,BANCO!_xlnm.Print_Area,2,0),"") -> CERVEJA GOLDEN 620 ML | M29: 44412 | N29: =IFERROR(EDATE(M29,VLOOKUP(K29,BANCO!A:I,9,0)),"") -> 44777 | O29: 5 | AA29: 1 | AK29: 2 | AL29: 2 | AT29: =SUM(O29-P29-Q29-R29-S29-T29-U29-V29-AA29-AK29-AL29) -> 0 | AU29: =IFERROR(IF(OR(K29="",AND(O29="",N29="")),"",(N29-$N$4)/VLOOKUP(K29,Banco[#All],8,0)),"") -> 0.5150684932 | AV29: =IFERROR(O29*VLOOKUP(K29,Banco[#All],3,0)+(#REF!*VLOOKUP(K29,Banco[#All],4,0)),"") -> 
I30: WR/MSN | J30: 2013 | K30: STW-CGL620 | L30: =IFERROR(VLOOKUP(K30,BANCO!_xlnm.Print_Area,2,0),"") -> CERVEJA GOLDEN 620 ML | M30: 44412 | N30: =IFERROR(EDATE(M30,VLOOKUP(K30,BANCO!A:I,9,0)),"") -> 44777 | O30: 100 | AL30: 6 | AT30: =SUM(O30-P30-Q30-R30-S30-T30-U30-V30-AL30) -> 94 | AU30: =IFERROR(IF(OR(K30="",AND(O30="",N30="")),"",(N30-$N$4)/VLOOKUP(K30,Banco[#All],8,0)),"") -> 0.5150684932 | AV30: =IFERROR(O30*VLOOKUP(K30,Banco[#All],3,0)+(#REF!*VLOOKUP(K30,Banco[#All],4,0)),"") -> 
I31: WR/MSN | J31: 2025 | K31: STW-CGL330 | L31: CERVEJA GOLDEN 330 ML | M31: 44412 | N31: =IFERROR(EDATE(M31,VLOOKUP(K31,BANCO!A:I,9,0)),"") -> 44777 | O31: 2402 | AT31: =SUM(O31-P31-Q31-R31-S31-T31-U31-V31) -> 2402 | AU31: =IFERROR(IF(OR(K31="",AND(O31="",N31="")),"",(N31-$N$4)/VLOOKUP(K31,Banco[#All],8,0)),"") -> 0.5150684932 | AV31: =IFERROR(O31*VLOOKUP(K31,Banco[#All],3,0)+(#REF!*VLOOKUP(K31,Banco[#All],4,0)),"") -> 
L32: =IFERROR(VLOOKUP(K32,BANCO!_xlnm.Print_Area,2,0),"") ->  | N32: =IFERROR(EDATE(M32,VLOOKUP(K32,BANCO!A:I,9,0)),"") ->  | AT32: 0 | AU32: =IFERROR(IF(OR(K32="",AND(O32="",#REF!="")),"",(N32-$N$4)/VLOOKUP(K32,Banco[#All],8,0)),"") ->  | AV32: =IFERROR(O32*VLOOKUP(K32,Banco[#All],3,0)+(#REF!*VLOOKUP(K32,Banco[#All],4,0)),"") -> 
L33: =IFERROR(VLOOKUP(K33,BANCO!_xlnm.Print_Area,2,0),"") ->  | N33: =IFERROR(EDATE(M33,VLOOKUP(K33,BANCO!A:I,9,0)),"") ->  | AT33: 0 | AU33: =IFERROR(IF(OR(K33="",AND(O33="",#REF!="")),"",(N33-$N$4)/VLOOKUP(K33,Banco[#All],8,0)),"") ->  | AV33: =IFERROR(O33*VLOOKUP(K33,Banco[#All],3,0)+(#REF!*VLOOKUP(K33,Banco[#All],4,0)),"") -> 
L34: =IFERROR(VLOOKUP(K34,BANCO!_xlnm.Print_Area,2,0),"") ->  | N34: =IFERROR(EDATE(M34,VLOOKUP(K34,BANCO!A:I,9,0)),"") ->  | AT34: 0 | AU34: =IFERROR(IF(OR(K34="",AND(O34="",#REF!="")),"",(N34-$N$4)/VLOOKUP(K34,Banco[#All],8,0)),"") ->  | AV34: =IFERROR(O34*VLOOKUP(K34,Banco[#All],3,0)+(#REF!*VLOOKUP(K34,Banco[#All],4,0)),"") -> 
L35: =IFERROR(VLOOKUP(K35,BANCO!_xlnm.Print_Area,2,0),"") ->  | N35: =IFERROR(EDATE(M35,VLOOKUP(K35,BANCO!A:I,9,0)),"") ->  | AT35: 0 | AU35: =IFERROR(IF(OR(K35="",AND(O35="",#REF!="")),"",(N35-$N$4)/VLOOKUP(K35,Banco[#All],8,0)),"") ->  | AV35: =IFERROR(O35*VLOOKUP(K35,Banco[#All],3,0)+(#REF!*VLOOKUP(K35,Banco[#All],4,0)),"") -> 
L36: =IFERROR(VLOOKUP(K36,BANCO!_xlnm.Print_Area,2,0),"") ->  | N36: =IFERROR(EDATE(M36,VLOOKUP(K36,BANCO!A:I,9,0)),"") ->  | AT36: 0 | AU36: =IFERROR(IF(OR(K36="",AND(O36="",#REF!="")),"",(N36-$N$4)/VLOOKUP(K36,Banco[#All],8,0)),"") ->  | AV36: =IFERROR(O36*VLOOKUP(K36,Banco[#All],3,0)+(#REF!*VLOOKUP(K36,Banco[#All],4,0)),"") -> 
L37: =IFERROR(VLOOKUP(K37,BANCO!_xlnm.Print_Area,2,0),"") ->  | N37: =IFERROR(EDATE(M37,VLOOKUP(K37,BANCO!A:I,9,0)),"") ->  | AT37: 0 | AU37: =IFERROR(IF(OR(K37="",AND(O37="",#REF!="")),"",(N37-$N$4)/VLOOKUP(K37,Banco[#All],8,0)),"") ->  | AV37: =IFERROR(O37*VLOOKUP(K37,Banco[#All],3,0)+(#REF!*VLOOKUP(K37,Banco[#All],4,0)),"") -> 
L38: =IFERROR(VLOOKUP(K38,BANCO!_xlnm.Print_Area,2,0),"") ->  | N38: =IFERROR(EDATE(M38,VLOOKUP(K38,BANCO!A:I,9,0)),"") ->  | AT38: 0 | AU38: =IFERROR(IF(OR(K38="",AND(O38="",#REF!="")),"",(N38-$N$4)/VLOOKUP(K38,Banco[#All],8,0)),"") ->  | AV38: =IFERROR(O38*VLOOKUP(K38,Banco[#All],3,0)+(#REF!*VLOOKUP(K38,Banco[#All],4,0)),"") -> 
L39: =IFERROR(VLOOKUP(K39,BANCO!_xlnm.Print_Area,2,0),"") ->  | N39: =IFERROR(EDATE(M39,VLOOKUP(K39,BANCO!A:I,9,0)),"") ->  | AT39: 0 | AU39: =IFERROR(IF(OR(K39="",AND(O39="",#REF!="")),"",(N39-$N$4)/VLOOKUP(K39,Banco[#All],8,0)),"") ->  | AV39: =IFERROR(O39*VLOOKUP(K39,Banco[#All],3,0)+(#REF!*VLOOKUP(K39,Banco[#All],4,0)),"") -> 
L40: =IFERROR(VLOOKUP(K40,BANCO!_xlnm.Print_Area,2,0),"") ->  | N40: =IFERROR(EDATE(M40,VLOOKUP(K40,BANCO!A:I,9,0)),"") ->  | AT40: 0 | AU40: =IFERROR(IF(OR(K40="",AND(O40="",#REF!="")),"",(N40-$N$4)/VLOOKUP(K40,Banco[#All],8,0)),"") ->  | AV40: =IFERROR(O40*VLOOKUP(K40,Banco[#All],3,0)+(#REF!*VLOOKUP(K40,Banco[#All],4,0)),"") -> 
L41: =IFERROR(VLOOKUP(K41,BANCO!_xlnm.Print_Area,2,0),"") ->  | N41: =IFERROR(EDATE(M41,VLOOKUP(K41,BANCO!A:I,9,0)),"") ->  | AT41: 0 | AU41: =IFERROR(IF(OR(K41="",AND(O41="",#REF!="")),"",(N41-$N$4)/VLOOKUP(K41,Banco[#All],8,0)),"") ->  | AV41: =IFERROR(O41*VLOOKUP(K41,Banco[#All],3,0)+(#REF!*VLOOKUP(K41,Banco[#All],4,0)),"") -> 
L42: =IFERROR(VLOOKUP(K42,BANCO!_xlnm.Print_Area,2,0),"") ->  | N42: =IFERROR(EDATE(M42,VLOOKUP(K42,BANCO!A:I,9,0)),"") ->  | AT42: 0 | AU42: =IFERROR(IF(OR(K42="",AND(O42="",#REF!="")),"",(N42-$N$4)/VLOOKUP(K42,Banco[#All],8,0)),"") ->  | AV42: =IFERROR(O42*VLOOKUP(K42,Banco[#All],3,0)+(#REF!*VLOOKUP(K42,Banco[#All],4,0)),"") -> 
L43: =IFERROR(VLOOKUP(K43,BANCO!_xlnm.Print_Area,2,0),"") ->  | N43: =IFERROR(EDATE(M43,VLOOKUP(K43,BANCO!A:I,9,0)),"") ->  | AT43: 0 | AU43: =IFERROR(IF(OR(K43="",AND(O43="",#REF!="")),"",(N43-$N$4)/VLOOKUP(K43,Banco[#All],8,0)),"") ->  | AV43: =IFERROR(O43*VLOOKUP(K43,Banco[#All],3,0)+(#REF!*VLOOKUP(K43,Banco[#All],4,0)),"") -> 
L44: =IFERROR(VLOOKUP(K44,BANCO!_xlnm.Print_Area,2,0),"") ->  | N44: =IFERROR(EDATE(M44,VLOOKUP(K44,BANCO!A:I,9,0)),"") ->  | AT44: 0 | AU44: =IFERROR(IF(OR(K44="",AND(O44="",#REF!="")),"",(N44-$N$4)/VLOOKUP(K44,Banco[#All],8,0)),"") ->  | AV44: =IFERROR(O44*VLOOKUP(K44,Banco[#All],3,0)+(#REF!*VLOOKUP(K44,Banco[#All],4,0)),"") -> 
L45: =IFERROR(VLOOKUP(K45,BANCO!_xlnm.Print_Area,2,0),"") ->  | N45: =IFERROR(EDATE(M45,VLOOKUP(K45,BANCO!A:I,9,0)),"") ->  | AT45: 0 | AU45: =IFERROR(IF(OR(K45="",AND(O45="",#REF!="")),"",(N45-$N$4)/VLOOKUP(K45,Banco[#All],8,0)),"") ->  | AV45: =IFERROR(O45*VLOOKUP(K45,Banco[#All],3,0)+(#REF!*VLOOKUP(K45,Banco[#All],4,0)),"") -> 
L46: =IFERROR(VLOOKUP(K46,BANCO!_xlnm.Print_Area,2,0),"") ->  | N46: =IFERROR(EDATE(M46,VLOOKUP(K46,BANCO!A:I,9,0)),"") ->  | AT46: 0 | AU46: =IFERROR(IF(OR(K46="",AND(O46="",#REF!="")),"",(N46-$N$4)/VLOOKUP(K46,Banco[#All],8,0)),"") ->  | AV46: =IFERROR(O46*VLOOKUP(K46,Banco[#All],3,0)+(#REF!*VLOOKUP(K46,Banco[#All],4,0)),"") -> 
L47: =IFERROR(VLOOKUP(K47,BANCO!_xlnm.Print_Area,2,0),"") ->  | N47: =IFERROR(EDATE(M47,VLOOKUP(K47,BANCO!A:I,9,0)),"") ->  | AT47: 0 | AU47: =IFERROR(IF(OR(K47="",AND(O47="",#REF!="")),"",(N47-$N$4)/VLOOKUP(K47,Banco[#All],8,0)),"") ->  | AV47: =IFERROR(O47*VLOOKUP(K47,Banco[#All],3,0)+(#REF!*VLOOKUP(K47,Banco[#All],4,0)),"") -> 
L48: =IFERROR(VLOOKUP(K48,BANCO!_xlnm.Print_Area,2,0),"") ->  | N48: =IFERROR(EDATE(M48,VLOOKUP(K48,BANCO!A:I,9,0)),"") ->  | AT48: 0 | AU48: =IFERROR(IF(OR(K48="",AND(O48="",#REF!="")),"",(N48-$N$4)/VLOOKUP(K48,Banco[#All],8,0)),"") ->  | AV48: =IFERROR(O48*VLOOKUP(K48,Banco[#All],3,0)+(#REF!*VLOOKUP(K48,Banco[#All],4,0)),"") -> 
L49: =IFERROR(VLOOKUP(K49,BANCO!_xlnm.Print_Area,2,0),"") ->  | N49: =IFERROR(EDATE(M49,VLOOKUP(K49,BANCO!A:I,9,0)),"") ->  | AT49: 0 | AU49: =IFERROR(IF(OR(K49="",AND(O49="",#REF!="")),"",(N49-$N$4)/VLOOKUP(K49,Banco[#All],8,0)),"") ->  | AV49: =IFERROR(O49*VLOOKUP(K49,Banco[#All],3,0)+(#REF!*VLOOKUP(K49,Banco[#All],4,0)),"") -> 
L50: =IFERROR(VLOOKUP(K50,BANCO!_xlnm.Print_Area,2,0),"") ->  | N50: =IFERROR(EDATE(M50,VLOOKUP(K50,BANCO!A:I,9,0)),"") ->  | AT50: 0 | AU50: =IFERROR(IF(OR(K50="",AND(O50="",#REF!="")),"",(N50-$N$4)/VLOOKUP(K50,Banco[#All],8,0)),"") ->  | AV50: =IFERROR(O50*VLOOKUP(K50,Banco[#All],3,0)+(#REF!*VLOOKUP(K50,Banco[#All],4,0)),"") -> 
L51: =IFERROR(VLOOKUP(K51,BANCO!_xlnm.Print_Area,2,0),"") ->  | N51: =IFERROR(EDATE(M51,VLOOKUP(K51,BANCO!A:I,9,0)),"") ->  | AT51: 0 | AU51: =IFERROR(IF(OR(K51="",AND(O51="",#REF!="")),"",(N51-$N$4)/VLOOKUP(K51,Banco[#All],8,0)),"") ->  | AV51: =IFERROR(O51*VLOOKUP(K51,Banco[#All],3,0)+(#REF!*VLOOKUP(K51,Banco[#All],4,0)),"") -> 
L52: =IFERROR(VLOOKUP(K52,BANCO!_xlnm.Print_Area,2,0),"") ->  | N52: =IFERROR(EDATE(M52,VLOOKUP(K52,BANCO!A:I,9,0)),"") ->  | AT52: 0 | AU52: =IFERROR(IF(OR(K52="",AND(O52="",#REF!="")),"",(N52-$N$4)/VLOOKUP(K52,Banco[#All],8,0)),"") ->  | AV52: =IFERROR(O52*VLOOKUP(K52,Banco[#All],3,0)+(#REF!*VLOOKUP(K52,Banco[#All],4,0)),"") -> 
L53: =IFERROR(VLOOKUP(K53,BANCO!_xlnm.Print_Area,2,0),"") ->  | N53: =IFERROR(EDATE(M53,VLOOKUP(K53,BANCO!A:I,9,0)),"") ->  | AT53: 0 | AU53: =IFERROR(IF(OR(K53="",AND(O53="",#REF!="")),"",(N53-$N$4)/VLOOKUP(K53,Banco[#All],8,0)),"") ->  | AV53: =IFERROR(O53*VLOOKUP(K53,Banco[#All],3,0)+(#REF!*VLOOKUP(K53,Banco[#All],4,0)),"") -> 
L54: =IFERROR(VLOOKUP(K54,BANCO!_xlnm.Print_Area,2,0),"") ->  | N54: =IFERROR(EDATE(M54,VLOOKUP(K54,BANCO!A:I,9,0)),"") ->  | AT54: 0 | AU54: =IFERROR(IF(OR(K54="",AND(O54="",#REF!="")),"",(N54-$N$4)/VLOOKUP(K54,Banco[#All],8,0)),"") ->  | AV54: =IFERROR(O54*VLOOKUP(K54,Banco[#All],3,0)+(#REF!*VLOOKUP(K54,Banco[#All],4,0)),"") -> 
L55: =IFERROR(VLOOKUP(K55,BANCO!_xlnm.Print_Area,2,0),"") ->  | N55: =IFERROR(EDATE(M55,VLOOKUP(K55,BANCO!A:I,9,0)),"") ->  | AT55: 0 | AU55: =IFERROR(IF(OR(K55="",AND(O55="",#REF!="")),"",(N55-$N$4)/VLOOKUP(K55,Banco[#All],8,0)),"") ->  | AV55: =IFERROR(O55*VLOOKUP(K55,Banco[#All],3,0)+(#REF!*VLOOKUP(K55,Banco[#All],4,0)),"") -> 
L56: =IFERROR(VLOOKUP(K56,BANCO!_xlnm.Print_Area,2,0),"") ->  | N56: =IFERROR(EDATE(M56,VLOOKUP(K56,BANCO!A:I,9,0)),"") ->  | AT56: 0 | AU56: =IFERROR(IF(OR(K56="",AND(O56="",#REF!="")),"",(N56-$N$4)/VLOOKUP(K56,Banco[#All],8,0)),"") ->  | AV56: =IFERROR(O56*VLOOKUP(K56,Banco[#All],3,0)+(#REF!*VLOOKUP(K56,Banco[#All],4,0)),"") -> 
L57: =IFERROR(VLOOKUP(K57,BANCO!_xlnm.Print_Area,2,0),"") ->  | N57: =IFERROR(EDATE(M57,VLOOKUP(K57,BANCO!A:I,9,0)),"") ->  | AT57: 0 | AU57: =IFERROR(IF(OR(K57="",AND(O57="",#REF!="")),"",(N57-$N$4)/VLOOKUP(K57,Banco[#All],8,0)),"") ->  | AV57: =IFERROR(O57*VLOOKUP(K57,Banco[#All],3,0)+(#REF!*VLOOKUP(K57,Banco[#All],4,0)),"") -> 
L58: =IFERROR(VLOOKUP(K58,BANCO!_xlnm.Print_Area,2,0),"") ->  | N58: =IFERROR(EDATE(M58,VLOOKUP(K58,BANCO!A:I,9,0)),"") ->  | AT58: 0 | AU58: =IFERROR(IF(OR(K58="",AND(O58="",#REF!="")),"",(N58-$N$4)/VLOOKUP(K58,Banco[#All],8,0)),"") ->  | AV58: =IFERROR(O58*VLOOKUP(K58,Banco[#All],3,0)+(#REF!*VLOOKUP(K58,Banco[#All],4,0)),"") -> 
L59: =IFERROR(VLOOKUP(K59,BANCO!_xlnm.Print_Area,2,0),"") ->  | N59: =IFERROR(EDATE(M59,VLOOKUP(K59,BANCO!A:I,9,0)),"") ->  | AT59: 0 | AU59: =IFERROR(IF(OR(K59="",AND(O59="",#REF!="")),"",(N59-$N$4)/VLOOKUP(K59,Banco[#All],8,0)),"") ->  | AV59: =IFERROR(O59*VLOOKUP(K59,Banco[#All],3,0)+(#REF!*VLOOKUP(K59,Banco[#All],4,0)),"") -> 
L60: =IFERROR(VLOOKUP(K60,BANCO!_xlnm.Print_Area,2,0),"") ->  | N60: =IFERROR(EDATE(M60,VLOOKUP(K60,BANCO!A:I,9,0)),"") ->  | AT60: 0 | AU60: =IFERROR(IF(OR(K60="",AND(O60="",#REF!="")),"",(N60-$N$4)/VLOOKUP(K60,Banco[#All],8,0)),"") ->  | AV60: =IFERROR(O60*VLOOKUP(K60,Banco[#All],3,0)+(#REF!*VLOOKUP(K60,Banco[#All],4,0)),"") -> 
L61: =IFERROR(VLOOKUP(K61,BANCO!_xlnm.Print_Area,2,0),"") ->  | N61: =IFERROR(EDATE(M61,VLOOKUP(K61,BANCO!A:I,9,0)),"") ->  | AT61: 0 | AU61: =IFERROR(IF(OR(K61="",AND(O61="",#REF!="")),"",(N61-$N$4)/VLOOKUP(K61,Banco[#All],8,0)),"") ->  | AV61: =IFERROR(O61*VLOOKUP(K61,Banco[#All],3,0)+(#REF!*VLOOKUP(K61,Banco[#All],4,0)),"") -> 
L62: =IFERROR(VLOOKUP(K62,BANCO!_xlnm.Print_Area,2,0),"") ->  | N62: =IFERROR(EDATE(M62,VLOOKUP(K62,BANCO!A:I,9,0)),"") ->  | AT62: 0 | AU62: =IFERROR(IF(OR(K62="",AND(O62="",#REF!="")),"",(N62-$N$4)/VLOOKUP(K62,Banco[#All],8,0)),"") ->  | AV62: =IFERROR(O62*VLOOKUP(K62,Banco[#All],3,0)+(#REF!*VLOOKUP(K62,Banco[#All],4,0)),"") -> 
L63: =IFERROR(VLOOKUP(K63,BANCO!_xlnm.Print_Area,2,0),"") ->  | N63: =IFERROR(EDATE(M63,VLOOKUP(K63,BANCO!A:I,9,0)),"") ->  | AT63: 0 | AU63: =IFERROR(IF(OR(K63="",AND(O63="",#REF!="")),"",(N63-$N$4)/VLOOKUP(K63,Banco[#All],8,0)),"") ->  | AV63: =IFERROR(O63*VLOOKUP(K63,Banco[#All],3,0)+(#REF!*VLOOKUP(K63,Banco[#All],4,0)),"") -> 
L64: =IFERROR(VLOOKUP(K64,BANCO!_xlnm.Print_Area,2,0),"") ->  | N64: =IFERROR(EDATE(M64,VLOOKUP(K64,BANCO!A:I,9,0)),"") ->  | AT64: 0 | AU64: =IFERROR(IF(OR(K64="",AND(O64="",#REF!="")),"",(N64-$N$4)/VLOOKUP(K64,Banco[#All],8,0)),"") ->  | AV64: =IFERROR(O64*VLOOKUP(K64,Banco[#All],3,0)+(#REF!*VLOOKUP(K64,Banco[#All],4,0)),"") -> 
L65: =IFERROR(VLOOKUP(K65,BANCO!_xlnm.Print_Area,2,0),"") ->  | N65: =IFERROR(EDATE(M65,VLOOKUP(K65,BANCO!A:I,9,0)),"") ->  | AT65: 0 | AU65: =IFERROR(IF(OR(K65="",AND(O65="",#REF!="")),"",(N65-$N$4)/VLOOKUP(K65,Banco[#All],8,0)),"") ->  | AV65: =IFERROR(O65*VLOOKUP(K65,Banco[#All],3,0)+(#REF!*VLOOKUP(K65,Banco[#All],4,0)),"") -> 
L66: =IFERROR(VLOOKUP(K66,BANCO!_xlnm.Print_Area,2,0),"") ->  | N66: =IFERROR(EDATE(M66,VLOOKUP(K66,BANCO!A:I,9,0)),"") ->  | AT66: 0 | AU66: =IFERROR(IF(OR(K66="",AND(O66="",#REF!="")),"",(N66-$N$4)/VLOOKUP(K66,Banco[#All],8,0)),"") ->  | AV66: =IFERROR(O66*VLOOKUP(K66,Banco[#All],3,0)+(#REF!*VLOOKUP(K66,Banco[#All],4,0)),"") -> 
L67: =IFERROR(VLOOKUP(K67,BANCO!_xlnm.Print_Area,2,0),"") ->  | N67: =IFERROR(EDATE(M67,VLOOKUP(K67,BANCO!A:I,9,0)),"") ->  | AT67: 0 | AU67: =IFERROR(IF(OR(K67="",AND(O67="",#REF!="")),"",(N67-$N$4)/VLOOKUP(K67,Banco[#All],8,0)),"") ->  | AV67: =IFERROR(O67*VLOOKUP(K67,Banco[#All],3,0)+(#REF!*VLOOKUP(K67,Banco[#All],4,0)),"") -> 
L68: =IFERROR(VLOOKUP(K68,BANCO!_xlnm.Print_Area,2,0),"") ->  | N68: =IFERROR(EDATE(M68,VLOOKUP(K68,BANCO!A:I,9,0)),"") ->  | AT68: 0 | AU68: =IFERROR(IF(OR(K68="",AND(O68="",#REF!="")),"",(N68-$N$4)/VLOOKUP(K68,Banco[#All],8,0)),"") ->  | AV68: =IFERROR(O68*VLOOKUP(K68,Banco[#All],3,0)+(#REF!*VLOOKUP(K68,Banco[#All],4,0)),"") -> 
L69: =IFERROR(VLOOKUP(K69,BANCO!_xlnm.Print_Area,2,0),"") ->  | N69: =IFERROR(EDATE(M69,VLOOKUP(K69,BANCO!A:I,9,0)),"") ->  | AT69: 0 | AU69: =IFERROR(IF(OR(K69="",AND(O69="",#REF!="")),"",(N69-$N$4)/VLOOKUP(K69,Banco[#All],8,0)),"") ->  | AV69: =IFERROR(O69*VLOOKUP(K69,Banco[#All],3,0)+(#REF!*VLOOKUP(K69,Banco[#All],4,0)),"") -> 
L70: =IFERROR(VLOOKUP(K70,BANCO!_xlnm.Print_Area,2,0),"") ->  | N70: =IFERROR(EDATE(M70,VLOOKUP(K70,BANCO!A:I,9,0)),"") ->  | AT70: 0 | AU70: =IFERROR(IF(OR(K70="",AND(O70="",#REF!="")),"",(N70-$N$4)/VLOOKUP(K70,Banco[#All],8,0)),"") ->  | AV70: =IFERROR(O70*VLOOKUP(K70,Banco[#All],3,0)+(#REF!*VLOOKUP(K70,Banco[#All],4,0)),"") -> 
L71: =IFERROR(VLOOKUP(K71,BANCO!_xlnm.Print_Area,2,0),"") ->  | N71: =IFERROR(EDATE(M71,VLOOKUP(K71,BANCO!A:I,9,0)),"") ->  | AT71: 0 | AU71: =IFERROR(IF(OR(K71="",AND(O71="",#REF!="")),"",(N71-$N$4)/VLOOKUP(K71,Banco[#All],8,0)),"") ->  | AV71: =IFERROR(O71*VLOOKUP(K71,Banco[#All],3,0)+(#REF!*VLOOKUP(K71,Banco[#All],4,0)),"") -> 
L72: =IFERROR(VLOOKUP(K72,BANCO!_xlnm.Print_Area,2,0),"") ->  | N72: =IFERROR(EDATE(M72,VLOOKUP(K72,BANCO!A:I,9,0)),"") ->  | AT72: 0 | AU72: =IFERROR(IF(OR(K72="",AND(O72="",#REF!="")),"",(N72-$N$4)/VLOOKUP(K72,Banco[#All],8,0)),"") ->  | AV72: =IFERROR(O72*VLOOKUP(K72,Banco[#All],3,0)+(#REF!*VLOOKUP(K72,Banco[#All],4,0)),"") -> 
L73: =IFERROR(VLOOKUP(K73,BANCO!_xlnm.Print_Area,2,0),"") ->  | N73: =IFERROR(EDATE(M73,VLOOKUP(K73,BANCO!A:I,9,0)),"") ->  | AT73: 0 | AU73: =IFERROR(IF(OR(K73="",AND(O73="",#REF!="")),"",(N73-$N$4)/VLOOKUP(K73,Banco[#All],8,0)),"") ->  | AV73: =IFERROR(O73*VLOOKUP(K73,Banco[#All],3,0)+(#REF!*VLOOKUP(K73,Banco[#All],4,0)),"") -> 
L74: =IFERROR(VLOOKUP(K74,BANCO!_xlnm.Print_Area,2,0),"") ->  | N74: =IFERROR(EDATE(M74,VLOOKUP(K74,BANCO!A:I,9,0)),"") ->  | AT74: =SUM(O74-P74-Q74-R74-S74-T74-U74-V74) -> 0 | AU74: =IFERROR(IF(OR(K74="",AND(O74="",#REF!="")),"",(N74-$N$4)/VLOOKUP(K74,Banco[#All],8,0)),"") ->  | AV74: =IFERROR(O74*VLOOKUP(K74,Banco[#All],3,0)+(#REF!*VLOOKUP(K74,Banco[#All],4,0)),"") -> 
L75: =IFERROR(VLOOKUP(K75,BANCO!_xlnm.Print_Area,2,0),"") ->  | N75: =IFERROR(EDATE(M75,VLOOKUP(K75,BANCO!A:I,9,0)),"") ->  | AT75: 0 | AU75: =IFERROR(IF(OR(K75="",AND(O75="",#REF!="")),"",(N75-$N$4)/VLOOKUP(K75,Banco[#All],8,0)),"") ->  | AV75: =IFERROR(O75*VLOOKUP(K75,Banco[#All],3,0)+(#REF!*VLOOKUP(K75,Banco[#All],4,0)),"") -> 
L76: =IFERROR(VLOOKUP(K76,BANCO!_xlnm.Print_Area,2,0),"") ->  | N76: =IFERROR(EDATE(M76,VLOOKUP(K76,BANCO!A:I,9,0)),"") ->  | AT76: 0 | AU76: =IFERROR(IF(OR(K76="",AND(O76="",#REF!="")),"",(N76-$N$4)/VLOOKUP(K76,Banco[#All],8,0)),"") ->  | AV76: =IFERROR(O76*VLOOKUP(K76,Banco[#All],3,0)+(#REF!*VLOOKUP(K76,Banco[#All],4,0)),"") -> 
L77: =IFERROR(VLOOKUP(K77,BANCO!_xlnm.Print_Area,2,0),"") ->  | N77: =IFERROR(EDATE(M77,VLOOKUP(K77,BANCO!A:I,9,0)),"") ->  | AT77: 0 | AU77: =IFERROR(IF(OR(K77="",AND(O77="",#REF!="")),"",(N77-$N$4)/VLOOKUP(K77,Banco[#All],8,0)),"") ->  | AV77: =IFERROR(O77*VLOOKUP(K77,Banco[#All],3,0)+(#REF!*VLOOKUP(K77,Banco[#All],4,0)),"") -> 
L78: =IFERROR(VLOOKUP(K78,BANCO!_xlnm.Print_Area,2,0),"") ->  | N78: =IFERROR(EDATE(M78,VLOOKUP(K78,BANCO!A:I,9,0)),"") ->  | AU78: =IFERROR(IF(OR(K78="",AND(O78="",#REF!="")),"",(N78-$N$4)/VLOOKUP(K78,Banco[#All],8,0)),"") ->  | AV78: =IFERROR(O78*VLOOKUP(K78,Banco[#All],3,0)+(#REF!*VLOOKUP(K78,Banco[#All],4,0)),"") -> 
L79: =IFERROR(VLOOKUP(K79,BANCO!_xlnm.Print_Area,2,0),"") ->  | N79: =IFERROR(EDATE(M79,VLOOKUP(K79,BANCO!A:I,9,0)),"") ->  | AU79: =IFERROR(IF(OR(K79="",AND(O79="",#REF!="")),"",(N79-$N$4)/VLOOKUP(K79,Banco[#All],8,0)),"") ->  | AV79: =IFERROR(O79*VLOOKUP(K79,Banco[#All],3,0)+(#REF!*VLOOKUP(K79,Banco[#All],4,0)),"") -> 
L80: =IFERROR(VLOOKUP(K80,BANCO!_xlnm.Print_Area,2,0),"") ->  | N80: =IFERROR(EDATE(M80,VLOOKUP(K80,BANCO!A:I,9,0)),"") ->  | AU80: =IFERROR(IF(OR(K80="",AND(O80="",#REF!="")),"",(N80-$N$4)/VLOOKUP(K80,Banco[#All],8,0)),"") ->  | AV80: =IFERROR(O80*VLOOKUP(K80,Banco[#All],3,0)+(#REF!*VLOOKUP(K80,Banco[#All],4,0)),"") -> 
L81: =IFERROR(VLOOKUP(K81,BANCO!_xlnm.Print_Area,2,0),"") ->  | N81: =IFERROR(EDATE(M81,VLOOKUP(K81,BANCO!A:I,9,0)),"") ->  | AU81: =IFERROR(IF(OR(K81="",AND(O81="",#REF!="")),"",(N81-$N$4)/VLOOKUP(K81,Banco[#All],8,0)),"") ->  | AV81: =IFERROR(O81*VLOOKUP(K81,Banco[#All],3,0)+(#REF!*VLOOKUP(K81,Banco[#All],4,0)),"") -> 
L82: =IFERROR(VLOOKUP(K82,BANCO!_xlnm.Print_Area,2,0),"") ->  | N82: =IFERROR(EDATE(M82,VLOOKUP(K82,BANCO!A:I,9,0)),"") ->  | AU82: =IFERROR(IF(OR(K82="",AND(O82="",#REF!="")),"",(N82-$N$4)/VLOOKUP(K82,Banco[#All],8,0)),"") ->  | AV82: =IFERROR(O82*VLOOKUP(K82,Banco[#All],3,0)+(#REF!*VLOOKUP(K82,Banco[#All],4,0)),"") -> 
L83: =IFERROR(VLOOKUP(K83,BANCO!_xlnm.Print_Area,2,0),"") ->  | N83: =IFERROR(EDATE(M83,VLOOKUP(K83,BANCO!A:I,9,0)),"") ->  | AU83: =IFERROR(IF(OR(K83="",AND(O83="",#REF!="")),"",(N83-$N$4)/VLOOKUP(K83,Banco[#All],8,0)),"") ->  | AV83: =IFERROR(O83*VLOOKUP(K83,Banco[#All],3,0)+(#REF!*VLOOKUP(K83,Banco[#All],4,0)),"") -> 
L84: =IFERROR(VLOOKUP(K84,BANCO!_xlnm.Print_Area,2,0),"") ->  | N84: =IFERROR(EDATE(M84,VLOOKUP(K84,BANCO!A:I,9,0)),"") ->  | AU84: =IFERROR(IF(OR(K84="",AND(O84="",#REF!="")),"",(N84-$N$4)/VLOOKUP(K84,Banco[#All],8,0)),"") ->  | AV84: =IFERROR(O84*VLOOKUP(K84,Banco[#All],3,0)+(#REF!*VLOOKUP(K84,Banco[#All],4,0)),"") -> 
L85: =IFERROR(VLOOKUP(K85,BANCO!_xlnm.Print_Area,2,0),"") ->  | N85: =IFERROR(EDATE(M85,VLOOKUP(K85,BANCO!A:I,9,0)),"") ->  | AU85: =IFERROR(IF(OR(K85="",AND(O85="",#REF!="")),"",(N85-$N$4)/VLOOKUP(K85,Banco[#All],8,0)),"") ->  | AV85: =IFERROR(O85*VLOOKUP(K85,Banco[#All],3,0)+(#REF!*VLOOKUP(K85,Banco[#All],4,0)),"") -> 
L86: =IFERROR(VLOOKUP(K86,BANCO!_xlnm.Print_Area,2,0),"") ->  | N86: =IFERROR(EDATE(M86,VLOOKUP(K86,BANCO!A:I,9,0)),"") ->  | AU86: =IFERROR(IF(OR(K86="",AND(O86="",#REF!="")),"",(N86-$N$4)/VLOOKUP(K86,Banco[#All],8,0)),"") ->  | AV86: =IFERROR(O86*VLOOKUP(K86,Banco[#All],3,0)+(#REF!*VLOOKUP(K86,Banco[#All],4,0)),"") -> 
L87: =IFERROR(VLOOKUP(K87,BANCO!_xlnm.Print_Area,2,0),"") ->  | N87: =IFERROR(EDATE(M87,VLOOKUP(K87,BANCO!A:I,9,0)),"") ->  | AU87: =IFERROR(IF(OR(K87="",AND(O87="",#REF!="")),"",(N87-$N$4)/VLOOKUP(K87,Banco[#All],8,0)),"") ->  | AV87: =IFERROR(O87*VLOOKUP(K87,Banco[#All],3,0)+(#REF!*VLOOKUP(K87,Banco[#All],4,0)),"") -> 
L88: =IFERROR(VLOOKUP(K88,BANCO!_xlnm.Print_Area,2,0),"") ->  | N88: =IFERROR(EDATE(M88,VLOOKUP(K88,BANCO!A:I,9,0)),"") ->  | AU88: =IFERROR(IF(OR(K88="",AND(O88="",#REF!="")),"",(N88-$N$4)/VLOOKUP(K88,Banco[#All],8,0)),"") ->  | AV88: =IFERROR(O88*VLOOKUP(K88,Banco[#All],3,0)+(#REF!*VLOOKUP(K88,Banco[#All],4,0)),"") -> 
L89: =IFERROR(VLOOKUP(K89,BANCO!_xlnm.Print_Area,2,0),"") ->  | N89: =IFERROR(EDATE(M89,VLOOKUP(K89,BANCO!A:I,9,0)),"") ->  | AU89: =IFERROR(IF(OR(K89="",AND(O89="",#REF!="")),"",(N89-$N$4)/VLOOKUP(K89,Banco[#All],8,0)),"") ->  | AV89: =IFERROR(O89*VLOOKUP(K89,Banco[#All],3,0)+(#REF!*VLOOKUP(K89,Banco[#All],4,0)),"") -> 
L90: =IFERROR(VLOOKUP(K90,BANCO!_xlnm.Print_Area,2,0),"") ->  | N90: =IFERROR(EDATE(M90,VLOOKUP(K90,BANCO!A:I,9,0)),"") ->  | AU90: =IFERROR(IF(OR(K90="",AND(O90="",#REF!="")),"",(N90-$N$4)/VLOOKUP(K90,Banco[#All],8,0)),"") ->  | AV90: =IFERROR(O90*VLOOKUP(K90,Banco[#All],3,0)+(#REF!*VLOOKUP(K90,Banco[#All],4,0)),"") -> 
L91: =IFERROR(VLOOKUP(K91,BANCO!_xlnm.Print_Area,2,0),"") ->  | N91: =IFERROR(EDATE(M91,VLOOKUP(K91,BANCO!A:I,9,0)),"") ->  | AU91: =IFERROR(IF(OR(K91="",AND(O91="",#REF!="")),"",(N91-$N$4)/VLOOKUP(K91,Banco[#All],8,0)),"") ->  | AV91: =IFERROR(O91*VLOOKUP(K91,Banco[#All],3,0)+(#REF!*VLOOKUP(K91,Banco[#All],4,0)),"") -> 
L92: =IFERROR(VLOOKUP(K92,BANCO!_xlnm.Print_Area,2,0),"") ->  | N92: =IFERROR(EDATE(M92,VLOOKUP(K92,BANCO!A:I,9,0)),"") ->  | AU92: =IFERROR(IF(OR(K92="",AND(O92="",#REF!="")),"",(N92-$N$4)/VLOOKUP(K92,Banco[#All],8,0)),"") ->  | AV92: =IFERROR(O92*VLOOKUP(K92,Banco[#All],3,0)+(#REF!*VLOOKUP(K92,Banco[#All],4,0)),"") -> 
L93: =IFERROR(VLOOKUP(K93,BANCO!_xlnm.Print_Area,2,0),"") ->  | N93: =IFERROR(EDATE(M93,VLOOKUP(K93,BANCO!A:I,9,0)),"") ->  | AU93: =IFERROR(IF(OR(K93="",AND(O93="",#REF!="")),"",(N93-$N$4)/VLOOKUP(K93,Banco[#All],8,0)),"") ->  | AV93: =IFERROR(O93*VLOOKUP(K93,Banco[#All],3,0)+(#REF!*VLOOKUP(K93,Banco[#All],4,0)),"") -> 
L94: =IFERROR(VLOOKUP(K94,BANCO!_xlnm.Print_Area,2,0),"") ->  | N94: =IFERROR(EDATE(M94,VLOOKUP(K94,BANCO!A:I,9,0)),"") ->  | AU94: =IFERROR(IF(OR(K94="",AND(O94="",#REF!="")),"",(N94-$N$4)/VLOOKUP(K94,Banco[#All],8,0)),"") ->  | AV94: =IFERROR(O94*VLOOKUP(K94,Banco[#All],3,0)+(#REF!*VLOOKUP(K94,Banco[#All],4,0)),"") -> 
L95: =IFERROR(VLOOKUP(K95,BANCO!_xlnm.Print_Area,2,0),"") ->  | N95: =IFERROR(EDATE(M95,VLOOKUP(K95,BANCO!A:I,9,0)),"") ->  | AU95: =IFERROR(IF(OR(K95="",AND(O95="",#REF!="")),"",(N95-$N$4)/VLOOKUP(K95,Banco[#All],8,0)),"") ->  | AV95: =IFERROR(O95*VLOOKUP(K95,Banco[#All],3,0)+(#REF!*VLOOKUP(K95,Banco[#All],4,0)),"") -> 
L96: =IFERROR(VLOOKUP(K96,BANCO!_xlnm.Print_Area,2,0),"") ->  | N96: =IFERROR(EDATE(M96,VLOOKUP(K96,BANCO!A:I,9,0)),"") ->  | AU96: =IFERROR(IF(OR(K96="",AND(O96="",#REF!="")),"",(N96-$N$4)/VLOOKUP(K96,Banco[#All],8,0)),"") ->  | AV96: =IFERROR(O96*VLOOKUP(K96,Banco[#All],3,0)+(#REF!*VLOOKUP(K96,Banco[#All],4,0)),"") -> 
L97: =IFERROR(VLOOKUP(K97,BANCO!_xlnm.Print_Area,2,0),"") ->  | N97: =IFERROR(EDATE(M97,VLOOKUP(K97,BANCO!A:I,9,0)),"") ->  | AU97: =IFERROR(IF(OR(K97="",AND(O97="",#REF!="")),"",(N97-$N$4)/VLOOKUP(K97,Banco[#All],8,0)),"") ->  | AV97: =IFERROR(O97*VLOOKUP(K97,Banco[#All],3,0)+(#REF!*VLOOKUP(K97,Banco[#All],4,0)),"") -> 
L98: =IFERROR(VLOOKUP(K98,BANCO!_xlnm.Print_Area,2,0),"") ->  | N98: =IFERROR(EDATE(M98,VLOOKUP(K98,BANCO!A:I,9,0)),"") ->  | AU98: =IFERROR(IF(OR(K98="",AND(O98="",#REF!="")),"",(N98-$N$4)/VLOOKUP(K98,Banco[#All],8,0)),"") ->  | AV98: =IFERROR(O98*VLOOKUP(K98,Banco[#All],3,0)+(#REF!*VLOOKUP(K98,Banco[#All],4,0)),"") -> 
L99: =IFERROR(VLOOKUP(K99,BANCO!_xlnm.Print_Area,2,0),"") ->  | N99: =IFERROR(EDATE(M99,VLOOKUP(K99,BANCO!A:I,9,0)),"") ->  | AU99: =IFERROR(IF(OR(K99="",AND(O99="",#REF!="")),"",(N99-$N$4)/VLOOKUP(K99,Banco[#All],8,0)),"") ->  | AV99: =IFERROR(O99*VLOOKUP(K99,Banco[#All],3,0)+(#REF!*VLOOKUP(K99,Banco[#All],4,0)),"") -> 
L100: =IFERROR(VLOOKUP(K100,BANCO!_xlnm.Print_Area,2,0),"") ->  | N100: =IFERROR(EDATE(M100,VLOOKUP(K100,BANCO!A:I,9,0)),"") ->  | AU100: =IFERROR(IF(OR(K100="",AND(O100="",#REF!="")),"",(N100-$N$4)/VLOOKUP(K100,Banco[#All],8,0)),"") ->  | AV100: =IFERROR(O100*VLOOKUP(K100,Banco[#All],3,0)+(#REF!*VLOOKUP(K100,Banco[#All],4,0)),"") -> 
L101: =IFERROR(VLOOKUP(K101,BANCO!_xlnm.Print_Area,2,0),"") ->  | N101: =IFERROR(EDATE(M101,VLOOKUP(K101,BANCO!A:I,9,0)),"") ->  | AU101: =IFERROR(IF(OR(K101="",AND(O101="",#REF!="")),"",(N101-$N$4)/VLOOKUP(K101,Banco[#All],8,0)),"") ->  | AV101: =IFERROR(O101*VLOOKUP(K101,Banco[#All],3,0)+(#REF!*VLOOKUP(K101,Banco[#All],4,0)),"") -> 
L102: =IFERROR(VLOOKUP(K102,BANCO!_xlnm.Print_Area,2,0),"") ->  | N102: =IFERROR(EDATE(M102,VLOOKUP(K102,BANCO!A:I,9,0)),"") ->  | AU102: =IFERROR(IF(OR(K102="",AND(O102="",#REF!="")),"",(N102-$N$4)/VLOOKUP(K102,Banco[#All],8,0)),"") ->  | AV102: =IFERROR(O102*VLOOKUP(K102,Banco[#All],3,0)+(#REF!*VLOOKUP(K102,Banco[#All],4,0)),"") -> 
L103: =IFERROR(VLOOKUP(K103,BANCO!_xlnm.Print_Area,2,0),"") ->  | N103: =IFERROR(EDATE(M103,VLOOKUP(K103,BANCO!A:I,9,0)),"") ->  | AU103: =IFERROR(IF(OR(K103="",AND(O103="",#REF!="")),"",(N103-$N$4)/VLOOKUP(K103,Banco[#All],8,0)),"") ->  | AV103: =IFERROR(O103*VLOOKUP(K103,Banco[#All],3,0)+(#REF!*VLOOKUP(K103,Banco[#All],4,0)),"") -> 
L104: =IFERROR(VLOOKUP(K104,BANCO!_xlnm.Print_Area,2,0),"") ->  | N104: =IFERROR(EDATE(M104,VLOOKUP(K104,BANCO!A:I,9,0)),"") ->  | AU104: =IFERROR(IF(OR(K104="",AND(O104="",#REF!="")),"",(N104-$N$4)/VLOOKUP(K104,Banco[#All],8,0)),"") ->  | AV104: =IFERROR(O104*VLOOKUP(K104,Banco[#All],3,0)+(#REF!*VLOOKUP(K104,Banco[#All],4,0)),"") -> 
L105: =IFERROR(VLOOKUP(K105,BANCO!_xlnm.Print_Area,2,0),"") ->  | N105: =IFERROR(EDATE(M105,VLOOKUP(K105,BANCO!A:I,9,0)),"") ->  | AU105: =IFERROR(IF(OR(K105="",AND(O105="",#REF!="")),"",(N105-$N$4)/VLOOKUP(K105,Banco[#All],8,0)),"") ->  | AV105: =IFERROR(O105*VLOOKUP(K105,Banco[#All],3,0)+(#REF!*VLOOKUP(K105,Banco[#All],4,0)),"") -> 
L106: =IFERROR(VLOOKUP(K106,BANCO!_xlnm.Print_Area,2,0),"") ->  | N106: =IFERROR(EDATE(M106,VLOOKUP(K106,BANCO!A:I,9,0)),"") ->  | AU106: =IFERROR(IF(OR(K106="",AND(O106="",#REF!="")),"",(N106-$N$4)/VLOOKUP(K106,Banco[#All],8,0)),"") ->  | AV106: =IFERROR(O106*VLOOKUP(K106,Banco[#All],3,0)+(#REF!*VLOOKUP(K106,Banco[#All],4,0)),"") -> 
L107: =IFERROR(VLOOKUP(K107,BANCO!_xlnm.Print_Area,2,0),"") ->  | N107: =IFERROR(EDATE(M107,VLOOKUP(K107,BANCO!A:I,9,0)),"") ->  | AU107: =IFERROR(IF(OR(K107="",AND(O107="",#REF!="")),"",(N107-$N$4)/VLOOKUP(K107,Banco[#All],8,0)),"") ->  | AV107: =IFERROR(O107*VLOOKUP(K107,Banco[#All],3,0)+(#REF!*VLOOKUP(K107,Banco[#All],4,0)),"") -> 
L108: =IFERROR(VLOOKUP(K108,BANCO!_xlnm.Print_Area,2,0),"") ->  | N108: =IFERROR(EDATE(M108,VLOOKUP(K108,BANCO!A:I,9,0)),"") ->  | AU108: =IFERROR(IF(OR(K108="",AND(O108="",#REF!="")),"",(N108-$N$4)/VLOOKUP(K108,Banco[#All],8,0)),"") ->  | AV108: =IFERROR(O108*VLOOKUP(K108,Banco[#All],3,0)+(#REF!*VLOOKUP(K108,Banco[#All],4,0)),"") -> 
L109: =IFERROR(VLOOKUP(K109,BANCO!_xlnm.Print_Area,2,0),"") ->  | N109: =IFERROR(EDATE(M109,VLOOKUP(K109,BANCO!A:I,9,0)),"") ->  | AU109: =IFERROR(IF(OR(K109="",AND(O109="",#REF!="")),"",(N109-$N$4)/VLOOKUP(K109,Banco[#All],8,0)),"") ->  | AV109: =IFERROR(O109*VLOOKUP(K109,Banco[#All],3,0)+(#REF!*VLOOKUP(K109,Banco[#All],4,0)),"") -> 
L110: =IFERROR(VLOOKUP(K110,BANCO!_xlnm.Print_Area,2,0),"") ->  | N110: =IFERROR(EDATE(M110,VLOOKUP(K110,BANCO!A:I,9,0)),"") ->  | AU110: =IFERROR(IF(OR(K110="",AND(O110="",#REF!="")),"",(N110-$N$4)/VLOOKUP(K110,Banco[#All],8,0)),"") ->  | AV110: =IFERROR(O110*VLOOKUP(K110,Banco[#All],3,0)+(#REF!*VLOOKUP(K110,Banco[#All],4,0)),"") -> 
L111: =IFERROR(VLOOKUP(K111,BANCO!_xlnm.Print_Area,2,0),"") ->  | N111: =IFERROR(EDATE(M111,VLOOKUP(K111,BANCO!A:I,9,0)),"") ->  | AU111: =IFERROR(IF(OR(K111="",AND(O111="",#REF!="")),"",(N111-$N$4)/VLOOKUP(K111,Banco[#All],8,0)),"") ->  | AV111: =IFERROR(O111*VLOOKUP(K111,Banco[#All],3,0)+(#REF!*VLOOKUP(K111,Banco[#All],4,0)),"") -> 
L112: =IFERROR(VLOOKUP(K112,BANCO!_xlnm.Print_Area,2,0),"") ->  | N112: =IFERROR(EDATE(M112,VLOOKUP(K112,BANCO!A:I,9,0)),"") ->  | AU112: =IFERROR(IF(OR(K112="",AND(O112="",#REF!="")),"",(N112-$N$4)/VLOOKUP(K112,Banco[#All],8,0)),"") ->  | AV112: =IFERROR(O112*VLOOKUP(K112,Banco[#All],3,0)+(#REF!*VLOOKUP(K112,Banco[#All],4,0)),"") -> 
L113: =IFERROR(VLOOKUP(K113,BANCO!_xlnm.Print_Area,2,0),"") ->  | N113: =IFERROR(EDATE(M113,VLOOKUP(K113,BANCO!A:I,9,0)),"") ->  | AU113: =IFERROR(IF(OR(K113="",AND(O113="",#REF!="")),"",(N113-$N$4)/VLOOKUP(K113,Banco[#All],8,0)),"") ->  | AV113: =IFERROR(O113*VLOOKUP(K113,Banco[#All],3,0)+(#REF!*VLOOKUP(K113,Banco[#All],4,0)),"") -> 
L114: =IFERROR(VLOOKUP(K114,BANCO!_xlnm.Print_Area,2,0),"") ->  | N114: =IFERROR(EDATE(M114,VLOOKUP(K114,BANCO!A:I,9,0)),"") ->  | AU114: =IFERROR(IF(OR(K114="",AND(O114="",#REF!="")),"",(N114-$N$4)/VLOOKUP(K114,Banco[#All],8,0)),"") ->  | AV114: =IFERROR(O114*VLOOKUP(K114,Banco[#All],3,0)+(#REF!*VLOOKUP(K114,Banco[#All],4,0)),"") -> 
L115: =IFERROR(VLOOKUP(K115,BANCO!_xlnm.Print_Area,2,0),"") ->  | N115: =IFERROR(EDATE(M115,VLOOKUP(K115,BANCO!A:I,9,0)),"") ->  | AU115: =IFERROR(IF(OR(K115="",AND(O115="",#REF!="")),"",(N115-$N$4)/VLOOKUP(K115,Banco[#All],8,0)),"") ->  | AV115: =IFERROR(O115*VLOOKUP(K115,Banco[#All],3,0)+(#REF!*VLOOKUP(K115,Banco[#All],4,0)),"") -> 
L116: =IFERROR(VLOOKUP(K116,BANCO!_xlnm.Print_Area,2,0),"") ->  | N116: =IFERROR(EDATE(M116,VLOOKUP(K116,BANCO!A:I,9,0)),"") ->  | AU116: =IFERROR(IF(OR(K116="",AND(O116="",#REF!="")),"",(N116-$N$4)/VLOOKUP(K116,Banco[#All],8,0)),"") ->  | AV116: =IFERROR(O116*VLOOKUP(K116,Banco[#All],3,0)+(#REF!*VLOOKUP(K116,Banco[#All],4,0)),"") -> 
L117: =IFERROR(VLOOKUP(K117,BANCO!_xlnm.Print_Area,2,0),"") ->  | N117: =IFERROR(EDATE(M117,VLOOKUP(K117,BANCO!A:I,9,0)),"") ->  | AU117: =IFERROR(IF(OR(K117="",AND(O117="",#REF!="")),"",(N117-$N$4)/VLOOKUP(K117,Banco[#All],8,0)),"") ->  | AV117: =IFERROR(O117*VLOOKUP(K117,Banco[#All],3,0)+(#REF!*VLOOKUP(K117,Banco[#All],4,0)),"") -> 
L118: =IFERROR(VLOOKUP(K118,BANCO!_xlnm.Print_Area,2,0),"") ->  | N118: =IFERROR(EDATE(M118,VLOOKUP(K118,BANCO!A:I,9,0)),"") ->  | AU118: =IFERROR(IF(OR(K118="",AND(O118="",#REF!="")),"",(N118-$N$4)/VLOOKUP(K118,Banco[#All],8,0)),"") ->  | AV118: =IFERROR(O118*VLOOKUP(K118,Banco[#All],3,0)+(#REF!*VLOOKUP(K118,Banco[#All],4,0)),"") -> 
L119: =IFERROR(VLOOKUP(K119,BANCO!_xlnm.Print_Area,2,0),"") ->  | N119: =IFERROR(EDATE(M119,VLOOKUP(K119,BANCO!A:I,9,0)),"") ->  | AU119: =IFERROR(IF(OR(K119="",AND(O119="",#REF!="")),"",(N119-$N$4)/VLOOKUP(K119,Banco[#All],8,0)),"") ->  | AV119: =IFERROR(O119*VLOOKUP(K119,Banco[#All],3,0)+(#REF!*VLOOKUP(K119,Banco[#All],4,0)),"") -> 
L120: =IFERROR(VLOOKUP(K120,BANCO!_xlnm.Print_Area,2,0),"") ->  | N120: =IFERROR(EDATE(M120,VLOOKUP(K120,BANCO!A:I,9,0)),"") ->  | AU120: =IFERROR(IF(OR(K120="",AND(O120="",#REF!="")),"",(N120-$N$4)/VLOOKUP(K120,Banco[#All],8,0)),"") ->  | AV120: =IFERROR(O120*VLOOKUP(K120,Banco[#All],3,0)+(#REF!*VLOOKUP(K120,Banco[#All],4,0)),"") -> 
L121: =IFERROR(VLOOKUP(K121,BANCO!_xlnm.Print_Area,2,0),"") ->  | N121: =IFERROR(EDATE(M121,VLOOKUP(K121,BANCO!A:I,9,0)),"") ->  | AU121: =IFERROR(IF(OR(K121="",AND(O121="",#REF!="")),"",(N121-$N$4)/VLOOKUP(K121,Banco[#All],8,0)),"") ->  | AV121: =IFERROR(O121*VLOOKUP(K121,Banco[#All],3,0)+(#REF!*VLOOKUP(K121,Banco[#All],4,0)),"") -> 
L122: =IFERROR(VLOOKUP(K122,BANCO!_xlnm.Print_Area,2,0),"") ->  | N122: =IFERROR(EDATE(M122,VLOOKUP(K122,BANCO!A:I,9,0)),"") ->  | AU122: =IFERROR(IF(OR(K122="",AND(O122="",#REF!="")),"",(N122-$N$4)/VLOOKUP(K122,Banco[#All],8,0)),"") ->  | AV122: =IFERROR(O122*VLOOKUP(K122,Banco[#All],3,0)+(#REF!*VLOOKUP(K122,Banco[#All],4,0)),"") -> 
L123: =IFERROR(VLOOKUP(K123,BANCO!_xlnm.Print_Area,2,0),"") ->  | N123: =IFERROR(EDATE(M123,VLOOKUP(K123,BANCO!A:I,9,0)),"") ->  | AU123: =IFERROR(IF(OR(K123="",AND(O123="",#REF!="")),"",(N123-$N$4)/VLOOKUP(K123,Banco[#All],8,0)),"") ->  | AV123: =IFERROR(O123*VLOOKUP(K123,Banco[#All],3,0)+(#REF!*VLOOKUP(K123,Banco[#All],4,0)),"") -> 
L124: =IFERROR(VLOOKUP(K124,BANCO!_xlnm.Print_Area,2,0),"") ->  | N124: =IFERROR(EDATE(M124,VLOOKUP(K124,BANCO!A:I,9,0)),"") ->  | AU124: =IFERROR(IF(OR(K124="",AND(O124="",#REF!="")),"",(N124-$N$4)/VLOOKUP(K124,Banco[#All],8,0)),"") ->  | AV124: =IFERROR(O124*VLOOKUP(K124,Banco[#All],3,0)+(#REF!*VLOOKUP(K124,Banco[#All],4,0)),"") -> 
L125: =IFERROR(VLOOKUP(K125,BANCO!_xlnm.Print_Area,2,0),"") ->  | N125: =IFERROR(EDATE(M125,VLOOKUP(K125,BANCO!A:I,9,0)),"") ->  | AU125: =IFERROR(IF(OR(K125="",AND(O125="",#REF!="")),"",(N125-$N$4)/VLOOKUP(K125,Banco[#All],8,0)),"") ->  | AV125: =IFERROR(O125*VLOOKUP(K125,Banco[#All],3,0)+(#REF!*VLOOKUP(K125,Banco[#All],4,0)),"") -> 
L126: =IFERROR(VLOOKUP(K126,BANCO!_xlnm.Print_Area,2,0),"") ->  | N126: =IFERROR(EDATE(M126,VLOOKUP(K126,BANCO!A:I,9,0)),"") ->  | AU126: =IFERROR(IF(OR(K126="",AND(O126="",#REF!="")),"",(N126-$N$4)/VLOOKUP(K126,Banco[#All],8,0)),"") ->  | AV126: =IFERROR(O126*VLOOKUP(K126,Banco[#All],3,0)+(#REF!*VLOOKUP(K126,Banco[#All],4,0)),"") -> 
L127: =IFERROR(VLOOKUP(K127,BANCO!_xlnm.Print_Area,2,0),"") ->  | N127: =IFERROR(EDATE(M127,VLOOKUP(K127,BANCO!A:I,9,0)),"") ->  | AU127: =IFERROR(IF(OR(K127="",AND(O127="",#REF!="")),"",(N127-$N$4)/VLOOKUP(K127,Banco[#All],8,0)),"") ->  | AV127: =IFERROR(O127*VLOOKUP(K127,Banco[#All],3,0)+(#REF!*VLOOKUP(K127,Banco[#All],4,0)),"") -> 
L128: =IFERROR(VLOOKUP(K128,BANCO!_xlnm.Print_Area,2,0),"") ->  | N128: =IFERROR(EDATE(M128,VLOOKUP(K128,BANCO!A:I,9,0)),"") ->  | AU128: =IFERROR(IF(OR(K128="",AND(O128="",#REF!="")),"",(N128-$N$4)/VLOOKUP(K128,Banco[#All],8,0)),"") ->  | AV128: =IFERROR(O128*VLOOKUP(K128,Banco[#All],3,0)+(#REF!*VLOOKUP(K128,Banco[#All],4,0)),"") -> 
L129: =IFERROR(VLOOKUP(K129,BANCO!_xlnm.Print_Area,2,0),"") ->  | N129: =IFERROR(EDATE(M129,VLOOKUP(K129,BANCO!A:I,9,0)),"") ->  | AU129: =IFERROR(IF(OR(K129="",AND(O129="",#REF!="")),"",(N129-$N$4)/VLOOKUP(K129,Banco[#All],8,0)),"") ->  | AV129: =IFERROR(O129*VLOOKUP(K129,Banco[#All],3,0)+(#REF!*VLOOKUP(K129,Banco[#All],4,0)),"") -> 
L130: =IFERROR(VLOOKUP(K130,BANCO!_xlnm.Print_Area,2,0),"") ->  | N130: =IFERROR(EDATE(M130,VLOOKUP(K130,BANCO!A:I,9,0)),"") ->  | AU130: =IFERROR(IF(OR(K130="",AND(O130="",#REF!="")),"",(N130-$N$4)/VLOOKUP(K130,Banco[#All],8,0)),"") ->  | AV130: =IFERROR(O130*VLOOKUP(K130,Banco[#All],3,0)+(#REF!*VLOOKUP(K130,Banco[#All],4,0)),"") -> 
L131: =IFERROR(VLOOKUP(K131,BANCO!_xlnm.Print_Area,2,0),"") ->  | N131: =IFERROR(EDATE(M131,VLOOKUP(K131,BANCO!A:I,9,0)),"") ->  | AU131: =IFERROR(IF(OR(K131="",AND(O131="",#REF!="")),"",(N131-$N$4)/VLOOKUP(K131,Banco[#All],8,0)),"") ->  | AV131: =IFERROR(O131*VLOOKUP(K131,Banco[#All],3,0)+(#REF!*VLOOKUP(K131,Banco[#All],4,0)),"") -> 
L132: =IFERROR(VLOOKUP(K132,BANCO!_xlnm.Print_Area,2,0),"") ->  | N132: =IFERROR(EDATE(M132,VLOOKUP(K132,BANCO!A:I,9,0)),"") ->  | AU132: =IFERROR(IF(OR(K132="",AND(O132="",#REF!="")),"",(N132-$N$4)/VLOOKUP(K132,Banco[#All],8,0)),"") ->  | AV132: =IFERROR(O132*VLOOKUP(K132,Banco[#All],3,0)+(#REF!*VLOOKUP(K132,Banco[#All],4,0)),"") -> 
L133: =IFERROR(VLOOKUP(K133,BANCO!_xlnm.Print_Area,2,0),"") ->  | N133: =IFERROR(EDATE(M133,VLOOKUP(K133,BANCO!A:I,9,0)),"") ->  | AU133: =IFERROR(IF(OR(K133="",AND(O133="",#REF!="")),"",(N133-$N$4)/VLOOKUP(K133,Banco[#All],8,0)),"") ->  | AV133: =IFERROR(O133*VLOOKUP(K133,Banco[#All],3,0)+(#REF!*VLOOKUP(K133,Banco[#All],4,0)),"") -> 
L134: =IFERROR(VLOOKUP(K134,BANCO!_xlnm.Print_Area,2,0),"") ->  | N134: =IFERROR(EDATE(M134,VLOOKUP(K134,BANCO!A:I,9,0)),"") ->  | AU134: =IFERROR(IF(OR(K134="",AND(O134="",#REF!="")),"",(N134-$N$4)/VLOOKUP(K134,Banco[#All],8,0)),"") ->  | AV134: =IFERROR(O134*VLOOKUP(K134,Banco[#All],3,0)+(#REF!*VLOOKUP(K134,Banco[#All],4,0)),"") -> 
L135: =IFERROR(VLOOKUP(K135,BANCO!_xlnm.Print_Area,2,0),"") ->  | N135: =IFERROR(EDATE(M135,VLOOKUP(K135,BANCO!A:I,9,0)),"") ->  | AU135: =IFERROR(IF(OR(K135="",AND(O135="",#REF!="")),"",(N135-$N$4)/VLOOKUP(K135,Banco[#All],8,0)),"") ->  | AV135: =IFERROR(O135*VLOOKUP(K135,Banco[#All],3,0)+(#REF!*VLOOKUP(K135,Banco[#All],4,0)),"") -> 
L136: =IFERROR(VLOOKUP(K136,BANCO!_xlnm.Print_Area,2,0),"") ->  | N136: =IFERROR(EDATE(M136,VLOOKUP(K136,BANCO!A:I,9,0)),"") ->  | AU136: =IFERROR(IF(OR(K136="",AND(O136="",#REF!="")),"",(N136-$N$4)/VLOOKUP(K136,Banco[#All],8,0)),"") ->  | AV136: =IFERROR(O136*VLOOKUP(K136,Banco[#All],3,0)+(#REF!*VLOOKUP(K136,Banco[#All],4,0)),"") -> 
L137: =IFERROR(VLOOKUP(K137,BANCO!_xlnm.Print_Area,2,0),"") ->  | N137: =IFERROR(EDATE(M137,VLOOKUP(K137,BANCO!A:I,9,0)),"") ->  | AU137: =IFERROR(IF(OR(K137="",AND(O137="",#REF!="")),"",(N137-$N$4)/VLOOKUP(K137,Banco[#All],8,0)),"") ->  | AV137: =IFERROR(O137*VLOOKUP(K137,Banco[#All],3,0)+(#REF!*VLOOKUP(K137,Banco[#All],4,0)),"") -> 
L138: =IFERROR(VLOOKUP(K138,BANCO!_xlnm.Print_Area,2,0),"") ->  | N138: =IFERROR(EDATE(M138,VLOOKUP(K138,BANCO!A:I,9,0)),"") ->  | AU138: =IFERROR(IF(OR(K138="",AND(O138="",#REF!="")),"",(N138-$N$4)/VLOOKUP(K138,Banco[#All],8,0)),"") ->  | AV138: =IFERROR(O138*VLOOKUP(K138,Banco[#All],3,0)+(#REF!*VLOOKUP(K138,Banco[#All],4,0)),"") -> 
L139: =IFERROR(VLOOKUP(K139,BANCO!_xlnm.Print_Area,2,0),"") ->  | N139: =IFERROR(EDATE(M139,VLOOKUP(K139,BANCO!A:I,9,0)),"") ->  | AU139: =IFERROR(IF(OR(K139="",AND(O139="",#REF!="")),"",(N139-$N$4)/VLOOKUP(K139,Banco[#All],8,0)),"") ->  | AV139: =IFERROR(O139*VLOOKUP(K139,Banco[#All],3,0)+(#REF!*VLOOKUP(K139,Banco[#All],4,0)),"") -> 
L140: =IFERROR(VLOOKUP(K140,BANCO!_xlnm.Print_Area,2,0),"") ->  | N140: =IFERROR(EDATE(M140,VLOOKUP(K140,BANCO!A:I,9,0)),"") ->  | AU140: =IFERROR(IF(OR(K140="",AND(O140="",#REF!="")),"",(N140-$N$4)/VLOOKUP(K140,Banco[#All],8,0)),"") ->  | AV140: =IFERROR(O140*VLOOKUP(K140,Banco[#All],3,0)+(#REF!*VLOOKUP(K140,Banco[#All],4,0)),"") -> 
L141: =IFERROR(VLOOKUP(K141,BANCO!_xlnm.Print_Area,2,0),"") ->  | N141: =IFERROR(EDATE(M141,VLOOKUP(K141,BANCO!A:I,9,0)),"") ->  | AU141: =IFERROR(IF(OR(K141="",AND(O141="",#REF!="")),"",(N141-$N$4)/VLOOKUP(K141,Banco[#All],8,0)),"") ->  | AV141: =IFERROR(O141*VLOOKUP(K141,Banco[#All],3,0)+(#REF!*VLOOKUP(K141,Banco[#All],4,0)),"") -> 
L142: =IFERROR(VLOOKUP(K142,BANCO!_xlnm.Print_Area,2,0),"") ->  | N142: =IFERROR(EDATE(M142,VLOOKUP(K142,BANCO!A:I,9,0)),"") ->  | AU142: =IFERROR(IF(OR(K142="",AND(O142="",#REF!="")),"",(N142-$N$4)/VLOOKUP(K142,Banco[#All],8,0)),"") ->  | AV142: =IFERROR(O142*VLOOKUP(K142,Banco[#All],3,0)+(#REF!*VLOOKUP(K142,Banco[#All],4,0)),"") -> 
L143: =IFERROR(VLOOKUP(K143,BANCO!_xlnm.Print_Area,2,0),"") ->  | N143: =IFERROR(EDATE(M143,VLOOKUP(K143,BANCO!A:I,9,0)),"") ->  | AU143: =IFERROR(IF(OR(K143="",AND(O143="",#REF!="")),"",(N143-$N$4)/VLOOKUP(K143,Banco[#All],8,0)),"") ->  | AV143: =IFERROR(O143*VLOOKUP(K143,Banco[#All],3,0)+(#REF!*VLOOKUP(K143,Banco[#All],4,0)),"") -> 
L144: =IFERROR(VLOOKUP(K144,BANCO!_xlnm.Print_Area,2,0),"") ->  | N144: =IFERROR(EDATE(M144,VLOOKUP(K144,BANCO!A:I,9,0)),"") ->  | AU144: =IFERROR(IF(OR(K144="",AND(O144="",#REF!="")),"",(N144-$N$4)/VLOOKUP(K144,Banco[#All],8,0)),"") ->  | AV144: =IFERROR(O144*VLOOKUP(K144,Banco[#All],3,0)+(#REF!*VLOOKUP(K144,Banco[#All],4,0)),"") -> 
L145: =IFERROR(VLOOKUP(K145,BANCO!_xlnm.Print_Area,2,0),"") ->  | N145: =IFERROR(EDATE(M145,VLOOKUP(K145,BANCO!A:I,9,0)),"") ->  | AU145: =IFERROR(IF(OR(K145="",AND(O145="",#REF!="")),"",(N145-$N$4)/VLOOKUP(K145,Banco[#All],8,0)),"") ->  | AV145: =IFERROR(O145*VLOOKUP(K145,Banco[#All],3,0)+(#REF!*VLOOKUP(K145,Banco[#All],4,0)),"") -> 
L146: =IFERROR(VLOOKUP(K146,BANCO!_xlnm.Print_Area,2,0),"") ->  | N146: =IFERROR(EDATE(M146,VLOOKUP(K146,BANCO!A:I,9,0)),"") ->  | AU146: =IFERROR(IF(OR(K146="",AND(O146="",#REF!="")),"",(N146-$N$4)/VLOOKUP(K146,Banco[#All],8,0)),"") ->  | AV146: =IFERROR(O146*VLOOKUP(K146,Banco[#All],3,0)+(#REF!*VLOOKUP(K146,Banco[#All],4,0)),"") -> 
L147: =IFERROR(VLOOKUP(K147,BANCO!_xlnm.Print_Area,2,0),"") ->  | N147: =IFERROR(EDATE(M147,VLOOKUP(K147,BANCO!A:I,9,0)),"") ->  | AU147: =IFERROR(IF(OR(K147="",AND(O147="",#REF!="")),"",(N147-$N$4)/VLOOKUP(K147,Banco[#All],8,0)),"") ->  | AV147: =IFERROR(O147*VLOOKUP(K147,Banco[#All],3,0)+(#REF!*VLOOKUP(K147,Banco[#All],4,0)),"") -> 
L148: =IFERROR(VLOOKUP(K148,BANCO!_xlnm.Print_Area,2,0),"") ->  | N148: =IFERROR(EDATE(M148,VLOOKUP(K148,BANCO!A:I,9,0)),"") ->  | AU148: =IFERROR(IF(OR(K148="",AND(O148="",#REF!="")),"",(N148-$N$4)/VLOOKUP(K148,Banco[#All],8,0)),"") ->  | AV148: =IFERROR(O148*VLOOKUP(K148,Banco[#All],3,0)+(#REF!*VLOOKUP(K148,Banco[#All],4,0)),"") -> 
L149: =IFERROR(VLOOKUP(K149,BANCO!_xlnm.Print_Area,2,0),"") ->  | N149: =IFERROR(EDATE(M149,VLOOKUP(K149,BANCO!A:I,9,0)),"") ->  | AU149: =IFERROR(IF(OR(K149="",AND(O149="",#REF!="")),"",(N149-$N$4)/VLOOKUP(K149,Banco[#All],8,0)),"") ->  | AV149: =IFERROR(O149*VLOOKUP(K149,Banco[#All],3,0)+(#REF!*VLOOKUP(K149,Banco[#All],4,0)),"") -> 
L150: =IFERROR(VLOOKUP(K150,BANCO!_xlnm.Print_Area,2,0),"") ->  | N150: =IFERROR(EDATE(M150,VLOOKUP(K150,BANCO!A:I,9,0)),"") ->  | AU150: =IFERROR(IF(OR(K150="",AND(O150="",#REF!="")),"",(N150-$N$4)/VLOOKUP(K150,Banco[#All],8,0)),"") ->  | AV150: =IFERROR(O150*VLOOKUP(K150,Banco[#All],3,0)+(#REF!*VLOOKUP(K150,Banco[#All],4,0)),"") -> 
L151: =IFERROR(VLOOKUP(K151,BANCO!_xlnm.Print_Area,2,0),"") ->  | N151: =IFERROR(EDATE(M151,VLOOKUP(K151,BANCO!A:I,9,0)),"") ->  | AU151: =IFERROR(IF(OR(K151="",AND(O151="",#REF!="")),"",(N151-$N$4)/VLOOKUP(K151,Banco[#All],8,0)),"") ->  | AV151: =IFERROR(O151*VLOOKUP(K151,Banco[#All],3,0)+(#REF!*VLOOKUP(K151,Banco[#All],4,0)),"") -> 
L152: =IFERROR(VLOOKUP(K152,BANCO!_xlnm.Print_Area,2,0),"") ->  | N152: =IFERROR(EDATE(M152,VLOOKUP(K152,BANCO!A:I,9,0)),"") ->  | AU152: =IFERROR(IF(OR(K152="",AND(O152="",#REF!="")),"",(N152-$N$4)/VLOOKUP(K152,Banco[#All],8,0)),"") ->  | AV152: =IFERROR(O152*VLOOKUP(K152,Banco[#All],3,0)+(#REF!*VLOOKUP(K152,Banco[#All],4,0)),"") -> 
L153: =IFERROR(VLOOKUP(K153,BANCO!_xlnm.Print_Area,2,0),"") ->  | N153: =IFERROR(EDATE(M153,VLOOKUP(K153,BANCO!A:I,9,0)),"") ->  | AU153: =IFERROR(IF(OR(K153="",AND(O153="",#REF!="")),"",(N153-$N$4)/VLOOKUP(K153,Banco[#All],8,0)),"") ->  | AV153: =IFERROR(O153*VLOOKUP(K153,Banco[#All],3,0)+(#REF!*VLOOKUP(K153,Banco[#All],4,0)),"") -> 
L154: =IFERROR(VLOOKUP(K154,BANCO!_xlnm.Print_Area,2,0),"") ->  | N154: =IFERROR(EDATE(M154,VLOOKUP(K154,BANCO!A:I,9,0)),"") ->  | AU154: =IFERROR(IF(OR(K154="",AND(O154="",#REF!="")),"",(N154-$N$4)/VLOOKUP(K154,Banco[#All],8,0)),"") ->  | AV154: =IFERROR(O154*VLOOKUP(K154,Banco[#All],3,0)+(#REF!*VLOOKUP(K154,Banco[#All],4,0)),"") -> 
L155: =IFERROR(VLOOKUP(K155,BANCO!_xlnm.Print_Area,2,0),"") ->  | N155: =IFERROR(EDATE(M155,VLOOKUP(K155,BANCO!A:I,9,0)),"") ->  | AU155: =IFERROR(IF(OR(K155="",AND(O155="",#REF!="")),"",(N155-$N$4)/VLOOKUP(K155,Banco[#All],8,0)),"") ->  | AV155: =IFERROR(O155*VLOOKUP(K155,Banco[#All],3,0)+(#REF!*VLOOKUP(K155,Banco[#All],4,0)),"") -> 
L156: =IFERROR(VLOOKUP(K156,BANCO!_xlnm.Print_Area,2,0),"") ->  | N156: =IFERROR(EDATE(M156,VLOOKUP(K156,BANCO!A:I,9,0)),"") ->  | AU156: =IFERROR(IF(OR(K156="",AND(O156="",#REF!="")),"",(N156-$N$4)/VLOOKUP(K156,Banco[#All],8,0)),"") ->  | AV156: =IFERROR(O156*VLOOKUP(K156,Banco[#All],3,0)+(#REF!*VLOOKUP(K156,Banco[#All],4,0)),"") -> 
L157: =IFERROR(VLOOKUP(K157,BANCO!_xlnm.Print_Area,2,0),"") ->  | N157: =IFERROR(EDATE(M157,VLOOKUP(K157,BANCO!A:I,9,0)),"") ->  | AU157: =IFERROR(IF(OR(K157="",AND(O157="",#REF!="")),"",(N157-$N$4)/VLOOKUP(K157,Banco[#All],8,0)),"") ->  | AV157: =IFERROR(O157*VLOOKUP(K157,Banco[#All],3,0)+(#REF!*VLOOKUP(K157,Banco[#All],4,0)),"") -> 
L158: =IFERROR(VLOOKUP(K158,BANCO!_xlnm.Print_Area,2,0),"") ->  | N158: =IFERROR(EDATE(M158,VLOOKUP(K158,BANCO!A:I,9,0)),"") ->  | AU158: =IFERROR(IF(OR(K158="",AND(O158="",#REF!="")),"",(N158-$N$4)/VLOOKUP(K158,Banco[#All],8,0)),"") ->  | AV158: =IFERROR(O158*VLOOKUP(K158,Banco[#All],3,0)+(#REF!*VLOOKUP(K158,Banco[#All],4,0)),"") -> 
L159: =IFERROR(VLOOKUP(K159,BANCO!_xlnm.Print_Area,2,0),"") ->  | N159: =IFERROR(EDATE(M159,VLOOKUP(K159,BANCO!A:I,9,0)),"") ->  | AU159: =IFERROR(IF(OR(K159="",AND(O159="",#REF!="")),"",(N159-$N$4)/VLOOKUP(K159,Banco[#All],8,0)),"") ->  | AV159: =IFERROR(O159*VLOOKUP(K159,Banco[#All],3,0)+(#REF!*VLOOKUP(K159,Banco[#All],4,0)),"") -> 
L160: =IFERROR(VLOOKUP(K160,BANCO!_xlnm.Print_Area,2,0),"") ->  | N160: =IFERROR(EDATE(M160,VLOOKUP(K160,BANCO!A:I,9,0)),"") ->  | AU160: =IFERROR(IF(OR(K160="",AND(O160="",#REF!="")),"",(N160-$N$4)/VLOOKUP(K160,Banco[#All],8,0)),"") ->  | AV160: =IFERROR(O160*VLOOKUP(K160,Banco[#All],3,0)+(#REF!*VLOOKUP(K160,Banco[#All],4,0)),"") -> 
L161: =IFERROR(VLOOKUP(K161,BANCO!_xlnm.Print_Area,2,0),"") ->  | N161: =IFERROR(EDATE(M161,VLOOKUP(K161,BANCO!A:I,9,0)),"") ->  | AU161: =IFERROR(IF(OR(K161="",AND(O161="",#REF!="")),"",(N161-$N$4)/VLOOKUP(K161,Banco[#All],8,0)),"") ->  | AV161: =IFERROR(O161*VLOOKUP(K161,Banco[#All],3,0)+(#REF!*VLOOKUP(K161,Banco[#All],4,0)),"") -> 
L162: =IFERROR(VLOOKUP(K162,BANCO!_xlnm.Print_Area,2,0),"") ->  | N162: =IFERROR(EDATE(M162,VLOOKUP(K162,BANCO!A:I,9,0)),"") ->  | AU162: =IFERROR(IF(OR(K162="",AND(O162="",#REF!="")),"",(N162-$N$4)/VLOOKUP(K162,Banco[#All],8,0)),"") ->  | AV162: =IFERROR(O162*VLOOKUP(K162,Banco[#All],3,0)+(#REF!*VLOOKUP(K162,Banco[#All],4,0)),"") -> 
L163: =IFERROR(VLOOKUP(K163,BANCO!_xlnm.Print_Area,2,0),"") ->  | N163: =IFERROR(EDATE(M163,VLOOKUP(K163,BANCO!A:I,9,0)),"") ->  | AU163: =IFERROR(IF(OR(K163="",AND(O163="",#REF!="")),"",(N163-$N$4)/VLOOKUP(K163,Banco[#All],8,0)),"") ->  | AV163: =IFERROR(O163*VLOOKUP(K163,Banco[#All],3,0)+(#REF!*VLOOKUP(K163,Banco[#All],4,0)),"") -> 
L164: =IFERROR(VLOOKUP(K164,BANCO!_xlnm.Print_Area,2,0),"") ->  | N164: =IFERROR(EDATE(M164,VLOOKUP(K164,BANCO!A:I,9,0)),"") ->  | AU164: =IFERROR(IF(OR(K164="",AND(O164="",#REF!="")),"",(N164-$N$4)/VLOOKUP(K164,Banco[#All],8,0)),"") ->  | AV164: =IFERROR(O164*VLOOKUP(K164,Banco[#All],3,0)+(#REF!*VLOOKUP(K164,Banco[#All],4,0)),"") -> 
L165: =IFERROR(VLOOKUP(K165,BANCO!_xlnm.Print_Area,2,0),"") ->  | N165: =IFERROR(EDATE(M165,VLOOKUP(K165,BANCO!A:I,9,0)),"") ->  | AU165: =IFERROR(IF(OR(K165="",AND(O165="",#REF!="")),"",(N165-$N$4)/VLOOKUP(K165,Banco[#All],8,0)),"") ->  | AV165: =IFERROR(O165*VLOOKUP(K165,Banco[#All],3,0)+(#REF!*VLOOKUP(K165,Banco[#All],4,0)),"") -> 
L166: =IFERROR(VLOOKUP(K166,BANCO!_xlnm.Print_Area,2,0),"") ->  | N166: =IFERROR(EDATE(M166,VLOOKUP(K166,BANCO!A:I,9,0)),"") ->  | AU166: =IFERROR(IF(OR(K166="",AND(O166="",#REF!="")),"",(N166-$N$4)/VLOOKUP(K166,Banco[#All],8,0)),"") ->  | AV166: =IFERROR(O166*VLOOKUP(K166,Banco[#All],3,0)+(#REF!*VLOOKUP(K166,Banco[#All],4,0)),"") -> 
L167: =IFERROR(VLOOKUP(K167,BANCO!_xlnm.Print_Area,2,0),"") ->  | N167: =IFERROR(EDATE(M167,VLOOKUP(K167,BANCO!A:I,9,0)),"") ->  | AU167: =IFERROR(IF(OR(K167="",AND(O167="",#REF!="")),"",(N167-$N$4)/VLOOKUP(K167,Banco[#All],8,0)),"") ->  | AV167: =IFERROR(O167*VLOOKUP(K167,Banco[#All],3,0)+(#REF!*VLOOKUP(K167,Banco[#All],4,0)),"") -> 
L168: =IFERROR(VLOOKUP(K168,BANCO!_xlnm.Print_Area,2,0),"") ->  | N168: =IFERROR(EDATE(M168,VLOOKUP(K168,BANCO!A:I,9,0)),"") ->  | AU168: =IFERROR(IF(OR(K168="",AND(O168="",#REF!="")),"",(N168-$N$4)/VLOOKUP(K168,Banco[#All],8,0)),"") ->  | AV168: =IFERROR(O168*VLOOKUP(K168,Banco[#All],3,0)+(#REF!*VLOOKUP(K168,Banco[#All],4,0)),"") -> 
L169: =IFERROR(VLOOKUP(K169,BANCO!_xlnm.Print_Area,2,0),"") ->  | N169: =IFERROR(EDATE(M169,VLOOKUP(K169,BANCO!A:I,9,0)),"") ->  | AU169: =IFERROR(IF(OR(K169="",AND(O169="",#REF!="")),"",(N169-$N$4)/VLOOKUP(K169,Banco[#All],8,0)),"") ->  | AV169: =IFERROR(O169*VLOOKUP(K169,Banco[#All],3,0)+(#REF!*VLOOKUP(K169,Banco[#All],4,0)),"") -> 
L170: =IFERROR(VLOOKUP(K170,BANCO!_xlnm.Print_Area,2,0),"") ->  | N170: =IFERROR(EDATE(M170,VLOOKUP(K170,BANCO!A:I,9,0)),"") ->  | AU170: =IFERROR(IF(OR(K170="",AND(O170="",#REF!="")),"",(N170-$N$4)/VLOOKUP(K170,Banco[#All],8,0)),"") ->  | AV170: =IFERROR(O170*VLOOKUP(K170,Banco[#All],3,0)+(#REF!*VLOOKUP(K170,Banco[#All],4,0)),"") -> 
L171: =IFERROR(VLOOKUP(K171,BANCO!_xlnm.Print_Area,2,0),"") ->  | N171: =IFERROR(EDATE(M171,VLOOKUP(K171,BANCO!A:I,9,0)),"") ->  | AU171: =IFERROR(IF(OR(K171="",AND(O171="",#REF!="")),"",(N171-$N$4)/VLOOKUP(K171,Banco[#All],8,0)),"") ->  | AV171: =IFERROR(O171*VLOOKUP(K171,Banco[#All],3,0)+(#REF!*VLOOKUP(K171,Banco[#All],4,0)),"") -> 
L172: =IFERROR(VLOOKUP(K172,BANCO!_xlnm.Print_Area,2,0),"") ->  | N172: =IFERROR(EDATE(M172,VLOOKUP(K172,BANCO!A:I,9,0)),"") ->  | AU172: =IFERROR(IF(OR(K172="",AND(O172="",#REF!="")),"",(N172-$N$4)/VLOOKUP(K172,Banco[#All],8,0)),"") ->  | AV172: =IFERROR(O172*VLOOKUP(K172,Banco[#All],3,0)+(#REF!*VLOOKUP(K172,Banco[#All],4,0)),"") -> 
L173: =IFERROR(VLOOKUP(K173,BANCO!_xlnm.Print_Area,2,0),"") ->  | N173: =IFERROR(EDATE(M173,VLOOKUP(K173,BANCO!A:I,9,0)),"") ->  | AU173: =IFERROR(IF(OR(K173="",AND(O173="",#REF!="")),"",(N173-$N$4)/VLOOKUP(K173,Banco[#All],8,0)),"") ->  | AV173: =IFERROR(O173*VLOOKUP(K173,Banco[#All],3,0)+(#REF!*VLOOKUP(K173,Banco[#All],4,0)),"") -> 
L174: =IFERROR(VLOOKUP(K174,BANCO!_xlnm.Print_Area,2,0),"") ->  | N174: =IFERROR(EDATE(M174,VLOOKUP(K174,BANCO!A:I,9,0)),"") ->  | AU174: =IFERROR(IF(OR(K174="",AND(O174="",#REF!="")),"",(N174-$N$4)/VLOOKUP(K174,Banco[#All],8,0)),"") ->  | AV174: =IFERROR(O174*VLOOKUP(K174,Banco[#All],3,0)+(#REF!*VLOOKUP(K174,Banco[#All],4,0)),"") -> 
L175: =IFERROR(VLOOKUP(K175,BANCO!_xlnm.Print_Area,2,0),"") ->  | N175: =IFERROR(EDATE(M175,VLOOKUP(K175,BANCO!A:I,9,0)),"") ->  | AU175: =IFERROR(IF(OR(K175="",AND(O175="",#REF!="")),"",(N175-$N$4)/VLOOKUP(K175,Banco[#All],8,0)),"") ->  | AV175: =IFERROR(O175*VLOOKUP(K175,Banco[#All],3,0)+(#REF!*VLOOKUP(K175,Banco[#All],4,0)),"") -> 
L176: =IFERROR(VLOOKUP(K176,BANCO!_xlnm.Print_Area,2,0),"") ->  | N176: =IFERROR(EDATE(M176,VLOOKUP(K176,BANCO!A:I,9,0)),"") ->  | AU176: =IFERROR(IF(OR(K176="",AND(O176="",#REF!="")),"",(N176-$N$4)/VLOOKUP(K176,Banco[#All],8,0)),"") ->  | AV176: =IFERROR(O176*VLOOKUP(K176,Banco[#All],3,0)+(#REF!*VLOOKUP(K176,Banco[#All],4,0)),"") -> 
L177: =IFERROR(VLOOKUP(K177,BANCO!_xlnm.Print_Area,2,0),"") ->  | N177: =IFERROR(EDATE(M177,VLOOKUP(K177,BANCO!A:I,9,0)),"") ->  | AU177: =IFERROR(IF(OR(K177="",AND(O177="",#REF!="")),"",(N177-$N$4)/VLOOKUP(K177,Banco[#All],8,0)),"") ->  | AV177: =IFERROR(O177*VLOOKUP(K177,Banco[#All],3,0)+(#REF!*VLOOKUP(K177,Banco[#All],4,0)),"") -> 
L178: =IFERROR(VLOOKUP(K178,BANCO!_xlnm.Print_Area,2,0),"") ->  | N178: =IFERROR(EDATE(M178,VLOOKUP(K178,BANCO!A:I,9,0)),"") ->  | AU178: =IFERROR(IF(OR(K178="",AND(O178="",#REF!="")),"",(N178-$N$4)/VLOOKUP(K178,Banco[#All],8,0)),"") ->  | AV178: =IFERROR(O178*VLOOKUP(K178,Banco[#All],3,0)+(#REF!*VLOOKUP(K178,Banco[#All],4,0)),"") -> 
L179: =IFERROR(VLOOKUP(K179,BANCO!_xlnm.Print_Area,2,0),"") ->  | N179: =IFERROR(EDATE(M179,VLOOKUP(K179,BANCO!A:I,9,0)),"") ->  | AU179: =IFERROR(IF(OR(K179="",AND(O179="",#REF!="")),"",(N179-$N$4)/VLOOKUP(K179,Banco[#All],8,0)),"") ->  | AV179: =IFERROR(O179*VLOOKUP(K179,Banco[#All],3,0)+(#REF!*VLOOKUP(K179,Banco[#All],4,0)),"") -> 
L180: =IFERROR(VLOOKUP(K180,BANCO!_xlnm.Print_Area,2,0),"") ->  | N180: =IFERROR(EDATE(M180,VLOOKUP(K180,BANCO!A:I,9,0)),"") ->  | AU180: =IFERROR(IF(OR(K180="",AND(O180="",#REF!="")),"",(N180-$N$4)/VLOOKUP(K180,Banco[#All],8,0)),"") ->  | AV180: =IFERROR(O180*VLOOKUP(K180,Banco[#All],3,0)+(#REF!*VLOOKUP(K180,Banco[#All],4,0)),"") -> 
L181: =IFERROR(VLOOKUP(K181,BANCO!_xlnm.Print_Area,2,0),"") ->  | N181: =IFERROR(EDATE(M181,VLOOKUP(K181,BANCO!A:I,9,0)),"") ->  | AU181: =IFERROR(IF(OR(K181="",AND(O181="",#REF!="")),"",(N181-$N$4)/VLOOKUP(K181,Banco[#All],8,0)),"") ->  | AV181: =IFERROR(O181*VLOOKUP(K181,Banco[#All],3,0)+(#REF!*VLOOKUP(K181,Banco[#All],4,0)),"") -> 
L182: =IFERROR(VLOOKUP(K182,BANCO!_xlnm.Print_Area,2,0),"") ->  | N182: =IFERROR(EDATE(M182,VLOOKUP(K182,BANCO!A:I,9,0)),"") ->  | AU182: =IFERROR(IF(OR(K182="",AND(O182="",#REF!="")),"",(N182-$N$4)/VLOOKUP(K182,Banco[#All],8,0)),"") ->  | AV182: =IFERROR(O182*VLOOKUP(K182,Banco[#All],3,0)+(#REF!*VLOOKUP(K182,Banco[#All],4,0)),"") -> 
L183: =IFERROR(VLOOKUP(K183,BANCO!_xlnm.Print_Area,2,0),"") ->  | N183: =IFERROR(EDATE(M183,VLOOKUP(K183,BANCO!A:I,9,0)),"") ->  | AU183: =IFERROR(IF(OR(K183="",AND(O183="",#REF!="")),"",(N183-$N$4)/VLOOKUP(K183,Banco[#All],8,0)),"") ->  | AV183: =IFERROR(O183*VLOOKUP(K183,Banco[#All],3,0)+(#REF!*VLOOKUP(K183,Banco[#All],4,0)),"") -> 
L184: =IFERROR(VLOOKUP(K184,BANCO!_xlnm.Print_Area,2,0),"") ->  | N184: =IFERROR(EDATE(M184,VLOOKUP(K184,BANCO!A:I,9,0)),"") ->  | AU184: =IFERROR(IF(OR(K184="",AND(O184="",#REF!="")),"",(N184-$N$4)/VLOOKUP(K184,Banco[#All],8,0)),"") ->  | AV184: =IFERROR(O184*VLOOKUP(K184,Banco[#All],3,0)+(#REF!*VLOOKUP(K184,Banco[#All],4,0)),"") -> 
L185: =IFERROR(VLOOKUP(K185,BANCO!_xlnm.Print_Area,2,0),"") ->  | N185: =IFERROR(EDATE(M185,VLOOKUP(K185,BANCO!A:I,9,0)),"") ->  | AU185: =IFERROR(IF(OR(K185="",AND(O185="",#REF!="")),"",(N185-$N$4)/VLOOKUP(K185,Banco[#All],8,0)),"") ->  | AV185: =IFERROR(O185*VLOOKUP(K185,Banco[#All],3,0)+(#REF!*VLOOKUP(K185,Banco[#All],4,0)),"") -> 
L186: =IFERROR(VLOOKUP(K186,BANCO!_xlnm.Print_Area,2,0),"") ->  | N186: =IFERROR(EDATE(M186,VLOOKUP(K186,BANCO!A:I,9,0)),"") ->  | AU186: =IFERROR(IF(OR(K186="",AND(O186="",#REF!="")),"",(N186-$N$4)/VLOOKUP(K186,Banco[#All],8,0)),"") ->  | AV186: =IFERROR(O186*VLOOKUP(K186,Banco[#All],3,0)+(#REF!*VLOOKUP(K186,Banco[#All],4,0)),"") -> 
L187: =IFERROR(VLOOKUP(K187,BANCO!_xlnm.Print_Area,2,0),"") ->  | N187: =IFERROR(EDATE(M187,VLOOKUP(K187,BANCO!A:I,9,0)),"") ->  | AU187: =IFERROR(IF(OR(K187="",AND(O187="",#REF!="")),"",(N187-$N$4)/VLOOKUP(K187,Banco[#All],8,0)),"") ->  | AV187: =IFERROR(O187*VLOOKUP(K187,Banco[#All],3,0)+(#REF!*VLOOKUP(K187,Banco[#All],4,0)),"") -> 
L188: =IFERROR(VLOOKUP(K188,BANCO!_xlnm.Print_Area,2,0),"") ->  | N188: =IFERROR(EDATE(M188,VLOOKUP(K188,BANCO!A:I,9,0)),"") ->  | AU188: =IFERROR(IF(OR(K188="",AND(O188="",#REF!="")),"",(N188-$N$4)/VLOOKUP(K188,Banco[#All],8,0)),"") ->  | AV188: =IFERROR(O188*VLOOKUP(K188,Banco[#All],3,0)+(#REF!*VLOOKUP(K188,Banco[#All],4,0)),"") -> 
L189: =IFERROR(VLOOKUP(K189,BANCO!_xlnm.Print_Area,2,0),"") ->  | N189: =IFERROR(EDATE(M189,VLOOKUP(K189,BANCO!A:I,9,0)),"") ->  | AU189: =IFERROR(IF(OR(K189="",AND(O189="",#REF!="")),"",(N189-$N$4)/VLOOKUP(K189,Banco[#All],8,0)),"") ->  | AV189: =IFERROR(O189*VLOOKUP(K189,Banco[#All],3,0)+(#REF!*VLOOKUP(K189,Banco[#All],4,0)),"") -> 
L190: =IFERROR(VLOOKUP(K190,BANCO!_xlnm.Print_Area,2,0),"") ->  | N190: =IFERROR(EDATE(M190,VLOOKUP(K190,BANCO!A:I,9,0)),"") ->  | AU190: =IFERROR(IF(OR(K190="",AND(O190="",#REF!="")),"",(N190-$N$4)/VLOOKUP(K190,Banco[#All],8,0)),"") ->  | AV190: =IFERROR(O190*VLOOKUP(K190,Banco[#All],3,0)+(#REF!*VLOOKUP(K190,Banco[#All],4,0)),"") -> 
L191: =IFERROR(VLOOKUP(K191,BANCO!_xlnm.Print_Area,2,0),"") ->  | N191: =IFERROR(EDATE(M191,VLOOKUP(K191,BANCO!A:I,9,0)),"") ->  | AU191: =IFERROR(IF(OR(K191="",AND(O191="",#REF!="")),"",(N191-$N$4)/VLOOKUP(K191,Banco[#All],8,0)),"") ->  | AV191: =IFERROR(O191*VLOOKUP(K191,Banco[#All],3,0)+(#REF!*VLOOKUP(K191,Banco[#All],4,0)),"") -> 
L192: =IFERROR(VLOOKUP(K192,BANCO!_xlnm.Print_Area,2,0),"") ->  | N192: =IFERROR(EDATE(M192,VLOOKUP(K192,BANCO!A:I,9,0)),"") ->  | AU192: =IFERROR(IF(OR(K192="",AND(O192="",#REF!="")),"",(N192-$N$4)/VLOOKUP(K192,Banco[#All],8,0)),"") ->  | AV192: =IFERROR(O192*VLOOKUP(K192,Banco[#All],3,0)+(#REF!*VLOOKUP(K192,Banco[#All],4,0)),"") -> 
L193: =IFERROR(VLOOKUP(K193,BANCO!_xlnm.Print_Area,2,0),"") ->  | N193: =IFERROR(EDATE(M193,VLOOKUP(K193,BANCO!A:I,9,0)),"") ->  | AU193: =IFERROR(IF(OR(K193="",AND(O193="",#REF!="")),"",(N193-$N$4)/VLOOKUP(K193,Banco[#All],8,0)),"") ->  | AV193: =IFERROR(O193*VLOOKUP(K193,Banco[#All],3,0)+(#REF!*VLOOKUP(K193,Banco[#All],4,0)),"") -> 
L194: =IFERROR(VLOOKUP(K194,BANCO!_xlnm.Print_Area,2,0),"") ->  | N194: =IFERROR(EDATE(M194,VLOOKUP(K194,BANCO!A:I,9,0)),"") ->  | AU194: =IFERROR(IF(OR(K194="",AND(O194="",#REF!="")),"",(N194-$N$4)/VLOOKUP(K194,Banco[#All],8,0)),"") ->  | AV194: =IFERROR(O194*VLOOKUP(K194,Banco[#All],3,0)+(#REF!*VLOOKUP(K194,Banco[#All],4,0)),"") -> 
L195: =IFERROR(VLOOKUP(K195,BANCO!_xlnm.Print_Area,2,0),"") ->  | N195: =IFERROR(EDATE(M195,VLOOKUP(K195,BANCO!A:I,9,0)),"") ->  | AU195: =IFERROR(IF(OR(K195="",AND(O195="",#REF!="")),"",(N195-$N$4)/VLOOKUP(K195,Banco[#All],8,0)),"") ->  | AV195: =IFERROR(O195*VLOOKUP(K195,Banco[#All],3,0)+(#REF!*VLOOKUP(K195,Banco[#All],4,0)),"") -> 
L196: =IFERROR(VLOOKUP(K196,BANCO!_xlnm.Print_Area,2,0),"") ->  | N196: =IFERROR(EDATE(M196,VLOOKUP(K196,BANCO!A:I,9,0)),"") ->  | AU196: =IFERROR(IF(OR(K196="",AND(O196="",#REF!="")),"",(N196-$N$4)/VLOOKUP(K196,Banco[#All],8,0)),"") ->  | AV196: =IFERROR(O196*VLOOKUP(K196,Banco[#All],3,0)+(#REF!*VLOOKUP(K196,Banco[#All],4,0)),"") -> 
L197: =IFERROR(VLOOKUP(K197,BANCO!_xlnm.Print_Area,2,0),"") ->  | N197: =IFERROR(EDATE(M197,VLOOKUP(K197,BANCO!A:I,9,0)),"") ->  | AU197: =IFERROR(IF(OR(K197="",AND(O197="",#REF!="")),"",(N197-$N$4)/VLOOKUP(K197,Banco[#All],8,0)),"") ->  | AV197: =IFERROR(O197*VLOOKUP(K197,Banco[#All],3,0)+(#REF!*VLOOKUP(K197,Banco[#All],4,0)),"") -> 
L198: =IFERROR(VLOOKUP(K198,BANCO!_xlnm.Print_Area,2,0),"") ->  | N198: =IFERROR(EDATE(M198,VLOOKUP(K198,BANCO!A:I,9,0)),"") ->  | AU198: =IFERROR(IF(OR(K198="",AND(O198="",#REF!="")),"",(N198-$N$4)/VLOOKUP(K198,Banco[#All],8,0)),"") ->  | AV198: =IFERROR(O198*VLOOKUP(K198,Banco[#All],3,0)+(#REF!*VLOOKUP(K198,Banco[#All],4,0)),"") -> 
L199: =IFERROR(VLOOKUP(K199,BANCO!_xlnm.Print_Area,2,0),"") ->  | N199: =IFERROR(EDATE(M199,VLOOKUP(K199,BANCO!A:I,9,0)),"") ->  | AU199: =IFERROR(IF(OR(K199="",AND(O199="",#REF!="")),"",(N199-$N$4)/VLOOKUP(K199,Banco[#All],8,0)),"") ->  | AV199: =IFERROR(O199*VLOOKUP(K199,Banco[#All],3,0)+(#REF!*VLOOKUP(K199,Banco[#All],4,0)),"") -> 
L200: =IFERROR(VLOOKUP(K200,BANCO!_xlnm.Print_Area,2,0),"") ->  | N200: =IFERROR(EDATE(M200,VLOOKUP(K200,BANCO!A:I,9,0)),"") ->  | AU200: =IFERROR(IF(OR(K200="",AND(O200="",#REF!="")),"",(N200-$N$4)/VLOOKUP(K200,Banco[#All],8,0)),"") ->  | AV200: =IFERROR(O200*VLOOKUP(K200,Banco[#All],3,0)+(#REF!*VLOOKUP(K200,Banco[#All],4,0)),"") -> 
L201: =IFERROR(VLOOKUP(K201,BANCO!_xlnm.Print_Area,2,0),"") ->  | N201: =IFERROR(EDATE(M201,VLOOKUP(K201,BANCO!A:I,9,0)),"") ->  | AU201: =IFERROR(IF(OR(K201="",AND(O201="",#REF!="")),"",(N201-$N$4)/VLOOKUP(K201,Banco[#All],8,0)),"") ->  | AV201: =IFERROR(O201*VLOOKUP(K201,Banco[#All],3,0)+(#REF!*VLOOKUP(K201,Banco[#All],4,0)),"") -> 
L202: =IFERROR(VLOOKUP(K202,BANCO!_xlnm.Print_Area,2,0),"") ->  | N202: =IFERROR(EDATE(M202,VLOOKUP(K202,BANCO!A:I,9,0)),"") ->  | AU202: =IFERROR(IF(OR(K202="",AND(O202="",#REF!="")),"",(N202-$N$4)/VLOOKUP(K202,Banco[#All],8,0)),"") ->  | AV202: =IFERROR(O202*VLOOKUP(K202,Banco[#All],3,0)+(#REF!*VLOOKUP(K202,Banco[#All],4,0)),"") -> 
L203: =IFERROR(VLOOKUP(K203,BANCO!_xlnm.Print_Area,2,0),"") ->  | N203: =IFERROR(EDATE(M203,VLOOKUP(K203,BANCO!A:I,9,0)),"") ->  | AU203: =IFERROR(IF(OR(K203="",AND(O203="",#REF!="")),"",(N203-$N$4)/VLOOKUP(K203,Banco[#All],8,0)),"") ->  | AV203: =IFERROR(O203*VLOOKUP(K203,Banco[#All],3,0)+(#REF!*VLOOKUP(K203,Banco[#All],4,0)),"") -> 
... 922 more rows

Sheet Total consolidado (hidden)
J1: JSL | M1: FOR AJA LOG 004 Aplicabilidade: Aguas-Jacutinga Data de Elaboração: 05/09/2017 Data da Revisão:24/09/2021 Revisão:02 | W1: Imprimir Ruas Selecionadas
H6: NOME | L6: CONTAGEM | M6: DATA DA CONTAGEM
M7: =TODAY() -> 44589
L9: =IF(M9=3,TRUE,FALSE) -> FALSE
B10: =LEFT(H10,2) -> Ru | C10: Classificação | D10: Vazio | E10: Ocupação | F10: Cap. | G10: Plts Ocupados | H10: Rua | I10: SKU | J10: Descrição | K10: Data de FABRICAÇÃO | L10: Data de vencimento | M10: Qtd Pll | N10: Qtd Caixas | O10: Status | P10: Vida útil | Q10: Qtd Und. | R10: Qtd plts | S10: lll | T10: Observação | W10: Observação
B11: =LEFT(H11,1) -> 3 | C11: =IFERROR(VLOOKUP(I11,BANCO!A:J,10,0),"no") -> no | D11: =IF(G11<>0,0,1) -> 1 | E11: =IFERROR(ROUNDUP(R11,0)/F11,"NO") -> 0.02857142857 | F11: =IF(AND(W11="Drive em Manutenção",R11>0),7,35) -> 35 | G11: =IFERROR(IF(R11<=4,0,ROUNDUP(R11,0)),0) -> 0 | H11: 3 | I11: 74129 | J11: =IFERROR(VLOOKUP(I11,BANCO!_xlnm.Print_Area,2,0),"") ->  | K11: 30/abr | L11: =IFERROR(EDATE(K11,VLOOKUP(I11,BANCO!A:I,9,0)),"") ->  | M11: 0.0119047619 | P11: =IFERROR(IF(OR(I11="",AND(M11="",N11="")),"",(L11-$M$7)/VLOOKUP(I11,Banco[#All],8,0)),"") ->  | Q11: =IFERROR(M11*VLOOKUP(I11,Banco[#All],3,0)+(N11*VLOOKUP(I11,Banco[#All],4,0)),"") ->  | R11: =IFERROR(Q11/VLOOKUP(I11,Banco[#All],3,0),M11) -> 0.0119047619
H12: 3 | I12: 74129 | J12: =IFERROR(VLOOKUP(I12,BANCO!_xlnm.Print_Area,2,0),"") ->  | K12: 06/mai | L12: =IFERROR(EDATE(K12,VLOOKUP(I12,BANCO!A:I,9,0)),"") ->  | M12: 0.005952380952 | P12: =IFERROR(IF(OR(I12="",AND(M12="",N12="")),"",(L12-$M$7)/VLOOKUP(I12,Banco[#All],8,0)),"") ->  | Q12: =IFERROR(M12*VLOOKUP(I12,Banco[#All],3,0)+(N12*VLOOKUP(I12,Banco[#All],4,0)),"") ->  | R12: =IFERROR(Q12/VLOOKUP(I12,Banco[#All],3,0),M12) -> 0.005952380952
B13: 3 | C13: =IFERROR(VLOOKUP(I13,BANCO!A:J,10,0),"no") -> no | D13: 1 | E13: 0.02857142857 | F13: 35 | G13: 0 | H13: 3 | I13: 74129 | J13: =IFERROR(VLOOKUP(I13,BANCO!_xlnm.Print_Area,2,0),"") ->  | K13: 10/mai | L13: =IFERROR(EDATE(K13,VLOOKUP(I13,BANCO!A:I,9,0)),"") ->  | M13: 0.05357142857 | P13: =IFERROR(IF(OR(I13="",AND(M13="",N13="")),"",(L13-$M$7)/VLOOKUP(I13,Banco[#All],8,0)),"") ->  | Q13: =IFERROR(M13*VLOOKUP(I13,Banco[#All],3,0)+(N13*VLOOKUP(I13,Banco[#All],4,0)),"") ->  | R13: =IFERROR(Q13/VLOOKUP(I13,Banco[#All],3,0),M13) -> 0.05357142857
B14: =LEFT(H14,1) -> 3 | C14: =IFERROR(VLOOKUP(I14,BANCO!A:J,10,0),"no") -> no | D14: =IF(G14<>0,0,1) -> 1 | E14: =IFERROR(ROUNDUP(R14,0)/F14,"NO") -> 0.02857142857 | F14: =IF(AND(W14="Drive em Manutenção",R14>0),7,35) -> 35 | G14: =IFERROR(IF(R14<=4,0,ROUNDUP(R14,0)),0) -> 0 | H14: 3 | I14: 74129 | J14: =IFERROR(VLOOKUP(I14,BANCO!_xlnm.Print_Area,2,0),"") ->  | K14: 12/mai | L14: =IFERROR(EDATE(K14,VLOOKUP(I14,BANCO!A:I,9,0)),"") ->  | M14: 0.0119047619 | P14: =IFERROR(IF(OR(I14="",AND(M14="",N14="")),"",(L14-$M$7)/VLOOKUP(I14,Banco[#All],8,0)),"") ->  | Q14: =IFERROR(M14*VLOOKUP(I14,Banco[#All],3,0)+(N14*VLOOKUP(I14,Banco[#All],4,0)),"") ->  | R14: =IFERROR(Q14/VLOOKUP(I14,Banco[#All],3,0),M14) -> 0.0119047619
B15: 3 | C15: =IFERROR(VLOOKUP(I15,BANCO!A:J,10,0),"no") -> no | D15: 1 | E15: 0.02857142857 | F15: 35 | G15: 0 | H15: 3 | I15: 74129 | J15: =IFERROR(VLOOKUP(I15,BANCO!_xlnm.Print_Area,2,0),"") ->  | K15: 13/mai | L15: =IFERROR(EDATE(K15,VLOOKUP(I15,BANCO!A:I,9,0)),"") ->  | M15: 0.01785714286 | P15: =IFERROR(IF(OR(I15="",AND(M15="",N15="")),"",(L15-$M$7)/VLOOKUP(I15,Banco[#All],8,0)),"") ->  | Q15: =IFERROR(M15*VLOOKUP(I15,Banco[#All],3,0)+(N15*VLOOKUP(I15,Banco[#All],4,0)),"") ->  | R15: =IFERROR(Q15/VLOOKUP(I15,Banco[#All],3,0),M15) -> 0.01785714286
H16: 3 | I16: 74158 | J16: =IFERROR(VLOOKUP(I16,BANCO!_xlnm.Print_Area,2,0),"") ->  | K16: 26/abr | L16: =IFERROR(EDATE(K16,VLOOKUP(I16,BANCO!A:I,9,0)),"") ->  | M16: 2 | P16: =IFERROR(IF(OR(I16="",AND(M16="",N16="")),"",(L16-$M$7)/VLOOKUP(I16,Banco[#All],8,0)),"") ->  | Q16: =IFERROR(M16*VLOOKUP(I16,Banco[#All],3,0)+(N16*VLOOKUP(I16,Banco[#All],4,0)),"") ->  | R16: =IFERROR(Q16/VLOOKUP(I16,Banco[#All],3,0),M16) -> 2
B17: 3 | C17: =IFERROR(VLOOKUP(I17,BANCO!A:J,10,0),"no") -> no | D17: 1 | E17: 0.08571428571 | F17: 35 | G17: 0 | H17: 3 | I17: 74158 | J17: =IFERROR(VLOOKUP(I17,BANCO!_xlnm.Print_Area,2,0),"") ->  | K17: 27/abr | L17: =IFERROR(EDATE(K17,VLOOKUP(I17,BANCO!A:I,9,0)),"") ->  | M17: 3 | P17: =IFERROR(IF(OR(I17="",AND(M17="",N17="")),"",(L17-$M$7)/VLOOKUP(I17,Banco[#All],8,0)),"") ->  | Q17: =IFERROR(M17*VLOOKUP(I17,Banco[#All],3,0)+(N17*VLOOKUP(I17,Banco[#All],4,0)),"") ->  | R17: =IFERROR(Q17/VLOOKUP(I17,Banco[#All],3,0),M17) -> 3
H18: 3 | I18: 74158 | J18: =IFERROR(VLOOKUP(I18,BANCO!_xlnm.Print_Area,2,0),"") ->  | K18: 30/abr | L18: =IFERROR(EDATE(K18,VLOOKUP(I18,BANCO!A:I,9,0)),"") ->  | M18: 7.005494505 | P18: =IFERROR(IF(OR(I18="",AND(M18="",N18="")),"",(L18-$M$7)/VLOOKUP(I18,Banco[#All],8,0)),"") ->  | Q18: =IFERROR(M18*VLOOKUP(I18,Banco[#All],3,0)+(N18*VLOOKUP(I18,Banco[#All],4,0)),"") ->  | R18: =IFERROR(Q18/VLOOKUP(I18,Banco[#All],3,0),M18) -> 7.005494505
B19: =LEFT(H19,1) -> 3 | C19: =IFERROR(VLOOKUP(I19,BANCO!A:J,10,0),"no") -> no | D19: =IF(G19<>0,0,1) -> 1 | E19: =IFERROR(ROUNDUP(R19,0)/F19,"NO") -> 0.05714285714 | F19: =IF(AND(W19="Drive em Manutenção",R19>0),7,35) -> 35 | G19: =IFERROR(IF(R19<=4,0,ROUNDUP(R19,0)),0) -> 0 | H19: 3 | I19: 74158 | J19: =IFERROR(VLOOKUP(I19,BANCO!_xlnm.Print_Area,2,0),"") ->  | K19: 01/mai | L19: =IFERROR(EDATE(K19,VLOOKUP(I19,BANCO!A:I,9,0)),"") ->  | M19: 2 | P19: =IFERROR(IF(OR(I19="",AND(M19="",N19="")),"",(L19-$M$7)/VLOOKUP(I19,Banco[#All],8,0)),"") ->  | Q19: =IFERROR(M19*VLOOKUP(I19,Banco[#All],3,0)+(N19*VLOOKUP(I19,Banco[#All],4,0)),"") ->  | R19: =IFERROR(Q19/VLOOKUP(I19,Banco[#All],3,0),M19) -> 2
B20: =LEFT(H20,1) -> 3 | C20: =IFERROR(VLOOKUP(I20,BANCO!A:J,10,0),"no") -> no | D20: =IF(G20<>0,0,1) -> 0 | E20: =IFERROR(ROUNDUP(R20,0)/F20,"NO") -> 0.2 | F20: =IF(AND(W20="Drive em Manutenção",R20>0),7,35) -> 35 | G20: =IFERROR(IF(R20<=4,0,ROUNDUP(R20,0)),0) -> 7 | H20: 3 | I20: 74158 | J20: =IFERROR(VLOOKUP(I20,BANCO!_xlnm.Print_Area,2,0),"") ->  | K20: 05/mai | L20: =IFERROR(EDATE(K20,VLOOKUP(I20,BANCO!A:I,9,0)),"") ->  | M20: 7 | P20: =IFERROR(IF(OR(I20="",AND(M20="",N20="")),"",(L20-$M$7)/VLOOKUP(I20,Banco[#All],8,0)),"") ->  | Q20: =IFERROR(M20*VLOOKUP(I20,Banco[#All],3,0)+(N20*VLOOKUP(I20,Banco[#All],4,0)),"") ->  | R20: =IFERROR(Q20/VLOOKUP(I20,Banco[#All],3,0),M20) -> 7
H21: 3 | I21: 74158 | J21: =IFERROR(VLOOKUP(I21,BANCO!_xlnm.Print_Area,2,0),"") ->  | K21: 06/mai | L21: =IFERROR(EDATE(K21,VLOOKUP(I21,BANCO!A:I,9,0)),"") ->  | M21: 26 | P21: =IFERROR(IF(OR(I21="",AND(M21="",N21="")),"",(L21-$M$7)/VLOOKUP(I21,Banco[#All],8,0)),"") ->  | Q21: =IFERROR(M21*VLOOKUP(I21,Banco[#All],3,0)+(N21*VLOOKUP(I21,Banco[#All],4,0)),"") ->  | R21: =IFERROR(Q21/VLOOKUP(I21,Banco[#All],3,0),M21) -> 26
B22: 3 | C22: =IFERROR(VLOOKUP(I22,BANCO!A:J,10,0),"no") -> no | D22: 0 | E22: =IFERROR(ROUNDUP(R22,0)/F22,"NO") -> 0.2857142857 | F22: 35 | G22: 10 | H22: 3 | I22: 74158 | J22: =IFERROR(VLOOKUP(I22,BANCO!_xlnm.Print_Area,2,0),"") ->  | K22: 07/mai | L22: =IFERROR(EDATE(K22,VLOOKUP(I22,BANCO!A:I,9,0)),"") ->  | M22: 10 | P22: =IFERROR(IF(OR(I22="",AND(M22="",N22="")),"",(L22-$M$7)/VLOOKUP(I22,Banco[#All],8,0)),"") ->  | Q22: =IFERROR(M22*VLOOKUP(I22,Banco[#All],3,0)+(N22*VLOOKUP(I22,Banco[#All],4,0)),"") ->  | R22: =IFERROR(Q22/VLOOKUP(I22,Banco[#All],3,0),M22) -> 10
B23: 3 | C23: =IFERROR(VLOOKUP(I23,BANCO!A:J,10,0),"no") -> no | D23: 0 | E23: 0.2 | F23: 35 | G23: 7 | H23: 3 | I23: 74158 | J23: =IFERROR(VLOOKUP(I23,BANCO!_xlnm.Print_Area,2,0),"") ->  | K23: 12/mai | L23: =IFERROR(EDATE(K23,VLOOKUP(I23,BANCO!A:I,9,0)),"") ->  | M23: 7 | P23: =IFERROR(IF(OR(I23="",AND(M23="",N23="")),"",(L23-$M$7)/VLOOKUP(I23,Banco[#All],8,0)),"") ->  | Q23: =IFERROR(M23*VLOOKUP(I23,Banco[#All],3,0)+(N23*VLOOKUP(I23,Banco[#All],4,0)),"") ->  | R23: =IFERROR(Q23/VLOOKUP(I23,Banco[#All],3,0),M23) -> 7
B24: =LEFT(H24,1) -> 3 | C24: =IFERROR(VLOOKUP(I24,BANCO!A:J,10,0),"no") -> no | D24: =IF(G24<>0,0,1) -> 0 | E24: =IFERROR(ROUNDUP(R24,0)/F24,"NO") -> 0.2 | F24: =IF(AND(W24="Drive em Manutenção",R24>0),7,35) -> 35 | G24: =IFERROR(IF(R24<=4,0,ROUNDUP(R24,0)),0) -> 7 | H24: 3 | I24: 74158 | J24: =IFERROR(VLOOKUP(I24,BANCO!_xlnm.Print_Area,2,0),"") ->  | K24: 13/mai | L24: =IFERROR(EDATE(K24,VLOOKUP(I24,BANCO!A:I,9,0)),"") ->  | M24: 7 | P24: =IFERROR(IF(OR(I24="",AND(M24="",N24="")),"",(L24-$M$7)/VLOOKUP(I24,Banco[#All],8,0)),"") ->  | Q24: =IFERROR(M24*VLOOKUP(I24,Banco[#All],3,0)+(N24*VLOOKUP(I24,Banco[#All],4,0)),"") ->  | R24: =IFERROR(Q24/VLOOKUP(I24,Banco[#All],3,0),M24) -> 7
B25: 3 | C25: =IFERROR(VLOOKUP(I25,BANCO!A:J,10,0),"no") -> no | D25: 0 | E25: 1.314285714 | F25: 35 | G25: 46 | H25: 3 | I25: 74158 | J25: =IFERROR(VLOOKUP(I25,BANCO!_xlnm.Print_Area,2,0),"") ->  | K25: 14/mai | L25: =IFERROR(EDATE(K25,VLOOKUP(I25,BANCO!A:I,9,0)),"") ->  | M25: 46 | P25: =IFERROR(IF(OR(I25="",AND(M25="",N25="")),"",(L25-$M$7)/VLOOKUP(I25,Banco[#All],8,0)),"") ->  | Q25: =IFERROR(M25*VLOOKUP(I25,Banco[#All],3,0)+(N25*VLOOKUP(I25,Banco[#All],4,0)),"") ->  | R25: =IFERROR(Q25/VLOOKUP(I25,Banco[#All],3,0),M25) -> 46
B26: 3 | C26: =IFERROR(VLOOKUP(I26,BANCO!A:J,10,0),"no") -> no | D26: 0 | E26: 0.6857142857 | F26: 35 | G26: 24 | H26: 3 | I26: 74158 | J26: =IFERROR(VLOOKUP(I26,BANCO!_xlnm.Print_Area,2,0),"") ->  | K26: 15/mai | L26: =IFERROR(EDATE(K26,VLOOKUP(I26,BANCO!A:I,9,0)),"") ->  | M26: 24 | P26: =IFERROR(IF(OR(I26="",AND(M26="",N26="")),"",(L26-$M$7)/VLOOKUP(I26,Banco[#All],8,0)),"") ->  | Q26: =IFERROR(M26*VLOOKUP(I26,Banco[#All],3,0)+(N26*VLOOKUP(I26,Banco[#All],4,0)),"") ->  | R26: =IFERROR(Q26/VLOOKUP(I26,Banco[#All],3,0),M26) -> 24
B27: 3 | C27: =IFERROR(VLOOKUP(I27,BANCO!A:J,10,0),"no") -> no | D27: 0 | E27: 0.2285714286 | F27: =IF(AND(W27="Drive em Manutenção",R27>0),7,35) -> 35 | G27: =IFERROR(IF(R27<=4,0,ROUNDUP(R27,0)),0) -> 8 | H27: 3 | I27: 74158 | J27: =IFERROR(VLOOKUP(I27,BANCO!_xlnm.Print_Area,2,0),"") ->  | K27: 16/mai | L27: =IFERROR(EDATE(K27,VLOOKUP(I27,BANCO!A:I,9,0)),"") ->  | M27: 8 | P27: =IFERROR(IF(OR(I27="",AND(M27="",N27="")),"",(L27-$M$7)/VLOOKUP(I27,Banco[#All],8,0)),"") ->  | Q27: =IFERROR(M27*VLOOKUP(I27,Banco[#All],3,0)+(N27*VLOOKUP(I27,Banco[#All],4,0)),"") ->  | R27: =IFERROR(Q27/VLOOKUP(I27,Banco[#All],3,0),M27) -> 8
B28: 3 | H28: 3 | I28: 74158 | J28: =IFERROR(VLOOKUP(I28,BANCO!_xlnm.Print_Area,2,0),"") ->  | K28: 17/mai | L28: =IFERROR(EDATE(K28,VLOOKUP(I28,BANCO!A:I,9,0)),"") ->  | M28: 30 | P28: =IFERROR(IF(OR(I28="",AND(M28="",N28="")),"",(L28-$M$7)/VLOOKUP(I28,Banco[#All],8,0)),"") ->  | Q28: =IFERROR(M28*VLOOKUP(I28,Banco[#All],3,0)+(N28*VLOOKUP(I28,Banco[#All],4,0)),"") ->  | R28: =IFERROR(Q28/VLOOKUP(I28,Banco[#All],3,0),M28) -> 30
B29: 3 | C29: =IFERROR(VLOOKUP(I29,BANCO!A:J,10,0),"no") -> no | D29: 0 | E29: =IFERROR(ROUNDUP(R29,0)/F29,"NO") -> 1.8 | F29: 35 | G29: 63 | H29: 3 | I29: 74158 | J29: =IFERROR(VLOOKUP(I29,BANCO!_xlnm.Print_Area,2,0),"") ->  | K29: 18/mai | L29: =IFERROR(EDATE(K29,VLOOKUP(I29,BANCO!A:I,9,0)),"") ->  | M29: 63 | P29: =IFERROR(IF(OR(I29="",AND(M29="",N29="")),"",(L29-$M$7)/VLOOKUP(I29,Banco[#All],8,0)),"") ->  | Q29: =IFERROR(M29*VLOOKUP(I29,Banco[#All],3,0)+(N29*VLOOKUP(I29,Banco[#All],4,0)),"") ->  | R29: =IFERROR(Q29/VLOOKUP(I29,Banco[#All],3,0),M29) -> 63
B30: 3 | C30: =IFERROR(VLOOKUP(I30,BANCO!A:J,10,0),"no") -> no | D30: 0 | E30: =IFERROR(ROUNDUP(R30,0)/F30,"NO") -> 3.457142857 | F30: 35 | G30: 121 | H30: 3 | I30: 74158 | J30: =IFERROR(VLOOKUP(I30,BANCO!_xlnm.Print_Area,2,0),"") ->  | K30: 19/mai | L30: =IFERROR(EDATE(K30,VLOOKUP(I30,BANCO!A:I,9,0)),"") ->  | M30: 121 | P30: =IFERROR(IF(OR(I30="",AND(M30="",N30="")),"",(L30-$M$7)/VLOOKUP(I30,Banco[#All],8,0)),"") ->  | Q30: =IFERROR(M30*VLOOKUP(I30,Banco[#All],3,0)+(N30*VLOOKUP(I30,Banco[#All],4,0)),"") ->  | R30: =IFERROR(Q30/VLOOKUP(I30,Banco[#All],3,0),M30) -> 121
B31: 3 | C31: =IFERROR(VLOOKUP(I31,BANCO!A:J,10,0),"no") -> no | D31: 0 | E31: =IFERROR(ROUNDUP(R31,0)/F31,"NO") -> 4.171428571 | F31: 35 | G31: 146 | H31: 3 | I31: 74158 | J31: =IFERROR(VLOOKUP(I31,BANCO!_xlnm.Print_Area,2,0),"") ->  | K31: 20/mai | L31: =IFERROR(EDATE(K31,VLOOKUP(I31,BANCO!A:I,9,0)),"") ->  | M31: 146 | P31: =IFERROR(IF(OR(I31="",AND(M31="",N31="")),"",(L31-$M$7)/VLOOKUP(I31,Banco[#All],8,0)),"") ->  | Q31: =IFERROR(M31*VLOOKUP(I31,Banco[#All],3,0)+(N31*VLOOKUP(I31,Banco[#All],4,0)),"") ->  | R31: =IFERROR(Q31/VLOOKUP(I31,Banco[#All],3,0),M31) -> 146
B32: 3 | C32: =IFERROR(VLOOKUP(I32,BANCO!A:J,10,0),"no") -> no | D32: 0 | E32: =IFERROR(ROUNDUP(R32,0)/F32,"NO") -> 4.678571429 | F32: =IF(AND(W32="Drive em Manutenção",R32>0),7,28) -> 28 | G32: 131 | H32: 3 | I32: 74158 | J32: =IFERROR(VLOOKUP(I32,BANCO!_xlnm.Print_Area,2,0),"") ->  | K32: 21/mai | L32: =IFERROR(EDATE(K32,VLOOKUP(I32,BANCO!A:I,9,0)),"") ->  | M32: 131 | P32: =IFERROR(IF(OR(I32="",AND(M32="",N32="")),"",(L32-$M$7)/VLOOKUP(I32,Banco[#All],8,0)),"") ->  | Q32: =IFERROR(M32*VLOOKUP(I32,Banco[#All],3,0)+(N32*VLOOKUP(I32,Banco[#All],4,0)),"") ->  | R32: =IFERROR(Q32/VLOOKUP(I32,Banco[#All],3,0),M32) -> 131
B33: 3 | C33: =IFERROR(VLOOKUP(I33,BANCO!A:J,10,0),"no") -> no | D33: 0 | E33: =IFERROR(ROUNDUP(R33,0)/F33,"NO") -> 2.857142857 | F33: =IF(AND(W33="Drive em Manutenção",R33>0),7,28) -> 28 | G33: 80 | H33: 3 | I33: 74158 | J33: =IFERROR(VLOOKUP(I33,BANCO!_xlnm.Print_Area,2,0),"") ->  | K33: 22/mai | L33: =IFERROR(EDATE(K33,VLOOKUP(I33,BANCO!A:I,9,0)),"") ->  | M33: 80 | P33: =IFERROR(IF(OR(I33="",AND(M33="",N33="")),"",(L33-$M$7)/VLOOKUP(I33,Banco[#All],8,0)),"") ->  | Q33: =IFERROR(M33*VLOOKUP(I33,Banco[#All],3,0)+(N33*VLOOKUP(I33,Banco[#All],4,0)),"") ->  | R33: =IFERROR(Q33/VLOOKUP(I33,Banco[#All],3,0),M33) -> 80
B34: =LEFT(H34,2) -> 3 | C34: Classificação | D34: Vazio | E34: Ocupação | F34: Cap. | G34: Plts Ocupados | H34: 3 | I34: 74158 | J34: =IFERROR(VLOOKUP(I34,BANCO!_xlnm.Print_Area,2,0),"") ->  | K34: 23/mai | L34: =IFERROR(EDATE(K34,VLOOKUP(I34,BANCO!A:I,9,0)),"") ->  | M34: 6 | P34: =IFERROR(IF(OR(I34="",AND(M34="",N34="")),"",(L34-$M$7)/VLOOKUP(I34,Banco[#All],8,0)),"") ->  | Q34: =IFERROR(M34*VLOOKUP(I34,Banco[#All],3,0)+(N34*VLOOKUP(I34,Banco[#All],4,0)),"") ->  | R34: =IFERROR(Q34/VLOOKUP(I34,Banco[#All],3,0),M34) -> 6
B35: =LEFT(H35,1) -> 3 | C35: =IFERROR(VLOOKUP(I35,BANCO!A:J,10,0),"no") -> no | D35: =IF(G35<>0,0,1) -> 0 | E35: =IFERROR(ROUNDUP(R35,0)/F35,"NO") -> 2.714285714 | F35: =IF(AND(W35="Drive em Manutenção",R35>0),7,35) -> 35 | G35: 95 | H35: 3 | I35: 74158 | J35: =IFERROR(VLOOKUP(I35,BANCO!_xlnm.Print_Area,2,0),"") ->  | K35: 24/mai | L35: =IFERROR(EDATE(K35,VLOOKUP(I35,BANCO!A:I,9,0)),"") ->  | M35: 95 | P35: =IFERROR(IF(OR(I35="",AND(M35="",N35="")),"",(L35-$M$7)/VLOOKUP(I35,Banco[#All],8,0)),"") ->  | Q35: =IFERROR(M35*VLOOKUP(I35,Banco[#All],3,0)+(N35*VLOOKUP(I35,Banco[#All],4,0)),"") ->  | R35: =IFERROR(Q35/VLOOKUP(I35,Banco[#All],3,0),M35) -> 95
B36: 3 | C36: =IFERROR(VLOOKUP(I36,BANCO!A:J,10,0),"no") -> no | D36: 0 | E36: 0.8857142857 | F36: 35 | G36: 31 | H36: 3 | I36: 74158 | J36: =IFERROR(VLOOKUP(I36,BANCO!_xlnm.Print_Area,2,0),"") ->  | K36: 25/mai | L36: =IFERROR(EDATE(K36,VLOOKUP(I36,BANCO!A:I,9,0)),"") ->  | M36: 31 | P36: =IFERROR(IF(OR(I36="",AND(M36="",N36="")),"",(L36-$M$7)/VLOOKUP(I36,Banco[#All],8,0)),"") ->  | Q36: =IFERROR(M36*VLOOKUP(I36,Banco[#All],3,0)+(N36*VLOOKUP(I36,Banco[#All],4,0)),"") ->  | R36: =IFERROR(Q36/VLOOKUP(I36,Banco[#All],3,0),M36) -> 31
B37: 3 | C37: =IFERROR(VLOOKUP(I37,BANCO!A:J,10,0),"no") -> no | D37: 0 | E37: 2.685714286 | F37: 35 | G37: 94 | H37: 3 | I37: 74158 | J37: =IFERROR(VLOOKUP(I37,BANCO!_xlnm.Print_Area,2,0),"") ->  | K37: 26/mai | L37: =IFERROR(EDATE(K37,VLOOKUP(I37,BANCO!A:I,9,0)),"") ->  | M37: 94 | P37: =IFERROR(IF(OR(I37="",AND(M37="",N37="")),"",(L37-$M$7)/VLOOKUP(I37,Banco[#All],8,0)),"") ->  | Q37: =IFERROR(M37*VLOOKUP(I37,Banco[#All],3,0)+(N37*VLOOKUP(I37,Banco[#All],4,0)),"") ->  | R37: =IFERROR(Q37/VLOOKUP(I37,Banco[#All],3,0),M37) -> 94
B38: 3 | C38: =IFERROR(VLOOKUP(I38,BANCO!A:J,10,0),"no") -> no | D38: 0 | E38: 3.485714286 | F38: 35 | G38: 122 | H38: 3 | I38: 74158 | J38: =IFERROR(VLOOKUP(I38,BANCO!_xlnm.Print_Area,2,0),"") ->  | K38: 27/mai | L38: =IFERROR(EDATE(K38,VLOOKUP(I38,BANCO!A:I,9,0)),"") ->  | M38: 122 | P38: =IFERROR(IF(OR(I38="",AND(M38="",N38="")),"",(L38-$M$7)/VLOOKUP(I38,Banco[#All],8,0)),"") ->  | Q38: =IFERROR(M38*VLOOKUP(I38,Banco[#All],3,0)+(N38*VLOOKUP(I38,Banco[#All],4,0)),"") ->  | R38: =IFERROR(Q38/VLOOKUP(I38,Banco[#All],3,0),M38) -> 122
H39: 3 | I39: 74158 | J39: =IFERROR(VLOOKUP(I39,BANCO!_xlnm.Print_Area,2,0),"") ->  | K39: 28/mai | L39: =IFERROR(EDATE(K39,VLOOKUP(I39,BANCO!A:I,9,0)),"") ->  | M39: 72 | P39: =IFERROR(IF(OR(I39="",AND(M39="",N39="")),"",(L39-$M$7)/VLOOKUP(I39,Banco[#All],8,0)),"") ->  | Q39: =IFERROR(M39*VLOOKUP(I39,Banco[#All],3,0)+(N39*VLOOKUP(I39,Banco[#All],4,0)),"") ->  | R39: =IFERROR(Q39/VLOOKUP(I39,Banco[#All],3,0),M39) -> 72
H40: 3 | I40: 74158 | J40: =IFERROR(VLOOKUP(I40,BANCO!_xlnm.Print_Area,2,0),"") ->  | K40: 29/mai | L40: =IFERROR(EDATE(K40,VLOOKUP(I40,BANCO!A:I,9,0)),"") ->  | M40: 14 | P40: =IFERROR(IF(OR(I40="",AND(M40="",N40="")),"",(L40-$M$7)/VLOOKUP(I40,Banco[#All],8,0)),"") ->  | Q40: =IFERROR(M40*VLOOKUP(I40,Banco[#All],3,0)+(N40*VLOOKUP(I40,Banco[#All],4,0)),"") ->  | R40: =IFERROR(Q40/VLOOKUP(I40,Banco[#All],3,0),M40) -> 14
B41: =LEFT(H41,1) -> 3 | C41: =IFERROR(VLOOKUP(I41,BANCO!A:J,10,0),"no") -> no | D41: =IF(G41<>0,0,1) -> 0 | E41: =IFERROR(ROUNDUP(R41,0)/F41,"NO") -> 0.4 | F41: =IF(AND(W41="Drive em Manutenção",R41>0),7,35) -> 35 | G41: =IFERROR(IF(R41<=4,0,ROUNDUP(R41,0)),0) -> 14 | H41: 3 | I41: 74158 | J41: =IFERROR(VLOOKUP(I41,BANCO!_xlnm.Print_Area,2,0),"") ->  | K41: 31/mai | L41: =IFERROR(EDATE(K41,VLOOKUP(I41,BANCO!A:I,9,0)),"") ->  | M41: 14 | P41: =IFERROR(IF(OR(I41="",AND(M41="",N41="")),"",(L41-$M$7)/VLOOKUP(I41,Banco[#All],8,0)),"") ->  | Q41: =IFERROR(M41*VLOOKUP(I41,Banco[#All],3,0)+(N41*VLOOKUP(I41,Banco[#All],4,0)),"") ->  | R41: =IFERROR(Q41/VLOOKUP(I41,Banco[#All],3,0),M41) -> 14
H42: 3 | I42: 74158 | J42: =IFERROR(VLOOKUP(I42,BANCO!_xlnm.Print_Area,2,0),"") ->  | K42: 01/jun | L42: =IFERROR(EDATE(K42,VLOOKUP(I42,BANCO!A:I,9,0)),"") ->  | M42: 39 | P42: =IFERROR(IF(OR(I42="",AND(M42="",N42="")),"",(L42-$M$7)/VLOOKUP(I42,Banco[#All],8,0)),"") ->  | Q42: =IFERROR(M42*VLOOKUP(I42,Banco[#All],3,0)+(N42*VLOOKUP(I42,Banco[#All],4,0)),"") ->  | R42: =IFERROR(Q42/VLOOKUP(I42,Banco[#All],3,0),M42) -> 39
B43: 3 | C43: =IFERROR(VLOOKUP(I43,BANCO!A:J,10,0),"no") -> no | D43: 0 | E43: 1.942857143 | F43: 35 | G43: 68 | H43: 3 | I43: 74158 | J43: =IFERROR(VLOOKUP(I43,BANCO!_xlnm.Print_Area,2,0),"") ->  | K43: 02/jun | L43: =IFERROR(EDATE(K43,VLOOKUP(I43,BANCO!A:I,9,0)),"") ->  | M43: 68 | P43: =IFERROR(IF(OR(I43="",AND(M43="",N43="")),"",(L43-$M$7)/VLOOKUP(I43,Banco[#All],8,0)),"") ->  | Q43: =IFERROR(M43*VLOOKUP(I43,Banco[#All],3,0)+(N43*VLOOKUP(I43,Banco[#All],4,0)),"") ->  | R43: =IFERROR(Q43/VLOOKUP(I43,Banco[#All],3,0),M43) -> 68
B44: 3 | C44: =IFERROR(VLOOKUP(I44,BANCO!A:J,10,0),"no") -> no | D44: 0 | E44: 0.7428571429 | F44: 35 | G44: 26 | H44: 3 | I44: 74158 | J44: =IFERROR(VLOOKUP(I44,BANCO!_xlnm.Print_Area,2,0),"") ->  | K44: 04/jun | L44: =IFERROR(EDATE(K44,VLOOKUP(I44,BANCO!A:I,9,0)),"") ->  | M44: 26 | P44: =IFERROR(IF(OR(I44="",AND(M44="",N44="")),"",(L44-$M$7)/VLOOKUP(I44,Banco[#All],8,0)),"") ->  | Q44: =IFERROR(M44*VLOOKUP(I44,Banco[#All],3,0)+(N44*VLOOKUP(I44,Banco[#All],4,0)),"") ->  | R44: =IFERROR(Q44/VLOOKUP(I44,Banco[#All],3,0),M44) -> 26
B45: 3 | C45: =IFERROR(VLOOKUP(I45,BANCO!A:J,10,0),"no") -> no | D45: 0 | E45: 0.6785714286 | F45: =IF(AND(W45="Drive em Manutenção",R45>0),7,28) -> 28 | G45: 19 | H45: 3 | I45: 74158 | J45: =IFERROR(VLOOKUP(I45,BANCO!_xlnm.Print_Area,2,0),"") ->  | K45: 05/jun | L45: =IFERROR(EDATE(K45,VLOOKUP(I45,BANCO!A:I,9,0)),"") ->  | M45: 19 | P45: =IFERROR(IF(OR(I45="",AND(M45="",N45="")),"",(L45-$M$7)/VLOOKUP(I45,Banco[#All],8,0)),"") ->  | Q45: =IFERROR(M45*VLOOKUP(I45,Banco[#All],3,0)+(N45*VLOOKUP(I45,Banco[#All],4,0)),"") ->  | R45: =IFERROR(Q45/VLOOKUP(I45,Banco[#All],3,0),M45) -> 19
B46: 3 | C46: =IFERROR(VLOOKUP(I46,BANCO!A:J,10,0),"no") -> no | D46: 0 | E46: 0.2857142857 | F46: =IF(AND(W46="Drive em Manutenção",R46>0),7,28) -> 28 | G46: 8 | H46: 3 | I46: 74158 | J46: =IFERROR(VLOOKUP(I46,BANCO!_xlnm.Print_Area,2,0),"") ->  | K46: 06/jun | L46: =IFERROR(EDATE(K46,VLOOKUP(I46,BANCO!A:I,9,0)),"") ->  | M46: 8 | P46: =IFERROR(IF(OR(I46="",AND(M46="",N46="")),"",(L46-$M$7)/VLOOKUP(I46,Banco[#All],8,0)),"") ->  | Q46: =IFERROR(M46*VLOOKUP(I46,Banco[#All],3,0)+(N46*VLOOKUP(I46,Banco[#All],4,0)),"") ->  | R46: =IFERROR(Q46/VLOOKUP(I46,Banco[#All],3,0),M46) -> 8
B47: 3 | C47: =IFERROR(VLOOKUP(I47,BANCO!A:J,10,0),"no") -> no | D47: 0 | E47: 0.3714285714 | F47: =IF(AND(W47="Drive em Manutenção",R47>0),7,35) -> 35 | G47: 13 | H47: 3 | I47: 74158 | J47: =IFERROR(VLOOKUP(I47,BANCO!_xlnm.Print_Area,2,0),"") ->  | K47: 07/jun | L47: =IFERROR(EDATE(K47,VLOOKUP(I47,BANCO!A:I,9,0)),"") ->  | M47: 13 | P47: =IFERROR(IF(OR(I47="",AND(M47="",N47="")),"",(L47-$M$7)/VLOOKUP(I47,Banco[#All],8,0)),"") ->  | Q47: =IFERROR(M47*VLOOKUP(I47,Banco[#All],3,0)+(N47*VLOOKUP(I47,Banco[#All],4,0)),"") ->  | R47: =IFERROR(Q47/VLOOKUP(I47,Banco[#All],3,0),M47) -> 13
B48: 3 | C48: =IFERROR(VLOOKUP(I48,BANCO!A:J,10,0),"no") -> no | D48: 0 | E48: 0.4285714286 | F48: =IF(AND(W48="Drive em Manutenção",R48>0),7,35) -> 35 | G48: 15 | H48: 3 | I48: 74158 | J48: =IFERROR(VLOOKUP(I48,BANCO!_xlnm.Print_Area,2,0),"") ->  | K48: 08/jun | L48: =IFERROR(EDATE(K48,VLOOKUP(I48,BANCO!A:I,9,0)),"") ->  | M48: 15 | P48: =IFERROR(IF(OR(I48="",AND(M48="",N48="")),"",(L48-$M$7)/VLOOKUP(I48,Banco[#All],8,0)),"") ->  | Q48: =IFERROR(M48*VLOOKUP(I48,Banco[#All],3,0)+(N48*VLOOKUP(I48,Banco[#All],4,0)),"") ->  | R48: =IFERROR(Q48/VLOOKUP(I48,Banco[#All],3,0),M48) -> 15
H49: 3 | I49: 74158 | J49: =IFERROR(VLOOKUP(I49,BANCO!_xlnm.Print_Area,2,0),"") ->  | K49: 09/jun | L49: =IFERROR(EDATE(K49,VLOOKUP(I49,BANCO!A:I,9,0)),"") ->  | M49: 51 | P49: =IFERROR(IF(OR(I49="",AND(M49="",N49="")),"",(L49-$M$7)/VLOOKUP(I49,Banco[#All],8,0)),"") ->  | Q49: =IFERROR(M49*VLOOKUP(I49,Banco[#All],3,0)+(N49*VLOOKUP(I49,Banco[#All],4,0)),"") ->  | R49: =IFERROR(Q49/VLOOKUP(I49,Banco[#All],3,0),M49) -> 51
H50: 3 | I50: 74158 | J50: =IFERROR(VLOOKUP(I50,BANCO!_xlnm.Print_Area,2,0),"") ->  | K50: 10/jun | L50: =IFERROR(EDATE(K50,VLOOKUP(I50,BANCO!A:I,9,0)),"") ->  | M50: 122 | P50: =IFERROR(IF(OR(I50="",AND(M50="",N50="")),"",(L50-$M$7)/VLOOKUP(I50,Banco[#All],8,0)),"") ->  | Q50: =IFERROR(M50*VLOOKUP(I50,Banco[#All],3,0)+(N50*VLOOKUP(I50,Banco[#All],4,0)),"") ->  | R50: =IFERROR(Q50/VLOOKUP(I50,Banco[#All],3,0),M50) -> 122
H51: 3 | I51: 74158 | J51: =IFERROR(VLOOKUP(I51,BANCO!_xlnm.Print_Area,2,0),"") ->  | K51: 12/jun | L51: =IFERROR(EDATE(K51,VLOOKUP(I51,BANCO!A:I,9,0)),"") ->  | M51: 43 | P51: =IFERROR(IF(OR(I51="",AND(M51="",N51="")),"",(L51-$M$7)/VLOOKUP(I51,Banco[#All],8,0)),"") ->  | Q51: =IFERROR(M51*VLOOKUP(I51,Banco[#All],3,0)+(N51*VLOOKUP(I51,Banco[#All],4,0)),"") ->  | R51: =IFERROR(Q51/VLOOKUP(I51,Banco[#All],3,0),M51) -> 43
H52: 3 | I52: 74158 | J52: =IFERROR(VLOOKUP(I52,BANCO!_xlnm.Print_Area,2,0),"") ->  | K52: 14/jun | L52: =IFERROR(EDATE(K52,VLOOKUP(I52,BANCO!A:I,9,0)),"") ->  | M52: 35 | P52: =IFERROR(IF(OR(I52="",AND(M52="",N52="")),"",(L52-$M$7)/VLOOKUP(I52,Banco[#All],8,0)),"") ->  | Q52: =IFERROR(M52*VLOOKUP(I52,Banco[#All],3,0)+(N52*VLOOKUP(I52,Banco[#All],4,0)),"") ->  | R52: =IFERROR(Q52/VLOOKUP(I52,Banco[#All],3,0),M52) -> 35
B53: =LEFT(H53,1) -> 3 | C53: =IFERROR(VLOOKUP(I53,BANCO!A:J,10,0),"no") -> no | D53: =IF(G53<>0,0,1) -> 0 | E53: =IFERROR(ROUNDUP(R53,0)/F53,"NO") -> 0.4 | F53: =IF(AND(W53="Drive em Manutenção",R53>0),7,35) -> 35 | G53: =IFERROR(IF(R53<=4,0,ROUNDUP(R53,0)),0) -> 14 | H53: 3 | I53: 74158 | J53: =IFERROR(VLOOKUP(I53,BANCO!_xlnm.Print_Area,2,0),"") ->  | K53: 15/jun | L53: =IFERROR(EDATE(K53,VLOOKUP(I53,BANCO!A:I,9,0)),"") ->  | M53: 14 | P53: =IFERROR(IF(OR(I53="",AND(M53="",N53="")),"",(L53-$M$7)/VLOOKUP(I53,Banco[#All],8,0)),"") ->  | Q53: =IFERROR(M53*VLOOKUP(I53,Banco[#All],3,0)+(N53*VLOOKUP(I53,Banco[#All],4,0)),"") ->  | R53: =IFERROR(Q53/VLOOKUP(I53,Banco[#All],3,0),M53) -> 14
H54: 3 | I54: 74161 | J54: =IFERROR(VLOOKUP(I54,BANCO!_xlnm.Print_Area,2,0),"") -> 1500X8 DECORADO | K54: 11/abr | L54: =IFERROR(EDATE(K54,VLOOKUP(I54,BANCO!A:I,9,0)),"") -> 45210 | M54: 28 | P54: =IFERROR(IF(OR(I54="",AND(M54="",N54="")),"",(L54-$M$7)/VLOOKUP(I54,Banco[#All],8,0)),"") -> 1.133211679 | Q54: =IFERROR(M54*VLOOKUP(I54,Banco[#All],3,0)+(N54*VLOOKUP(I54,Banco[#All],4,0)),"") -> 18816 | R54: =IFERROR(Q54/VLOOKUP(I54,Banco[#All],3,0),M54) -> 28
H55: 3 | I55: 74161 | J55: =IFERROR(VLOOKUP(I55,BANCO!_xlnm.Print_Area,2,0),"") -> 1500X8 DECORADO | K55: 29/abr | L55: =IFERROR(EDATE(K55,VLOOKUP(I55,BANCO!A:I,9,0)),"") -> 45228 | M55: 23 | P55: =IFERROR(IF(OR(I55="",AND(M55="",N55="")),"",(L55-$M$7)/VLOOKUP(I55,Banco[#All],8,0)),"") -> 1.166058394 | Q55: =IFERROR(M55*VLOOKUP(I55,Banco[#All],3,0)+(N55*VLOOKUP(I55,Banco[#All],4,0)),"") -> 15456 | R55: =IFERROR(Q55/VLOOKUP(I55,Banco[#All],3,0),M55) -> 23
H56: 3 | I56: 74161 | J56: =IFERROR(VLOOKUP(I56,BANCO!_xlnm.Print_Area,2,0),"") -> 1500X8 DECORADO | K56: 05/mai | L56: =IFERROR(EDATE(K56,VLOOKUP(I56,BANCO!A:I,9,0)),"") -> 45235 | M56: 2 | P56: =IFERROR(IF(OR(I56="",AND(M56="",N56="")),"",(L56-$M$7)/VLOOKUP(I56,Banco[#All],8,0)),"") -> 1.178832117 | Q56: =IFERROR(M56*VLOOKUP(I56,Banco[#All],3,0)+(N56*VLOOKUP(I56,Banco[#All],4,0)),"") -> 1344 | R56: =IFERROR(Q56/VLOOKUP(I56,Banco[#All],3,0),M56) -> 2
H57: 3 | I57: 74161 | J57: =IFERROR(VLOOKUP(I57,BANCO!_xlnm.Print_Area,2,0),"") -> 1500X8 DECORADO | K57: 06/mai | L57: =IFERROR(EDATE(K57,VLOOKUP(I57,BANCO!A:I,9,0)),"") -> 45236 | M57: 1 | P57: =IFERROR(IF(OR(I57="",AND(M57="",N57="")),"",(L57-$M$7)/VLOOKUP(I57,Banco[#All],8,0)),"") -> 1.180656934 | Q57: =IFERROR(M57*VLOOKUP(I57,Banco[#All],3,0)+(N57*VLOOKUP(I57,Banco[#All],4,0)),"") -> 672 | R57: =IFERROR(Q57/VLOOKUP(I57,Banco[#All],3,0),M57) -> 1
H58: 3 | I58: 74161 | J58: =IFERROR(VLOOKUP(I58,BANCO!_xlnm.Print_Area,2,0),"") -> 1500X8 DECORADO | K58: 07/mai | L58: =IFERROR(EDATE(K58,VLOOKUP(I58,BANCO!A:I,9,0)),"") -> 45237 | M58: 6 | P58: =IFERROR(IF(OR(I58="",AND(M58="",N58="")),"",(L58-$M$7)/VLOOKUP(I58,Banco[#All],8,0)),"") -> 1.182481752 | Q58: =IFERROR(M58*VLOOKUP(I58,Banco[#All],3,0)+(N58*VLOOKUP(I58,Banco[#All],4,0)),"") -> 4032 | R58: =IFERROR(Q58/VLOOKUP(I58,Banco[#All],3,0),M58) -> 6
B59: =LEFT(H59,1) -> 3 | C59: =IFERROR(VLOOKUP(I59,BANCO!A:J,10,0),"no") -> 1,5L Dec | D59: =IF(G59<>0,0,1) -> 0 | E59: =IFERROR(ROUNDUP(R59,0)/F59,"NO") -> 0.9642857143 | F59: =IF(AND(W59="Drive em Manutenção",R59>0),7,28) -> 28 | G59: =IFERROR(IF(R59<=4,0,ROUNDUP(R59,0)),0) -> 27 | H59: 3 | I59: 74161 | J59: =IFERROR(VLOOKUP(I59,BANCO!_xlnm.Print_Area,2,0),"") -> 1500X8 DECORADO | K59: 08/mai | L59: =IFERROR(EDATE(K59,VLOOKUP(I59,BANCO!A:I,9,0)),"") -> 45238 | M59: 27 | P59: =IFERROR(IF(OR(I59="",AND(M59="",N59="")),"",(L59-$M$7)/VLOOKUP(I59,Banco[#All],8,0)),"") -> 1.184306569 | Q59: =IFERROR(M59*VLOOKUP(I59,Banco[#All],3,0)+(N59*VLOOKUP(I59,Banco[#All],4,0)),"") -> 18144 | R59: =IFERROR(Q59/VLOOKUP(I59,Banco[#All],3,0),M59) -> 27
H60: 3 | I60: 74161 | J60: =IFERROR(VLOOKUP(I60,BANCO!_xlnm.Print_Area,2,0),"") -> 1500X8 DECORADO | K60: 09/mai | L60: =IFERROR(EDATE(K60,VLOOKUP(I60,BANCO!A:I,9,0)),"") -> 45239 | M60: 20 | P60: =IFERROR(IF(OR(I60="",AND(M60="",N60="")),"",(L60-$M$7)/VLOOKUP(I60,Banco[#All],8,0)),"") -> 1.186131387 | Q60: =IFERROR(M60*VLOOKUP(I60,Banco[#All],3,0)+(N60*VLOOKUP(I60,Banco[#All],4,0)),"") -> 13440 | R60: =IFERROR(Q60/VLOOKUP(I60,Banco[#All],3,0),M60) -> 20
H61: 3 | I61: 74161 | J61: =IFERROR(VLOOKUP(I61,BANCO!_xlnm.Print_Area,2,0),"") -> 1500X8 DECORADO | K61: 12/mai | L61: =IFERROR(EDATE(K61,VLOOKUP(I61,BANCO!A:I,9,0)),"") -> 45242 | M61: 2 | P61: =IFERROR(IF(OR(I61="",AND(M61="",N61="")),"",(L61-$M$7)/VLOOKUP(I61,Banco[#All],8,0)),"") -> 1.191605839 | Q61: =IFERROR(M61*VLOOKUP(I61,Banco[#All],3,0)+(N61*VLOOKUP(I61,Banco[#All],4,0)),"") -> 1344 | R61: =IFERROR(Q61/VLOOKUP(I61,Banco[#All],3,0),M61) -> 2
B62: =LEFT(H62,1) -> 3 | C62: =IFERROR(VLOOKUP(I62,BANCO!A:J,10,0),"no") -> 1,5L Dec | D62: =IF(G62<>0,0,1) -> 0 | E62: =IFERROR(ROUNDUP(R62,0)/F62,"NO") -> 2.535714286 | F62: =IF(AND(W62="Drive em Manutenção",R62>0),7,28) -> 28 | G62: =IFERROR(IF(R62<=4,0,ROUNDUP(R62,0)),0) -> 71 | H62: 3 | I62: 74161 | J62: =IFERROR(VLOOKUP(I62,BANCO!_xlnm.Print_Area,2,0),"") -> 1500X8 DECORADO | K62: 13/mai | L62: =IFERROR(EDATE(K62,VLOOKUP(I62,BANCO!A:I,9,0)),"") -> 45243 | M62: 71 | P62: =IFERROR(IF(OR(I62="",AND(M62="",N62="")),"",(L62-$M$7)/VLOOKUP(I62,Banco[#All],8,0)),"") -> 1.193430657 | Q62: =IFERROR(M62*VLOOKUP(I62,Banco[#All],3,0)+(N62*VLOOKUP(I62,Banco[#All],4,0)),"") -> 47712 | R62: =IFERROR(Q62/VLOOKUP(I62,Banco[#All],3,0),M62) -> 71
H63: 3 | I63: 74161 | J63: =IFERROR(VLOOKUP(I63,BANCO!_xlnm.Print_Area,2,0),"") -> 1500X8 DECORADO | K63: 14/mai | L63: =IFERROR(EDATE(K63,VLOOKUP(I63,BANCO!A:I,9,0)),"") -> 45244 | M63: 132 | P63: =IFERROR(IF(OR(I63="",AND(M63="",N63="")),"",(L63-$M$7)/VLOOKUP(I63,Banco[#All],8,0)),"") -> 1.195255474 | Q63: =IFERROR(M63*VLOOKUP(I63,Banco[#All],3,0)+(N63*VLOOKUP(I63,Banco[#All],4,0)),"") -> 88704 | R63: =IFERROR(Q63/VLOOKUP(I63,Banco[#All],3,0),M63) -> 132
B64: =LEFT(H64,1) -> 3 | C64: =IFERROR(VLOOKUP(I64,BANCO!A:J,10,0),"no") -> 1,5L Dec | D64: =IF(G64<>0,0,1) -> 0 | E64: =IFERROR(ROUNDUP(R64,0)/F64,"NO") -> 2.285714286 | F64: =IF(AND(W64="Drive em Manutenção",R64>0),7,35) -> 35 | G64: =IFERROR(IF(R64<=4,0,ROUNDUP(R64,0)),0) -> 80 | H64: 3 | I64: 74161 | J64: =IFERROR(VLOOKUP(I64,BANCO!_xlnm.Print_Area,2,0),"") -> 1500X8 DECORADO | K64: 15/mai | L64: =IFERROR(EDATE(K64,VLOOKUP(I64,BANCO!A:I,9,0)),"") -> 45245 | M64: 80 | P64: =IFERROR(IF(OR(I64="",AND(M64="",N64="")),"",(L64-$M$7)/VLOOKUP(I64,Banco[#All],8,0)),"") -> 1.197080292 | Q64: =IFERROR(M64*VLOOKUP(I64,Banco[#All],3,0)+(N64*VLOOKUP(I64,Banco[#All],4,0)),"") -> 53760 | R64: =IFERROR(Q64/VLOOKUP(I64,Banco[#All],3,0),M64) -> 80
H65: 3 | I65: 74161 | J65: =IFERROR(VLOOKUP(I65,BANCO!_xlnm.Print_Area,2,0),"") -> 1500X8 DECORADO | K65: 16/mai | L65: =IFERROR(EDATE(K65,VLOOKUP(I65,BANCO!A:I,9,0)),"") -> 45246 | M65: 73 | P65: =IFERROR(IF(OR(I65="",AND(M65="",N65="")),"",(L65-$M$7)/VLOOKUP(I65,Banco[#All],8,0)),"") -> 1.198905109 | Q65: =IFERROR(M65*VLOOKUP(I65,Banco[#All],3,0)+(N65*VLOOKUP(I65,Banco[#All],4,0)),"") -> 49056 | R65: =IFERROR(Q65/VLOOKUP(I65,Banco[#All],3,0),M65) -> 73
H66: 3 | I66: 74161 | J66: =IFERROR(VLOOKUP(I66,BANCO!_xlnm.Print_Area,2,0),"") -> 1500X8 DECORADO | K66: 17/mai | L66: =IFERROR(EDATE(K66,VLOOKUP(I66,BANCO!A:I,9,0)),"") -> 45247 | M66: 238 | P66: =IFERROR(IF(OR(I66="",AND(M66="",N66="")),"",(L66-$M$7)/VLOOKUP(I66,Banco[#All],8,0)),"") -> 1.200729927 | Q66: =IFERROR(M66*VLOOKUP(I66,Banco[#All],3,0)+(N66*VLOOKUP(I66,Banco[#All],4,0)),"") -> 159936 | R66: =IFERROR(Q66/VLOOKUP(I66,Banco[#All],3,0),M66) -> 238
B67: 3 | C67: =IFERROR(VLOOKUP(I67,BANCO!A:J,10,0),"no") -> 1,5L Dec | D67: 0 | E67: =IFERROR(ROUNDUP(R67,0)/F67,"NO") -> 1.285714286 | F67: =IF(AND(W67="Drive em Manutenção",R67>0),7,35) -> 35 | G67: 45 | H67: 3 | I67: 74161 | J67: =IFERROR(VLOOKUP(I67,BANCO!_xlnm.Print_Area,2,0),"") -> 1500X8 DECORADO | K67: 18/mai | L67: =IFERROR(EDATE(K67,VLOOKUP(I67,BANCO!A:I,9,0)),"") -> 45248 | M67: 45 | P67: =IFERROR(IF(OR(I67="",AND(M67="",N67="")),"",(L67-$M$7)/VLOOKUP(I67,Banco[#All],8,0)),"") -> 1.202554745 | Q67: =IFERROR(M67*VLOOKUP(I67,Banco[#All],3,0)+(N67*VLOOKUP(I67,Banco[#All],4,0)),"") -> 30240 | R67: =IFERROR(Q67/VLOOKUP(I67,Banco[#All],3,0),M67) -> 45
B68: 3 | C68: =IFERROR(VLOOKUP(I68,BANCO!A:J,10,0),"no") -> 1,5L Dec | D68: 0 | E68: 0.6 | F68: =IF(AND(W68="Drive em Manutenção",R68>0),7,35) -> 35 | G68: 21 | H68: 3 | I68: 74161 | J68: =IFERROR(VLOOKUP(I68,BANCO!_xlnm.Print_Area,2,0),"") -> 1500X8 DECORADO | K68: 19/mai | L68: =IFERROR(EDATE(K68,VLOOKUP(I68,BANCO!A:I,9,0)),"") -> 45249 | M68: 21 | P68: =IFERROR(IF(OR(I68="",AND(M68="",N68="")),"",(L68-$M$7)/VLOOKUP(I68,Banco[#All],8,0)),"") -> 1.204379562 | Q68: =IFERROR(M68*VLOOKUP(I68,Banco[#All],3,0)+(N68*VLOOKUP(I68,Banco[#All],4,0)),"") -> 14112 | R68: =IFERROR(Q68/VLOOKUP(I68,Banco[#All],3,0),M68) -> 21
H69: 3 | I69: 74161 | J69: =IFERROR(VLOOKUP(I69,BANCO!_xlnm.Print_Area,2,0),"") -> 1500X8 DECORADO | K69: 20/mai | L69: =IFERROR(EDATE(K69,VLOOKUP(I69,BANCO!A:I,9,0)),"") -> 45250 | M69: 56 | P69: =IFERROR(IF(OR(I69="",AND(M69="",N69="")),"",(L69-$M$7)/VLOOKUP(I69,Banco[#All],8,0)),"") -> 1.20620438 | Q69: =IFERROR(M69*VLOOKUP(I69,Banco[#All],3,0)+(N69*VLOOKUP(I69,Banco[#All],4,0)),"") -> 37632 | R69: =IFERROR(Q69/VLOOKUP(I69,Banco[#All],3,0),M69) -> 56
H70: 3 | I70: 74161 | J70: =IFERROR(VLOOKUP(I70,BANCO!_xlnm.Print_Area,2,0),"") -> 1500X8 DECORADO | K70: 21/mai | L70: =IFERROR(EDATE(K70,VLOOKUP(I70,BANCO!A:I,9,0)),"") -> 45251 | M70: 36 | P70: =IFERROR(IF(OR(I70="",AND(M70="",N70="")),"",(L70-$M$7)/VLOOKUP(I70,Banco[#All],8,0)),"") -> 1.208029197 | Q70: =IFERROR(M70*VLOOKUP(I70,Banco[#All],3,0)+(N70*VLOOKUP(I70,Banco[#All],4,0)),"") -> 24192 | R70: =IFERROR(Q70/VLOOKUP(I70,Banco[#All],3,0),M70) -> 36
B71: 3 | C71: =IFERROR(VLOOKUP(I71,BANCO!A:J,10,0),"no") -> 1,5L Dec | D71: 1 | E71: 0.2857142857 | F71: =IF(AND(W71="Drive em Manutenção",R71>0),7,35) -> 7 | G71: 0 | H71: 3 | I71: 74161 | J71: =IFERROR(VLOOKUP(I71,BANCO!_xlnm.Print_Area,2,0),"") -> 1500X8 DECORADO | K71: 22/mai | L71: =IFERROR(EDATE(K71,VLOOKUP(I71,BANCO!A:I,9,0)),"") -> 45252 | M71: 2 | P71: =IFERROR(IF(OR(I71="",AND(M71="",N71="")),"",(L71-$M$7)/VLOOKUP(I71,Banco[#All],8,0)),"") -> 1.209854015 | Q71: =IFERROR(M71*VLOOKUP(I71,Banco[#All],3,0)+(N71*VLOOKUP(I71,Banco[#All],4,0)),"") -> 1344 | R71: =IFERROR(Q71/VLOOKUP(I71,Banco[#All],3,0),M71) -> 2 | W71: Drive em Manutenção
B72: =LEFT(H72,1) -> 3 | C72: =IFERROR(VLOOKUP(I72,BANCO!A:J,10,0),"no") -> 1,5L Dec | D72: =IF(G72<>0,0,1) -> 1 | E72: 0.08571428571 | F72: =IF(AND(W72="Drive em Manutenção",R72>0),7,35) -> 35 | G72: =IFERROR(IF(R72<=4,0,ROUNDUP(R72,0)),0) -> 0 | H72: 3 | I72: 74161 | J72: =IFERROR(VLOOKUP(I72,BANCO!_xlnm.Print_Area,2,0),"") -> 1500X8 DECORADO | K72: 23/mai | L72: =IFERROR(EDATE(K72,VLOOKUP(I72,BANCO!A:I,9,0)),"") -> 45253 | M72: 3 | P72: =IFERROR(IF(OR(I72="",AND(M72="",N72="")),"",(L72-$M$7)/VLOOKUP(I72,Banco[#All],8,0)),"") -> 1.211678832 | Q72: =IFERROR(M72*VLOOKUP(I72,Banco[#All],3,0)+(N72*VLOOKUP(I72,Banco[#All],4,0)),"") -> 2016 | R72: =IFERROR(Q72/VLOOKUP(I72,Banco[#All],3,0),M72) -> 3
H73: 3 | I73: 74161 | J73: =IFERROR(VLOOKUP(I73,BANCO!_xlnm.Print_Area,2,0),"") -> 1500X8 DECORADO | K73: 24/mai | L73: =IFERROR(EDATE(K73,VLOOKUP(I73,BANCO!A:I,9,0)),"") -> 45254 | M73: 20 | P73: =IFERROR(IF(OR(I73="",AND(M73="",N73="")),"",(L73-$M$7)/VLOOKUP(I73,Banco[#All],8,0)),"") -> 1.21350365 | Q73: =IFERROR(M73*VLOOKUP(I73,Banco[#All],3,0)+(N73*VLOOKUP(I73,Banco[#All],4,0)),"") -> 13440 | R73: =IFERROR(Q73/VLOOKUP(I73,Banco[#All],3,0),M73) -> 20
H74: 3 | I74: 74161 | J74: =IFERROR(VLOOKUP(I74,BANCO!_xlnm.Print_Area,2,0),"") -> 1500X8 DECORADO | K74: 25/mai | L74: =IFERROR(EDATE(K74,VLOOKUP(I74,BANCO!A:I,9,0)),"") -> 45255 | M74: 11 | P74: =IFERROR(IF(OR(I74="",AND(M74="",N74="")),"",(L74-$M$7)/VLOOKUP(I74,Banco[#All],8,0)),"") -> 1.215328467 | Q74: =IFERROR(M74*VLOOKUP(I74,Banco[#All],3,0)+(N74*VLOOKUP(I74,Banco[#All],4,0)),"") -> 7392 | R74: =IFERROR(Q74/VLOOKUP(I74,Banco[#All],3,0),M74) -> 11
B75: =LEFT(H75,1) -> 3 | C75: =IFERROR(VLOOKUP(I75,BANCO!A:J,10,0),"no") -> 1,5L Dec | D75: =IF(G75<>0,0,1) -> 1 | E75: 0.1428571429 | F75: =IF(AND(W75="Drive em Manutenção",R75>0),7,35) -> 7 | G75: =IFERROR(IF(R75<=4,0,ROUNDUP(R75,0)),0) -> 0 | H75: 3 | I75: 74161 | J75: =IFERROR(VLOOKUP(I75,BANCO!_xlnm.Print_Area,2,0),"") -> 1500X8 DECORADO | K75: 26/mai | L75: =IFERROR(EDATE(K75,VLOOKUP(I75,BANCO!A:I,9,0)),"") -> 45256 | M75: 1 | P75: =IFERROR(IF(OR(I75="",AND(M75="",N75="")),"",(L75-$M$7)/VLOOKUP(I75,Banco[#All],8,0)),"") -> 1.217153285 | Q75: =IFERROR(M75*VLOOKUP(I75,Banco[#All],3,0)+(N75*VLOOKUP(I75,Banco[#All],4,0)),"") -> 672 | R75: =IFERROR(Q75/VLOOKUP(I75,Banco[#All],3,0),M75) -> 1 | W75: Drive em Manutenção
B76: 3 | C76: =IFERROR(VLOOKUP(I76,BANCO!A:J,10,0),"no") -> 1,5L Dec | D76: 0 | E76: 5.857142857 | F76: 7 | G76: =IFERROR(IF(R76<=4,0,ROUNDUP(R76,0)),0) -> 41 | H76: 3 | I76: 74161 | J76: =IFERROR(VLOOKUP(I76,BANCO!_xlnm.Print_Area,2,0),"") -> 1500X8 DECORADO | K76: 27/mai | L76: =IFERROR(EDATE(K76,VLOOKUP(I76,BANCO!A:I,9,0)),"") -> 45257 | M76: 41 | P76: =IFERROR(IF(OR(I76="",AND(M76="",N76="")),"",(L76-$M$7)/VLOOKUP(I76,Banco[#All],8,0)),"") -> 1.218978102 | Q76: =IFERROR(M76*VLOOKUP(I76,Banco[#All],3,0)+(N76*VLOOKUP(I76,Banco[#All],4,0)),"") -> 27552 | R76: =IFERROR(Q76/VLOOKUP(I76,Banco[#All],3,0),M76) -> 41 | W76: Drive em Manutenção
B77: =LEFT(H77,1) -> 3 | C77: =IFERROR(VLOOKUP(I77,BANCO!A:J,10,0),"no") -> 1,5L Dec | D77: =IF(G77<>0,0,1) -> 0 | E77: 0.2285714286 | F77: =IF(AND(W77="Drive em Manutenção",R77>0),7,35) -> 35 | G77: =IFERROR(IF(R77<=4,0,ROUNDUP(R77,0)),0) -> 8 | H77: 3 | I77: 74161 | J77: =IFERROR(VLOOKUP(I77,BANCO!_xlnm.Print_Area,2,0),"") -> 1500X8 DECORADO | K77: 28/mai | L77: =IFERROR(EDATE(K77,VLOOKUP(I77,BANCO!A:I,9,0)),"") -> 45258 | M77: 8 | P77: =IFERROR(IF(OR(I77="",AND(M77="",N77="")),"",(L77-$M$7)/VLOOKUP(I77,Banco[#All],8,0)),"") -> 1.22080292 | Q77: =IFERROR(M77*VLOOKUP(I77,Banco[#All],3,0)+(N77*VLOOKUP(I77,Banco[#All],4,0)),"") -> 5376 | R77: =IFERROR(Q77/VLOOKUP(I77,Banco[#All],3,0),M77) -> 8
B78: 3 | C78: =IFERROR(VLOOKUP(I78,BANCO!A:J,10,0),"no") -> 1,5L Dec | D78: 1 | E78: 0.02857142857 | F78: 35 | G78: 0 | H78: 3 | I78: 74161 | J78: =IFERROR(VLOOKUP(I78,BANCO!_xlnm.Print_Area,2,0),"") -> 1500X8 DECORADO | K78: 30/mai | L78: =IFERROR(EDATE(K78,VLOOKUP(I78,BANCO!A:I,9,0)),"") -> 45260 | M78: 1 | P78: =IFERROR(IF(OR(I78="",AND(M78="",N78="")),"",(L78-$M$7)/VLOOKUP(I78,Banco[#All],8,0)),"") -> 1.224452555 | Q78: =IFERROR(M78*VLOOKUP(I78,Banco[#All],3,0)+(N78*VLOOKUP(I78,Banco[#All],4,0)),"") -> 672 | R78: =IFERROR(Q78/VLOOKUP(I78,Banco[#All],3,0),M78) -> 1
B79: =LEFT(H79,1) -> 3 | C79: =IFERROR(VLOOKUP(I79,BANCO!A:J,10,0),"no") -> 1,5L Dec | D79: =IF(G79<>0,0,1) -> 1 | E79: 0.08571428571 | F79: =IF(AND(W79="Drive em Manutenção",R79>0),7,35) -> 35 | G79: =IFERROR(IF(R79<=4,0,ROUNDUP(R79,0)),0) -> 0 | H79: 3 | I79: 74161 | J79: =IFERROR(VLOOKUP(I79,BANCO!_xlnm.Print_Area,2,0),"") -> 1500X8 DECORADO | K79: 31/mai | L79: =IFERROR(EDATE(K79,VLOOKUP(I79,BANCO!A:I,9,0)),"") -> 45260 | M79: 3 | P79: =IFERROR(IF(OR(I79="",AND(M79="",N79="")),"",(L79-$M$7)/VLOOKUP(I79,Banco[#All],8,0)),"") -> 1.224452555 | Q79: =IFERROR(M79*VLOOKUP(I79,Banco[#All],3,0)+(N79*VLOOKUP(I79,Banco[#All],4,0)),"") -> 2016 | R79: =IFERROR(Q79/VLOOKUP(I79,Banco[#All],3,0),M79) -> 3
B80: 3 | C80: =IFERROR(VLOOKUP(I80,BANCO!A:J,10,0),"no") -> 1,5L Dec | D80: 0 | E80: 0.9142857143 | F80: 35 | G80: 32 | H80: 3 | I80: 74161 | J80: =IFERROR(VLOOKUP(I80,BANCO!_xlnm.Print_Area,2,0),"") -> 1500X8 DECORADO | K80: 01/jun | L80: =IFERROR(EDATE(K80,VLOOKUP(I80,BANCO!A:I,9,0)),"") -> 45261 | M80: 32 | P80: =IFERROR(IF(OR(I80="",AND(M80="",N80="")),"",(L80-$M$7)/VLOOKUP(I80,Banco[#All],8,0)),"") -> 1.226277372 | Q80: =IFERROR(M80*VLOOKUP(I80,Banco[#All],3,0)+(N80*VLOOKUP(I80,Banco[#All],4,0)),"") -> 21504 | R80: =IFERROR(Q80/VLOOKUP(I80,Banco[#All],3,0),M80) -> 32
B81: 3 | C81: =IFERROR(VLOOKUP(I81,BANCO!A:J,10,0),"no") -> 1,5L Dec | D81: 0 | E81: 0.2857142857 | F81: =IF(AND(W81="Drive em Manutenção",R81>0),7,35) -> 35 | G81: 10 | H81: 3 | I81: 74161 | J81: =IFERROR(VLOOKUP(I81,BANCO!_xlnm.Print_Area,2,0),"") -> 1500X8 DECORADO | K81: 09/jun | L81: =IFERROR(EDATE(K81,VLOOKUP(I81,BANCO!A:I,9,0)),"") -> 45269 | M81: 10 | P81: =IFERROR(IF(OR(I81="",AND(M81="",N81="")),"",(L81-$M$7)/VLOOKUP(I81,Banco[#All],8,0)),"") -> 1.240875912 | Q81: =IFERROR(M81*VLOOKUP(I81,Banco[#All],3,0)+(N81*VLOOKUP(I81,Banco[#All],4,0)),"") -> 6720 | R81: =IFERROR(Q81/VLOOKUP(I81,Banco[#All],3,0),M81) -> 10
B82: 3 | C82: =IFERROR(VLOOKUP(I82,BANCO!A:J,10,0),"no") -> 1,5L Dec | D82: 1 | E82: 0.1142857143 | F82: 35 | G82: 0 | H82: 3 | I82: 74161 | J82: =IFERROR(VLOOKUP(I82,BANCO!_xlnm.Print_Area,2,0),"") -> 1500X8 DECORADO | K82: 10/jun | L82: =IFERROR(EDATE(K82,VLOOKUP(I82,BANCO!A:I,9,0)),"") -> 45270 | M82: 4 | P82: =IFERROR(IF(OR(I82="",AND(M82="",N82="")),"",(L82-$M$7)/VLOOKUP(I82,Banco[#All],8,0)),"") -> 1.24270073 | Q82: =IFERROR(M82*VLOOKUP(I82,Banco[#All],3,0)+(N82*VLOOKUP(I82,Banco[#All],4,0)),"") -> 2688 | R82: =IFERROR(Q82/VLOOKUP(I82,Banco[#All],3,0),M82) -> 4
B83: B | C83: =IFERROR(VLOOKUP(I83,BANCO!A:J,10,0),"no") -> 1,5L Dec | D83: =IF(G83<>0,0,1) -> 1 | E83: 0.02857142857 | F83: =IF(AND(W83="Drive em Manutenção",R83>0),7,35) -> 35 | G83: =IFERROR(IF(R83<=4,0,ROUNDUP(R83,0)),0) -> 0 | H83: 3 | I83: 74161 | J83: =IFERROR(VLOOKUP(I83,BANCO!_xlnm.Print_Area,2,0),"") -> 1500X8 DECORADO | K83: 11/jun | L83: =IFERROR(EDATE(K83,VLOOKUP(I83,BANCO!A:I,9,0)),"") -> 45271 | M83: 1 | P83: =IFERROR(IF(OR(I83="",AND(M83="",N83="")),"",(L83-$M$7)/VLOOKUP(I83,Banco[#All],8,0)),"") -> 1.244525547 | Q83: =IFERROR(M83*VLOOKUP(I83,Banco[#All],3,0)+(N83*VLOOKUP(I83,Banco[#All],4,0)),"") -> 672 | R83: =IFERROR(Q83/VLOOKUP(I83,Banco[#All],3,0),M83) -> 1
B84: B | C84: =IFERROR(VLOOKUP(I84,BANCO!A:J,10,0),"no") -> 1,5L Dec | D84: 0 | E84: 0.2285714286 | F84: 35 | G84: 8 | H84: 3 | I84: 74161 | J84: =IFERROR(VLOOKUP(I84,BANCO!_xlnm.Print_Area,2,0),"") -> 1500X8 DECORADO | K84: 12/jun | L84: =IFERROR(EDATE(K84,VLOOKUP(I84,BANCO!A:I,9,0)),"") -> 45272 | M84: 8 | P84: =IFERROR(IF(OR(I84="",AND(M84="",N84="")),"",(L84-$M$7)/VLOOKUP(I84,Banco[#All],8,0)),"") -> 1.246350365 | Q84: =IFERROR(M84*VLOOKUP(I84,Banco[#All],3,0)+(N84*VLOOKUP(I84,Banco[#All],4,0)),"") -> 5376 | R84: =IFERROR(Q84/VLOOKUP(I84,Banco[#All],3,0),M84) -> 8
B85: =LEFT(H85,1) -> 3 | C85: =IFERROR(VLOOKUP(I85,BANCO!A:J,10,0),"no") -> 1,5L Dec | D85: =IF(G85<>0,0,1) -> 1 | E85: 0.05714285714 | F85: 35 | G85: =IFERROR(IF(R85<=4,0,ROUNDUP(R85,0)),0) -> 0 | H85: 3 | I85: 74161 | J85: =IFERROR(VLOOKUP(I85,BANCO!_xlnm.Print_Area,2,0),"") -> 1500X8 DECORADO | K85: 13/jun | L85: =IFERROR(EDATE(K85,VLOOKUP(I85,BANCO!A:I,9,0)),"") -> 45273 | M85: 2 | P85: =IFERROR(IF(OR(I85="",AND(M85="",N85="")),"",(L85-$M$7)/VLOOKUP(I85,Banco[#All],8,0)),"") -> 1.248175182 | Q85: =IFERROR(M85*VLOOKUP(I85,Banco[#All],3,0)+(N85*VLOOKUP(I85,Banco[#All],4,0)),"") -> 1344 | R85: =IFERROR(Q85/VLOOKUP(I85,Banco[#All],3,0),M85) -> 2
B86: 3 | C86: =IFERROR(VLOOKUP(I86,BANCO!A:J,10,0),"no") -> 1,5L Dec | D86: =IF(G86<>0,0,1) -> 1 | E86: 0.02857142857 | F86: 35 | G86: =IFERROR(IF(R86<=4,0,ROUNDUP(R86,0)),0) -> 0 | H86: 3 | I86: 74161 | J86: =IFERROR(VLOOKUP(I86,BANCO!_xlnm.Print_Area,2,0),"") -> 1500X8 DECORADO | K86: 14/jun | L86: =IFERROR(EDATE(K86,VLOOKUP(I86,BANCO!A:I,9,0)),"") -> 45274 | M86: 1 | P86: =IFERROR(IF(OR(I86="",AND(M86="",N86="")),"",(L86-$M$7)/VLOOKUP(I86,Banco[#All],8,0)),"") -> 1.25 | Q86: =IFERROR(M86*VLOOKUP(I86,Banco[#All],3,0)+(N86*VLOOKUP(I86,Banco[#All],4,0)),"") -> 672 | R86: =IFERROR(Q86/VLOOKUP(I86,Banco[#All],3,0),M86) -> 1
B87: 3 | C87: =IFERROR(VLOOKUP(I87,BANCO!A:J,10,0),"no") -> 1,5L Dec | D87: =IF(G87<>0,0,1) -> 1 | E87: 0.08571428571 | F87: 35 | G87: =IFERROR(IF(R87<=4,0,ROUNDUP(R87,0)),0) -> 0 | H87: 3 | I87: 74161 | J87: =IFERROR(VLOOKUP(I87,BANCO!_xlnm.Print_Area,2,0),"") -> 1500X8 DECORADO | K87: 15/jun | L87: =IFERROR(EDATE(K87,VLOOKUP(I87,BANCO!A:I,9,0)),"") -> 45275 | M87: 3 | P87: =IFERROR(IF(OR(I87="",AND(M87="",N87="")),"",(L87-$M$7)/VLOOKUP(I87,Banco[#All],8,0)),"") -> 1.251824818 | Q87: =IFERROR(M87*VLOOKUP(I87,Banco[#All],3,0)+(N87*VLOOKUP(I87,Banco[#All],4,0)),"") -> 2016 | R87: =IFERROR(Q87/VLOOKUP(I87,Banco[#All],3,0),M87) -> 3
B88: 3 | C88: =IFERROR(VLOOKUP(#REF!,BANCO!A:J,10,0),"no") -> no | D88: =IF(G88<>0,0,1) -> 1 | E88: 0.05714285714 | F88: 35 | G88: 0 | H88: 3 | I88: 74161 | J88: =IFERROR(VLOOKUP(I88,BANCO!_xlnm.Print_Area,2,0),"") -> 1500X8 DECORADO | K88: 16/jun | L88: =IFERROR(EDATE(K88,VLOOKUP(I88,BANCO!A:I,9,0)),"") -> 45276 | M88: 2 | P88: =IFERROR(IF(OR(I88="",AND(M88="",N88="")),"",(L88-$M$7)/VLOOKUP(I88,Banco[#All],8,0)),"") -> 1.253649635 | Q88: =IFERROR(M88*VLOOKUP(I88,Banco[#All],3,0)+(N88*VLOOKUP(I88,Banco[#All],4,0)),"") -> 1344 | R88: =IFERROR(Q88/VLOOKUP(I88,Banco[#All],3,0),M88) -> 2
B89: 3 | C89: =IFERROR(VLOOKUP(I98,BANCO!A:J,10,0),"no") -> no | D89: 1 | E89: 0.08571428571 | F89: 35 | G89: 0 | H89: 3 | I89: 82428 | J89: =IFERROR(VLOOKUP(I89,BANCO!_xlnm.Print_Area,2,0),"") ->  | K89: 13/fev | L89: =IFERROR(EDATE(K89,VLOOKUP(I89,BANCO!A:I,9,0)),"") ->  | M89: 3 | P89: =IFERROR(IF(OR(I89="",AND(M89="",N89="")),"",(L89-$M$7)/VLOOKUP(I89,Banco[#All],8,0)),"") ->  | Q89: =IFERROR(M89*VLOOKUP(I89,Banco[#All],3,0)+(N89*VLOOKUP(I89,Banco[#All],4,0)),"") ->  | R89: =IFERROR(Q89/VLOOKUP(I89,Banco[#All],3,0),M89) -> 3
B90: =LEFT(#REF!,1) ->  | C90: =IFERROR(VLOOKUP(#REF!,BANCO!A:J,10,0),"no") -> no | D90: 1 | E90: 0.02857142857 | F90: 35 | G90: 0 | H90: 3 | I90: 82428 | J90: =IFERROR(VLOOKUP(I90,BANCO!_xlnm.Print_Area,2,0),"") ->  | K90: 14/fev | L90: =IFERROR(EDATE(K90,VLOOKUP(I90,BANCO!A:I,9,0)),"") ->  | M90: 1 | P90: =IFERROR(IF(OR(I90="",AND(M90="",N90="")),"",(L90-$M$7)/VLOOKUP(I90,Banco[#All],8,0)),"") ->  | Q90: =IFERROR(M90*VLOOKUP(I90,Banco[#All],3,0)+(N90*VLOOKUP(I90,Banco[#All],4,0)),"") ->  | R90: =IFERROR(Q90/VLOOKUP(I90,Banco[#All],3,0),M90) -> 1
B91: =LEFT(#REF!,1) ->  | C91: =IFERROR(VLOOKUP(I106,BANCO!A:J,10,0),"no") -> no | D91: 1 | E91: 0.08571428571 | F91: 35 | G91: 0 | H91: 3 | I91: 82428 | J91: =IFERROR(VLOOKUP(I91,BANCO!_xlnm.Print_Area,2,0),"") ->  | K91: 23/fev | L91: =IFERROR(EDATE(K91,VLOOKUP(I91,BANCO!A:I,9,0)),"") ->  | M91: 3 | P91: =IFERROR(IF(OR(I91="",AND(M91="",N91="")),"",(L91-$M$7)/VLOOKUP(I91,Banco[#All],8,0)),"") ->  | Q91: =IFERROR(M91*VLOOKUP(I91,Banco[#All],3,0)+(N91*VLOOKUP(I91,Banco[#All],4,0)),"") ->  | R91: =IFERROR(Q91/VLOOKUP(I91,Banco[#All],3,0),M91) -> 3
H92: 3 | I92: 82428 | J92: =IFERROR(VLOOKUP(I92,BANCO!_xlnm.Print_Area,2,0),"") ->  | K92: 26/fev | L92: =IFERROR(EDATE(K92,VLOOKUP(I92,BANCO!A:I,9,0)),"") ->  | M92: 1 | P92: =IFERROR(IF(OR(I92="",AND(M92="",N92="")),"",(L92-$M$7)/VLOOKUP(I92,Banco[#All],8,0)),"") ->  | Q92: =IFERROR(M92*VLOOKUP(I92,Banco[#All],3,0)+(N92*VLOOKUP(I92,Banco[#All],4,0)),"") ->  | R92: =IFERROR(Q92/VLOOKUP(I92,Banco[#All],3,0),M92) -> 1
H93: 3 | I93: 82428 | J93: =IFERROR(VLOOKUP(I93,BANCO!_xlnm.Print_Area,2,0),"") ->  | K93: 01/mar | L93: =IFERROR(EDATE(K93,VLOOKUP(I93,BANCO!A:I,9,0)),"") ->  | M93: 6 | P93: =IFERROR(IF(OR(I93="",AND(M93="",N93="")),"",(L93-$M$7)/VLOOKUP(I93,Banco[#All],8,0)),"") ->  | Q93: =IFERROR(M93*VLOOKUP(I93,Banco[#All],3,0)+(N93*VLOOKUP(I93,Banco[#All],4,0)),"") ->  | R93: =IFERROR(Q93/VLOOKUP(I93,Banco[#All],3,0),M93) -> 6
H94: 3 | I94: 82428 | J94: =IFERROR(VLOOKUP(I94,BANCO!_xlnm.Print_Area,2,0),"") ->  | K94: 06/mar | L94: =IFERROR(EDATE(K94,VLOOKUP(I94,BANCO!A:I,9,0)),"") ->  | M94: 7 | P94: =IFERROR(IF(OR(I94="",AND(M94="",N94="")),"",(L94-$M$7)/VLOOKUP(I94,Banco[#All],8,0)),"") ->  | Q94: =IFERROR(M94*VLOOKUP(I94,Banco[#All],3,0)+(N94*VLOOKUP(I94,Banco[#All],4,0)),"") ->  | R94: =IFERROR(Q94/VLOOKUP(I94,Banco[#All],3,0),M94) -> 7
H95: 3 | I95: 82428 | J95: =IFERROR(VLOOKUP(I95,BANCO!_xlnm.Print_Area,2,0),"") ->  | K95: 07/mar | L95: =IFERROR(EDATE(K95,VLOOKUP(I95,BANCO!A:I,9,0)),"") ->  | M95: 11 | P95: =IFERROR(IF(OR(I95="",AND(M95="",N95="")),"",(L95-$M$7)/VLOOKUP(I95,Banco[#All],8,0)),"") ->  | Q95: =IFERROR(M95*VLOOKUP(I95,Banco[#All],3,0)+(N95*VLOOKUP(I95,Banco[#All],4,0)),"") ->  | R95: =IFERROR(Q95/VLOOKUP(I95,Banco[#All],3,0),M95) -> 11
H96: 3 | I96: 82428 | J96: =IFERROR(VLOOKUP(I96,BANCO!_xlnm.Print_Area,2,0),"") ->  | K96: 09/mar | L96: =IFERROR(EDATE(K96,VLOOKUP(I96,BANCO!A:I,9,0)),"") ->  | M96: 6 | P96: =IFERROR(IF(OR(I96="",AND(M96="",N96="")),"",(L96-$M$7)/VLOOKUP(I96,Banco[#All],8,0)),"") ->  | Q96: =IFERROR(M96*VLOOKUP(I96,Banco[#All],3,0)+(N96*VLOOKUP(I96,Banco[#All],4,0)),"") ->  | R96: =IFERROR(Q96/VLOOKUP(I96,Banco[#All],3,0),M96) -> 6
H97: 3 | I97: 82428 | J97: =IFERROR(VLOOKUP(I97,BANCO!_xlnm.Print_Area,2,0),"") ->  | K97: 10/mar | L97: =IFERROR(EDATE(K97,VLOOKUP(I97,BANCO!A:I,9,0)),"") ->  | M97: 1 | P97: =IFERROR(IF(OR(I97="",AND(M97="",N97="")),"",(L97-$M$7)/VLOOKUP(I97,Banco[#All],8,0)),"") ->  | Q97: =IFERROR(M97*VLOOKUP(I97,Banco[#All],3,0)+(N97*VLOOKUP(I97,Banco[#All],4,0)),"") ->  | R97: =IFERROR(Q97/VLOOKUP(I97,Banco[#All],3,0),M97) -> 1
B98: =LEFT(H129,1) -> 3 | C98: =IFERROR(VLOOKUP(#REF!,BANCO!A:J,10,0),"no") -> no | D98: 0 | E98: 0.15 | F98: =IF(AND(W98="Drive em Manutenção",R98>0),8,40) -> 40 | G98: 6 | H98: 3 | I98: 82428 | J98: =IFERROR(VLOOKUP(I98,BANCO!_xlnm.Print_Area,2,0),"") ->  | K98: 15/mar | L98: =IFERROR(EDATE(K98,VLOOKUP(I98,BANCO!A:I,9,0)),"") ->  | M98: 6 | P98: =IFERROR(IF(OR(I98="",AND(M98="",N98="")),"",(L98-$M$7)/VLOOKUP(I98,Banco[#All],8,0)),"") ->  | Q98: =IFERROR(M98*VLOOKUP(I98,Banco[#All],3,0)+(N98*VLOOKUP(I98,Banco[#All],4,0)),"") ->  | R98: =IFERROR(Q98/VLOOKUP(I98,Banco[#All],3,0),M98) -> 6
H99: 3 | I99: 82428 | J99: =IFERROR(VLOOKUP(I99,BANCO!_xlnm.Print_Area,2,0),"") ->  | K99: 16/mar | L99: =IFERROR(EDATE(K99,VLOOKUP(I99,BANCO!A:I,9,0)),"") ->  | M99: 1 | P99: =IFERROR(IF(OR(I99="",AND(M99="",N99="")),"",(L99-$M$7)/VLOOKUP(I99,Banco[#All],8,0)),"") ->  | Q99: =IFERROR(M99*VLOOKUP(I99,Banco[#All],3,0)+(N99*VLOOKUP(I99,Banco[#All],4,0)),"") ->  | R99: =IFERROR(Q99/VLOOKUP(I99,Banco[#All],3,0),M99) -> 1
H100: 3 | I100: 82428 | J100: =IFERROR(VLOOKUP(I100,BANCO!_xlnm.Print_Area,2,0),"") ->  | K100: 18/mar | L100: =IFERROR(EDATE(K100,VLOOKUP(I100,BANCO!A:I,9,0)),"") ->  | M100: 8 | P100: =IFERROR(IF(OR(I100="",AND(M100="",N100="")),"",(L100-$M$7)/VLOOKUP(I100,Banco[#All],8,0)),"") ->  | Q100: =IFERROR(M100*VLOOKUP(I100,Banco[#All],3,0)+(N100*VLOOKUP(I100,Banco[#All],4,0)),"") ->  | R100: =IFERROR(Q100/VLOOKUP(I100,Banco[#All],3,0),M100) -> 8
H101: 3 | I101: 82428 | J101: =IFERROR(VLOOKUP(I101,BANCO!_xlnm.Print_Area,2,0),"") ->  | K101: 02/abr | L101: =IFERROR(EDATE(K101,VLOOKUP(I101,BANCO!A:I,9,0)),"") ->  | M101: 4 | P101: =IFERROR(IF(OR(I101="",AND(M101="",N101="")),"",(L101-$M$7)/VLOOKUP(I101,Banco[#All],8,0)),"") ->  | Q101: =IFERROR(M101*VLOOKUP(I101,Banco[#All],3,0)+(N101*VLOOKUP(I101,Banco[#All],4,0)),"") ->  | R101: =IFERROR(Q101/VLOOKUP(I101,Banco[#All],3,0),M101) -> 4
H102: 3 | I102: 82428 | J102: =IFERROR(VLOOKUP(I102,BANCO!_xlnm.Print_Area,2,0),"") ->  | K102: 03/abr | L102: =IFERROR(EDATE(K102,VLOOKUP(I102,BANCO!A:I,9,0)),"") ->  | M102: 1 | P102: =IFERROR(IF(OR(I102="",AND(M102="",N102="")),"",(L102-$M$7)/VLOOKUP(I102,Banco[#All],8,0)),"") ->  | Q102: =IFERROR(M102*VLOOKUP(I102,Banco[#All],3,0)+(N102*VLOOKUP(I102,Banco[#All],4,0)),"") ->  | R102: =IFERROR(Q102/VLOOKUP(I102,Banco[#All],3,0),M102) -> 1
H103: 3 | I103: 82428 | J103: =IFERROR(VLOOKUP(I103,BANCO!_xlnm.Print_Area,2,0),"") ->  | K103: 05/abr | L103: =IFERROR(EDATE(K103,VLOOKUP(I103,BANCO!A:I,9,0)),"") ->  | M103: 13 | P103: =IFERROR(IF(OR(I103="",AND(M103="",N103="")),"",(L103-$M$7)/VLOOKUP(I103,Banco[#All],8,0)),"") ->  | Q103: =IFERROR(M103*VLOOKUP(I103,Banco[#All],3,0)+(N103*VLOOKUP(I103,Banco[#All],4,0)),"") ->  | R103: =IFERROR(Q103/VLOOKUP(I103,Banco[#All],3,0),M103) -> 13
H104: 3 | I104: 82428 | J104: =IFERROR(VLOOKUP(I104,BANCO!_xlnm.Print_Area,2,0),"") ->  | K104: 06/abr | L104: =IFERROR(EDATE(K104,VLOOKUP(I104,BANCO!A:I,9,0)),"") ->  | M104: 4 | P104: =IFERROR(IF(OR(I104="",AND(M104="",N104="")),"",(L104-$M$7)/VLOOKUP(I104,Banco[#All],8,0)),"") ->  | Q104: =IFERROR(M104*VLOOKUP(I104,Banco[#All],3,0)+(N104*VLOOKUP(I104,Banco[#All],4,0)),"") ->  | R104: =IFERROR(Q104/VLOOKUP(I104,Banco[#All],3,0),M104) -> 4
B105: =LEFT(H105,1) -> 3 | C105: =IFERROR(VLOOKUP(I105,BANCO!A:J,10,0),"no") -> no | D105: =IF(G105<>0,0,1) -> 0 | E105: =IFERROR(ROUNDUP(R105,0)/F105,"NO") -> 0.2571428571 | F105: =IF(AND(W105="Drive em Manutenção",R105>0),7,35) -> 35 | G105: =IFERROR(IF(R105<=4,0,ROUNDUP(R105,0)),0) -> 9 | H105: 3 | I105: 82428 | J105: =IFERROR(VLOOKUP(I105,BANCO!_xlnm.Print_Area,2,0),"") ->  | K105: 08/abr | L105: =IFERROR(EDATE(K105,VLOOKUP(I105,BANCO!A:I,9,0)),"") ->  | M105: 9 | P105: =IFERROR(IF(OR(I105="",AND(M105="",N105="")),"",(L105-$M$7)/VLOOKUP(I105,Banco[#All],8,0)),"") ->  | Q105: =IFERROR(M105*VLOOKUP(I105,Banco[#All],3,0)+(N105*VLOOKUP(I105,Banco[#All],4,0)),"") ->  | R105: =IFERROR(Q105/VLOOKUP(I105,Banco[#All],3,0),M105) -> 9
B106: =LEFT(H133,1) -> 3 | C106: =IFERROR(VLOOKUP(#REF!,BANCO!A:J,10,0),"no") -> no | D106: 0 | E106: 0.8 | F106: 40 | G106: 32 | H106: 3 | I106: 82428 | J106: =IFERROR(VLOOKUP(I106,BANCO!_xlnm.Print_Area,2,0),"") ->  | K106: 10/abr | L106: =IFERROR(EDATE(K106,VLOOKUP(I106,BANCO!A:I,9,0)),"") ->  | M106: 32 | P106: =IFERROR(IF(OR(I106="",AND(M106="",N106="")),"",(L106-$M$7)/VLOOKUP(I106,Banco[#All],8,0)),"") ->  | Q106: =IFERROR(M106*VLOOKUP(I106,Banco[#All],3,0)+(N106*VLOOKUP(I106,Banco[#All],4,0)),"") ->  | R106: =IFERROR(Q106/VLOOKUP(I106,Banco[#All],3,0),M106) -> 32
B107: =LEFT(H134,1) -> 3 | C107: =IFERROR(VLOOKUP(#REF!,BANCO!A:J,10,0),"no") -> no | D107: 0 | E107: 0.15 | F107: 40 | G107: 6 | H107: 3 | I107: 82428 | J107: =IFERROR(VLOOKUP(I107,BANCO!_xlnm.Print_Area,2,0),"") ->  | K107: 11/abr | L107: =IFERROR(EDATE(K107,VLOOKUP(I107,BANCO!A:I,9,0)),"") ->  | M107: 6 | P107: =IFERROR(IF(OR(I107="",AND(M107="",N107="")),"",(L107-$M$7)/VLOOKUP(I107,Banco[#All],8,0)),"") ->  | Q107: =IFERROR(M107*VLOOKUP(I107,Banco[#All],3,0)+(N107*VLOOKUP(I107,Banco[#All],4,0)),"") ->  | R107: =IFERROR(Q107/VLOOKUP(I107,Banco[#All],3,0),M107) -> 6
B108: =LEFT(H135,1) -> 3 | C108: =IFERROR(VLOOKUP(#REF!,BANCO!A:J,10,0),"no") -> no | D108: 0 | E108: 0.275 | F108: 40 | G108: 11 | H108: 3 | I108: 82428 | J108: =IFERROR(VLOOKUP(I108,BANCO!_xlnm.Print_Area,2,0),"") ->  | K108: 12/abr | L108: =IFERROR(EDATE(K108,VLOOKUP(I108,BANCO!A:I,9,0)),"") ->  | M108: 11 | P108: =IFERROR(IF(OR(I108="",AND(M108="",N108="")),"",(L108-$M$7)/VLOOKUP(I108,Banco[#All],8,0)),"") ->  | Q108: =IFERROR(M108*VLOOKUP(I108,Banco[#All],3,0)+(N108*VLOOKUP(I108,Banco[#All],4,0)),"") ->  | R108: =IFERROR(Q108/VLOOKUP(I108,Banco[#All],3,0),M108) -> 11
B109: =LEFT(H133,1) -> 3 | C109: =IFERROR(VLOOKUP(I109,BANCO!A:J,10,0),"no") -> no | D109: 1 | E109: 0.025 | F109: 40 | G109: 0 | H109: 3 | I109: 82428 | J109: =IFERROR(VLOOKUP(I109,BANCO!_xlnm.Print_Area,2,0),"") ->  | K109: 15/abr | L109: =IFERROR(EDATE(K109,VLOOKUP(I109,BANCO!A:I,9,0)),"") ->  | M109: 1 | P109: =IFERROR(IF(OR(I109="",AND(M109="",N109="")),"",(L109-$M$7)/VLOOKUP(I109,Banco[#All],8,0)),"") ->  | Q109: =IFERROR(M109*VLOOKUP(I109,Banco[#All],3,0)+(N109*VLOOKUP(I109,Banco[#All],4,0)),"") ->  | R109: =IFERROR(Q109/VLOOKUP(I109,Banco[#All],3,0),M109) -> 1
B110: =LEFT(H134,1) -> 3 | C110: =IFERROR(VLOOKUP(I110,BANCO!A:J,10,0),"no") -> no | D110: =IF(G110<>0,0,1) -> 0 | E110: 0.4 | F110: 40 | G110: =IFERROR(IF(R110<=4,0,ROUNDUP(R110,0)),0) -> 16 | H110: 3 | I110: 82428 | J110: =IFERROR(VLOOKUP(I110,BANCO!_xlnm.Print_Area,2,0),"") ->  | K110: 16/abr | L110: =IFERROR(EDATE(K110,VLOOKUP(I110,BANCO!A:I,9,0)),"") ->  | M110: 16 | P110: =IFERROR(IF(OR(I110="",AND(M110="",N110="")),"",(L110-$M$7)/VLOOKUP(I110,Banco[#All],8,0)),"") ->  | Q110: =IFERROR(M110*VLOOKUP(I110,Banco[#All],3,0)+(N110*VLOOKUP(I110,Banco[#All],4,0)),"") ->  | R110: =IFERROR(Q110/VLOOKUP(I110,Banco[#All],3,0),M110) -> 16
B111: =LEFT(H135,1) -> 3 | C111: =IFERROR(VLOOKUP(I111,BANCO!A:J,10,0),"no") -> no | D111: =IF(G111<>0,0,1) -> 0 | E111: 1.425 | F111: 40 | G111: =IFERROR(IF(R111<=4,0,ROUNDUP(R111,0)),0) -> 57 | H111: 3 | I111: 82428 | J111: =IFERROR(VLOOKUP(I111,BANCO!_xlnm.Print_Area,2,0),"") ->  | K111: 17/abr | L111: =IFERROR(EDATE(K111,VLOOKUP(I111,BANCO!A:I,9,0)),"") ->  | M111: 57 | P111: =IFERROR(IF(OR(I111="",AND(M111="",N111="")),"",(L111-$M$7)/VLOOKUP(I111,Banco[#All],8,0)),"") ->  | Q111: =IFERROR(M111*VLOOKUP(I111,Banco[#All],3,0)+(N111*VLOOKUP(I111,Banco[#All],4,0)),"") ->  | R111: =IFERROR(Q111/VLOOKUP(I111,Banco[#All],3,0),M111) -> 57
H112: 3 | I112: 82428 | J112: =IFERROR(VLOOKUP(I112,BANCO!_xlnm.Print_Area,2,0),"") ->  | K112: 18/abr | L112: =IFERROR(EDATE(K112,VLOOKUP(I112,BANCO!A:I,9,0)),"") ->  | M112: 86 | P112: =IFERROR(IF(OR(I112="",AND(M112="",N112="")),"",(L112-$M$7)/VLOOKUP(I112,Banco[#All],8,0)),"") ->  | Q112: =IFERROR(M112*VLOOKUP(I112,Banco[#All],3,0)+(N112*VLOOKUP(I112,Banco[#All],4,0)),"") ->  | R112: =IFERROR(Q112/VLOOKUP(I112,Banco[#All],3,0),M112) -> 86
H113: 3 | I113: 82428 | J113: =IFERROR(VLOOKUP(I113,BANCO!_xlnm.Print_Area,2,0),"") ->  | K113: 19/abr | L113: =IFERROR(EDATE(K113,VLOOKUP(I113,BANCO!A:I,9,0)),"") ->  | M113: 13 | P113: =IFERROR(IF(OR(I113="",AND(M113="",N113="")),"",(L113-$M$7)/VLOOKUP(I113,Banco[#All],8,0)),"") ->  | Q113: =IFERROR(M113*VLOOKUP(I113,Banco[#All],3,0)+(N113*VLOOKUP(I113,Banco[#All],4,0)),"") ->  | R113: =IFERROR(Q113/VLOOKUP(I113,Banco[#All],3,0),M113) -> 13
H114: 3 | I114: 82428 | J114: =IFERROR(VLOOKUP(I114,BANCO!_xlnm.Print_Area,2,0),"") ->  | K114: 25/abr | L114: =IFERROR(EDATE(K114,VLOOKUP(I114,BANCO!A:I,9,0)),"") ->  | M114: 6 | P114: =IFERROR(IF(OR(I114="",AND(M114="",N114="")),"",(L114-$M$7)/VLOOKUP(I114,Banco[#All],8,0)),"") ->  | Q114: =IFERROR(M114*VLOOKUP(I114,Banco[#All],3,0)+(N114*VLOOKUP(I114,Banco[#All],4,0)),"") ->  | R114: =IFERROR(Q114/VLOOKUP(I114,Banco[#All],3,0),M114) -> 6
H115: 3 | I115: 82428 | J115: =IFERROR(VLOOKUP(I115,BANCO!_xlnm.Print_Area,2,0),"") ->  | K115: 26/abr | L115: =IFERROR(EDATE(K115,VLOOKUP(I115,BANCO!A:I,9,0)),"") ->  | M115: 19 | P115: =IFERROR(IF(OR(I115="",AND(M115="",N115="")),"",(L115-$M$7)/VLOOKUP(I115,Banco[#All],8,0)),"") ->  | Q115: =IFERROR(M115*VLOOKUP(I115,Banco[#All],3,0)+(N115*VLOOKUP(I115,Banco[#All],4,0)),"") ->  | R115: =IFERROR(Q115/VLOOKUP(I115,Banco[#All],3,0),M115) -> 19
H116: 3 | I116: 82428 | J116: =IFERROR(VLOOKUP(I116,BANCO!_xlnm.Print_Area,2,0),"") ->  | K116: 28/abr | L116: =IFERROR(EDATE(K116,VLOOKUP(I116,BANCO!A:I,9,0)),"") ->  | M116: 2 | P116: =IFERROR(IF(OR(I116="",AND(M116="",N116="")),"",(L116-$M$7)/VLOOKUP(I116,Banco[#All],8,0)),"") ->  | Q116: =IFERROR(M116*VLOOKUP(I116,Banco[#All],3,0)+(N116*VLOOKUP(I116,Banco[#All],4,0)),"") ->  | R116: =IFERROR(Q116/VLOOKUP(I116,Banco[#All],3,0),M116) -> 2
H117: 3 | I117: 82428 | J117: =IFERROR(VLOOKUP(I117,BANCO!_xlnm.Print_Area,2,0),"") ->  | K117: 30/abr | L117: =IFERROR(EDATE(K117,VLOOKUP(I117,BANCO!A:I,9,0)),"") ->  | M117: 3 | P117: =IFERROR(IF(OR(I117="",AND(M117="",N117="")),"",(L117-$M$7)/VLOOKUP(I117,Banco[#All],8,0)),"") ->  | Q117: =IFERROR(M117*VLOOKUP(I117,Banco[#All],3,0)+(N117*VLOOKUP(I117,Banco[#All],4,0)),"") ->  | R117: =IFERROR(Q117/VLOOKUP(I117,Banco[#All],3,0),M117) -> 3
H118: 3 | I118: 82428 | J118: =IFERROR(VLOOKUP(I118,BANCO!_xlnm.Print_Area,2,0),"") ->  | K118: 01/mai | L118: =IFERROR(EDATE(K118,VLOOKUP(I118,BANCO!A:I,9,0)),"") ->  | M118: 16 | P118: =IFERROR(IF(OR(I118="",AND(M118="",N118="")),"",(L118-$M$7)/VLOOKUP(I118,Banco[#All],8,0)),"") ->  | Q118: =IFERROR(M118*VLOOKUP(I118,Banco[#All],3,0)+(N118*VLOOKUP(I118,Banco[#All],4,0)),"") ->  | R118: =IFERROR(Q118/VLOOKUP(I118,Banco[#All],3,0),M118) -> 16
H119: 3 | I119: 82428 | J119: =IFERROR(VLOOKUP(I119,BANCO!_xlnm.Print_Area,2,0),"") ->  | K119: 02/mai | L119: =IFERROR(EDATE(K119,VLOOKUP(I119,BANCO!A:I,9,0)),"") ->  | M119: 16 | P119: =IFERROR(IF(OR(I119="",AND(M119="",N119="")),"",(L119-$M$7)/VLOOKUP(I119,Banco[#All],8,0)),"") ->  | Q119: =IFERROR(M119*VLOOKUP(I119,Banco[#All],3,0)+(N119*VLOOKUP(I119,Banco[#All],4,0)),"") ->  | R119: =IFERROR(Q119/VLOOKUP(I119,Banco[#All],3,0),M119) -> 16
H120: 3 | I120: 82428 | J120: =IFERROR(VLOOKUP(I120,BANCO!_xlnm.Print_Area,2,0),"") ->  | K120: 03/mai | L120: =IFERROR(EDATE(K120,VLOOKUP(I120,BANCO!A:I,9,0)),"") ->  | M120: 13 | P120: =IFERROR(IF(OR(I120="",AND(M120="",N120="")),"",(L120-$M$7)/VLOOKUP(I120,Banco[#All],8,0)),"") ->  | Q120: =IFERROR(M120*VLOOKUP(I120,Banco[#All],3,0)+(N120*VLOOKUP(I120,Banco[#All],4,0)),"") ->  | R120: =IFERROR(Q120/VLOOKUP(I120,Banco[#All],3,0),M120) -> 13
H121: 3 | I121: 82428 | J121: =IFERROR(VLOOKUP(I121,BANCO!_xlnm.Print_Area,2,0),"") ->  | K121: 04/mai | L121: =IFERROR(EDATE(K121,VLOOKUP(I121,BANCO!A:I,9,0)),"") ->  | M121: 3 | P121: =IFERROR(IF(OR(I121="",AND(M121="",N121="")),"",(L121-$M$7)/VLOOKUP(I121,Banco[#All],8,0)),"") ->  | Q121: =IFERROR(M121*VLOOKUP(I121,Banco[#All],3,0)+(N121*VLOOKUP(I121,Banco[#All],4,0)),"") ->  | R121: =IFERROR(Q121/VLOOKUP(I121,Banco[#All],3,0),M121) -> 3
H122: 3 | I122: 82428 | J122: =IFERROR(VLOOKUP(I122,BANCO!_xlnm.Print_Area,2,0),"") ->  | K122: 08/mai | L122: =IFERROR(EDATE(K122,VLOOKUP(I122,BANCO!A:I,9,0)),"") ->  | M122: 9 | P122: =IFERROR(IF(OR(I122="",AND(M122="",N122="")),"",(L122-$M$7)/VLOOKUP(I122,Banco[#All],8,0)),"") ->  | Q122: =IFERROR(M122*VLOOKUP(I122,Banco[#All],3,0)+(N122*VLOOKUP(I122,Banco[#All],4,0)),"") ->  | R122: =IFERROR(Q122/VLOOKUP(I122,Banco[#All],3,0),M122) -> 9
H123: 3 | I123: 82428 | J123: =IFERROR(VLOOKUP(I123,BANCO!_xlnm.Print_Area,2,0),"") ->  | K123: 09/mai | L123: =IFERROR(EDATE(K123,VLOOKUP(I123,BANCO!A:I,9,0)),"") ->  | M123: 57 | P123: =IFERROR(IF(OR(I123="",AND(M123="",N123="")),"",(L123-$M$7)/VLOOKUP(I123,Banco[#All],8,0)),"") ->  | Q123: =IFERROR(M123*VLOOKUP(I123,Banco[#All],3,0)+(N123*VLOOKUP(I123,Banco[#All],4,0)),"") ->  | R123: =IFERROR(Q123/VLOOKUP(I123,Banco[#All],3,0),M123) -> 57
H124: 3 | I124: 82428 | J124: =IFERROR(VLOOKUP(I124,BANCO!_xlnm.Print_Area,2,0),"") ->  | K124: 10/mai | L124: =IFERROR(EDATE(K124,VLOOKUP(I124,BANCO!A:I,9,0)),"") ->  | M124: 1 | P124: =IFERROR(IF(OR(I124="",AND(M124="",N124="")),"",(L124-$M$7)/VLOOKUP(I124,Banco[#All],8,0)),"") ->  | Q124: =IFERROR(M124*VLOOKUP(I124,Banco[#All],3,0)+(N124*VLOOKUP(I124,Banco[#All],4,0)),"") ->  | R124: =IFERROR(Q124/VLOOKUP(I124,Banco[#All],3,0),M124) -> 1
H125: 3 | I125: 82428 | J125: =IFERROR(VLOOKUP(I125,BANCO!_xlnm.Print_Area,2,0),"") ->  | K125: 11/mai | L125: =IFERROR(EDATE(K125,VLOOKUP(I125,BANCO!A:I,9,0)),"") ->  | M125: 22 | P125: =IFERROR(IF(OR(I125="",AND(M125="",N125="")),"",(L125-$M$7)/VLOOKUP(I125,Banco[#All],8,0)),"") ->  | Q125: =IFERROR(M125*VLOOKUP(I125,Banco[#All],3,0)+(N125*VLOOKUP(I125,Banco[#All],4,0)),"") ->  | R125: =IFERROR(Q125/VLOOKUP(I125,Banco[#All],3,0),M125) -> 22
B126: =LEFT(#REF!,1) ->  | C126: =IFERROR(VLOOKUP(I126,BANCO!A:J,10,0),"no") -> no | D126: 1 | E126: =IFERROR(ROUNDUP(R126,0)/F126,"NO") -> 0.025 | F126: =IF(AND(W126="Drive em Manutenção",R126>0),8,40) -> 40 | G126: 0 | H126: 3 | I126: 82428 | J126: =IFERROR(VLOOKUP(I126,BANCO!_xlnm.Print_Area,2,0),"") ->  | K126: 12/mai | L126: =IFERROR(EDATE(K126,VLOOKUP(I126,BANCO!A:I,9,0)),"") ->  | M126: 1 | P126: =IFERROR(IF(OR(I126="",AND(M126="",N126="")),"",(L126-$M$7)/VLOOKUP(I126,Banco[#All],8,0)),"") ->  | Q126: =IFERROR(M126*VLOOKUP(I126,Banco[#All],3,0)+(N126*VLOOKUP(I126,Banco[#All],4,0)),"") ->  | R126: =IFERROR(Q126/VLOOKUP(I126,Banco[#All],3,0),M126) -> 1
H127: 3 | I127: 82428 | J127: =IFERROR(VLOOKUP(I127,BANCO!_xlnm.Print_Area,2,0),"") ->  | K127: 13/mai | L127: =IFERROR(EDATE(K127,VLOOKUP(I127,BANCO!A:I,9,0)),"") ->  | M127: 1 | P127: =IFERROR(IF(OR(I127="",AND(M127="",N127="")),"",(L127-$M$7)/VLOOKUP(I127,Banco[#All],8,0)),"") ->  | Q127: =IFERROR(M127*VLOOKUP(I127,Banco[#All],3,0)+(N127*VLOOKUP(I127,Banco[#All],4,0)),"") ->  | R127: =IFERROR(Q127/VLOOKUP(I127,Banco[#All],3,0),M127) -> 1
B128: =LEFT(H128,1) -> 3 | C128: =IFERROR(VLOOKUP(I128,BANCO!A:J,10,0),"no") -> no | D128: =IF(G128<>0,0,1) -> 0 | E128: =IFERROR(ROUNDUP(R128,0)/F128,"NO") -> 0.2 | F128: =IF(AND(W128="Drive em Manutenção",R128>0),7,35) -> 35 | G128: =IFERROR(IF(R128<=4,0,ROUNDUP(R128,0)),0) -> 7 | H128: 3 | I128: 82428 | J128: =IFERROR(VLOOKUP(I128,BANCO!_xlnm.Print_Area,2,0),"") ->  | K128: 14/mai | L128: =IFERROR(EDATE(K128,VLOOKUP(I128,BANCO!A:I,9,0)),"") ->  | M128: 7 | P128: =IFERROR(IF(OR(I128="",AND(M128="",N128="")),"",(L128-$M$7)/VLOOKUP(I128,Banco[#All],8,0)),"") ->  | Q128: =IFERROR(M128*VLOOKUP(I128,Banco[#All],3,0)+(N128*VLOOKUP(I128,Banco[#All],4,0)),"") ->  | R128: =IFERROR(Q128/VLOOKUP(I128,Banco[#All],3,0),M128) -> 7
B129: =LEFT(#REF!,1) ->  | C129: =IFERROR(VLOOKUP(I129,BANCO!A:J,10,0),"no") -> no | D129: 0 | E129: =IFERROR(ROUNDUP(R129,0)/F129,"NO") -> 0.6 | F129: =IF(AND(W129="Drive em Manutenção",R129>0),8,40) -> 40 | G129: 24 | H129: 3 | I129: 82428 | J129: =IFERROR(VLOOKUP(I129,BANCO!_xlnm.Print_Area,2,0),"") ->  | K129: 15/mai | L129: =IFERROR(EDATE(K129,VLOOKUP(I129,BANCO!A:I,9,0)),"") ->  | M129: 24 | P129: =IFERROR(IF(OR(I129="",AND(M129="",N129="")),"",(L129-$M$7)/VLOOKUP(I129,Banco[#All],8,0)),"") ->  | Q129: =IFERROR(M129*VLOOKUP(I129,Banco[#All],3,0)+(N129*VLOOKUP(I129,Banco[#All],4,0)),"") ->  | R129: =IFERROR(Q129/VLOOKUP(I129,Banco[#All],3,0),M129) -> 24
H130: 3 | I130: 82428 | J130: =IFERROR(VLOOKUP(I130,BANCO!_xlnm.Print_Area,2,0),"") ->  | K130: 16/mai | L130: =IFERROR(EDATE(K130,VLOOKUP(I130,BANCO!A:I,9,0)),"") ->  | M130: 43 | P130: =IFERROR(IF(OR(I130="",AND(M130="",N130="")),"",(L130-$M$7)/VLOOKUP(I130,Banco[#All],8,0)),"") ->  | Q130: =IFERROR(M130*VLOOKUP(I130,Banco[#All],3,0)+(N130*VLOOKUP(I130,Banco[#All],4,0)),"") ->  | R130: =IFERROR(Q130/VLOOKUP(I130,Banco[#All],3,0),M130) -> 43
B131: =LEFT(#REF!,1) ->  | C131: =IFERROR(VLOOKUP(#REF!,BANCO!A:J,10,0),"no") -> no | D131: 0 | E131: 0.825 | F131: 40 | G131: 33 | H131: 3 | I131: 82428 | J131: =IFERROR(VLOOKUP(I131,BANCO!_xlnm.Print_Area,2,0),"") ->  | K131: 17/mai | L131: =IFERROR(EDATE(K131,VLOOKUP(I131,BANCO!A:I,9,0)),"") ->  | M131: 33 | P131: =IFERROR(IF(OR(I131="",AND(M131="",N131="")),"",(L131-$M$7)/VLOOKUP(I131,Banco[#All],8,0)),"") ->  | Q131: =IFERROR(M131*VLOOKUP(I131,Banco[#All],3,0)+(N131*VLOOKUP(I131,Banco[#All],4,0)),"") ->  | R131: =IFERROR(Q131/VLOOKUP(I131,Banco[#All],3,0),M131) -> 33
B132: =LEFT(#REF!,1) ->  | C132: =IFERROR(VLOOKUP(I131,BANCO!A:J,10,0),"no") -> no | D132: 0 | E132: 0.35 | F132: 40 | G132: 14 | H132: 3 | I132: 82428 | J132: =IFERROR(VLOOKUP(I132,BANCO!_xlnm.Print_Area,2,0),"") ->  | K132: 18/mai | L132: =IFERROR(EDATE(K132,VLOOKUP(I132,BANCO!A:I,9,0)),"") ->  | M132: 14 | P132: =IFERROR(IF(OR(I132="",AND(M132="",N132="")),"",(L132-$M$7)/VLOOKUP(I132,Banco[#All],8,0)),"") ->  | Q132: =IFERROR(M132*VLOOKUP(I132,Banco[#All],3,0)+(N132*VLOOKUP(I132,Banco[#All],4,0)),"") ->  | R132: =IFERROR(Q132/VLOOKUP(I132,Banco[#All],3,0),M132) -> 14
B133: =LEFT(#REF!,1) ->  | C133: =IFERROR(VLOOKUP(I133,BANCO!A:J,10,0),"no") -> no | D133: 0 | E133: 0.175 | F133: 40 | G133: 7 | H133: 3 | I133: 82428 | J133: =IFERROR(VLOOKUP(I133,BANCO!_xlnm.Print_Area,2,0),"") ->  | K133: 20/mai | L133: =IFERROR(EDATE(K133,VLOOKUP(I133,BANCO!A:I,9,0)),"") ->  | M133: 7 | P133: =IFERROR(IF(OR(I133="",AND(M133="",N133="")),"",(L133-$M$7)/VLOOKUP(I133,Banco[#All],8,0)),"") ->  | Q133: =IFERROR(M133*VLOOKUP(I133,Banco[#All],3,0)+(N133*VLOOKUP(I133,Banco[#All],4,0)),"") ->  | R133: =IFERROR(Q133/VLOOKUP(I133,Banco[#All],3,0),M133) -> 7
B134: =LEFT(H147,1) -> 3 | C134: =IFERROR(VLOOKUP(I134,BANCO!A:J,10,0),"no") -> no | D134: 0 | E134: 0.375 | F134: 40 | G134: 15 | H134: 3 | I134: 82428 | J134: =IFERROR(VLOOKUP(I134,BANCO!_xlnm.Print_Area,2,0),"") ->  | K134: 21/mai | L134: =IFERROR(EDATE(K134,VLOOKUP(I134,BANCO!A:I,9,0)),"") ->  | M134: 15 | P134: =IFERROR(IF(OR(I134="",AND(M134="",N134="")),"",(L134-$M$7)/VLOOKUP(I134,Banco[#All],8,0)),"") ->  | Q134: =IFERROR(M134*VLOOKUP(I134,Banco[#All],3,0)+(N134*VLOOKUP(I134,Banco[#All],4,0)),"") ->  | R134: =IFERROR(Q134/VLOOKUP(I134,Banco[#All],3,0),M134) -> 15
B135: =LEFT(H148,1) -> 3 | C135: =IFERROR(VLOOKUP(I135,BANCO!A:J,10,0),"no") -> no | D135: 1 | E135: 0.075 | F135: 40 | G135: 0 | H135: 3 | I135: 82428 | J135: =IFERROR(VLOOKUP(I135,BANCO!_xlnm.Print_Area,2,0),"") ->  | K135: 22/mai | L135: =IFERROR(EDATE(K135,VLOOKUP(I135,BANCO!A:I,9,0)),"") ->  | M135: 3 | P135: =IFERROR(IF(OR(I135="",AND(M135="",N135="")),"",(L135-$M$7)/VLOOKUP(I135,Banco[#All],8,0)),"") ->  | Q135: =IFERROR(M135*VLOOKUP(I135,Banco[#All],3,0)+(N135*VLOOKUP(I135,Banco[#All],4,0)),"") ->  | R135: =IFERROR(Q135/VLOOKUP(I135,Banco[#All],3,0),M135) -> 3
B136: =LEFT(H149,1) -> 3 | C136: =IFERROR(VLOOKUP(I136,BANCO!A:J,10,0),"no") -> no | D136: 1 | E136: 0.025 | F136: 40 | G136: 0 | H136: 3 | I136: 82428 | J136: =IFERROR(VLOOKUP(I136,BANCO!_xlnm.Print_Area,2,0),"") ->  | K136: 12/nov | L136: =IFERROR(EDATE(K136,VLOOKUP(I136,BANCO!A:I,9,0)),"") ->  | M136: 1 | P136: =IFERROR(IF(OR(I136="",AND(M136="",N136="")),"",(L136-$M$7)/VLOOKUP(I136,Banco[#All],8,0)),"") ->  | Q136: =IFERROR(M136*VLOOKUP(I136,Banco[#All],3,0)+(N136*VLOOKUP(I136,Banco[#All],4,0)),"") ->  | R136: =IFERROR(Q136/VLOOKUP(I136,Banco[#All],3,0),M136) -> 1
B137: =LEFT(#REF!,1) ->  | C137: =IFERROR(VLOOKUP(I137,BANCO!A:J,10,0),"no") -> no | D137: 0 | E137: 1.375 | F137: =IF(AND(W137="Drive em manutenção",R137>0),8,32) -> 32 | G137: 44 | H137: 3 | I137: 82428 | J137: =IFERROR(VLOOKUP(I137,BANCO!_xlnm.Print_Area,2,0),"") ->  | K137: 22/nov | L137: =IFERROR(EDATE(K137,VLOOKUP(I137,BANCO!A:I,9,0)),"") ->  | M137: 44 | P137: =IFERROR(IF(OR(I137="",AND(M137="",N137="")),"",(L137-$M$7)/VLOOKUP(I137,Banco[#All],8,0)),"") ->  | Q137: =IFERROR(M137*VLOOKUP(I137,Banco[#All],3,0)+(N137*VLOOKUP(I137,Banco[#All],4,0)),"") ->  | R137: =IFERROR(Q137/VLOOKUP(I137,Banco[#All],3,0),M137) -> 44
B138: =LEFT(H150,1) -> 3 | C138: =IFERROR(VLOOKUP(I138,BANCO!A:J,10,0),"no") -> no | D138: 1 | E138: 0.03125 | F138: =IF(AND(W138="Drive em manutenção",R138>0),8,32) -> 32 | G138: 0 | H138: 3 | I138: 82435 | J138: =IFERROR(VLOOKUP(I138,BANCO!_xlnm.Print_Area,2,0),"") ->  | K138: 29/abr | L138: =IFERROR(EDATE(K138,VLOOKUP(I138,BANCO!A:I,9,0)),"") ->  | M138: 0.9404761905 | P138: =IFERROR(IF(OR(I138="",AND(M138="",N138="")),"",(L138-$M$7)/VLOOKUP(I138,Banco[#All],8,0)),"") ->  | Q138: =IFERROR(M138*VLOOKUP(I138,Banco[#All],3,0)+(N138*VLOOKUP(I138,Banco[#All],4,0)),"") ->  | R138: =IFERROR(Q138/VLOOKUP(I138,Banco[#All],3,0),M138) -> 0.9404761905
A139: RUA D | B139: =LEFT(H151,2) -> 3 | C139: Classificação | D139: Vazio | E139: Ocupação | F139: Cap. | G139: Plts Ocupados | H139: 3 | I139: 82435 | J139: =IFERROR(VLOOKUP(I139,BANCO!_xlnm.Print_Area,2,0),"") ->  | K139: 08/jun | L139: =IFERROR(EDATE(K139,VLOOKUP(I139,BANCO!A:I,9,0)),"") ->  | M139: 0.05952380952 | P139: =IFERROR(IF(OR(I139="",AND(M139="",N139="")),"",(L139-$M$7)/VLOOKUP(I139,Banco[#All],8,0)),"") ->  | Q139: =IFERROR(M139*VLOOKUP(I139,Banco[#All],3,0)+(N139*VLOOKUP(I139,Banco[#All],4,0)),"") ->  | R139: =IFERROR(Q139/VLOOKUP(I139,Banco[#All],3,0),M139) -> 0.05952380952
B140: =LEFT(H152,1) -> 3 | C140: =IFERROR(VLOOKUP(I140,BANCO!A:J,10,0),"no") -> no | D140: =IF(G140<>0,0,1) -> 1 | E140: =IFERROR(ROUNDUP(R140,0)/F140,"NO") -> 0.03571428571 | F140: =IF(AND(W140="Drive em Manutenção",R140>0),7,28) -> 28 | G140: =IFERROR(IF(R140<=4,0,ROUNDUP(R140,0)),0) -> 0 | H140: 3 | I140: 82435 | J140: =IFERROR(VLOOKUP(I140,BANCO!_xlnm.Print_Area,2,0),"") ->  | K140: 28/out | L140: =IFERROR(EDATE(K140,VLOOKUP(I140,BANCO!A:I,9,0)),"") ->  | M140: 1 | P140: =IFERROR(IF(OR(I140="",AND(M140="",N140="")),"",(L140-$M$7)/VLOOKUP(I140,Banco[#All],8,0)),"") ->  | Q140: =IFERROR(M140*VLOOKUP(I140,Banco[#All],3,0)+(N140*VLOOKUP(I140,Banco[#All],4,0)),"") ->  | R140: =IFERROR(Q140/VLOOKUP(I140,Banco[#All],3,0),M140) -> 1
B141: =LEFT(H154,1) -> 3 | C141: =IFERROR(VLOOKUP(I141,BANCO!A:J,10,0),"no") -> no | D141: 0 | E141: 0.3571428571 | F141: 28 | G141: 10 | H141: 3 | I141: 122040 | J141: =IFERROR(VLOOKUP(I141,BANCO!_xlnm.Print_Area,2,0),"") ->  | K141: 31/out | L141: =IFERROR(EDATE(K141,VLOOKUP(I141,BANCO!A:I,9,0)),"") ->  | M141: 10 | P141: =IFERROR(IF(OR(I141="",AND(M141="",N141="")),"",(L141-$M$7)/VLOOKUP(I141,Banco[#All],8,0)),"") ->  | Q141: =IFERROR(M141*VLOOKUP(I141,Banco[#All],3,0)+(N141*VLOOKUP(I141,Banco[#All],4,0)),"") ->  | R141: =IFERROR(Q141/VLOOKUP(I141,Banco[#All],3,0),M141) -> 10
B142: =LEFT(H142,1) -> 3 | C142: =IFERROR(VLOOKUP(I142,BANCO!A:J,10,0),"no") -> no | D142: =IF(G142<>0,0,1) -> 1 | E142: =IFERROR(ROUNDUP(R142,0)/F142,"NO") -> 0.08571428571 | F142: =IF(AND(W142="Drive em Manutenção",R142>0),7,35) -> 35 | G142: =IFERROR(IF(R142<=4,0,ROUNDUP(R142,0)),0) -> 0 | H142: 3 | I142: 122040 | J142: =IFERROR(VLOOKUP(I142,BANCO!_xlnm.Print_Area,2,0),"") ->  | K142: 01/nov | L142: =IFERROR(EDATE(K142,VLOOKUP(I142,BANCO!A:I,9,0)),"") ->  | M142: 3 | P142: =IFERROR(IF(OR(I142="",AND(M142="",N142="")),"",(L142-$M$7)/VLOOKUP(I142,Banco[#All],8,0)),"") ->  | Q142: =IFERROR(M142*VLOOKUP(I142,Banco[#All],3,0)+(N142*VLOOKUP(I142,Banco[#All],4,0)),"") ->  | R142: =IFERROR(Q142/VLOOKUP(I142,Banco[#All],3,0),M142) -> 3
H143: 3 | J143: =IFERROR(VLOOKUP(I143,BANCO!_xlnm.Print_Area,2,0),"") ->  | L143: =IFERROR(EDATE(K143,VLOOKUP(I143,BANCO!A:I,9,0)),"") ->  | P143: =IFERROR(IF(OR(I143="",AND(M143="",N143="")),"",(L143-$M$7)/VLOOKUP(I143,Banco[#All],8,0)),"") ->  | Q143: =IFERROR(M143*VLOOKUP(I143,Banco[#All],3,0)+(N143*VLOOKUP(I143,Banco[#All],4,0)),"") ->  | R143: =IFERROR(Q143/VLOOKUP(I143,Banco[#All],3,0),M143) -> 0
B144: =LEFT(H158,1) -> 3 | C144: =IFERROR(VLOOKUP(I144,BANCO!A:J,10,0),"no") -> no | D144: 1 | E144: 0 | F144: 28 | G144: 0 | H144: 3 | J144: =IFERROR(VLOOKUP(I144,BANCO!_xlnm.Print_Area,2,0),"") ->  | L144: =IFERROR(EDATE(K144,VLOOKUP(I144,BANCO!A:I,9,0)),"") ->  | P144: =IFERROR(IF(OR(I144="",AND(M144="",N144="")),"",(L144-$M$7)/VLOOKUP(I144,Banco[#All],8,0)),"") ->  | Q144: =IFERROR(M144*VLOOKUP(I144,Banco[#All],3,0)+(N144*VLOOKUP(I144,Banco[#All],4,0)),"") ->  | R144: =IFERROR(Q144/VLOOKUP(I144,Banco[#All],3,0),M144) -> 0
B145: =LEFT(#REF!,1) ->  | C145: =IFERROR(VLOOKUP(I145,BANCO!A:J,10,0),"no") -> no | D145: 1 | E145: 0 | F145: 28 | G145: 0 | H145: 3 | J145: =IFERROR(VLOOKUP(I145,BANCO!_xlnm.Print_Area,2,0),"") ->  | L145: =IFERROR(EDATE(K145,VLOOKUP(I145,BANCO!A:I,9,0)),"") ->  | P145: =IFERROR(IF(OR(I145="",AND(M145="",N145="")),"",(L145-$M$7)/VLOOKUP(I145,Banco[#All],8,0)),"") ->  | Q145: =IFERROR(M145*VLOOKUP(I145,Banco[#All],3,0)+(N145*VLOOKUP(I145,Banco[#All],4,0)),"") ->  | R145: =IFERROR(Q145/VLOOKUP(I145,Banco[#All],3,0),M145) -> 0
B146: =LEFT(#REF!,1) ->  | C146: =IFERROR(VLOOKUP(I146,BANCO!A:J,10,0),"no") -> no | D146: 1 | E146: 0 | F146: 28 | G146: 0 | H146: 3 | J146: =IFERROR(VLOOKUP(I146,BANCO!_xlnm.Print_Area,2,0),"") ->  | L146: =IFERROR(EDATE(K146,VLOOKUP(I146,BANCO!A:I,9,0)),"") ->  | P146: =IFERROR(IF(OR(I146="",AND(M146="",N146="")),"",(L146-$M$7)/VLOOKUP(I146,Banco[#All],8,0)),"") ->  | Q146: =IFERROR(M146*VLOOKUP(I146,Banco[#All],3,0)+(N146*VLOOKUP(I146,Banco[#All],4,0)),"") ->  | R146: =IFERROR(Q146/VLOOKUP(I146,Banco[#All],3,0),M146) -> 0
B147: =LEFT(#REF!,1) ->  | C147: =IFERROR(VLOOKUP(I147,BANCO!A:J,10,0),"no") -> no | D147: 1 | E147: 0 | F147: 28 | G147: 0 | H147: 3 | J147: =IFERROR(VLOOKUP(I147,BANCO!_xlnm.Print_Area,2,0),"") ->  | L147: =IFERROR(EDATE(K147,VLOOKUP(I147,BANCO!A:I,9,0)),"") ->  | P147: =IFERROR(IF(OR(I147="",AND(M147="",N147="")),"",(L147-$M$7)/VLOOKUP(I147,Banco[#All],8,0)),"") ->  | Q147: =IFERROR(M147*VLOOKUP(I147,Banco[#All],3,0)+(N147*VLOOKUP(I147,Banco[#All],4,0)),"") ->  | R147: =IFERROR(Q147/VLOOKUP(I147,Banco[#All],3,0),M147) -> 0
B148: =LEFT(#REF!,1) ->  | C148: =IFERROR(VLOOKUP(I148,BANCO!A:J,10,0),"no") -> no | D148: 1 | E148: 0 | F148: 28 | G148: 0 | H148: 3 | J148: =IFERROR(VLOOKUP(I148,BANCO!_xlnm.Print_Area,2,0),"") ->  | L148: =IFERROR(EDATE(K148,VLOOKUP(I148,BANCO!A:I,9,0)),"") ->  | P148: =IFERROR(IF(OR(I148="",AND(M148="",N148="")),"",(L148-$M$7)/VLOOKUP(I148,Banco[#All],8,0)),"") ->  | Q148: =IFERROR(M148*VLOOKUP(I148,Banco[#All],3,0)+(N148*VLOOKUP(I148,Banco[#All],4,0)),"") ->  | R148: =IFERROR(Q148/VLOOKUP(I148,Banco[#All],3,0),M148) -> 0
B149: =LEFT(#REF!,1) ->  | C149: =IFERROR(VLOOKUP(I149,BANCO!A:J,10,0),"no") -> no | D149: 1 | E149: 0 | F149: 28 | G149: 0 | H149: 3 | J149: =IFERROR(VLOOKUP(I149,BANCO!_xlnm.Print_Area,2,0),"") ->  | L149: =IFERROR(EDATE(K149,VLOOKUP(I149,BANCO!A:I,9,0)),"") ->  | P149: =IFERROR(IF(OR(I149="",AND(M149="",N149="")),"",(L149-$M$7)/VLOOKUP(I149,Banco[#All],8,0)),"") ->  | Q149: =IFERROR(M149*VLOOKUP(I149,Banco[#All],3,0)+(N149*VLOOKUP(I149,Banco[#All],4,0)),"") ->  | R149: =IFERROR(Q149/VLOOKUP(I149,Banco[#All],3,0),M149) -> 0
B150: =LEFT(#REF!,1) ->  | C150: =IFERROR(VLOOKUP(I150,BANCO!A:J,10,0),"no") -> no | D150: 1 | E150: 0 | F150: 28 | G150: 0 | H150: 3 | J150: =IFERROR(VLOOKUP(I150,BANCO!_xlnm.Print_Area,2,0),"") ->  | L150: =IFERROR(EDATE(K150,VLOOKUP(I150,BANCO!A:I,9,0)),"") ->  | P150: =IFERROR(IF(OR(I150="",AND(M150="",N150="")),"",(L150-$M$7)/VLOOKUP(I150,Banco[#All],8,0)),"") ->  | Q150: =IFERROR(M150*VLOOKUP(I150,Banco[#All],3,0)+(N150*VLOOKUP(I150,Banco[#All],4,0)),"") ->  | R150: =IFERROR(Q150/VLOOKUP(I150,Banco[#All],3,0),M150) -> 0
B151: =LEFT(#REF!,1) ->  | C151: =IFERROR(VLOOKUP(I151,BANCO!A:J,10,0),"no") -> no | D151: 1 | E151: 0 | F151: 28 | G151: 0 | H151: 3 | J151: =IFERROR(VLOOKUP(I151,BANCO!_xlnm.Print_Area,2,0),"") ->  | L151: =IFERROR(EDATE(K151,VLOOKUP(I151,BANCO!A:I,9,0)),"") ->  | P151: =IFERROR(IF(OR(I151="",AND(M151="",N151="")),"",(L151-$M$7)/VLOOKUP(I151,Banco[#All],8,0)),"") ->  | Q151: =IFERROR(M151*VLOOKUP(I151,Banco[#All],3,0)+(N151*VLOOKUP(I151,Banco[#All],4,0)),"") ->  | R151: =IFERROR(Q151/VLOOKUP(I151,Banco[#All],3,0),M151) -> 0
B152: =LEFT(#REF!,1) ->  | C152: =IFERROR(VLOOKUP(I152,BANCO!A:J,10,0),"no") -> no | D152: 1 | E152: 0 | F152: 28 | G152: 0 | H152: 3 | J152: =IFERROR(VLOOKUP(I152,BANCO!_xlnm.Print_Area,2,0),"") ->  | L152: =IFERROR(EDATE(K152,VLOOKUP(I152,BANCO!A:I,9,0)),"") ->  | P152: =IFERROR(IF(OR(I152="",AND(M152="",N152="")),"",(L152-$M$7)/VLOOKUP(I152,Banco[#All],8,0)),"") ->  | Q152: =IFERROR(M152*VLOOKUP(I152,Banco[#All],3,0)+(N152*VLOOKUP(I152,Banco[#All],4,0)),"") ->  | R152: =IFERROR(Q152/VLOOKUP(I152,Banco[#All],3,0),M152) -> 0
B153: =LEFT(#REF!,1) ->  | C153: =IFERROR(VLOOKUP(I153,BANCO!A:J,10,0),"no") -> no | D153: 1 | E153: 0 | F153: =IF(AND(W153="Drive em Manutenção",R153>0),7,28) -> 28 | G153: 0 | H153: 3 | J153: =IFERROR(VLOOKUP(I153,BANCO!_xlnm.Print_Area,2,0),"") ->  | L153: =IFERROR(EDATE(K153,VLOOKUP(I153,BANCO!A:I,9,0)),"") ->  | P153: =IFERROR(IF(OR(I153="",AND(M153="",N153="")),"",(L153-$M$7)/VLOOKUP(I153,Banco[#All],8,0)),"") ->  | Q153: =IFERROR(M153*VLOOKUP(I153,Banco[#All],3,0)+(N153*VLOOKUP(I153,Banco[#All],4,0)),"") ->  | R153: =IFERROR(Q153/VLOOKUP(I153,Banco[#All],3,0),M153) -> 0
B154: =LEFT(#REF!,1) ->  | C154: =IFERROR(VLOOKUP(I154,BANCO!A:J,10,0),"no") -> no | D154: 1 | E154: 0 | F154: 28 | G154: 0 | H154: 3 | J154: =IFERROR(VLOOKUP(I154,BANCO!_xlnm.Print_Area,2,0),"") ->  | L154: =IFERROR(EDATE(K154,VLOOKUP(I154,BANCO!A:I,9,0)),"") ->  | P154: =IFERROR(IF(OR(I154="",AND(M154="",N154="")),"",(L154-$M$7)/VLOOKUP(I154,Banco[#All],8,0)),"") ->  | Q154: =IFERROR(M154*VLOOKUP(I154,Banco[#All],3,0)+(N154*VLOOKUP(I154,Banco[#All],4,0)),"") ->  | R154: =IFERROR(Q154/VLOOKUP(I154,Banco[#All],3,0),M154) -> 0
B155: =LEFT(#REF!,1) ->  | C155: =IFERROR(VLOOKUP(I155,BANCO!A:J,10,0),"no") -> no | D155: 1 | E155: 0 | F155: =IF(AND(W155="Drive em Manutenção",R155>0),7,28) -> 28 | G155: 0 | H155: 3 | J155: =IFERROR(VLOOKUP(I155,BANCO!_xlnm.Print_Area,2,0),"") ->  | L155: =IFERROR(EDATE(K155,VLOOKUP(I155,BANCO!A:I,9,0)),"") ->  | P155: =IFERROR(IF(OR(I155="",AND(M155="",N155="")),"",(L155-$M$7)/VLOOKUP(I155,Banco[#All],8,0)),"") ->  | Q155: =IFERROR(M155*VLOOKUP(I155,Banco[#All],3,0)+(N155*VLOOKUP(I155,Banco[#All],4,0)),"") ->  | R155: =IFERROR(Q155/VLOOKUP(I155,Banco[#All],3,0),M155) -> 0
B156: =LEFT(#REF!,1) ->  | C156: =IFERROR(VLOOKUP(I156,BANCO!A:J,10,0),"no") -> no | D156: 1 | E156: 0 | F156: 28 | G156: 0 | H156: 3 | J156: =IFERROR(VLOOKUP(I156,BANCO!_xlnm.Print_Area,2,0),"") ->  | L156: =IFERROR(EDATE(K156,VLOOKUP(I156,BANCO!A:I,9,0)),"") ->  | P156: =IFERROR(IF(OR(I156="",AND(M156="",N156="")),"",(L156-$M$7)/VLOOKUP(I156,Banco[#All],8,0)),"") ->  | Q156: =IFERROR(M156*VLOOKUP(I156,Banco[#All],3,0)+(N156*VLOOKUP(I156,Banco[#All],4,0)),"") ->  | R156: =IFERROR(Q156/VLOOKUP(I156,Banco[#All],3,0),M156) -> 0
B157: =LEFT(#REF!,1) ->  | C157: =IFERROR(VLOOKUP(I157,BANCO!A:J,10,0),"no") -> no | D157: 1 | E157: 0 | F157: =IF(AND(W157="Drive em Manutenção",R157>0),7,28) -> 28 | G157: 0 | H157: 3 | J157: =IFERROR(VLOOKUP(I157,BANCO!_xlnm.Print_Area,2,0),"") ->  | L157: =IFERROR(EDATE(K157,VLOOKUP(I157,BANCO!A:I,9,0)),"") ->  | P157: =IFERROR(IF(OR(I157="",AND(M157="",N157="")),"",(L157-$M$7)/VLOOKUP(I157,Banco[#All],8,0)),"") ->  | Q157: =IFERROR(M157*VLOOKUP(I157,Banco[#All],3,0)+(N157*VLOOKUP(I157,Banco[#All],4,0)),"") ->  | R157: =IFERROR(Q157/VLOOKUP(I157,Banco[#All],3,0),M157) -> 0
B158: =LEFT(#REF!,1) ->  | C158: =IFERROR(VLOOKUP(I158,BANCO!A:J,10,0),"no") -> no | D158: 1 | E158: 0 | F158: 28 | G158: 0 | H158: 3 | J158: =IFERROR(VLOOKUP(I158,BANCO!_xlnm.Print_Area,2,0),"") ->  | L158: =IFERROR(EDATE(K158,VLOOKUP(I158,BANCO!A:I,9,0)),"") ->  | P158: =IFERROR(IF(OR(I158="",AND(M158="",N158="")),"",(L158-$M$7)/VLOOKUP(I158,Banco[#All],8,0)),"") ->  | Q158: =IFERROR(M158*VLOOKUP(I158,Banco[#All],3,0)+(N158*VLOOKUP(I158,Banco[#All],4,0)),"") ->  | R158: =IFERROR(Q158/VLOOKUP(I158,Banco[#All],3,0),M158) -> 0
B159: =LEFT(#REF!,1) ->  | C159: =IFERROR(VLOOKUP(I159,BANCO!A:J,10,0),"no") -> no | D159: 1 | E159: 0 | F159: =IF(AND(W159="Drive em Manutenção",R159>0),7,28) -> 28 | G159: 0 | H159: 3 | J159: =IFERROR(VLOOKUP(I159,BANCO!_xlnm.Print_Area,2,0),"") ->  | L159: =IFERROR(EDATE(K159,VLOOKUP(I159,BANCO!A:I,9,0)),"") ->  | P159: =IFERROR(IF(OR(I159="",AND(M159="",N159="")),"",(L159-$M$7)/VLOOKUP(I159,Banco[#All],8,0)),"") ->  | Q159: =IFERROR(M159*VLOOKUP(I159,Banco[#All],3,0)+(N159*VLOOKUP(I159,Banco[#All],4,0)),"") ->  | R159: =IFERROR(Q159/VLOOKUP(I159,Banco[#All],3,0),M159) -> 0
H160: 3 | J160: =IFERROR(VLOOKUP(I160,BANCO!_xlnm.Print_Area,2,0),"") ->  | L160: =IFERROR(EDATE(K160,VLOOKUP(I160,BANCO!A:I,9,0)),"") ->  | P160: =IFERROR(IF(OR(I160="",AND(M160="",N160="")),"",(L160-$M$7)/VLOOKUP(I160,Banco[#All],8,0)),"") ->  | Q160: =IFERROR(M160*VLOOKUP(I160,Banco[#All],3,0)+(N160*VLOOKUP(I160,Banco[#All],4,0)),"") ->  | R160: =IFERROR(Q160/VLOOKUP(I160,Banco[#All],3,0),M160) -> 0
H161: 3 | J161: =IFERROR(VLOOKUP(I161,BANCO!_xlnm.Print_Area,2,0),"") ->  | L161: =IFERROR(EDATE(K161,VLOOKUP(I161,BANCO!A:I,9,0)),"") ->  | P161: =IFERROR(IF(OR(I161="",AND(M161="",N161="")),"",(L161-$M$7)/VLOOKUP(I161,Banco[#All],8,0)),"") ->  | Q161: =IFERROR(M161*VLOOKUP(I161,Banco[#All],3,0)+(N161*VLOOKUP(I161,Banco[#All],4,0)),"") ->  | R161: =IFERROR(Q161/VLOOKUP(I161,Banco[#All],3,0),M161) -> 0
H162: 3 | J162: =IFERROR(VLOOKUP(I162,BANCO!_xlnm.Print_Area,2,0),"") ->  | L162: =IFERROR(EDATE(K162,VLOOKUP(I162,BANCO!A:I,9,0)),"") ->  | P162: =IFERROR(IF(OR(I162="",AND(M162="",N162="")),"",(L162-$M$7)/VLOOKUP(I162,Banco[#All],8,0)),"") ->  | Q162: =IFERROR(M162*VLOOKUP(I162,Banco[#All],3,0)+(N162*VLOOKUP(I162,Banco[#All],4,0)),"") ->  | R162: =IFERROR(Q162/VLOOKUP(I162,Banco[#All],3,0),M162) -> 0
H163: 3 | J163: =IFERROR(VLOOKUP(I163,BANCO!_xlnm.Print_Area,2,0),"") ->  | L163: =IFERROR(EDATE(K163,VLOOKUP(I163,BANCO!A:I,9,0)),"") ->  | P163: =IFERROR(IF(OR(I163="",AND(M163="",N163="")),"",(L163-$M$7)/VLOOKUP(I163,Banco[#All],8,0)),"") ->  | Q163: =IFERROR(M163*VLOOKUP(I163,Banco[#All],3,0)+(N163*VLOOKUP(I163,Banco[#All],4,0)),"") ->  | R163: =IFERROR(Q163/VLOOKUP(I163,Banco[#All],3,0),M163) -> 0
H164: 3 | J164: =IFERROR(VLOOKUP(I164,BANCO!_xlnm.Print_Area,2,0),"") ->  | L164: =IFERROR(EDATE(K164,VLOOKUP(I164,BANCO!A:I,9,0)),"") ->  | P164: =IFERROR(IF(OR(I164="",AND(M164="",N164="")),"",(L164-$M$7)/VLOOKUP(I164,Banco[#All],8,0)),"") ->  | Q164: =IFERROR(M164*VLOOKUP(I164,Banco[#All],3,0)+(N164*VLOOKUP(I164,Banco[#All],4,0)),"") ->  | R164: =IFERROR(Q164/VLOOKUP(I164,Banco[#All],3,0),M164) -> 0
H165: 3 | J165: =IFERROR(VLOOKUP(I165,BANCO!_xlnm.Print_Area,2,0),"") ->  | L165: =IFERROR(EDATE(K165,VLOOKUP(I165,BANCO!A:I,9,0)),"") ->  | P165: =IFERROR(IF(OR(I165="",AND(M165="",N165="")),"",(L165-$M$7)/VLOOKUP(I165,Banco[#All],8,0)),"") ->  | Q165: =IFERROR(M165*VLOOKUP(I165,Banco[#All],3,0)+(N165*VLOOKUP(I165,Banco[#All],4,0)),"") ->  | R165: =IFERROR(Q165/VLOOKUP(I165,Banco[#All],3,0),M165) -> 0
H166: 3 | J166: =IFERROR(VLOOKUP(I166,BANCO!_xlnm.Print_Area,2,0),"") ->  | L166: =IFERROR(EDATE(K166,VLOOKUP(I166,BANCO!A:I,9,0)),"") ->  | P166: =IFERROR(IF(OR(I166="",AND(M166="",N166="")),"",(L166-$M$7)/VLOOKUP(I166,Banco[#All],8,0)),"") ->  | Q166: =IFERROR(M166*VLOOKUP(I166,Banco[#All],3,0)+(N166*VLOOKUP(I166,Banco[#All],4,0)),"") ->  | R166: =IFERROR(Q166/VLOOKUP(I166,Banco[#All],3,0),M166) -> 0
H167: 3 | J167: =IFERROR(VLOOKUP(I167,BANCO!_xlnm.Print_Area,2,0),"") ->  | L167: =IFERROR(EDATE(K167,VLOOKUP(I167,BANCO!A:I,9,0)),"") ->  | P167: =IFERROR(IF(OR(I167="",AND(M167="",N167="")),"",(L167-$M$7)/VLOOKUP(I167,Banco[#All],8,0)),"") ->  | Q167: =IFERROR(M167*VLOOKUP(I167,Banco[#All],3,0)+(N167*VLOOKUP(I167,Banco[#All],4,0)),"") ->  | R167: =IFERROR(Q167/VLOOKUP(I167,Banco[#All],3,0),M167) -> 0
H168: 3 | J168: =IFERROR(VLOOKUP(I168,BANCO!_xlnm.Print_Area,2,0),"") ->  | L168: =IFERROR(EDATE(K168,VLOOKUP(I168,BANCO!A:I,9,0)),"") ->  | P168: =IFERROR(IF(OR(I168="",AND(M168="",N168="")),"",(L168-$M$7)/VLOOKUP(I168,Banco[#All],8,0)),"") ->  | Q168: =IFERROR(M168*VLOOKUP(I168,Banco[#All],3,0)+(N168*VLOOKUP(I168,Banco[#All],4,0)),"") ->  | R168: =IFERROR(Q168/VLOOKUP(I168,Banco[#All],3,0),M168) -> 0
H169: 3 | J169: =IFERROR(VLOOKUP(I169,BANCO!_xlnm.Print_Area,2,0),"") ->  | L169: =IFERROR(EDATE(K169,VLOOKUP(I169,BANCO!A:I,9,0)),"") ->  | P169: =IFERROR(IF(OR(I169="",AND(M169="",N169="")),"",(L169-$M$7)/VLOOKUP(I169,Banco[#All],8,0)),"") ->  | Q169: =IFERROR(M169*VLOOKUP(I169,Banco[#All],3,0)+(N169*VLOOKUP(I169,Banco[#All],4,0)),"") ->  | R169: =IFERROR(Q169/VLOOKUP(I169,Banco[#All],3,0),M169) -> 0
H170: 3 | J170: =IFERROR(VLOOKUP(I170,BANCO!_xlnm.Print_Area,2,0),"") ->  | L170: =IFERROR(EDATE(K170,VLOOKUP(I170,BANCO!A:I,9,0)),"") ->  | P170: =IFERROR(IF(OR(I170="",AND(M170="",N170="")),"",(L170-$M$7)/VLOOKUP(I170,Banco[#All],8,0)),"") ->  | Q170: =IFERROR(M170*VLOOKUP(I170,Banco[#All],3,0)+(N170*VLOOKUP(I170,Banco[#All],4,0)),"") ->  | R170: =IFERROR(Q170/VLOOKUP(I170,Banco[#All],3,0),M170) -> 0
H171: 3 | J171: =IFERROR(VLOOKUP(I171,BANCO!_xlnm.Print_Area,2,0),"") ->  | L171: =IFERROR(EDATE(K171,VLOOKUP(I171,BANCO!A:I,9,0)),"") ->  | P171: =IFERROR(IF(OR(I171="",AND(M171="",N171="")),"",(L171-$M$7)/VLOOKUP(I171,Banco[#All],8,0)),"") ->  | Q171: =IFERROR(M171*VLOOKUP(I171,Banco[#All],3,0)+(N171*VLOOKUP(I171,Banco[#All],4,0)),"") ->  | R171: =IFERROR(Q171/VLOOKUP(I171,Banco[#All],3,0),M171) -> 0
H172: 3 | J172: =IFERROR(VLOOKUP(I172,BANCO!_xlnm.Print_Area,2,0),"") ->  | L172: =IFERROR(EDATE(K172,VLOOKUP(I172,BANCO!A:I,9,0)),"") ->  | P172: =IFERROR(IF(OR(I172="",AND(M172="",N172="")),"",(L172-$M$7)/VLOOKUP(I172,Banco[#All],8,0)),"") ->  | Q172: =IFERROR(M172*VLOOKUP(I172,Banco[#All],3,0)+(N172*VLOOKUP(I172,Banco[#All],4,0)),"") ->  | R172: =IFERROR(Q172/VLOOKUP(I172,Banco[#All],3,0),M172) -> 0
H173: 3 | J173: =IFERROR(VLOOKUP(I173,BANCO!_xlnm.Print_Area,2,0),"") ->  | L173: =IFERROR(EDATE(K173,VLOOKUP(I173,BANCO!A:I,9,0)),"") ->  | P173: =IFERROR(IF(OR(I173="",AND(M173="",N173="")),"",(L173-$M$7)/VLOOKUP(I173,Banco[#All],8,0)),"") ->  | Q173: =IFERROR(M173*VLOOKUP(I173,Banco[#All],3,0)+(N173*VLOOKUP(I173,Banco[#All],4,0)),"") ->  | R173: =IFERROR(Q173/VLOOKUP(I173,Banco[#All],3,0),M173) -> 0
H174: 3 | J174: =IFERROR(VLOOKUP(I174,BANCO!_xlnm.Print_Area,2,0),"") ->  | L174: =IFERROR(EDATE(K174,VLOOKUP(I174,BANCO!A:I,9,0)),"") ->  | P174: =IFERROR(IF(OR(I174="",AND(M174="",N174="")),"",(L174-$M$7)/VLOOKUP(I174,Banco[#All],8,0)),"") ->  | Q174: =IFERROR(M174*VLOOKUP(I174,Banco[#All],3,0)+(N174*VLOOKUP(I174,Banco[#All],4,0)),"") ->  | R174: =IFERROR(Q174/VLOOKUP(I174,Banco[#All],3,0),M174) -> 0
H175: 3 | J175: =IFERROR(VLOOKUP(I175,BANCO!_xlnm.Print_Area,2,0),"") ->  | L175: =IFERROR(EDATE(K175,VLOOKUP(I175,BANCO!A:I,9,0)),"") ->  | P175: =IFERROR(IF(OR(I175="",AND(M175="",N175="")),"",(L175-$M$7)/VLOOKUP(I175,Banco[#All],8,0)),"") ->  | Q175: =IFERROR(M175*VLOOKUP(I175,Banco[#All],3,0)+(N175*VLOOKUP(I175,Banco[#All],4,0)),"") ->  | R175: =IFERROR(Q175/VLOOKUP(I175,Banco[#All],3,0),M175) -> 0
H176: 3 | J176: =IFERROR(VLOOKUP(I176,BANCO!_xlnm.Print_Area,2,0),"") ->  | L176: =IFERROR(EDATE(K176,VLOOKUP(I176,BANCO!A:I,9,0)),"") ->  | P176: =IFERROR(IF(OR(I176="",AND(M176="",N176="")),"",(L176-$M$7)/VLOOKUP(I176,Banco[#All],8,0)),"") ->  | Q176: =IFERROR(M176*VLOOKUP(I176,Banco[#All],3,0)+(N176*VLOOKUP(I176,Banco[#All],4,0)),"") ->  | R176: =IFERROR(Q176/VLOOKUP(I176,Banco[#All],3,0),M176) -> 0
H177: 3 | J177: =IFERROR(VLOOKUP(I177,BANCO!_xlnm.Print_Area,2,0),"") ->  | L177: =IFERROR(EDATE(K177,VLOOKUP(I177,BANCO!A:I,9,0)),"") ->  | P177: =IFERROR(IF(OR(I177="",AND(M177="",N177="")),"",(L177-$M$7)/VLOOKUP(I177,Banco[#All],8,0)),"") ->  | Q177: =IFERROR(M177*VLOOKUP(I177,Banco[#All],3,0)+(N177*VLOOKUP(I177,Banco[#All],4,0)),"") ->  | R177: =IFERROR(Q177/VLOOKUP(I177,Banco[#All],3,0),M177) -> 0
H178: 3 | J178: =IFERROR(VLOOKUP(I178,BANCO!_xlnm.Print_Area,2,0),"") ->  | L178: =IFERROR(EDATE(K178,VLOOKUP(I178,BANCO!A:I,9,0)),"") ->  | P178: =IFERROR(IF(OR(I178="",AND(M178="",N178="")),"",(L178-$M$7)/VLOOKUP(I178,Banco[#All],8,0)),"") ->  | Q178: =IFERROR(M178*VLOOKUP(I178,Banco[#All],3,0)+(N178*VLOOKUP(I178,Banco[#All],4,0)),"") ->  | R178: =IFERROR(Q178/VLOOKUP(I178,Banco[#All],3,0),M178) -> 0
H179: 3 | J179: =IFERROR(VLOOKUP(I179,BANCO!_xlnm.Print_Area,2,0),"") ->  | L179: =IFERROR(EDATE(K179,VLOOKUP(I179,BANCO!A:I,9,0)),"") ->  | P179: =IFERROR(IF(OR(I179="",AND(M179="",N179="")),"",(L179-$M$7)/VLOOKUP(I179,Banco[#All],8,0)),"") ->  | Q179: =IFERROR(M179*VLOOKUP(I179,Banco[#All],3,0)+(N179*VLOOKUP(I179,Banco[#All],4,0)),"") ->  | R179: =IFERROR(Q179/VLOOKUP(I179,Banco[#All],3,0),M179) -> 0
H180: 3 | J180: =IFERROR(VLOOKUP(I180,BANCO!_xlnm.Print_Area,2,0),"") ->  | L180: =IFERROR(EDATE(K180,VLOOKUP(I180,BANCO!A:I,9,0)),"") ->  | P180: =IFERROR(IF(OR(I180="",AND(M180="",N180="")),"",(L180-$M$7)/VLOOKUP(I180,Banco[#All],8,0)),"") ->  | Q180: =IFERROR(M180*VLOOKUP(I180,Banco[#All],3,0)+(N180*VLOOKUP(I180,Banco[#All],4,0)),"") ->  | R180: =IFERROR(Q180/VLOOKUP(I180,Banco[#All],3,0),M180) -> 0
H181: 3 | J181: =IFERROR(VLOOKUP(I181,BANCO!_xlnm.Print_Area,2,0),"") ->  | L181: =IFERROR(EDATE(K181,VLOOKUP(I181,BANCO!A:I,9,0)),"") ->  | P181: =IFERROR(IF(OR(I181="",AND(M181="",N181="")),"",(L181-$M$7)/VLOOKUP(I181,Banco[#All],8,0)),"") ->  | Q181: =IFERROR(M181*VLOOKUP(I181,Banco[#All],3,0)+(N181*VLOOKUP(I181,Banco[#All],4,0)),"") ->  | R181: =IFERROR(Q181/VLOOKUP(I181,Banco[#All],3,0),M181) -> 0
H182: 3 | J182: =IFERROR(VLOOKUP(I182,BANCO!_xlnm.Print_Area,2,0),"") ->  | L182: =IFERROR(EDATE(K182,VLOOKUP(I182,BANCO!A:I,9,0)),"") ->  | P182: =IFERROR(IF(OR(I182="",AND(M182="",N182="")),"",(L182-$M$7)/VLOOKUP(I182,Banco[#All],8,0)),"") ->  | Q182: =IFERROR(M182*VLOOKUP(I182,Banco[#All],3,0)+(N182*VLOOKUP(I182,Banco[#All],4,0)),"") ->  | R182: =IFERROR(Q182/VLOOKUP(I182,Banco[#All],3,0),M182) -> 0
H183: 3 | J183: =IFERROR(VLOOKUP(I183,BANCO!_xlnm.Print_Area,2,0),"") ->  | L183: =IFERROR(EDATE(K183,VLOOKUP(I183,BANCO!A:I,9,0)),"") ->  | P183: =IFERROR(IF(OR(I183="",AND(M183="",N183="")),"",(L183-$M$7)/VLOOKUP(I183,Banco[#All],8,0)),"") ->  | Q183: =IFERROR(M183*VLOOKUP(I183,Banco[#All],3,0)+(N183*VLOOKUP(I183,Banco[#All],4,0)),"") ->  | R183: =IFERROR(Q183/VLOOKUP(I183,Banco[#All],3,0),M183) -> 0
B184: =LEFT(H184,1) -> 3 | C184: =IFERROR(VLOOKUP(I184,BANCO!A:J,10,0),"no") -> no | D184: =IF(G184<>0,0,1) -> 1 | E184: =IFERROR(ROUNDUP(R184,0)/F184,"NO") -> 0 | F184: =IF(AND(W184="Drive em Manutenção",R184>0),7,28) -> 28 | G184: =IFERROR(IF(R184<=4,0,ROUNDUP(R184,0)),0) -> 0 | H184: 3 | J184: =IFERROR(VLOOKUP(I184,BANCO!_xlnm.Print_Area,2,0),"") ->  | L184: =IFERROR(EDATE(K184,VLOOKUP(I184,BANCO!A:I,9,0)),"") ->  | P184: =IFERROR(IF(OR(I184="",AND(M184="",N184="")),"",(L184-$M$7)/VLOOKUP(I184,Banco[#All],8,0)),"") ->  | Q184: =IFERROR(M184*VLOOKUP(I184,Banco[#All],3,0)+(N184*VLOOKUP(I184,Banco[#All],4,0)),"") ->  | R184: =IFERROR(Q184/VLOOKUP(I184,Banco[#All],3,0),M184) -> 0
H185: 3 | J185: =IFERROR(VLOOKUP(I185,BANCO!_xlnm.Print_Area,2,0),"") ->  | L185: =IFERROR(EDATE(K185,VLOOKUP(I185,BANCO!A:I,9,0)),"") ->  | P185: =IFERROR(IF(OR(I185="",AND(M185="",N185="")),"",(L185-$M$7)/VLOOKUP(I185,Banco[#All],8,0)),"") ->  | Q185: =IFERROR(M185*VLOOKUP(I185,Banco[#All],3,0)+(N185*VLOOKUP(I185,Banco[#All],4,0)),"") ->  | R185: =IFERROR(Q185/VLOOKUP(I185,Banco[#All],3,0),M185) -> 0
H186: 3 | J186: =IFERROR(VLOOKUP(I186,BANCO!_xlnm.Print_Area,2,0),"") ->  | L186: =IFERROR(EDATE(K186,VLOOKUP(I186,BANCO!A:I,9,0)),"") ->  | P186: =IFERROR(IF(OR(I186="",AND(M186="",N186="")),"",(L186-$M$7)/VLOOKUP(I186,Banco[#All],8,0)),"") ->  | Q186: =IFERROR(M186*VLOOKUP(I186,Banco[#All],3,0)+(N186*VLOOKUP(I186,Banco[#All],4,0)),"") ->  | R186: =IFERROR(Q186/VLOOKUP(I186,Banco[#All],3,0),M186) -> 0
H187: 3 | J187: =IFERROR(VLOOKUP(I187,BANCO!_xlnm.Print_Area,2,0),"") ->  | L187: =IFERROR(EDATE(K187,VLOOKUP(I187,BANCO!A:I,9,0)),"") ->  | P187: =IFERROR(IF(OR(I187="",AND(M187="",N187="")),"",(L187-$M$7)/VLOOKUP(I187,Banco[#All],8,0)),"") ->  | Q187: =IFERROR(M187*VLOOKUP(I187,Banco[#All],3,0)+(N187*VLOOKUP(I187,Banco[#All],4,0)),"") ->  | R187: =IFERROR(Q187/VLOOKUP(I187,Banco[#All],3,0),M187) -> 0
H188: 3 | J188: =IFERROR(VLOOKUP(I188,BANCO!_xlnm.Print_Area,2,0),"") ->  | L188: =IFERROR(EDATE(K188,VLOOKUP(I188,BANCO!A:I,9,0)),"") ->  | P188: =IFERROR(IF(OR(I188="",AND(M188="",N188="")),"",(L188-$M$7)/VLOOKUP(I188,Banco[#All],8,0)),"") ->  | Q188: =IFERROR(M188*VLOOKUP(I188,Banco[#All],3,0)+(N188*VLOOKUP(I188,Banco[#All],4,0)),"") ->  | R188: =IFERROR(Q188/VLOOKUP(I188,Banco[#All],3,0),M188) -> 0
H189: 3 | J189: =IFERROR(VLOOKUP(I189,BANCO!_xlnm.Print_Area,2,0),"") ->  | L189: =IFERROR(EDATE(K189,VLOOKUP(I189,BANCO!A:I,9,0)),"") ->  | P189: =IFERROR(IF(OR(I189="",AND(M189="",N189="")),"",(L189-$M$7)/VLOOKUP(I189,Banco[#All],8,0)),"") ->  | Q189: =IFERROR(M189*VLOOKUP(I189,Banco[#All],3,0)+(N189*VLOOKUP(I189,Banco[#All],4,0)),"") ->  | R189: =IFERROR(Q189/VLOOKUP(I189,Banco[#All],3,0),M189) -> 0
H190: 3 | J190: =IFERROR(VLOOKUP(I190,BANCO!_xlnm.Print_Area,2,0),"") ->  | L190: =IFERROR(EDATE(K190,VLOOKUP(I190,BANCO!A:I,9,0)),"") ->  | P190: =IFERROR(IF(OR(I190="",AND(M190="",N190="")),"",(L190-$M$7)/VLOOKUP(I190,Banco[#All],8,0)),"") ->  | Q190: =IFERROR(M190*VLOOKUP(I190,Banco[#All],3,0)+(N190*VLOOKUP(I190,Banco[#All],4,0)),"") ->  | R190: =IFERROR(Q190/VLOOKUP(I190,Banco[#All],3,0),M190) -> 0
H191: 3 | J191: =IFERROR(VLOOKUP(I191,BANCO!_xlnm.Print_Area,2,0),"") ->  | L191: =IFERROR(EDATE(K191,VLOOKUP(I191,BANCO!A:I,9,0)),"") ->  | P191: =IFERROR(IF(OR(I191="",AND(M191="",N191="")),"",(L191-$M$7)/VLOOKUP(I191,Banco[#All],8,0)),"") ->  | Q191: =IFERROR(M191*VLOOKUP(I191,Banco[#All],3,0)+(N191*VLOOKUP(I191,Banco[#All],4,0)),"") ->  | R191: =IFERROR(Q191/VLOOKUP(I191,Banco[#All],3,0),M191) -> 0
H192: 3 | J192: =IFERROR(VLOOKUP(I192,BANCO!_xlnm.Print_Area,2,0),"") ->  | L192: =IFERROR(EDATE(K192,VLOOKUP(I192,BANCO!A:I,9,0)),"") ->  | P192: =IFERROR(IF(OR(I192="",AND(M192="",N192="")),"",(L192-$M$7)/VLOOKUP(I192,Banco[#All],8,0)),"") ->  | Q192: =IFERROR(M192*VLOOKUP(I192,Banco[#All],3,0)+(N192*VLOOKUP(I192,Banco[#All],4,0)),"") ->  | R192: =IFERROR(Q192/VLOOKUP(I192,Banco[#All],3,0),M192) -> 0
H193: 3 | J193: =IFERROR(VLOOKUP(I193,BANCO!_xlnm.Print_Area,2,0),"") ->  | L193: =IFERROR(EDATE(K193,VLOOKUP(I193,BANCO!A:I,9,0)),"") ->  | P193: =IFERROR(IF(OR(I193="",AND(M193="",N193="")),"",(L193-$M$7)/VLOOKUP(I193,Banco[#All],8,0)),"") ->  | Q193: =IFERROR(M193*VLOOKUP(I193,Banco[#All],3,0)+(N193*VLOOKUP(I193,Banco[#All],4,0)),"") ->  | R193: =IFERROR(Q193/VLOOKUP(I193,Banco[#All],3,0),M193) -> 0
H194: 3 | J194: =IFERROR(VLOOKUP(I194,BANCO!_xlnm.Print_Area,2,0),"") ->  | L194: =IFERROR(EDATE(K194,VLOOKUP(I194,BANCO!A:I,9,0)),"") ->  | P194: =IFERROR(IF(OR(I194="",AND(M194="",N194="")),"",(L194-$M$7)/VLOOKUP(I194,Banco[#All],8,0)),"") ->  | Q194: =IFERROR(M194*VLOOKUP(I194,Banco[#All],3,0)+(N194*VLOOKUP(I194,Banco[#All],4,0)),"") ->  | R194: =IFERROR(Q194/VLOOKUP(I194,Banco[#All],3,0),M194) -> 0
H195: 3 | J195: =IFERROR(VLOOKUP(I195,BANCO!_xlnm.Print_Area,2,0),"") ->  | L195: =IFERROR(EDATE(K195,VLOOKUP(I195,BANCO!A:I,9,0)),"") ->  | P195: =IFERROR(IF(OR(I195="",AND(M195="",N195="")),"",(L195-$M$7)/VLOOKUP(I195,Banco[#All],8,0)),"") ->  | Q195: =IFERROR(M195*VLOOKUP(I195,Banco[#All],3,0)+(N195*VLOOKUP(I195,Banco[#All],4,0)),"") ->  | R195: =IFERROR(Q195/VLOOKUP(I195,Banco[#All],3,0),M195) -> 0
H196: 3 | J196: =IFERROR(VLOOKUP(I196,BANCO!_xlnm.Print_Area,2,0),"") ->  | L196: =IFERROR(EDATE(K196,VLOOKUP(I196,BANCO!A:I,9,0)),"") ->  | P196: =IFERROR(IF(OR(I196="",AND(M196="",N196="")),"",(L196-$M$7)/VLOOKUP(I196,Banco[#All],8,0)),"") ->  | Q196: =IFERROR(M196*VLOOKUP(I196,Banco[#All],3,0)+(N196*VLOOKUP(I196,Banco[#All],4,0)),"") ->  | R196: =IFERROR(Q196/VLOOKUP(I196,Banco[#All],3,0),M196) -> 0
H197: 3 | J197: =IFERROR(VLOOKUP(I197,BANCO!_xlnm.Print_Area,2,0),"") ->  | L197: =IFERROR(EDATE(K197,VLOOKUP(I197,BANCO!A:I,9,0)),"") ->  | P197: =IFERROR(IF(OR(I197="",AND(M197="",N197="")),"",(L197-$M$7)/VLOOKUP(I197,Banco[#All],8,0)),"") ->  | Q197: =IFERROR(M197*VLOOKUP(I197,Banco[#All],3,0)+(N197*VLOOKUP(I197,Banco[#All],4,0)),"") ->  | R197: =IFERROR(Q197/VLOOKUP(I197,Banco[#All],3,0),M197) -> 0
H198: 3 | J198: =IFERROR(VLOOKUP(I198,BANCO!_xlnm.Print_Area,2,0),"") ->  | L198: =IFERROR(EDATE(K198,VLOOKUP(I198,BANCO!A:I,9,0)),"") ->  | P198: =IFERROR(IF(OR(I198="",AND(M198="",N198="")),"",(L198-$M$7)/VLOOKUP(I198,Banco[#All],8,0)),"") ->  | Q198: =IFERROR(M198*VLOOKUP(I198,Banco[#All],3,0)+(N198*VLOOKUP(I198,Banco[#All],4,0)),"") ->  | R198: =IFERROR(Q198/VLOOKUP(I198,Banco[#All],3,0),M198) -> 0
H199: 3 | J199: =IFERROR(VLOOKUP(I199,BANCO!_xlnm.Print_Area,2,0),"") ->  | L199: =IFERROR(EDATE(K199,VLOOKUP(I199,BANCO!A:I,9,0)),"") ->  | P199: =IFERROR(IF(OR(I199="",AND(M199="",N199="")),"",(L199-$M$7)/VLOOKUP(I199,Banco[#All],8,0)),"") ->  | Q199: =IFERROR(M199*VLOOKUP(I199,Banco[#All],3,0)+(N199*VLOOKUP(I199,Banco[#All],4,0)),"") ->  | R199: =IFERROR(Q199/VLOOKUP(I199,Banco[#All],3,0),M199) -> 0
H200: 3 | J200: =IFERROR(VLOOKUP(I200,BANCO!_xlnm.Print_Area,2,0),"") ->  | L200: =IFERROR(EDATE(K200,VLOOKUP(I200,BANCO!A:I,9,0)),"") ->  | P200: =IFERROR(IF(OR(I200="",AND(M200="",N200="")),"",(L200-$M$7)/VLOOKUP(I200,Banco[#All],8,0)),"") ->  | Q200: =IFERROR(M200*VLOOKUP(I200,Banco[#All],3,0)+(N200*VLOOKUP(I200,Banco[#All],4,0)),"") ->  | R200: =IFERROR(Q200/VLOOKUP(I200,Banco[#All],3,0),M200) -> 0
H201: 3 | J201: =IFERROR(VLOOKUP(I201,BANCO!_xlnm.Print_Area,2,0),"") ->  | L201: =IFERROR(EDATE(K201,VLOOKUP(I201,BANCO!A:I,9,0)),"") ->  | P201: =IFERROR(IF(OR(I201="",AND(M201="",N201="")),"",(L201-$M$7)/VLOOKUP(I201,Banco[#All],8,0)),"") ->  | Q201: =IFERROR(M201*VLOOKUP(I201,Banco[#All],3,0)+(N201*VLOOKUP(I201,Banco[#All],4,0)),"") ->  | R201: =IFERROR(Q201/VLOOKUP(I201,Banco[#All],3,0),M201) -> 0
H202: 3 | J202: =IFERROR(VLOOKUP(I202,BANCO!_xlnm.Print_Area,2,0),"") ->  | L202: =IFERROR(EDATE(K202,VLOOKUP(I202,BANCO!A:I,9,0)),"") ->  | P202: =IFERROR(IF(OR(I202="",AND(M202="",N202="")),"",(L202-$M$7)/VLOOKUP(I202,Banco[#All],8,0)),"") ->  | Q202: =IFERROR(M202*VLOOKUP(I202,Banco[#All],3,0)+(N202*VLOOKUP(I202,Banco[#All],4,0)),"") ->  | R202: =IFERROR(Q202/VLOOKUP(I202,Banco[#All],3,0),M202) -> 0
H203: 3 | J203: =IFERROR(VLOOKUP(I203,BANCO!_xlnm.Print_Area,2,0),"") ->  | L203: =IFERROR(EDATE(K203,VLOOKUP(I203,BANCO!A:I,9,0)),"") ->  | P203: =IFERROR(IF(OR(I203="",AND(M203="",N203="")),"",(L203-$M$7)/VLOOKUP(I203,Banco[#All],8,0)),"") ->  | Q203: =IFERROR(M203*VLOOKUP(I203,Banco[#All],3,0)+(N203*VLOOKUP(I203,Banco[#All],4,0)),"") ->  | R203: =IFERROR(Q203/VLOOKUP(I203,Banco[#All],3,0),M203) -> 0
H204: 3 | J204: =IFERROR(VLOOKUP(I204,BANCO!_xlnm.Print_Area,2,0),"") ->  | L204: =IFERROR(EDATE(K204,VLOOKUP(I204,BANCO!A:I,9,0)),"") ->  | P204: =IFERROR(IF(OR(I204="",AND(M204="",N204="")),"",(L204-$M$7)/VLOOKUP(I204,Banco[#All],8,0)),"") ->  | Q204: =IFERROR(M204*VLOOKUP(I204,Banco[#All],3,0)+(N204*VLOOKUP(I204,Banco[#All],4,0)),"") ->  | R204: =IFERROR(Q204/VLOOKUP(I204,Banco[#All],3,0),M204) -> 0
H205: 3 | J205: =IFERROR(VLOOKUP(I205,BANCO!_xlnm.Print_Area,2,0),"") ->  | L205: =IFERROR(EDATE(K205,VLOOKUP(I205,BANCO!A:I,9,0)),"") ->  | P205: =IFERROR(IF(OR(I205="",AND(M205="",N205="")),"",(L205-$M$7)/VLOOKUP(I205,Banco[#All],8,0)),"") ->  | Q205: =IFERROR(M205*VLOOKUP(I205,Banco[#All],3,0)+(N205*VLOOKUP(I205,Banco[#All],4,0)),"") ->  | R205: =IFERROR(Q205/VLOOKUP(I205,Banco[#All],3,0),M205) -> 0
... 3142 more rows

Sheet Shelf -66% (hidden)
A1: Rua | B1: SKU | C1: Descrição | D1: Data de FABRICAÇÃO | E1: Data de vencimento | F1: Qtd Pll | G1: Qtd Caixas | H1: Status | I1: Vida útil | J1: Qtd Und. | K1: Qtd plts | L1: Motivo de Bloqueio | M1: Observação | N1: SOMA | O1: =SUM(#REF!) -> 
B2: 122040 | C2: ÁGUA MINERAL COM GÁS 500ML | D2: 44334 | E2: 44518 | F2: 10 | I2: -0.02747252747 | J2: 18480 | K2: 10
B3: 139917 | C3: BONAFONT C/ GAS 1270ML 2 LIMOES | D3: 44324 | E3: 44508 | F3: 21 | I3: -0.08241758242 | J3: 12600 | K3: 21
B4: 139917 | C4: BONAFONT C/ GAS 1270ML 2 LIMOES | D4: 44324 | E4: 44508 | F4: 15 | I4: -0.08241758242 | J4: 9000 | K4: 15
B5: 139917 | C5: BONAFONT C/ GAS 1270ML 2 LIMOES | D5: 44324 | E5: 44508 | F5: 22 | I5: -0.08241758242 | J5: 13200 | K5: 22
B6: 139918 | C6: BONAFONT C/ GAS 1270ML ABACAXI/HORTELA | D6: 44294 | E6: 44477 | F6: 8 | I6: -0.2527472527 | J6: 4800 | K6: 8
B7: 139918 | C7: BONAFONT C/ GAS 1270ML ABACAXI/HORTELA | D7: 44323 | E7: 44507 | F7: 4 | I7: -0.08791208791 | J7: 2400 | K7: 4
B8: 139918 | C8: BONAFONT C/ GAS 1270ML ABACAXI/HORTELA | D8: 44269 | E8: 44453 | F8: 12 | I8: -0.3846153846 | J8: 7200 | K8: 12
B9: 151548 | C9: BONAFONT COM GAS 1360ML | D9: 44322 | E9: 44506 | F9: 20 | I9: -0.09340659341 | J9: 12000 | K9: 20
B10: 151548 | C10: BONAFONT COM GAS 1360ML | D10: 44318 | E10: 44502 | F10: 8 | I10: -0.1153846154 | J10: 4800 | K10: 8
B11: 151548 | C11: BONAFONT COM GAS 1360ML | D11: 44322 | E11: 44506 | F11: 28 | I11: -0.09340659341 | J11: 16800 | K11: 28
R13: 122040 | S13: 10 | T13: =S13*1848 -> 18480 | U13: 1114808562
R14: 139918 | S14: 24 | T14: =S14*600 -> 14400 | U14: 1114788297
R15: 151548 | S15: 56 | T15: 33600 | U15: 2022.05.15
Y22: 139917 | Z22: 984 | AA22: 1114767634
Y23: 139917 | Z23: 864 | AA23: 1114788289
Y24: 139917 | Z24: 6 | AA24: 1114788290
Y25: 139917 | Z25: 17388 | AA25: 2021.03.09
Y26: 139917 | Z26: 15858 | AA26: 2021.07.07

Sheet Planilha5 (hidden)

Sheet Planilha3 (hidden)
M4: 217
I7: Estoque enviado | J7: 37 | M7: =J7+J8+J10+J11-M4 -> -120.4
I8: Estoque enviado | J8: 9.6
I10: produzido até as 7h | J10: 31
I11: produzido até as 7h | J11: 19
I13: saidas | J13: 217
I15: Provisão | J15: =J7+J8+J10+J11-J13 -> -120.4

Sheet Retidos (hidden)
J1: FICHA DE CONTAGEM | L1: Responsável: Diana Emilia Caum Felippe | S1: Imprimir Ruas Selecionadas
L2: Data de Elaboração: 06/08/2015 | V2: TRUE | W2: TRUE | X2: TRUE | Y2: =HOUR(NOW()) -> 14
L3: Data de Revisão: 21/03/2019 | V3: TRUE | W3: TRUE | X3: TRUE | Y3: =WEEKDAY(L7) -> 3 | AA3: TRUE
L4: Nº Revisão: 5 | V4: TRUE | W4: TRUE | X4: TRUE | AA4: TRUE
H6: NOME | K6: CONTAGEM | L6: DATA DA CONTAGEM | V6: TRUE | W6: TRUE | X6: TRUE | AA6: TRUE
L7: 43991 | V7: TRUE | W7: TRUE | X7: TRUE | AA7: TRUE
W8: TRUE | X8: TRUE | AA8: TRUE | AL8: DEVE PUXAR SOMENTE OK ↓
K9: =IF(L9=3,TRUE,FALSE) -> FALSE | AL9: Status | AM9: (vazio)
B10: =LEFT(H10,2) -> Ru | C10: Classificação | D10: Vazio | E10: Ocupação | F10: Cap. | G10: Plts Ocupados | H10: Rua | I10: SKU | J10: Descrição | K10: Data de vencimento | L10: Qtd Pll | M10: Qtd Caixas | N10: Status | O10: Vida útil | P10: Qtd Und. | Q10: Qtd plts | R10: Motivo de Bloqueio | S10: Observação | AL10: Rua | AM10: (Vários itens) | AO10: chep
B11: =LEFT(H11,1) -> C | C11: =IFERROR(VLOOKUP(I11,BANCO!A:J,10,0),"no") -> no | D11: =IF(G11<>0,0,1) -> 0 | E11: =IFERROR(ROUNDUP(Q11,0)/F11,"NO") -> 0.1428571429 | F11: =IF(AND(S11="Drive em Manutenção",Q11>0),7,35) -> 35 | G11: =IFERROR(IF(Q11<=4,0,ROUNDUP(Q11,0)),0) -> 5 | H11: CR 10 | I11: 82435 | J11: =IFERROR(VLOOKUP(I11,BANCO!_xlnm.Print_Area,2,0),"") ->  | K11: 44509 | L11: 5 | O11: =IFERROR(IF(OR(I11="",AND(L11="",M11="")),"",(K11-$L$7)/VLOOKUP(I11,Banco[#All],8,0)),"") ->  | P11: =IFERROR(L11*VLOOKUP(I11,Banco[#All],3,0)+(M11*VLOOKUP(I11,Banco[#All],4,0)),"") ->  | Q11: =IFERROR(P11/VLOOKUP(I11,Banco[#All],3,0),L11) -> 5 | V11: Status | W11: (vazio) | AO11: =IFERROR(IF(Q11>0.4,ROUNDUP(Q11,0),0),0) -> 5
B12: C | C12: =IFERROR(VLOOKUP(I12,BANCO!A:J,10,0),"no") -> no | D12: 0 | E12: 0.3142857143 | F12: =IF(AND(S12="Drive em Manutenção",Q12>0),7,35) -> 35 | G12: =IFERROR(IF(Q12<=4,0,ROUNDUP(Q12,0)),0) -> 11 | H12: CR 11 | I12: 74158 | J12: =IFERROR(VLOOKUP(I12,BANCO!_xlnm.Print_Area,2,0),"") ->  | K12: 44507 | L12: 11 | O12: =IFERROR(IF(OR(I12="",AND(L12="",M12="")),"",(K12-$L$7)/VLOOKUP(I12,Banco[#All],8,0)),"") ->  | P12: =IFERROR(L12*VLOOKUP(I12,Banco[#All],3,0)+(M12*VLOOKUP(I12,Banco[#All],4,0)),"") ->  | Q12: =IFERROR(P12/VLOOKUP(I12,Banco[#All],3,0),L12) -> 11 | AH12: Status | AI12: (vazio) | AL12: Rótulos de Linha | AM12: Soma de Qtd Und. | AO12: 11
B13: C | C13: =IFERROR(VLOOKUP(I13,BANCO!A:J,10,0),"no") -> no | D13: 0 | E13: 0.3714285714 | F13: =IF(AND(S13="Drive em Manutenção",Q13>0),7,35) -> 35 | G13: 13 | H13: CR 12 | I13: 74158 | J13: =IFERROR(VLOOKUP(I13,BANCO!_xlnm.Print_Area,2,0),"") ->  | K13: 44507 | L13: 13 | O13: =IFERROR(IF(OR(I13="",AND(L13="",M13="")),"",(K13-$L$7)/VLOOKUP(I13,Banco[#All],8,0)),"") ->  | P13: =IFERROR(L13*VLOOKUP(I13,Banco[#All],3,0)+(M13*VLOOKUP(I13,Banco[#All],4,0)),"") ->  | Q13: =IFERROR(P13/VLOOKUP(I13,Banco[#All],3,0),L13) -> 13 | V13: Rótulos de Linha | W13: Soma de Qtd Und. | AL13: Total Geral | AO13: 13
B14: C | C14: =IFERROR(VLOOKUP(I14,BANCO!A:J,10,0),"no") -> no | D14: 0 | E14: 0.3714285714 | F14: =IF(AND(S14="Drive em Manutenção",Q14>0),7,35) -> 35 | G14: 13 | H14: CR 16 | I14: 82435 | J14: =IFERROR(VLOOKUP(I14,BANCO!_xlnm.Print_Area,2,0),"") ->  | K14: 44534 | L14: 13 | O14: =IFERROR(IF(OR(I14="",AND(L14="",M14="")),"",(K14-$L$7)/VLOOKUP(I14,Banco[#All],8,0)),"") ->  | P14: =IFERROR(L14*VLOOKUP(I14,Banco[#All],3,0)+(M14*VLOOKUP(I14,Banco[#All],4,0)),"") ->  | Q14: =IFERROR(P14/VLOOKUP(I14,Banco[#All],3,0),L14) -> 13 | V14: 74129 | W14: 68880 | AH14: Soma de Qtd plts | AO14: 13
B15: C | C15: =IFERROR(VLOOKUP(I15,BANCO!A:J,10,0),"no") -> no | D15: 0 | E15: 0.4285714286 | F15: =IF(AND(S15="Drive em Manutenção",Q15>0),7,35) -> 35 | G15: 15 | H15: CR 17 | I15: 82435 | J15: =IFERROR(VLOOKUP(I15,BANCO!_xlnm.Print_Area,2,0),"") ->  | K15: 44535 | L15: 15 | O15: =IFERROR(IF(OR(I15="",AND(L15="",M15="")),"",(K15-$L$7)/VLOOKUP(I15,Banco[#All],8,0)),"") ->  | P15: =IFERROR(L15*VLOOKUP(I15,Banco[#All],3,0)+(M15*VLOOKUP(I15,Banco[#All],4,0)),"") ->  | Q15: =IFERROR(P15/VLOOKUP(I15,Banco[#All],3,0),L15) -> 15 | V15: 74161 | W15: 885696 | AH15: 3626 | AO15: 15
B16: C | C16: =IFERROR(VLOOKUP(I16,BANCO!A:J,10,0),"no") -> no | D16: 0 | E16: 1.5 | F16: =IF(AND(S16="Drive em Manutenção",Q16>0),2,10) -> 10 | G16: 15 | H16: CR 24 | I16: 122040 | J16: =IFERROR(VLOOKUP(I16,BANCO!_xlnm.Print_Area,2,0),"") ->  | K16: 44136 | L16: 15 | O16: =IFERROR(IF(OR(I16="",AND(L16="",M16="")),"",(K16-$L$7)/VLOOKUP(I16,Banco[#All],8,0)),"") ->  | P16: =IFERROR(L16*VLOOKUP(I16,Banco[#All],3,0)+(M16*VLOOKUP(I16,Banco[#All],4,0)),"") ->  | Q16: =IFERROR(P16/VLOOKUP(I16,Banco[#All],3,0),L16) -> 15 | V16: 82428 | W16: 205296 | AO16: 15
B17: C | C17: =IFERROR(VLOOKUP(I17,BANCO!A:J,10,0),"no") -> no | D17: 0 | E17: 0.4285714286 | F17: =IF(AND(S17="Drive em Manutenção",Q17>0),7,35) -> 35 | G17: 15 | H17: CR 27 | I17: 74158 | J17: =IFERROR(VLOOKUP(I17,BANCO!_xlnm.Print_Area,2,0),"") ->  | K17: 44507 | L17: 15 | O17: =IFERROR(IF(OR(I17="",AND(L17="",M17="")),"",(K17-$L$7)/VLOOKUP(I17,Banco[#All],8,0)),"") ->  | P17: =IFERROR(L17*VLOOKUP(I17,Banco[#All],3,0)+(M17*VLOOKUP(I17,Banco[#All],4,0)),"") ->  | Q17: =IFERROR(P17/VLOOKUP(I17,Banco[#All],3,0),L17) -> 15 | V17: 82435 | W17: 647136 | AO17: 15
B18: C | C18: =IFERROR(VLOOKUP(I18,BANCO!A:J,10,0),"no") -> no | D18: 0 | E18: 0.4285714286 | F18: 35 | G18: 15 | H18: CR 33 | I18: 82435 | J18: =IFERROR(VLOOKUP(I18,BANCO!_xlnm.Print_Area,2,0),"") ->  | K18: 44535 | L18: 15 | O18: =IFERROR(IF(OR(I18="",AND(L18="",M18="")),"",(K18-$L$7)/VLOOKUP(I18,Banco[#All],8,0)),"") ->  | P18: =IFERROR(L18*VLOOKUP(I18,Banco[#All],3,0)+(M18*VLOOKUP(I18,Banco[#All],4,0)),"") ->  | Q18: =IFERROR(P18/VLOOKUP(I18,Banco[#All],3,0),L18) -> 15 | V18: 97243 | W18: 1620 | AO18: 15
B19: C | C19: =IFERROR(VLOOKUP(I19,BANCO!A:J,10,0),"no") -> no | D19: 1 | E19: 0.02857142857 | F19: 35 | G19: 0 | H19: CR 36 | I19: 139916 | J19: =IFERROR(VLOOKUP(I19,BANCO!_xlnm.Print_Area,2,0),"") ->  | K19: 44115 | L19: 1 | O19: =IFERROR(IF(OR(I19="",AND(L19="",M19="")),"",(K19-$L$7)/VLOOKUP(I19,Banco[#All],8,0)),"") ->  | P19: =IFERROR(L19*VLOOKUP(I19,Banco[#All],3,0)+(M19*VLOOKUP(I19,Banco[#All],4,0)),"") ->  | Q19: =IFERROR(P19/VLOOKUP(I19,Banco[#All],3,0),L19) -> 1 | V19: 106502 | W19: 9984 | AO19: 1
B20: C | C20: =IFERROR(VLOOKUP(I20,BANCO!A:J,10,0),"no") -> no | D20: 0 | E20: 0.3428571429 | F20: 35 | G20: 12 | H20: CR 37 | I20: 139916 | J20: =IFERROR(VLOOKUP(I20,BANCO!_xlnm.Print_Area,2,0),"") ->  | K20: 44115 | L20: 12 | O20: =IFERROR(IF(OR(I20="",AND(L20="",M20="")),"",(K20-$L$7)/VLOOKUP(I20,Banco[#All],8,0)),"") ->  | P20: =IFERROR(L20*VLOOKUP(I20,Banco[#All],3,0)+(M20*VLOOKUP(I20,Banco[#All],4,0)),"") ->  | Q20: =IFERROR(P20/VLOOKUP(I20,Banco[#All],3,0),L20) -> 12 | V20: 113235 | W20: 7488 | AO20: 12
B21: C | C21: =IFERROR(VLOOKUP(I21,BANCO!A:J,10,0),"no") -> no | D21: 0 | E21: 0.4285714286 | F21: 35 | G21: 15 | H21: CR 41 | I21: 82435 | J21: =IFERROR(VLOOKUP(I21,BANCO!_xlnm.Print_Area,2,0),"") ->  | K21: 44535 | L21: 15 | O21: =IFERROR(IF(OR(I21="",AND(L21="",M21="")),"",(K21-$L$7)/VLOOKUP(I21,Banco[#All],8,0)),"") ->  | P21: =IFERROR(L21*VLOOKUP(I21,Banco[#All],3,0)+(M21*VLOOKUP(I21,Banco[#All],4,0)),"") ->  | Q21: =IFERROR(P21/VLOOKUP(I21,Banco[#All],3,0),L21) -> 15 | V21: 120990 | W21: 61440 | AO21: 15
B22: C | C22: =IFERROR(VLOOKUP(I22,BANCO!A:J,10,0),"no") -> no | D22: 0 | E22: 0.4285714286 | F22: 35 | G22: 15 | H22: CR 42 | I22: 82435 | J22: =IFERROR(VLOOKUP(I22,BANCO!_xlnm.Print_Area,2,0),"") ->  | K22: 44535 | L22: 15 | O22: =IFERROR(IF(OR(I22="",AND(L22="",M22="")),"",(K22-$L$7)/VLOOKUP(I22,Banco[#All],8,0)),"") ->  | P22: =IFERROR(L22*VLOOKUP(I22,Banco[#All],3,0)+(M22*VLOOKUP(I22,Banco[#All],4,0)),"") ->  | Q22: =IFERROR(P22/VLOOKUP(I22,Banco[#All],3,0),L22) -> 15 | V22: 121806 | W22: 48720 | AO22: 15
B23: C | C23: =IFERROR(VLOOKUP(I23,BANCO!A:J,10,0),"no") -> no | D23: 0 | E23: 0.3142857143 | F23: 35 | G23: 11 | H23: CR 43 | I23: 74390 | J23: =IFERROR(VLOOKUP(I23,BANCO!_xlnm.Print_Area,2,0),"") ->  | K23: 44504 | L23: 11 | O23: =IFERROR(IF(OR(I23="",AND(L23="",M23="")),"",(K23-$L$7)/VLOOKUP(I23,Banco[#All],8,0)),"") ->  | P23: =IFERROR(L23*VLOOKUP(I23,Banco[#All],3,0)+(M23*VLOOKUP(I23,Banco[#All],4,0)),"") ->  | Q23: =IFERROR(P23/VLOOKUP(I23,Banco[#All],3,0),L23) -> 11 | V23: 121807 | W23: 125280 | AO23: 11
B24: C | C24: =IFERROR(VLOOKUP(I24,BANCO!A:J,10,0),"no") -> no | D24: 0 | E24: 0.3714285714 | F24: 35 | G24: 13 | H24: CR 44 | I24: 74158 | J24: =IFERROR(VLOOKUP(I24,BANCO!_xlnm.Print_Area,2,0),"") ->  | K24: 44507 | L24: 13 | O24: =IFERROR(IF(OR(I24="",AND(L24="",M24="")),"",(K24-$L$7)/VLOOKUP(I24,Banco[#All],8,0)),"") ->  | P24: =IFERROR(L24*VLOOKUP(I24,Banco[#All],3,0)+(M24*VLOOKUP(I24,Banco[#All],4,0)),"") ->  | Q24: =IFERROR(P24/VLOOKUP(I24,Banco[#All],3,0),L24) -> 13 | V24: 122040 | W24: 79464 | AO24: 13
B25: C | C25: =IFERROR(VLOOKUP(I25,BANCO!A:J,10,0),"no") -> no | D25: 0 | E25: 0.3142857143 | F25: 35 | G25: 11 | H25: CR 45 | I25: 121807 | J25: =IFERROR(VLOOKUP(I25,BANCO!_xlnm.Print_Area,2,0),"") ->  | K25: 44119 | L25: 11 | O25: =IFERROR(IF(OR(I25="",AND(L25="",M25="")),"",(K25-$L$7)/VLOOKUP(I25,Banco[#All],8,0)),"") ->  | P25: =IFERROR(L25*VLOOKUP(I25,Banco[#All],3,0)+(M25*VLOOKUP(I25,Banco[#All],4,0)),"") ->  | Q25: =IFERROR(P25/VLOOKUP(I25,Banco[#All],3,0),L25) -> 11 | V25: 139880 | W25: 38808 | AO25: 11
B26: C | C26: =IFERROR(VLOOKUP(I26,BANCO!A:J,10,0),"no") -> no | D26: 0 | E26: 0.4857142857 | F26: 35 | G26: 17 | H26: CR 46 | I26: 82435 | J26: =IFERROR(VLOOKUP(I26,BANCO!_xlnm.Print_Area,2,0),"") ->  | K26: 44535 | L26: 17 | O26: =IFERROR(IF(OR(I26="",AND(L26="",M26="")),"",(K26-$L$7)/VLOOKUP(I26,Banco[#All],8,0)),"") ->  | P26: =IFERROR(L26*VLOOKUP(I26,Banco[#All],3,0)+(M26*VLOOKUP(I26,Banco[#All],4,0)),"") ->  | Q26: =IFERROR(P26/VLOOKUP(I26,Banco[#All],3,0),L26) -> 17 | V26: 139916 | W26: 153384 | AO26: 17
B27: C | C27: =IFERROR(VLOOKUP(I27,BANCO!A:J,10,0),"no") -> no | D27: 0 | E27: 0.4857142857 | F27: 35 | G27: 17 | H27: CR 47 | I27: 82435 | J27: =IFERROR(VLOOKUP(I27,BANCO!_xlnm.Print_Area,2,0),"") ->  | K27: 44535 | L27: 17 | O27: =IFERROR(IF(OR(I27="",AND(L27="",M27="")),"",(K27-$L$7)/VLOOKUP(I27,Banco[#All],8,0)),"") ->  | P27: =IFERROR(L27*VLOOKUP(I27,Banco[#All],3,0)+(M27*VLOOKUP(I27,Banco[#All],4,0)),"") ->  | Q27: =IFERROR(P27/VLOOKUP(I27,Banco[#All],3,0),L27) -> 17 | V27: 139917 | W27: 157800 | AO27: 17
B28: C | C28: =IFERROR(VLOOKUP(I28,BANCO!A:J,10,0),"no") -> no | D28: 0 | E28: 0.2857142857 | F28: 35 | G28: 10 | H28: CR 49 | I28: 148121 | J28: =IFERROR(VLOOKUP(I28,BANCO!_xlnm.Print_Area,2,0),"") ->  | K28: 44152 | L28: 10 | O28: =IFERROR(IF(OR(I28="",AND(L28="",M28="")),"",(K28-$L$7)/VLOOKUP(I28,Banco[#All],8,0)),"") ->  | P28: =IFERROR(L28*VLOOKUP(I28,Banco[#All],3,0)+(M28*VLOOKUP(I28,Banco[#All],4,0)),"") ->  | Q28: =IFERROR(P28/VLOOKUP(I28,Banco[#All],3,0),L28) -> 10 | V28: 139918 | W28: 58200 | AO28: 10
B29: C | C29: =IFERROR(VLOOKUP(I29,BANCO!A:J,10,0),"no") -> no | D29: 0 | E29: 0.3142857143 | F29: 35 | G29: 11 | H29: CR 52 | I29: 122040 | J29: =IFERROR(VLOOKUP(I29,BANCO!_xlnm.Print_Area,2,0),"") ->  | K29: 44141 | L29: 11 | O29: =IFERROR(IF(OR(I29="",AND(L29="",M29="")),"",(K29-$L$7)/VLOOKUP(I29,Banco[#All],8,0)),"") ->  | P29: =IFERROR(L29*VLOOKUP(I29,Banco[#All],3,0)+(M29*VLOOKUP(I29,Banco[#All],4,0)),"") ->  | Q29: =IFERROR(P29/VLOOKUP(I29,Banco[#All],3,0),L29) -> 11 | V29: 148116 | W29: 23400 | AO29: 11
B30: C | C30: =IFERROR(VLOOKUP(I30,BANCO!A:J,10,0),"no") -> no | D30: 0 | E30: 0.5357142857 | F30: =IF(AND(S30="Drive em Manutenção",Q30>0),7,28) -> 28 | G30: 15 | H30: CR 54 | I30: 122040 | J30: =IFERROR(VLOOKUP(I30,BANCO!_xlnm.Print_Area,2,0),"") ->  | K30: 44141 | L30: 15 | O30: =IFERROR(IF(OR(I30="",AND(L30="",M30="")),"",(K30-$L$7)/VLOOKUP(I30,Banco[#All],8,0)),"") ->  | P30: =IFERROR(L30*VLOOKUP(I30,Banco[#All],3,0)+(M30*VLOOKUP(I30,Banco[#All],4,0)),"") ->  | Q30: =IFERROR(P30/VLOOKUP(I30,Banco[#All],3,0),L30) -> 15 | V30: 151548 | W30: 102000 | AO30: 15
B31: C | C31: =IFERROR(VLOOKUP(I31,BANCO!A:J,10,0),"no") -> no | D31: 0 | E31: 0.2857142857 | F31: =IF(AND(S31="Drive em Manutenção",Q31>0),7,28) -> 28 | G31: 8 | H31: CR 57 | I31: 121806 | J31: =IFERROR(VLOOKUP(I31,BANCO!_xlnm.Print_Area,2,0),"") ->  | K31: 44485 | L31: 8 | O31: =IFERROR(IF(OR(I31="",AND(L31="",M31="")),"",(K31-$L$7)/VLOOKUP(I31,Banco[#All],8,0)),"") ->  | P31: =IFERROR(L31*VLOOKUP(I31,Banco[#All],3,0)+(M31*VLOOKUP(I31,Banco[#All],4,0)),"") ->  | Q31: =IFERROR(P31/VLOOKUP(I31,Banco[#All],3,0),L31) -> 8 | V31: (vazio) | W31: 0 | AO31: 8
B32: C | C32: =IFERROR(VLOOKUP(I32,BANCO!A:J,10,0),"no") -> no | D32: 0 | E32: 0.4285714286 | F32: =IF(AND(S32="Drive em Manutenção",Q32>0),7,35) -> 35 | G32: 15 | H32: CR 58 | I32: 122040 | J32: =IFERROR(VLOOKUP(I32,BANCO!_xlnm.Print_Area,2,0),"") ->  | K32: 44137 | L32: 15 | O32: =IFERROR(IF(OR(I32="",AND(L32="",M32="")),"",(K32-$L$7)/VLOOKUP(I32,Banco[#All],8,0)),"") ->  | P32: =IFERROR(L32*VLOOKUP(I32,Banco[#All],3,0)+(M32*VLOOKUP(I32,Banco[#All],4,0)),"") ->  | Q32: =IFERROR(P32/VLOOKUP(I32,Banco[#All],3,0),L32) -> 15 | V32: Total Geral | W32: 2674596 | AO32: 15
B33: C | C33: =IFERROR(VLOOKUP(I33,BANCO!A:J,10,0),"no") -> no | D33: 0 | E33: 0.2857142857 | F33: =IF(AND(S33="Drive em Manutenção",Q33>0),7,35) -> 35 | G33: 10 | H33: CR 59 | I33: 121807 | J33: =IFERROR(VLOOKUP(I33,BANCO!_xlnm.Print_Area,2,0),"") ->  | K33: 44120 | L33: 10 | O33: =IFERROR(IF(OR(I33="",AND(L33="",M33="")),"",(K33-$L$7)/VLOOKUP(I33,Banco[#All],8,0)),"") ->  | P33: =IFERROR(L33*VLOOKUP(I33,Banco[#All],3,0)+(M33*VLOOKUP(I33,Banco[#All],4,0)),"") ->  | Q33: =IFERROR(P33/VLOOKUP(I33,Banco[#All],3,0),L33) -> 10 | AO33: 10
B34: C | C34: =IFERROR(VLOOKUP(I34,BANCO!A:J,10,0),"no") -> no | D34: 0 | E34: 0.3428571429 | F34: =IF(AND(S34="Drive em Manutenção",Q34>0),7,35) -> 35 | G34: 12 | H34: CR 60 | I34: 74158 | J34: =IFERROR(VLOOKUP(I34,BANCO!_xlnm.Print_Area,2,0),"") ->  | K34: 44507 | L34: 12 | O34: =IFERROR(IF(OR(I34="",AND(L34="",M34="")),"",(K34-$L$7)/VLOOKUP(I34,Banco[#All],8,0)),"") ->  | P34: =IFERROR(L34*VLOOKUP(I34,Banco[#All],3,0)+(M34*VLOOKUP(I34,Banco[#All],4,0)),"") ->  | Q34: =IFERROR(P34/VLOOKUP(I34,Banco[#All],3,0),L34) -> 12 | AO34: 12
B35: C | C35: =IFERROR(VLOOKUP(I35,BANCO!A:J,10,0),"no") -> no | D35: 0 | E35: 0.4571428571 | F35: =IF(AND(S35="Drive em Manutenção",Q35>0),7,35) -> 35 | G35: 16 | H35: CR 61 | I35: 74158 | J35: =IFERROR(VLOOKUP(I35,BANCO!_xlnm.Print_Area,2,0),"") ->  | K35: 44470 | L35: 16 | O35: =IFERROR(IF(OR(I35="",AND(L35="",M35="")),"",(K35-$L$7)/VLOOKUP(I35,Banco[#All],8,0)),"") ->  | P35: =IFERROR(L35*VLOOKUP(I35,Banco[#All],3,0)+(M35*VLOOKUP(I35,Banco[#All],4,0)),"") ->  | Q35: =IFERROR(P35/VLOOKUP(I35,Banco[#All],3,0),L35) -> 16 | AO35: 16
B36: C | C36: =IFERROR(VLOOKUP(I36,BANCO!A:J,10,0),"no") -> no | D36: 0 | E36: 0.4571428571 | F36: =IF(AND(S36="Drive em Manutenção",Q36>0),7,35) -> 35 | G36: 16 | H36: CR 62 | I36: 122040 | J36: =IFERROR(VLOOKUP(I36,BANCO!_xlnm.Print_Area,2,0),"") ->  | K36: 44156 | L36: 16 | O36: =IFERROR(IF(OR(I36="",AND(L36="",M36="")),"",(K36-$L$7)/VLOOKUP(I36,Banco[#All],8,0)),"") ->  | P36: =IFERROR(L36*VLOOKUP(I36,Banco[#All],3,0)+(M36*VLOOKUP(I36,Banco[#All],4,0)),"") ->  | Q36: =IFERROR(P36/VLOOKUP(I36,Banco[#All],3,0),L36) -> 16 | AO36: 16
B37: C | C37: =IFERROR(VLOOKUP(I37,BANCO!A:J,10,0),"no") -> no | D37: 0 | E37: 0.4 | F37: =IF(AND(S37="Drive em Manutenção",Q37>0),6,30) -> 30 | G37: 12 | H37: CR63 | I37: 139880 | J37: =IFERROR(VLOOKUP(I37,BANCO!_xlnm.Print_Area,2,0),"") ->  | K37: 44154 | L37: 12 | O37: =IFERROR(IF(OR(I37="",AND(L37="",M37="")),"",(K37-$L$7)/VLOOKUP(I37,Banco[#All],8,0)),"") ->  | P37: =IFERROR(L37*VLOOKUP(I37,Banco[#All],3,0)+(M37*VLOOKUP(I37,Banco[#All],4,0)),"") ->  | Q37: =IFERROR(P37/VLOOKUP(I37,Banco[#All],3,0),L37) -> 12 | AO37: 12
B38: C | C38: =IFERROR(VLOOKUP(I38,BANCO!A:J,10,0),"no") -> no | D38: 0 | E38: 0.4857142857 | F38: =IF(AND(S38="Drive em Manutenção",Q38>0),7,35) -> 35 | G38: 17 | H38: CR 64 | I38: 74158 | J38: =IFERROR(VLOOKUP(I38,BANCO!_xlnm.Print_Area,2,0),"") ->  | K38: 44470 | L38: 17 | O38: =IFERROR(IF(OR(I38="",AND(L38="",M38="")),"",(K38-$L$7)/VLOOKUP(I38,Banco[#All],8,0)),"") ->  | P38: =IFERROR(L38*VLOOKUP(I38,Banco[#All],3,0)+(M38*VLOOKUP(I38,Banco[#All],4,0)),"") ->  | Q38: =IFERROR(P38/VLOOKUP(I38,Banco[#All],3,0),L38) -> 17 | AO38: 17
B39: C | C39: =IFERROR(VLOOKUP(I39,BANCO!A:J,10,0),"no") -> no | D39: 0 | E39: 0.4857142857 | F39: 35 | G39: 17 | H39: CR 65 | I39: 122040 | J39: =IFERROR(VLOOKUP(I39,BANCO!_xlnm.Print_Area,2,0),"") ->  | K39: 44138 | L39: 17 | O39: =IFERROR(IF(OR(I39="",AND(L39="",M39="")),"",(K39-$L$7)/VLOOKUP(I39,Banco[#All],8,0)),"") ->  | P39: =IFERROR(L39*VLOOKUP(I39,Banco[#All],3,0)+(M39*VLOOKUP(I39,Banco[#All],4,0)),"") ->  | Q39: =IFERROR(P39/VLOOKUP(I39,Banco[#All],3,0),L39) -> 17 | AO39: 17
B40: C | C40: =IFERROR(VLOOKUP(I40,BANCO!A:J,10,0),"no") -> 1,5L Dec | D40: 0 | E40: 0.4857142857 | F40: 35 | G40: 17 | H40: CR 67 | I40: 74161 | J40: =IFERROR(VLOOKUP(I40,BANCO!_xlnm.Print_Area,2,0),"") -> 1500X8 DECORADO | K40: 44531 | L40: 17 | O40: =IFERROR(IF(OR(I40="",AND(L40="",M40="")),"",(K40-$L$7)/VLOOKUP(I40,Banco[#All],8,0)),"") -> 0.9854014599 | P40: =IFERROR(L40*VLOOKUP(I40,Banco[#All],3,0)+(M40*VLOOKUP(I40,Banco[#All],4,0)),"") -> 11424 | Q40: =IFERROR(P40/VLOOKUP(I40,Banco[#All],3,0),L40) -> 17 | AO40: 17
B41: C | C41: =IFERROR(VLOOKUP(I41,BANCO!A:J,10,0),"no") -> 1,5L Dec | D41: 0 | E41: 0.4857142857 | F41: 35 | G41: 17 | H41: CR 68 | I41: 74161 | J41: =IFERROR(VLOOKUP(I41,BANCO!_xlnm.Print_Area,2,0),"") -> 1500X8 DECORADO | K41: 44529 | L41: 17 | O41: =IFERROR(IF(OR(I41="",AND(L41="",M41="")),"",(K41-$L$7)/VLOOKUP(I41,Banco[#All],8,0)),"") -> 0.9817518248 | P41: =IFERROR(L41*VLOOKUP(I41,Banco[#All],3,0)+(M41*VLOOKUP(I41,Banco[#All],4,0)),"") -> 11424 | Q41: =IFERROR(P41/VLOOKUP(I41,Banco[#All],3,0),L41) -> 17 | AO41: 17
B42: C | C42: =IFERROR(VLOOKUP(I42,BANCO!A:J,10,0),"no") -> no | D42: 0 | E42: 0.5428571429 | F42: 35 | G42: 19 | H42: CR 73 | I42: 74390 | J42: =IFERROR(VLOOKUP(I42,BANCO!_xlnm.Print_Area,2,0),"") ->  | K42: 44505 | L42: 19 | O42: =IFERROR(IF(OR(I42="",AND(L42="",M42="")),"",(K42-$L$7)/VLOOKUP(I42,Banco[#All],8,0)),"") ->  | P42: =IFERROR(L42*VLOOKUP(I42,Banco[#All],3,0)+(M42*VLOOKUP(I42,Banco[#All],4,0)),"") ->  | Q42: =IFERROR(P42/VLOOKUP(I42,Banco[#All],3,0),L42) -> 19 | AO42: 19
B43: C | C43: =IFERROR(VLOOKUP(I43,BANCO!A:J,10,0),"no") -> no | D43: 0 | E43: 0.3714285714 | F43: 35 | G43: 13 | H43: CR 74 | I43: 97243 | J43: =IFERROR(VLOOKUP(I43,BANCO!_xlnm.Print_Area,2,0),"") ->  | K43: 44497 | L43: 13 | O43: =IFERROR(IF(OR(I43="",AND(L43="",M43="")),"",(K43-$L$7)/VLOOKUP(I43,Banco[#All],8,0)),"") ->  | P43: =IFERROR(L43*VLOOKUP(I43,Banco[#All],3,0)+(M43*VLOOKUP(I43,Banco[#All],4,0)),"") ->  | Q43: =IFERROR(P43/VLOOKUP(I43,Banco[#All],3,0),L43) -> 13 | AO43: 13
B44: C | C44: =IFERROR(VLOOKUP(I44,BANCO!A:J,10,0),"no") -> no | D44: 0 | E44: 0.8285714286 | F44: 35 | G44: 29 | H44: CR 75 | I44: 82435 | J44: =IFERROR(VLOOKUP(I44,BANCO!_xlnm.Print_Area,2,0),"") ->  | K44: 44533 | L44: 29 | O44: =IFERROR(IF(OR(I44="",AND(L44="",M44="")),"",(K44-$L$7)/VLOOKUP(I44,Banco[#All],8,0)),"") ->  | P44: =IFERROR(L44*VLOOKUP(I44,Banco[#All],3,0)+(M44*VLOOKUP(I44,Banco[#All],4,0)),"") ->  | Q44: =IFERROR(P44/VLOOKUP(I44,Banco[#All],3,0),L44) -> 29 | AO44: 29
B45: C | C45: =IFERROR(VLOOKUP(I45,BANCO!A:J,10,0),"no") -> 1,5L Dec | D45: 0 | E45: 0.8285714286 | F45: 35 | G45: 29 | H45: CR 76 | I45: 74161 | J45: =IFERROR(VLOOKUP(I45,BANCO!_xlnm.Print_Area,2,0),"") -> 1500X8 DECORADO | K45: 44532 | L45: 29 | O45: =IFERROR(IF(OR(I45="",AND(L45="",M45="")),"",(K45-$L$7)/VLOOKUP(I45,Banco[#All],8,0)),"") -> 0.9872262774 | P45: =IFERROR(L45*VLOOKUP(I45,Banco[#All],3,0)+(M45*VLOOKUP(I45,Banco[#All],4,0)),"") -> 19488 | Q45: =IFERROR(P45/VLOOKUP(I45,Banco[#All],3,0),L45) -> 29 | AO45: 29
B46: C | C46: =IFERROR(VLOOKUP(I46,BANCO!A:J,10,0),"no") -> 1,5L Dec | D46: 0 | E46: 0.8 | F46: 35 | G46: 28 | H46: CR 77 | I46: 74161 | J46: =IFERROR(VLOOKUP(I46,BANCO!_xlnm.Print_Area,2,0),"") -> 1500X8 DECORADO | K46: 44531 | L46: 28 | O46: =IFERROR(IF(OR(I46="",AND(L46="",M46="")),"",(K46-$L$7)/VLOOKUP(I46,Banco[#All],8,0)),"") -> 0.9854014599 | P46: =IFERROR(L46*VLOOKUP(I46,Banco[#All],3,0)+(M46*VLOOKUP(I46,Banco[#All],4,0)),"") -> 18816 | Q46: =IFERROR(P46/VLOOKUP(I46,Banco[#All],3,0),L46) -> 28 | AO46: 28
B47: C | C47: =IFERROR(VLOOKUP(I47,BANCO!A:J,10,0),"no") -> no | D47: 0 | E47: 0.7714285714 | F47: 35 | G47: 27 | H47: CR78 | I47: 82435 | J47: =IFERROR(VLOOKUP(I47,BANCO!_xlnm.Print_Area,2,0),"") ->  | K47: 44533 | L47: 27 | O47: =IFERROR(IF(OR(I47="",AND(L47="",M47="")),"",(K47-$L$7)/VLOOKUP(I47,Banco[#All],8,0)),"") ->  | P47: =IFERROR(L47*VLOOKUP(I47,Banco[#All],3,0)+(M47*VLOOKUP(I47,Banco[#All],4,0)),"") ->  | Q47: =IFERROR(P47/VLOOKUP(I47,Banco[#All],3,0),L47) -> 27 | AO47: 27
B48: C | C48: =IFERROR(VLOOKUP(I48,BANCO!A:J,10,0),"no") -> 1,5L Dec | D48: 0 | E48: 0.7714285714 | F48: 35 | G48: 27 | H48: CR79 | I48: 74161 | J48: =IFERROR(VLOOKUP(I48,BANCO!_xlnm.Print_Area,2,0),"") -> 1500X8 DECORADO | K48: 44531 | L48: 27 | O48: =IFERROR(IF(OR(I48="",AND(L48="",M48="")),"",(K48-$L$7)/VLOOKUP(I48,Banco[#All],8,0)),"") -> 0.9854014599 | P48: =IFERROR(L48*VLOOKUP(I48,Banco[#All],3,0)+(M48*VLOOKUP(I48,Banco[#All],4,0)),"") -> 18144 | Q48: =IFERROR(P48/VLOOKUP(I48,Banco[#All],3,0),L48) -> 27 | AO48: 27
B49: C | C49: =IFERROR(VLOOKUP(I49,BANCO!A:J,10,0),"no") -> no | D49: 0 | E49: 0.2857142857 | F49: 35 | G49: 10 | H49: CR80 | I49: 122040 | J49: =IFERROR(VLOOKUP(I49,BANCO!_xlnm.Print_Area,2,0),"") ->  | K49: 44156 | L49: 10 | O49: =IFERROR(IF(OR(I49="",AND(L49="",M49="")),"",(K49-$L$7)/VLOOKUP(I49,Banco[#All],8,0)),"") ->  | P49: =IFERROR(L49*VLOOKUP(I49,Banco[#All],3,0)+(M49*VLOOKUP(I49,Banco[#All],4,0)),"") ->  | Q49: =IFERROR(P49/VLOOKUP(I49,Banco[#All],3,0),L49) -> 10 | AO49: 10
B50: C | C50: =IFERROR(VLOOKUP(I50,BANCO!A:J,10,0),"no") -> 1,5L Dec | D50: 0 | E50: 0.7714285714 | F50: 35 | G50: 27 | H50: CR81 | I50: 74161 | J50: =IFERROR(VLOOKUP(I50,BANCO!_xlnm.Print_Area,2,0),"") -> 1500X8 DECORADO | K50: 44501 | L50: 27 | O50: =IFERROR(IF(OR(I50="",AND(L50="",M50="")),"",(K50-$L$7)/VLOOKUP(I50,Banco[#All],8,0)),"") -> 0.9306569343 | P50: =IFERROR(L50*VLOOKUP(I50,Banco[#All],3,0)+(M50*VLOOKUP(I50,Banco[#All],4,0)),"") -> 18144 | Q50: =IFERROR(P50/VLOOKUP(I50,Banco[#All],3,0),L50) -> 27 | AO50: 27
B51: C | C51: =IFERROR(VLOOKUP(I51,BANCO!A:J,10,0),"no") -> no | D51: 1 | E51: 0.07142857143 | F51: =IF(AND(S51="Drive em Manutenção",Q51>0),7,28) -> 28 | G51: 0 | H51: CR 83 | I51: 139917 | J51: =IFERROR(VLOOKUP(I51,BANCO!_xlnm.Print_Area,2,0),"") ->  | K51: 44108 | L51: 2 | O51: =IFERROR(IF(OR(I51="",AND(L51="",M51="")),"",(K51-$L$7)/VLOOKUP(I51,Banco[#All],8,0)),"") ->  | P51: =IFERROR(L51*VLOOKUP(I51,Banco[#All],3,0)+(M51*VLOOKUP(I51,Banco[#All],4,0)),"") ->  | Q51: =IFERROR(P51/VLOOKUP(I51,Banco[#All],3,0),L51) -> 2 | AO51: 2
B52: C | C52: =IFERROR(VLOOKUP(I52,BANCO!A:J,10,0),"no") -> 1,5L Dec | D52: 0 | E52: 1.035714286 | F52: =IF(AND(S52="Drive em Manutenção",Q52>0),7,28) -> 28 | G52: 29 | H52: CR 84 | I52: 74161 | J52: =IFERROR(VLOOKUP(I52,BANCO!_xlnm.Print_Area,2,0),"") -> 1500X8 DECORADO | K52: 44531 | L52: 29 | O52: =IFERROR(IF(OR(I52="",AND(L52="",M52="")),"",(K52-$L$7)/VLOOKUP(I52,Banco[#All],8,0)),"") -> 0.9854014599 | P52: =IFERROR(L52*VLOOKUP(I52,Banco[#All],3,0)+(M52*VLOOKUP(I52,Banco[#All],4,0)),"") -> 19488 | Q52: =IFERROR(P52/VLOOKUP(I52,Banco[#All],3,0),L52) -> 29 | AO52: 29
A53: RUA B | B53: =LEFT(H53,2) -> CR | C53: Classificação | D53: Vazio | E53: Ocupação | F53: Cap. | G53: Plts Ocupados | H53: CR 85 | I53: 121807 | J53: =IFERROR(VLOOKUP(I53,BANCO!_xlnm.Print_Area,2,0),"") ->  | K53: 44118 | L53: 13 | O53: =IFERROR(IF(OR(I53="",AND(L53="",M53="")),"",(K53-$L$7)/VLOOKUP(I53,Banco[#All],8,0)),"") ->  | P53: =IFERROR(L53*VLOOKUP(I53,Banco[#All],3,0)+(M53*VLOOKUP(I53,Banco[#All],4,0)),"") ->  | Q53: =IFERROR(P53/VLOOKUP(I53,Banco[#All],3,0),L53) -> 13 | AO53: chep
B54: =LEFT(H54,1) -> C | C54: =IFERROR(VLOOKUP(I54,BANCO!A:J,10,0),"no") -> 1,5L Dec | D54: =IF(G54<>0,0,1) -> 0 | E54: =IFERROR(ROUNDUP(Q54,0)/F54,"NO") -> 0.7714285714 | F54: =IF(AND(S54="Drive em Manutenção",Q54>0),7,35) -> 35 | G54: 27 | H54: CR 86 | I54: 74161 | J54: =IFERROR(VLOOKUP(I54,BANCO!_xlnm.Print_Area,2,0),"") -> 1500X8 DECORADO | K54: 44532 | L54: 27 | O54: =IFERROR(IF(OR(I54="",AND(L54="",M54="")),"",(K54-$L$7)/VLOOKUP(I54,Banco[#All],8,0)),"") -> 0.9872262774 | P54: =IFERROR(L54*VLOOKUP(I54,Banco[#All],3,0)+(M54*VLOOKUP(I54,Banco[#All],4,0)),"") -> 18144 | Q54: =IFERROR(P54/VLOOKUP(I54,Banco[#All],3,0),L54) -> 27 | AO54: =IFERROR(IF(Q54>0.4,ROUNDUP(Q54,0),0),0) -> 27
B55: C | C55: =IFERROR(VLOOKUP(I55,BANCO!A:J,10,0),"no") -> 1,5L Dec | D55: 0 | E55: 0.7714285714 | F55: 35 | G55: 27 | H55: CR 87 | I55: 74161 | J55: =IFERROR(VLOOKUP(I55,BANCO!_xlnm.Print_Area,2,0),"") -> 1500X8 DECORADO | K55: 44530 | L55: 27 | O55: =IFERROR(IF(OR(I55="",AND(L55="",M55="")),"",(K55-$L$7)/VLOOKUP(I55,Banco[#All],8,0)),"") -> 0.9835766423 | P55: =IFERROR(L55*VLOOKUP(I55,Banco[#All],3,0)+(M55*VLOOKUP(I55,Banco[#All],4,0)),"") -> 18144 | Q55: =IFERROR(P55/VLOOKUP(I55,Banco[#All],3,0),L55) -> 27 | AO55: 27
B56: C | C56: =IFERROR(VLOOKUP(I56,BANCO!A:J,10,0),"no") -> 1,5L Dec | D56: 0 | E56: 0.7714285714 | F56: 35 | G56: 27 | H56: CR 88 | I56: 74161 | J56: =IFERROR(VLOOKUP(I56,BANCO!_xlnm.Print_Area,2,0),"") -> 1500X8 DECORADO | K56: 44533 | L56: 27 | O56: =IFERROR(IF(OR(I56="",AND(L56="",M56="")),"",(K56-$L$7)/VLOOKUP(I56,Banco[#All],8,0)),"") -> 0.9890510949 | P56: =IFERROR(L56*VLOOKUP(I56,Banco[#All],3,0)+(M56*VLOOKUP(I56,Banco[#All],4,0)),"") -> 18144 | Q56: =IFERROR(P56/VLOOKUP(I56,Banco[#All],3,0),L56) -> 27 | AO56: 27
B57: C | C57: =IFERROR(VLOOKUP(I57,BANCO!A:J,10,0),"no") -> no | D57: 0 | E57: 0.6 | F57: 35 | G57: 21 | H57: CR 89 | I57: 97243 | J57: =IFERROR(VLOOKUP(I57,BANCO!_xlnm.Print_Area,2,0),"") ->  | K57: 44499 | L57: 21 | O57: =IFERROR(IF(OR(I57="",AND(L57="",M57="")),"",(K57-$L$7)/VLOOKUP(I57,Banco[#All],8,0)),"") ->  | P57: =IFERROR(L57*VLOOKUP(I57,Banco[#All],3,0)+(M57*VLOOKUP(I57,Banco[#All],4,0)),"") ->  | Q57: =IFERROR(P57/VLOOKUP(I57,Banco[#All],3,0),L57) -> 21 | AO57: 21
B58: C | C58: =IFERROR(VLOOKUP(I58,BANCO!A:J,10,0),"no") -> 1,5L Dec | D58: 0 | E58: 0.7714285714 | F58: 35 | G58: 27 | H58: CR 90 | I58: 74161 | J58: =IFERROR(VLOOKUP(I58,BANCO!_xlnm.Print_Area,2,0),"") -> 1500X8 DECORADO | K58: 44530 | L58: 27 | O58: =IFERROR(IF(OR(I58="",AND(L58="",M58="")),"",(K58-$L$7)/VLOOKUP(I58,Banco[#All],8,0)),"") -> 0.9835766423 | P58: =IFERROR(L58*VLOOKUP(I58,Banco[#All],3,0)+(M58*VLOOKUP(I58,Banco[#All],4,0)),"") -> 18144 | Q58: =IFERROR(P58/VLOOKUP(I58,Banco[#All],3,0),L58) -> 27 | AO58: 27
B59: C | C59: =IFERROR(VLOOKUP(I59,BANCO!A:J,10,0),"no") -> no | D59: 0 | E59: 0.4285714286 | F59: 35 | G59: 15 | H59: CR 91 | I59: 122040 | J59: =IFERROR(VLOOKUP(I59,BANCO!_xlnm.Print_Area,2,0),"") ->  | K59: 44136 | L59: 15 | O59: =IFERROR(IF(OR(I59="",AND(L59="",M59="")),"",(K59-$L$7)/VLOOKUP(I59,Banco[#All],8,0)),"") ->  | P59: =IFERROR(L59*VLOOKUP(I59,Banco[#All],3,0)+(M59*VLOOKUP(I59,Banco[#All],4,0)),"") ->  | Q59: =IFERROR(P59/VLOOKUP(I59,Banco[#All],3,0),L59) -> 15 | AO59: 15
B60: C | C60: =IFERROR(VLOOKUP(I60,BANCO!A:J,10,0),"no") -> 1,5L Dec | D60: 0 | E60: 0.7714285714 | F60: 35 | G60: 27 | H60: CR 92 | I60: 74161 | J60: =IFERROR(VLOOKUP(I60,BANCO!_xlnm.Print_Area,2,0),"") -> 1500X8 DECORADO | K60: 44529 | L60: 27 | O60: =IFERROR(IF(OR(I60="",AND(L60="",M60="")),"",(K60-$L$7)/VLOOKUP(I60,Banco[#All],8,0)),"") -> 0.9817518248 | P60: =IFERROR(L60*VLOOKUP(I60,Banco[#All],3,0)+(M60*VLOOKUP(I60,Banco[#All],4,0)),"") -> 18144 | Q60: =IFERROR(P60/VLOOKUP(I60,Banco[#All],3,0),L60) -> 27 | AO60: 27
B61: C | C61: =IFERROR(VLOOKUP(I61,BANCO!A:J,10,0),"no") -> 1,5L Dec | D61: 0 | E61: 0.7714285714 | F61: 35 | G61: 27 | H61: CR 93 | I61: 74161 | J61: =IFERROR(VLOOKUP(I61,BANCO!_xlnm.Print_Area,2,0),"") -> 1500X8 DECORADO | K61: 44529 | L61: 27 | O61: =IFERROR(IF(OR(I61="",AND(L61="",M61="")),"",(K61-$L$7)/VLOOKUP(I61,Banco[#All],8,0)),"") -> 0.9817518248 | P61: =IFERROR(L61*VLOOKUP(I61,Banco[#All],3,0)+(M61*VLOOKUP(I61,Banco[#All],4,0)),"") -> 18144 | Q61: =IFERROR(P61/VLOOKUP(I61,Banco[#All],3,0),L61) -> 27 | AO61: 27
B62: C | C62: =IFERROR(VLOOKUP(I62,BANCO!A:J,10,0),"no") -> 1,5L Dec | D62: 0 | E62: 0.7714285714 | F62: 35 | G62: 27 | H62: CR 94 | I62: 74161 | J62: =IFERROR(VLOOKUP(I62,BANCO!_xlnm.Print_Area,2,0),"") -> 1500X8 DECORADO | K62: 44530 | L62: 27 | O62: =IFERROR(IF(OR(I62="",AND(L62="",M62="")),"",(K62-$L$7)/VLOOKUP(I62,Banco[#All],8,0)),"") -> 0.9835766423 | P62: =IFERROR(L62*VLOOKUP(I62,Banco[#All],3,0)+(M62*VLOOKUP(I62,Banco[#All],4,0)),"") -> 18144 | Q62: =IFERROR(P62/VLOOKUP(I62,Banco[#All],3,0),L62) -> 27 | AO62: 27
B63: C | C63: =IFERROR(VLOOKUP(I63,BANCO!A:J,10,0),"no") -> 1,5L Dec | D63: 0 | E63: 0.7714285714 | F63: 35 | G63: 27 | H63: CR 95 | I63: 74161 | J63: =IFERROR(VLOOKUP(I63,BANCO!_xlnm.Print_Area,2,0),"") -> 1500X8 DECORADO | K63: 44533 | L63: 27 | O63: =IFERROR(IF(OR(I63="",AND(L63="",M63="")),"",(K63-$L$7)/VLOOKUP(I63,Banco[#All],8,0)),"") -> 0.9890510949 | P63: =IFERROR(L63*VLOOKUP(I63,Banco[#All],3,0)+(M63*VLOOKUP(I63,Banco[#All],4,0)),"") -> 18144 | Q63: =IFERROR(P63/VLOOKUP(I63,Banco[#All],3,0),L63) -> 27 | AO63: 27
B64: C | C64: =IFERROR(VLOOKUP(I64,BANCO!A:J,10,0),"no") -> 1,5L Dec | D64: 0 | E64: 0.7714285714 | F64: 35 | G64: 27 | H64: CR 96 | I64: 74161 | J64: =IFERROR(VLOOKUP(I64,BANCO!_xlnm.Print_Area,2,0),"") -> 1500X8 DECORADO | K64: 44529 | L64: 27 | O64: =IFERROR(IF(OR(I64="",AND(L64="",M64="")),"",(K64-$L$7)/VLOOKUP(I64,Banco[#All],8,0)),"") -> 0.9817518248 | P64: =IFERROR(L64*VLOOKUP(I64,Banco[#All],3,0)+(M64*VLOOKUP(I64,Banco[#All],4,0)),"") -> 18144 | Q64: =IFERROR(P64/VLOOKUP(I64,Banco[#All],3,0),L64) -> 27 | AO64: 27
B65: C | C65: =IFERROR(VLOOKUP(I65,BANCO!A:J,10,0),"no") -> 1,5L Dec | D65: 0 | E65: 0.7714285714 | F65: 35 | G65: 27 | H65: CR 97 | I65: 74161 | J65: =IFERROR(VLOOKUP(I65,BANCO!_xlnm.Print_Area,2,0),"") -> 1500X8 DECORADO | K65: 44533 | L65: 27 | O65: =IFERROR(IF(OR(I65="",AND(L65="",M65="")),"",(K65-$L$7)/VLOOKUP(I65,Banco[#All],8,0)),"") -> 0.9890510949 | P65: =IFERROR(L65*VLOOKUP(I65,Banco[#All],3,0)+(M65*VLOOKUP(I65,Banco[#All],4,0)),"") -> 18144 | Q65: =IFERROR(P65/VLOOKUP(I65,Banco[#All],3,0),L65) -> 27 | AO65: 27
B66: C | C66: =IFERROR(VLOOKUP(I66,BANCO!A:J,10,0),"no") -> 1,5L Dec | D66: 0 | E66: 0.7428571429 | F66: 35 | G66: 26 | H66: CR 98 | I66: 74161 | J66: =IFERROR(VLOOKUP(I66,BANCO!_xlnm.Print_Area,2,0),"") -> 1500X8 DECORADO | K66: 44530 | L66: 26 | O66: =IFERROR(IF(OR(I66="",AND(L66="",M66="")),"",(K66-$L$7)/VLOOKUP(I66,Banco[#All],8,0)),"") -> 0.9835766423 | P66: =IFERROR(L66*VLOOKUP(I66,Banco[#All],3,0)+(M66*VLOOKUP(I66,Banco[#All],4,0)),"") -> 17472 | Q66: =IFERROR(P66/VLOOKUP(I66,Banco[#All],3,0),L66) -> 26 | AO66: 26
B67: C | C67: =IFERROR(VLOOKUP(I67,BANCO!A:J,10,0),"no") -> no | D67: 0 | E67: 0.5428571429 | F67: 35 | G67: 19 | H67: CR 99 | I67: 74390 | J67: =IFERROR(VLOOKUP(I67,BANCO!_xlnm.Print_Area,2,0),"") ->  | K67: 44506 | L67: 19 | O67: =IFERROR(IF(OR(I67="",AND(L67="",M67="")),"",(K67-$L$7)/VLOOKUP(I67,Banco[#All],8,0)),"") ->  | P67: =IFERROR(L67*VLOOKUP(I67,Banco[#All],3,0)+(M67*VLOOKUP(I67,Banco[#All],4,0)),"") ->  | Q67: =IFERROR(P67/VLOOKUP(I67,Banco[#All],3,0),L67) -> 19 | AO67: 19
B68: C | C68: =IFERROR(VLOOKUP(I68,BANCO!A:J,10,0),"no") -> no | D68: 0 | E68: 0.5142857143 | F68: 35 | G68: 18 | H68: CR 100 | I68: 82435 | J68: =IFERROR(VLOOKUP(I68,BANCO!_xlnm.Print_Area,2,0),"") ->  | K68: 44533 | L68: 18 | O68: =IFERROR(IF(OR(I68="",AND(L68="",M68="")),"",(K68-$L$7)/VLOOKUP(I68,Banco[#All],8,0)),"") ->  | P68: =IFERROR(L68*VLOOKUP(I68,Banco[#All],3,0)+(M68*VLOOKUP(I68,Banco[#All],4,0)),"") ->  | Q68: =IFERROR(P68/VLOOKUP(I68,Banco[#All],3,0),L68) -> 18 | AO68: 18
B69: C | C69: =IFERROR(VLOOKUP(I69,BANCO!A:J,10,0),"no") -> no | D69: 0 | E69: 0.7142857143 | F69: 35 | G69: 25 | H69: CR 101 | I69: 74390 | J69: =IFERROR(VLOOKUP(I69,BANCO!_xlnm.Print_Area,2,0),"") ->  | K69: 44472 | L69: 25 | O69: =IFERROR(IF(OR(I69="",AND(L69="",M69="")),"",(K69-$L$7)/VLOOKUP(I69,Banco[#All],8,0)),"") ->  | P69: =IFERROR(L69*VLOOKUP(I69,Banco[#All],3,0)+(M69*VLOOKUP(I69,Banco[#All],4,0)),"") ->  | Q69: =IFERROR(P69/VLOOKUP(I69,Banco[#All],3,0),L69) -> 25 | AO69: 25
B70: C | C70: =IFERROR(VLOOKUP(I70,BANCO!A:J,10,0),"no") -> no | D70: 0 | E70: 0.4857142857 | F70: 35 | G70: 17 | H70: CR 102 | I70: 74390 | J70: =IFERROR(VLOOKUP(I70,BANCO!_xlnm.Print_Area,2,0),"") ->  | K70: 44506 | L70: 17 | O70: =IFERROR(IF(OR(I70="",AND(L70="",M70="")),"",(K70-$L$7)/VLOOKUP(I70,Banco[#All],8,0)),"") ->  | P70: =IFERROR(L70*VLOOKUP(I70,Banco[#All],3,0)+(M70*VLOOKUP(I70,Banco[#All],4,0)),"") ->  | Q70: =IFERROR(P70/VLOOKUP(I70,Banco[#All],3,0),L70) -> 17 | AO70: 17
B71: C | C71: =IFERROR(VLOOKUP(I71,BANCO!A:J,10,0),"no") -> no | D71: 0 | E71: 0.7142857143 | F71: 35 | G71: 25 | H71: CR 103 | I71: 122040 | J71: =IFERROR(VLOOKUP(I71,BANCO!_xlnm.Print_Area,2,0),"") ->  | K71: 44140 | L71: 25 | O71: =IFERROR(IF(OR(I71="",AND(L71="",M71="")),"",(K71-$L$7)/VLOOKUP(I71,Banco[#All],8,0)),"") ->  | P71: =IFERROR(L71*VLOOKUP(I71,Banco[#All],3,0)+(M71*VLOOKUP(I71,Banco[#All],4,0)),"") ->  | Q71: =IFERROR(P71/VLOOKUP(I71,Banco[#All],3,0),L71) -> 25 | AO71: 25
B72: C | C72: =IFERROR(VLOOKUP(I72,BANCO!A:J,10,0),"no") -> no | D72: 0 | E72: 0.7142857143 | F72: 35 | G72: 25 | H72: CR 104 | I72: 122040 | J72: =IFERROR(VLOOKUP(I72,BANCO!_xlnm.Print_Area,2,0),"") ->  | K72: 44140 | L72: 25 | O72: =IFERROR(IF(OR(I72="",AND(L72="",M72="")),"",(K72-$L$7)/VLOOKUP(I72,Banco[#All],8,0)),"") ->  | P72: =IFERROR(L72*VLOOKUP(I72,Banco[#All],3,0)+(M72*VLOOKUP(I72,Banco[#All],4,0)),"") ->  | Q72: =IFERROR(P72/VLOOKUP(I72,Banco[#All],3,0),L72) -> 25 | AO72: 25
B73: C | C73: =IFERROR(VLOOKUP(I73,BANCO!A:J,10,0),"no") -> no | D73: 0 | E73: 0.75 | F73: =IF(AND(S73="Drive em Manutenção",Q73>0),7,28) -> 28 | G73: 21 | H73: CR 105 | I73: 82428 | J73: =IFERROR(VLOOKUP(I73,BANCO!_xlnm.Print_Area,2,0),"") ->  | K73: 44494 | L73: 21 | O73: =IFERROR(IF(OR(I73="",AND(L73="",M73="")),"",(K73-$L$7)/VLOOKUP(I73,Banco[#All],8,0)),"") ->  | P73: =IFERROR(L73*VLOOKUP(I73,Banco[#All],3,0)+(M73*VLOOKUP(I73,Banco[#All],4,0)),"") ->  | Q73: =IFERROR(P73/VLOOKUP(I73,Banco[#All],3,0),L73) -> 21 | AO73: 21
B74: C | C74: =IFERROR(VLOOKUP(I74,BANCO!A:J,10,0),"no") -> no | D74: 0 | E74: 0.7857142857 | F74: =IF(AND(S74="Drive em Manutenção",Q74>0),7,28) -> 28 | G74: 22 | H74: CR 106 | I74: 82428 | J74: =IFERROR(VLOOKUP(I74,BANCO!_xlnm.Print_Area,2,0),"") ->  | K74: 44495 | L74: 22 | O74: =IFERROR(IF(OR(I74="",AND(L74="",M74="")),"",(K74-$L$7)/VLOOKUP(I74,Banco[#All],8,0)),"") ->  | P74: =IFERROR(L74*VLOOKUP(I74,Banco[#All],3,0)+(M74*VLOOKUP(I74,Banco[#All],4,0)),"") ->  | Q74: =IFERROR(P74/VLOOKUP(I74,Banco[#All],3,0),L74) -> 22 | AO74: 22
B75: C | C75: =IFERROR(VLOOKUP(I75,BANCO!A:J,10,0),"no") -> no | D75: 0 | E75: 0.8857142857 | F75: =IF(AND(S75="Drive em Manutenção",Q75>0),7,35) -> 35 | G75: 31 | H75: CR 107 | I75: 82428 | J75: =IFERROR(VLOOKUP(I75,BANCO!_xlnm.Print_Area,2,0),"") ->  | K75: 44494 | L75: 31 | O75: =IFERROR(IF(OR(I75="",AND(L75="",M75="")),"",(K75-$L$7)/VLOOKUP(I75,Banco[#All],8,0)),"") ->  | P75: =IFERROR(L75*VLOOKUP(I75,Banco[#All],3,0)+(M75*VLOOKUP(I75,Banco[#All],4,0)),"") ->  | Q75: =IFERROR(P75/VLOOKUP(I75,Banco[#All],3,0),L75) -> 31 | AO75: 31
B76: C | C76: =IFERROR(VLOOKUP(I76,BANCO!A:J,10,0),"no") -> no | D76: 0 | E76: 0.8857142857 | F76: =IF(AND(S76="Drive em Manutenção",Q76>0),7,35) -> 35 | G76: =IFERROR(IF(Q76<=4,0,ROUNDUP(Q76,0)),0) -> 31 | H76: CR 108 | I76: 82428 | J76: =IFERROR(VLOOKUP(I76,BANCO!_xlnm.Print_Area,2,0),"") ->  | K76: 44497 | L76: 31 | O76: =IFERROR(IF(OR(I76="",AND(L76="",M76="")),"",(K76-$L$7)/VLOOKUP(I76,Banco[#All],8,0)),"") ->  | P76: =IFERROR(L76*VLOOKUP(I76,Banco[#All],3,0)+(M76*VLOOKUP(I76,Banco[#All],4,0)),"") ->  | Q76: =IFERROR(P76/VLOOKUP(I76,Banco[#All],3,0),L76) -> 31 | AO76: 31
B77: C | C77: =IFERROR(VLOOKUP(I77,BANCO!A:J,10,0),"no") -> no | D77: 0 | E77: 0.6 | F77: =IF(AND(S77="Drive em Manutenção",Q77>0),7,35) -> 35 | G77: 21 | H77: CR 109 | I77: 82428 | J77: =IFERROR(VLOOKUP(I77,BANCO!_xlnm.Print_Area,2,0),"") ->  | K77: 44495 | L77: 21 | O77: =IFERROR(IF(OR(I77="",AND(L77="",M77="")),"",(K77-$L$7)/VLOOKUP(I77,Banco[#All],8,0)),"") ->  | P77: =IFERROR(L77*VLOOKUP(I77,Banco[#All],3,0)+(M77*VLOOKUP(I77,Banco[#All],4,0)),"") ->  | Q77: =IFERROR(P77/VLOOKUP(I77,Banco[#All],3,0),L77) -> 21 | AO77: 21
B78: C | C78: =IFERROR(VLOOKUP(I78,BANCO!A:J,10,0),"no") -> no | D78: 0 | E78: 0.6 | F78: =IF(AND(S78="Drive em Manutenção",Q78>0),7,35) -> 35 | G78: 21 | H78: CR 110 | I78: 82428 | J78: =IFERROR(VLOOKUP(I78,BANCO!_xlnm.Print_Area,2,0),"") ->  | K78: 44498 | L78: 21 | O78: =IFERROR(IF(OR(I78="",AND(L78="",M78="")),"",(K78-$L$7)/VLOOKUP(I78,Banco[#All],8,0)),"") ->  | P78: =IFERROR(L78*VLOOKUP(I78,Banco[#All],3,0)+(M78*VLOOKUP(I78,Banco[#All],4,0)),"") ->  | Q78: =IFERROR(P78/VLOOKUP(I78,Banco[#All],3,0),L78) -> 21 | AO78: 21
B79: C | C79: =IFERROR(VLOOKUP(I79,BANCO!A:J,10,0),"no") -> 1,5L Dec | D79: 0 | E79: 0.8 | F79: =IF(AND(S79="Drive em Manutenção",Q79>0),7,35) -> 35 | G79: 28 | H79: CA 054 | I79: 74161 | J79: =IFERROR(VLOOKUP(I79,BANCO!_xlnm.Print_Area,2,0),"") -> 1500X8 DECORADO | K79: 44503 | L79: 28 | O79: =IFERROR(IF(OR(I79="",AND(L79="",M79="")),"",(K79-$L$7)/VLOOKUP(I79,Banco[#All],8,0)),"") -> 0.9343065693 | P79: =IFERROR(L79*VLOOKUP(I79,Banco[#All],3,0)+(M79*VLOOKUP(I79,Banco[#All],4,0)),"") -> 18816 | Q79: =IFERROR(P79/VLOOKUP(I79,Banco[#All],3,0),L79) -> 28 | AO79: 28
B80: C | C80: =IFERROR(VLOOKUP(I80,BANCO!A:J,10,0),"no") -> no | D80: 0 | E80: 5.6 | F80: =IF(AND(S80="Drive em Manutenção",Q80>0),1,5) -> 5 | G80: 28 | H80: CA 061 | I80: 82435 | J80: =IFERROR(VLOOKUP(I80,BANCO!_xlnm.Print_Area,2,0),"") ->  | K80: 44501 | L80: 28 | O80: =IFERROR(IF(OR(I80="",AND(L80="",M80="")),"",(K80-$L$7)/VLOOKUP(I80,Banco[#All],8,0)),"") ->  | P80: =IFERROR(L80*VLOOKUP(I80,Banco[#All],3,0)+(M80*VLOOKUP(I80,Banco[#All],4,0)),"") ->  | Q80: =IFERROR(P80/VLOOKUP(I80,Banco[#All],3,0),L80) -> 28 | AO80: 28
B81: C | C81: =IFERROR(VLOOKUP(I81,BANCO!A:J,10,0),"no") -> no | D81: 0 | E81: 3.857142857 | F81: =IF(AND(S81="Drive em Manutenção",Q81>0),7,35) -> 7 | G81: 27 | H81: CA 066 | I81: 82435 | J81: =IFERROR(VLOOKUP(I81,BANCO!_xlnm.Print_Area,2,0),"") ->  | K81: 44501 | L81: 27 | O81: =IFERROR(IF(OR(I81="",AND(L81="",M81="")),"",(K81-$L$7)/VLOOKUP(I81,Banco[#All],8,0)),"") ->  | P81: =IFERROR(L81*VLOOKUP(I81,Banco[#All],3,0)+(M81*VLOOKUP(I81,Banco[#All],4,0)),"") ->  | Q81: =IFERROR(P81/VLOOKUP(I81,Banco[#All],3,0),L81) -> 27 | S81: Drive em Manutenção | AO81: 27
B82: C | C82: =IFERROR(VLOOKUP(I82,BANCO!A:J,10,0),"no") -> no | D82: 0 | E82: 0.9428571429 | F82: 35 | G82: 33 | H82: CA 068 | I82: 82435 | J82: =IFERROR(VLOOKUP(I82,BANCO!_xlnm.Print_Area,2,0),"") ->  | K82: 44501 | L82: 33 | O82: =IFERROR(IF(OR(I82="",AND(L82="",M82="")),"",(K82-$L$7)/VLOOKUP(I82,Banco[#All],8,0)),"") ->  | P82: =IFERROR(L82*VLOOKUP(I82,Banco[#All],3,0)+(M82*VLOOKUP(I82,Banco[#All],4,0)),"") ->  | Q82: =IFERROR(P82/VLOOKUP(I82,Banco[#All],3,0),L82) -> 33 | AO82: 33
B83: C | C83: =IFERROR(VLOOKUP(I83,BANCO!A:J,10,0),"no") -> no | D83: 0 | E83: 0.9428571429 | F83: 35 | G83: 33 | H83: CA 069 | I83: 82435 | J83: =IFERROR(VLOOKUP(I83,BANCO!_xlnm.Print_Area,2,0),"") ->  | K83: 44501 | L83: 33 | O83: =IFERROR(IF(OR(I83="",AND(L83="",M83="")),"",(K83-$L$7)/VLOOKUP(I83,Banco[#All],8,0)),"") ->  | P83: =IFERROR(L83*VLOOKUP(I83,Banco[#All],3,0)+(M83*VLOOKUP(I83,Banco[#All],4,0)),"") ->  | Q83: =IFERROR(P83/VLOOKUP(I83,Banco[#All],3,0),L83) -> 33 | AO83: 33
B84: C | C84: =IFERROR(VLOOKUP(I84,BANCO!A:J,10,0),"no") -> 1,5L Dec | D84: 0 | E84: 4.714285714 | F84: 7 | G84: 33 | H84: CA070 | I84: 74161 | J84: =IFERROR(VLOOKUP(I84,BANCO!_xlnm.Print_Area,2,0),"") -> 1500X8 DECORADO | K84: 44503 | L84: 33 | O84: =IFERROR(IF(OR(I84="",AND(L84="",M84="")),"",(K84-$L$7)/VLOOKUP(I84,Banco[#All],8,0)),"") -> 0.9343065693 | P84: =IFERROR(L84*VLOOKUP(I84,Banco[#All],3,0)+(M84*VLOOKUP(I84,Banco[#All],4,0)),"") -> 22176 | Q84: =IFERROR(P84/VLOOKUP(I84,Banco[#All],3,0),L84) -> 33 | S84: Drive em Manutenção | AO84: 33
B85: C | C85: =IFERROR(VLOOKUP(I85,BANCO!A:J,10,0),"no") -> no | D85: 0 | E85: 0.9428571429 | F85: 35 | G85: 33 | H85: CA 071 | I85: 82435 | J85: =IFERROR(VLOOKUP(I85,BANCO!_xlnm.Print_Area,2,0),"") ->  | K85: 44486 | L85: 33 | O85: =IFERROR(IF(OR(I85="",AND(L85="",M85="")),"",(K85-$L$7)/VLOOKUP(I85,Banco[#All],8,0)),"") ->  | P85: =IFERROR(L85*VLOOKUP(I85,Banco[#All],3,0)+(M85*VLOOKUP(I85,Banco[#All],4,0)),"") ->  | Q85: =IFERROR(P85/VLOOKUP(I85,Banco[#All],3,0),L85) -> 33 | AO85: 33
B86: C | C86: =IFERROR(VLOOKUP(I86,BANCO!A:J,10,0),"no") -> no | D86: 0 | E86: 0.9428571429 | F86: 35 | G86: 33 | H86: CA 074 | I86: 82435 | J86: =IFERROR(VLOOKUP(I86,BANCO!_xlnm.Print_Area,2,0),"") ->  | K86: 44501 | L86: 33 | O86: =IFERROR(IF(OR(I86="",AND(L86="",M86="")),"",(K86-$L$7)/VLOOKUP(I86,Banco[#All],8,0)),"") ->  | P86: =IFERROR(L86*VLOOKUP(I86,Banco[#All],3,0)+(M86*VLOOKUP(I86,Banco[#All],4,0)),"") ->  | Q86: =IFERROR(P86/VLOOKUP(I86,Banco[#All],3,0),L86) -> 33 | AO86: 33
B87: C | C87: =IFERROR(VLOOKUP(I87,BANCO!A:J,10,0),"no") -> 1,5L Dec | D87: 0 | E87: 0.9428571429 | F87: 35 | G87: 33 | H87: CA 076 | I87: 74161 | J87: =IFERROR(VLOOKUP(I87,BANCO!_xlnm.Print_Area,2,0),"") -> 1500X8 DECORADO | K87: 44492 | L87: 33 | O87: =IFERROR(IF(OR(I87="",AND(L87="",M87="")),"",(K87-$L$7)/VLOOKUP(I87,Banco[#All],8,0)),"") -> 0.9142335766 | P87: =IFERROR(L87*VLOOKUP(I87,Banco[#All],3,0)+(M87*VLOOKUP(I87,Banco[#All],4,0)),"") -> 22176 | Q87: =IFERROR(P87/VLOOKUP(I87,Banco[#All],3,0),L87) -> 33 | AO87: 33
B88: B | C88: =IFERROR(VLOOKUP(I88,BANCO!A:J,10,0),"no") -> 1,5L Dec | D88: 0 | E88: 0.9142857143 | F88: 35 | G88: 32 | H88: CA 077 | I88: 74161 | J88: =IFERROR(VLOOKUP(I88,BANCO!_xlnm.Print_Area,2,0),"") -> 1500X8 DECORADO | K88: 44490 | L88: 32 | O88: =IFERROR(IF(OR(I88="",AND(L88="",M88="")),"",(K88-$L$7)/VLOOKUP(I88,Banco[#All],8,0)),"") -> 0.9105839416 | P88: =IFERROR(L88*VLOOKUP(I88,Banco[#All],3,0)+(M88*VLOOKUP(I88,Banco[#All],4,0)),"") -> 21504 | Q88: =IFERROR(P88/VLOOKUP(I88,Banco[#All],3,0),L88) -> 32 | AO88: 32
B89: =LEFT(H89,1) -> C | C89: =IFERROR(VLOOKUP(I89,BANCO!A:J,10,0),"no") -> 1,5L Dec | D89: 0 | E89: 0.8 | F89: 35 | G89: 28 | H89: CA 078 | I89: 74161 | J89: =IFERROR(VLOOKUP(I89,BANCO!_xlnm.Print_Area,2,0),"") -> 1500X8 DECORADO | K89: 44519 | L89: 28 | O89: =IFERROR(IF(OR(I89="",AND(L89="",M89="")),"",(K89-$L$7)/VLOOKUP(I89,Banco[#All],8,0)),"") -> 0.9635036496 | P89: =IFERROR(L89*VLOOKUP(I89,Banco[#All],3,0)+(M89*VLOOKUP(I89,Banco[#All],4,0)),"") -> 18816 | Q89: =IFERROR(P89/VLOOKUP(I89,Banco[#All],3,0),L89) -> 28 | AO89: 28
B90: C | C90: =IFERROR(VLOOKUP(I90,BANCO!A:J,10,0),"no") -> 1,5L Dec | D90: 0 | E90: 0.7142857143 | F90: 35 | G90: 25 | H90: CA 081 | I90: 74161 | J90: =IFERROR(VLOOKUP(I90,BANCO!_xlnm.Print_Area,2,0),"") -> 1500X8 DECORADO | K90: 44520 | L90: 25 | O90: =IFERROR(IF(OR(I90="",AND(L90="",M90="")),"",(K90-$L$7)/VLOOKUP(I90,Banco[#All],8,0)),"") -> 0.9653284672 | P90: =IFERROR(L90*VLOOKUP(I90,Banco[#All],3,0)+(M90*VLOOKUP(I90,Banco[#All],4,0)),"") -> 16800 | Q90: =IFERROR(P90/VLOOKUP(I90,Banco[#All],3,0),L90) -> 25 | AO90: 25
B91: C | C91: =IFERROR(VLOOKUP(I91,BANCO!A:J,10,0),"no") -> no | D91: 0 | E91: 0.8857142857 | F91: 35 | G91: 31 | H91: CA 082 | I91: 82435 | J91: =IFERROR(VLOOKUP(I91,BANCO!_xlnm.Print_Area,2,0),"") ->  | K91: 44486 | L91: 31 | O91: =IFERROR(IF(OR(I91="",AND(L91="",M91="")),"",(K91-$L$7)/VLOOKUP(I91,Banco[#All],8,0)),"") ->  | P91: =IFERROR(L91*VLOOKUP(I91,Banco[#All],3,0)+(M91*VLOOKUP(I91,Banco[#All],4,0)),"") ->  | Q91: =IFERROR(P91/VLOOKUP(I91,Banco[#All],3,0),L91) -> 31 | AO91: 31
B92: C | C92: =IFERROR(VLOOKUP(I92,BANCO!A:J,10,0),"no") -> no | D92: 0 | E92: 0.1428571429 | F92: 35 | G92: 5 | H92: CA 083 | I92: 74390 | J92: =IFERROR(VLOOKUP(I92,BANCO!_xlnm.Print_Area,2,0),"") ->  | K92: 44472 | L92: 5 | O92: =IFERROR(IF(OR(I92="",AND(L92="",M92="")),"",(K92-$L$7)/VLOOKUP(I92,Banco[#All],8,0)),"") ->  | P92: =IFERROR(L92*VLOOKUP(I92,Banco[#All],3,0)+(M92*VLOOKUP(I92,Banco[#All],4,0)),"") ->  | Q92: =IFERROR(P92/VLOOKUP(I92,Banco[#All],3,0),L92) -> 5 | AO92: 5
B93: C | C93: =IFERROR(VLOOKUP(I93,BANCO!A:J,10,0),"no") -> no | D93: 0 | E93: 0.3142857143 | F93: 35 | G93: 11 | H93: CA 083 | I93: 139226 | J93: =IFERROR(VLOOKUP(I93,BANCO!_xlnm.Print_Area,2,0),"") ->  | K93: 44123 | L93: 11 | M93: 0 | O93: =IFERROR(IF(OR(I93="",AND(L93="",M93="")),"",(K93-$L$7)/VLOOKUP(I93,Banco[#All],8,0)),"") ->  | P93: =IFERROR(L93*VLOOKUP(I93,Banco[#All],3,0)+(M93*VLOOKUP(I93,Banco[#All],4,0)),"") ->  | Q93: =IFERROR(P93/VLOOKUP(I93,Banco[#All],3,0),L93) -> 11 | AO93: 11
B94: C | C94: =IFERROR(VLOOKUP(I94,BANCO!A:J,10,0),"no") -> no | D94: 0 | E94: 1.107142857 | F94: =IF(AND(S94="Drive em Manutenção",Q94>0),7,28) -> 28 | G94: 31 | H94: CA 084 | I94: 82435 | J94: =IFERROR(VLOOKUP(I94,BANCO!_xlnm.Print_Area,2,0),"") ->  | K94: 44501 | L94: 31 | O94: =IFERROR(IF(OR(I94="",AND(L94="",M94="")),"",(K94-$L$7)/VLOOKUP(I94,Banco[#All],8,0)),"") ->  | P94: =IFERROR(L94*VLOOKUP(I94,Banco[#All],3,0)+(M94*VLOOKUP(I94,Banco[#All],4,0)),"") ->  | Q94: =IFERROR(P94/VLOOKUP(I94,Banco[#All],3,0),L94) -> 31 | AO94: 31
B95: C | C95: =IFERROR(VLOOKUP(I95,BANCO!A:J,10,0),"no") -> 1,5L Dec | D95: 0 | E95: 0.9642857143 | F95: =IF(AND(S95="Drive em Manutenção",Q95>0),7,28) -> 28 | G95: 27 | H95: CA 085 | I95: 74161 | J95: =IFERROR(VLOOKUP(I95,BANCO!_xlnm.Print_Area,2,0),"") -> 1500X8 DECORADO | K95: 44518 | L95: 27 | O95: =IFERROR(IF(OR(I95="",AND(L95="",M95="")),"",(K95-$L$7)/VLOOKUP(I95,Banco[#All],8,0)),"") -> 0.9616788321 | P95: =IFERROR(L95*VLOOKUP(I95,Banco[#All],3,0)+(M95*VLOOKUP(I95,Banco[#All],4,0)),"") -> 18144 | Q95: =IFERROR(P95/VLOOKUP(I95,Banco[#All],3,0),L95) -> 27 | AO95: 27
A96: RUA C | B96: =LEFT(H96,2) -> CA | C96: Classificação | D96: Vazio | E96: Ocupação | F96: Cap. | G96: Plts Ocupados | H96: CA 086 | I96: 139226 | J96: =IFERROR(VLOOKUP(I96,BANCO!_xlnm.Print_Area,2,0),"") ->  | K96: 44121 | L96: 25 | M96: 32 | O96: =IFERROR(IF(OR(I96="",AND(L96="",M96="")),"",(K96-$L$7)/VLOOKUP(I96,Banco[#All],8,0)),"") ->  | P96: =IFERROR(L96*VLOOKUP(I96,Banco[#All],3,0)+(M96*VLOOKUP(I96,Banco[#All],4,0)),"") ->  | Q96: =IFERROR(P96/VLOOKUP(I96,Banco[#All],3,0),L96) -> 25 | AO96: chep
B97: =LEFT(H97,1) -> C | C97: =IFERROR(VLOOKUP(I97,BANCO!A:J,10,0),"no") -> no | D97: =IF(G97<>0,0,1) -> 0 | E97: =IFERROR(ROUNDUP(Q97,0)/F97,"NO") -> 0.7142857143 | F97: =IF(AND(S97="Drive em Manutenção",Q97>0),7,35) -> 35 | G97: 25 | H97: CA 087 | I97: 121806 | J97: =IFERROR(VLOOKUP(I97,BANCO!_xlnm.Print_Area,2,0),"") ->  | K97: 44486 | L97: 25 | O97: =IFERROR(IF(OR(I97="",AND(L97="",M97="")),"",(K97-$L$7)/VLOOKUP(I97,Banco[#All],8,0)),"") ->  | P97: =IFERROR(L97*VLOOKUP(I97,Banco[#All],3,0)+(M97*VLOOKUP(I97,Banco[#All],4,0)),"") ->  | Q97: =IFERROR(P97/VLOOKUP(I97,Banco[#All],3,0),L97) -> 25 | AO97: =IFERROR(IF(Q97>0.4,ROUNDUP(Q97,0),0),0) -> 25
B98: C | C98: =IFERROR(VLOOKUP(I98,BANCO!A:J,10,0),"no") -> no | D98: 0 | E98: 0.8857142857 | F98: 35 | G98: 31 | H98: CA 088 | I98: 82435 | J98: =IFERROR(VLOOKUP(I98,BANCO!_xlnm.Print_Area,2,0),"") ->  | K98: 44501 | L98: 31 | O98: =IFERROR(IF(OR(I98="",AND(L98="",M98="")),"",(K98-$L$7)/VLOOKUP(I98,Banco[#All],8,0)),"") ->  | P98: =IFERROR(L98*VLOOKUP(I98,Banco[#All],3,0)+(M98*VLOOKUP(I98,Banco[#All],4,0)),"") ->  | Q98: =IFERROR(P98/VLOOKUP(I98,Banco[#All],3,0),L98) -> 31 | AO98: 31
B99: C | C99: =IFERROR(VLOOKUP(I99,BANCO!A:J,10,0),"no") -> 1,5L Dec | D99: 0 | E99: 0.7142857143 | F99: 35 | G99: 25 | H99: CA 089 | I99: 74161 | J99: =IFERROR(VLOOKUP(I99,BANCO!_xlnm.Print_Area,2,0),"") -> 1500X8 DECORADO | K99: 44484 | L99: 25 | O99: =IFERROR(IF(OR(I99="",AND(L99="",M99="")),"",(K99-$L$7)/VLOOKUP(I99,Banco[#All],8,0)),"") -> 0.8996350365 | P99: =IFERROR(L99*VLOOKUP(I99,Banco[#All],3,0)+(M99*VLOOKUP(I99,Banco[#All],4,0)),"") -> 16800 | Q99: =IFERROR(P99/VLOOKUP(I99,Banco[#All],3,0),L99) -> 25 | AO99: 25
B100: C | C100: =IFERROR(VLOOKUP(I100,BANCO!A:J,10,0),"no") -> no | D100: 1 | E100: 0.05714285714 | F100: 35 | G100: 0 | H100: CA 091 | I100: 139918 | J100: =IFERROR(VLOOKUP(I100,BANCO!_xlnm.Print_Area,2,0),"") ->  | K100: 44051 | L100: 2 | M100: 47 | O100: =IFERROR(IF(OR(I100="",AND(L100="",M100="")),"",(K100-$L$7)/VLOOKUP(I100,Banco[#All],8,0)),"") ->  | P100: =IFERROR(L100*VLOOKUP(I100,Banco[#All],3,0)+(M100*VLOOKUP(I100,Banco[#All],4,0)),"") ->  | Q100: =IFERROR(P100/VLOOKUP(I100,Banco[#All],3,0),L100) -> 2 | AO100: 2
B101: C | C101: =IFERROR(VLOOKUP(I101,BANCO!A:J,10,0),"no") -> no | D101: 0 | E101: 0.8857142857 | F101: 35 | G101: 31 | H101: CA 092 | I101: 82435 | J101: =IFERROR(VLOOKUP(I101,BANCO!_xlnm.Print_Area,2,0),"") ->  | K101: 44502 | L101: 31 | O101: =IFERROR(IF(OR(I101="",AND(L101="",M101="")),"",(K101-$L$7)/VLOOKUP(I101,Banco[#All],8,0)),"") ->  | P101: =IFERROR(L101*VLOOKUP(I101,Banco[#All],3,0)+(M101*VLOOKUP(I101,Banco[#All],4,0)),"") ->  | Q101: =IFERROR(P101/VLOOKUP(I101,Banco[#All],3,0),L101) -> 31 | AO101: 31
B102: C | C102: =IFERROR(VLOOKUP(I102,BANCO!A:J,10,0),"no") -> no | D102: 0 | E102: 0.6571428571 | F102: 35 | G102: 23 | H102: CA 093 | I102: 161354 | J102: =IFERROR(VLOOKUP(I102,BANCO!_xlnm.Print_Area,2,0),"") ->  | K102: 44183 | L102: 23 | O102: =IFERROR(IF(OR(I102="",AND(L102="",M102="")),"",(K102-$L$7)/VLOOKUP(I102,Banco[#All],8,0)),"") ->  | P102: =IFERROR(L102*VLOOKUP(I102,Banco[#All],3,0)+(M102*VLOOKUP(I102,Banco[#All],4,0)),"") ->  | Q102: =IFERROR(P102/VLOOKUP(I102,Banco[#All],3,0),L102) -> 23 | AO102: 23
B103: C | C103: =IFERROR(VLOOKUP(I103,BANCO!A:J,10,0),"no") -> no | D103: 0 | E103: 0.5428571429 | F103: 35 | G103: 19 | H103: CA 095 | I103: 161354 | J103: =IFERROR(VLOOKUP(I103,BANCO!_xlnm.Print_Area,2,0),"") ->  | K103: 44183 | L103: 19 | O103: =IFERROR(IF(OR(I103="",AND(L103="",M103="")),"",(K103-$L$7)/VLOOKUP(I103,Banco[#All],8,0)),"") ->  | P103: =IFERROR(L103*VLOOKUP(I103,Banco[#All],3,0)+(M103*VLOOKUP(I103,Banco[#All],4,0)),"") ->  | Q103: =IFERROR(P103/VLOOKUP(I103,Banco[#All],3,0),L103) -> 19 | AO103: 19
B104: C | C104: =IFERROR(VLOOKUP(I104,BANCO!A:J,10,0),"no") -> 1,5L Dec | D104: 1 | E104: 0.08571428571 | F104: 35 | G104: 0 | H104: CA 097 | I104: 74161 | J104: =IFERROR(VLOOKUP(I104,BANCO!_xlnm.Print_Area,2,0),"") -> 1500X8 DECORADO | K104: 44490 | L104: 3 | O104: =IFERROR(IF(OR(I104="",AND(L104="",M104="")),"",(K104-$L$7)/VLOOKUP(I104,Banco[#All],8,0)),"") -> 0.9105839416 | P104: =IFERROR(L104*VLOOKUP(I104,Banco[#All],3,0)+(M104*VLOOKUP(I104,Banco[#All],4,0)),"") -> 2016 | Q104: =IFERROR(P104/VLOOKUP(I104,Banco[#All],3,0),L104) -> 3 | AO104: 3
B105: C | C105: =IFERROR(VLOOKUP(I105,BANCO!A:J,10,0),"no") -> no | D105: 1 | E105: 0.02857142857 | F105: 35 | G105: 0 | H105: CA 087 | I105: 74390 | J105: =IFERROR(VLOOKUP(I105,BANCO!_xlnm.Print_Area,2,0),"") ->  | K105: 44472 | L105: 1 | O105: =IFERROR(IF(OR(I105="",AND(L105="",M105="")),"",(K105-$L$7)/VLOOKUP(I105,Banco[#All],8,0)),"") ->  | P105: =IFERROR(L105*VLOOKUP(I105,Banco[#All],3,0)+(M105*VLOOKUP(I105,Banco[#All],4,0)),"") ->  | Q105: =IFERROR(P105/VLOOKUP(I105,Banco[#All],3,0),L105) -> 1 | AO105: 1
B106: P | C106: =IFERROR(VLOOKUP(I106,BANCO!A:J,10,0),"no") -> no | D106: 1 | E106: 0 | F106: 35 | G106: 0 | H106: PICK IN | I106: 139880 | J106: =IFERROR(VLOOKUP(I106,BANCO!_xlnm.Print_Area,2,0),"") ->  | K106: 44154 | L106: 0 | M106: 119 | O106: =IFERROR(IF(OR(I106="",AND(L106="",M106="")),"",(K106-$L$7)/VLOOKUP(I106,Banco[#All],8,0)),"") ->  | P106: =IFERROR(L106*VLOOKUP(I106,Banco[#All],3,0)+(M106*VLOOKUP(I106,Banco[#All],4,0)),"") ->  | Q106: =IFERROR(P106/VLOOKUP(I106,Banco[#All],3,0),L106) -> 0 | AO106: 0
B107: P | C107: =IFERROR(VLOOKUP(I107,BANCO!A:J,10,0),"no") -> no | D107: 1 | E107: 0 | F107: 35 | G107: 0 | H107: PICK IN | I107: 121806 | J107: =IFERROR(VLOOKUP(I107,BANCO!_xlnm.Print_Area,2,0),"") ->  | K107: 44485 | L107: 0 | M107: 116 | O107: =IFERROR(IF(OR(I107="",AND(L107="",M107="")),"",(K107-$L$7)/VLOOKUP(I107,Banco[#All],8,0)),"") ->  | P107: =IFERROR(L107*VLOOKUP(I107,Banco[#All],3,0)+(M107*VLOOKUP(I107,Banco[#All],4,0)),"") ->  | Q107: =IFERROR(P107/VLOOKUP(I107,Banco[#All],3,0),L107) -> 0 | AO107: 0
B108: P | C108: =IFERROR(VLOOKUP(I108,BANCO!A:J,10,0),"no") -> no | D108: 1 | E108: 0 | F108: 35 | G108: 0 | H108: PICK IN | I108: 139226 | J108: =IFERROR(VLOOKUP(I108,BANCO!_xlnm.Print_Area,2,0),"") ->  | K108: 44118 | M108: 31 | O108: =IFERROR(IF(OR(I108="",AND(L108="",M108="")),"",(K108-$L$7)/VLOOKUP(I108,Banco[#All],8,0)),"") ->  | P108: =IFERROR(L108*VLOOKUP(I108,Banco[#All],3,0)+(M108*VLOOKUP(I108,Banco[#All],4,0)),"") ->  | Q108: =IFERROR(P108/VLOOKUP(I108,Banco[#All],3,0),L108) -> 0 | AO108: 0
B109: P | C109: =IFERROR(VLOOKUP(I109,BANCO!A:J,10,0),"no") -> no | D109: 1 | E109: 0 | F109: 35 | G109: 0 | H109: PICK IN | I109: 139916 | J109: =IFERROR(VLOOKUP(I109,BANCO!_xlnm.Print_Area,2,0),"") ->  | K109: 44155 | L109: 0 | M109: 33 | O109: =IFERROR(IF(OR(I109="",AND(L109="",M109="")),"",(K109-$L$7)/VLOOKUP(I109,Banco[#All],8,0)),"") ->  | P109: =IFERROR(L109*VLOOKUP(I109,Banco[#All],3,0)+(M109*VLOOKUP(I109,Banco[#All],4,0)),"") ->  | Q109: =IFERROR(P109/VLOOKUP(I109,Banco[#All],3,0),L109) -> 0 | AO109: 0
B110: P | C110: =IFERROR(VLOOKUP(I110,BANCO!A:J,10,0),"no") -> no | D110: 1 | E110: 0 | F110: 35 | G110: 0 | H110: PICK IN | I110: 74390 | J110: =IFERROR(VLOOKUP(I110,BANCO!_xlnm.Print_Area,2,0),"") ->  | K110: 44506 | L110: 0 | M110: 124 | O110: =IFERROR(IF(OR(I110="",AND(L110="",M110="")),"",(K110-$L$7)/VLOOKUP(I110,Banco[#All],8,0)),"") ->  | P110: =IFERROR(L110*VLOOKUP(I110,Banco[#All],3,0)+(M110*VLOOKUP(I110,Banco[#All],4,0)),"") ->  | Q110: =IFERROR(P110/VLOOKUP(I110,Banco[#All],3,0),L110) -> 0 | AO110: 0
B111: P | C111: =IFERROR(VLOOKUP(I111,BANCO!A:J,10,0),"no") -> no | D111: 1 | E111: 0 | F111: 35 | G111: 0 | H111: PICK IN | I111: 121807 | J111: =IFERROR(VLOOKUP(I111,BANCO!_xlnm.Print_Area,2,0),"") ->  | K111: 44120 | L111: 0 | M111: 41 | O111: =IFERROR(IF(OR(I111="",AND(L111="",M111="")),"",(K111-$L$7)/VLOOKUP(I111,Banco[#All],8,0)),"") ->  | P111: =IFERROR(L111*VLOOKUP(I111,Banco[#All],3,0)+(M111*VLOOKUP(I111,Banco[#All],4,0)),"") ->  | Q111: =IFERROR(P111/VLOOKUP(I111,Banco[#All],3,0),L111) -> 0 | AO111: 0
B112: P | C112: =IFERROR(VLOOKUP(I112,BANCO!A:J,10,0),"no") -> no | D112: 1 | E112: 0.02857142857 | F112: 35 | G112: 0 | H112: PICK IN | I112: 120990 | J112: =IFERROR(VLOOKUP(I112,BANCO!_xlnm.Print_Area,2,0),"") ->  | K112: 44478 | L112: 1 | M112: 56 | O112: =IFERROR(IF(OR(I112="",AND(L112="",M112="")),"",(K112-$L$7)/VLOOKUP(I112,Banco[#All],8,0)),"") ->  | P112: =IFERROR(L112*VLOOKUP(I112,Banco[#All],3,0)+(M112*VLOOKUP(I112,Banco[#All],4,0)),"") ->  | Q112: =IFERROR(P112/VLOOKUP(I112,Banco[#All],3,0),L112) -> 1 | AO112: 1
B113: P | C113: =IFERROR(VLOOKUP(I113,BANCO!A:J,10,0),"no") -> no | D113: 1 | E113: 0.02857142857 | F113: 35 | G113: 0 | H113: PICK IN | I113: 82163 | J113: =IFERROR(VLOOKUP(I113,BANCO!_xlnm.Print_Area,2,0),"") ->  | K113: 44491 | L113: 1 | M113: 0 | O113: =IFERROR(IF(OR(I113="",AND(L113="",M113="")),"",(K113-$L$7)/VLOOKUP(I113,Banco[#All],8,0)),"") ->  | P113: =IFERROR(L113*VLOOKUP(I113,Banco[#All],3,0)+(M113*VLOOKUP(I113,Banco[#All],4,0)),"") ->  | Q113: =IFERROR(P113/VLOOKUP(I113,Banco[#All],3,0),L113) -> 1 | AO113: 1
B114: P | C114: =IFERROR(VLOOKUP(I114,BANCO!A:J,10,0),"no") -> no | D114: 1 | E114: 0.02857142857 | F114: 35 | G114: 0 | H114: PICK IN | I114: 74158 | J114: =IFERROR(VLOOKUP(I114,BANCO!_xlnm.Print_Area,2,0),"") ->  | K114: 44471 | L114: 1 | M114: 40 | O114: =IFERROR(IF(OR(I114="",AND(L114="",M114="")),"",(K114-$L$7)/VLOOKUP(I114,Banco[#All],8,0)),"") ->  | P114: =IFERROR(L114*VLOOKUP(I114,Banco[#All],3,0)+(M114*VLOOKUP(I114,Banco[#All],4,0)),"") ->  | Q114: =IFERROR(P114/VLOOKUP(I114,Banco[#All],3,0),L114) -> 1 | AO114: 1
B115: P | C115: =IFERROR(VLOOKUP(I115,BANCO!A:J,10,0),"no") -> no | D115: 1 | E115: 0 | F115: 35 | G115: 0 | H115: PICK IN | I115: 113235 | J115: =IFERROR(VLOOKUP(I115,BANCO!_xlnm.Print_Area,2,0),"") ->  | K115: 44431 | L115: 0 | M115: 64 | O115: =IFERROR(IF(OR(I115="",AND(L115="",M115="")),"",(K115-$L$7)/VLOOKUP(I115,Banco[#All],8,0)),"") ->  | P115: =IFERROR(L115*VLOOKUP(I115,Banco[#All],3,0)+(M115*VLOOKUP(I115,Banco[#All],4,0)),"") ->  | Q115: =IFERROR(P115/VLOOKUP(I115,Banco[#All],3,0),L115) -> 0 | AO115: 0
B116: P | C116: =IFERROR(VLOOKUP(I116,BANCO!A:J,10,0),"no") -> no | D116: 1 | E116: 0.03571428571 | F116: =IF(AND(S116="Drive em Manutenção",Q116>0),7,28) -> 28 | G116: 0 | H116: PICK IN | I116: 106502 | J116: =IFERROR(VLOOKUP(I116,BANCO!_xlnm.Print_Area,2,0),"") ->  | K116: 44430 | L116: 1 | M116: 0 | O116: =IFERROR(IF(OR(I116="",AND(L116="",M116="")),"",(K116-$L$7)/VLOOKUP(I116,Banco[#All],8,0)),"") ->  | P116: =IFERROR(L116*VLOOKUP(I116,Banco[#All],3,0)+(M116*VLOOKUP(I116,Banco[#All],4,0)),"") ->  | Q116: =IFERROR(P116/VLOOKUP(I116,Banco[#All],3,0),L116) -> 1 | AO116: 1
B117: P | C117: =IFERROR(VLOOKUP(I117,BANCO!A:J,10,0),"no") -> no | D117: 1 | E117: 0 | F117: =IF(AND(S117="Drive em Manutenção",Q117>0),7,28) -> 28 | G117: 0 | H117: PICK IN | I117: 139918 | J117: =IFERROR(VLOOKUP(I117,BANCO!_xlnm.Print_Area,2,0),"") ->  | K117: 44051 | L117: 0 | M117: 86 | O117: =IFERROR(IF(OR(I117="",AND(L117="",M117="")),"",(K117-$L$7)/VLOOKUP(I117,Banco[#All],8,0)),"") ->  | P117: =IFERROR(L117*VLOOKUP(I117,Banco[#All],3,0)+(M117*VLOOKUP(I117,Banco[#All],4,0)),"") ->  | Q117: =IFERROR(P117/VLOOKUP(I117,Banco[#All],3,0),L117) -> 0 | AO117: 0
B118: P | C118: =IFERROR(VLOOKUP(I118,BANCO!A:J,10,0),"no") -> no | D118: 1 | E118: 0 | F118: =IF(AND(S118="Drive em Manutenção",Q118>0),8,40) -> 40 | G118: 0 | H118: PICK IN | I118: 148116 | J118: =IFERROR(VLOOKUP(I118,BANCO!_xlnm.Print_Area,2,0),"") ->  | K118: 44110 | L118: 0 | M118: 50 | O118: =IFERROR(IF(OR(I118="",AND(L118="",M118="")),"",(K118-$L$7)/VLOOKUP(I118,Banco[#All],8,0)),"") ->  | P118: =IFERROR(L118*VLOOKUP(I118,Banco[#All],3,0)+(M118*VLOOKUP(I118,Banco[#All],4,0)),"") ->  | Q118: =IFERROR(P118/VLOOKUP(I118,Banco[#All],3,0),L118) -> 0 | AO118: 0
B119: P | C119: =IFERROR(VLOOKUP(I119,BANCO!A:J,10,0),"no") -> no | D119: 0 | E119: 0.625 | F119: 40 | G119: 25 | H119: PICK IN | I119: 82428 | J119: =IFERROR(VLOOKUP(I119,BANCO!_xlnm.Print_Area,2,0),"") ->  | K119: 44514 | L119: 25 | M119: 1 | O119: =IFERROR(IF(OR(I119="",AND(L119="",M119="")),"",(K119-$L$7)/VLOOKUP(I119,Banco[#All],8,0)),"") ->  | P119: =IFERROR(L119*VLOOKUP(I119,Banco[#All],3,0)+(M119*VLOOKUP(I119,Banco[#All],4,0)),"") ->  | Q119: =IFERROR(P119/VLOOKUP(I119,Banco[#All],3,0),L119) -> 25 | AO119: 25
B120: P | C120: =IFERROR(VLOOKUP(I120,BANCO!A:J,10,0),"no") -> 1,5L Dec | D120: 1 | E120: 0.025 | F120: 40 | G120: 0 | H120: PICK IN | I120: 74161 | J120: =IFERROR(VLOOKUP(I120,BANCO!_xlnm.Print_Area,2,0),"") -> 1500X8 DECORADO | K120: 44533 | M120: 56 | O120: =IFERROR(IF(OR(I120="",AND(L120="",M120="")),"",(K120-$L$7)/VLOOKUP(I120,Banco[#All],8,0)),"") -> 0.9890510949 | P120: =IFERROR(L120*VLOOKUP(I120,Banco[#All],3,0)+(M120*VLOOKUP(I120,Banco[#All],4,0)),"") -> 448 | Q120: =IFERROR(P120/VLOOKUP(I120,Banco[#All],3,0),L120) -> 0.6666666667 | AO120: 1
B121: P | C121: =IFERROR(VLOOKUP(I121,BANCO!A:J,10,0),"no") -> no | D121: 1 | E121: 0.025 | F121: 40 | G121: 0 | H121: PICK IN | I121: 97243 | J121: =IFERROR(VLOOKUP(I121,BANCO!_xlnm.Print_Area,2,0),"") ->  | K121: 44498 | L121: 1 | M121: 80 | O121: =IFERROR(IF(OR(I121="",AND(L121="",M121="")),"",(K121-$L$7)/VLOOKUP(I121,Banco[#All],8,0)),"") ->  | P121: =IFERROR(L121*VLOOKUP(I121,Banco[#All],3,0)+(M121*VLOOKUP(I121,Banco[#All],4,0)),"") ->  | Q121: =IFERROR(P121/VLOOKUP(I121,Banco[#All],3,0),L121) -> 1 | AO121: 1
B122: P | C122: =IFERROR(VLOOKUP(I122,BANCO!A:J,10,0),"no") -> no | D122: 1 | E122: 0.025 | F122: 40 | G122: 0 | H122: PICK IN | I122: 82435 | J122: =IFERROR(VLOOKUP(I122,BANCO!_xlnm.Print_Area,2,0),"") ->  | K122: 44487 | L122: 1 | M122: 0 | O122: =IFERROR(IF(OR(I122="",AND(L122="",M122="")),"",(K122-$L$7)/VLOOKUP(I122,Banco[#All],8,0)),"") ->  | P122: =IFERROR(L122*VLOOKUP(I122,Banco[#All],3,0)+(M122*VLOOKUP(I122,Banco[#All],4,0)),"") ->  | Q122: =IFERROR(P122/VLOOKUP(I122,Banco[#All],3,0),L122) -> 1 | AO122: 1
B123: P | C123: =IFERROR(VLOOKUP(I123,BANCO!A:J,10,0),"no") -> no | D123: 1 | E123: 0 | F123: 40 | G123: 0 | H123: PICK IN | I123: 148121 | J123: =IFERROR(VLOOKUP(I123,BANCO!_xlnm.Print_Area,2,0),"") ->  | K123: 44151 | L123: 0 | M123: 48 | O123: =IFERROR(IF(OR(I123="",AND(L123="",M123="")),"",(K123-$L$7)/VLOOKUP(I123,Banco[#All],8,0)),"") ->  | P123: =IFERROR(L123*VLOOKUP(I123,Banco[#All],3,0)+(M123*VLOOKUP(I123,Banco[#All],4,0)),"") ->  | Q123: =IFERROR(P123/VLOOKUP(I123,Banco[#All],3,0),L123) -> 0 | AO123: 0
B124: P | C124: =IFERROR(VLOOKUP(I124,BANCO!A:J,10,0),"no") -> no | D124: 1 | E124: 0 | F124: 40 | G124: 0 | H124: PICK IN | I124: 151548 | J124: =IFERROR(VLOOKUP(I124,BANCO!_xlnm.Print_Area,2,0),"") ->  | K124: 44106 | L124: 0 | M124: 75 | O124: =IFERROR(IF(OR(I124="",AND(L124="",M124="")),"",(K124-$L$7)/VLOOKUP(I124,Banco[#All],8,0)),"") ->  | P124: =IFERROR(L124*VLOOKUP(I124,Banco[#All],3,0)+(M124*VLOOKUP(I124,Banco[#All],4,0)),"") ->  | Q124: =IFERROR(P124/VLOOKUP(I124,Banco[#All],3,0),L124) -> 0 | AO124: 0
B125: P | C125: =IFERROR(VLOOKUP(I125,BANCO!A:J,10,0),"no") -> no | D125: 1 | E125: 0.05 | F125: 40 | G125: 0 | H125: PICK IN | I125: 148116 | J125: =IFERROR(VLOOKUP(I125,BANCO!_xlnm.Print_Area,2,0),"") ->  | K125: 44110 | L125: 2 | M125: 0 | O125: =IFERROR(IF(OR(I125="",AND(L125="",M125="")),"",(K125-$L$7)/VLOOKUP(I125,Banco[#All],8,0)),"") ->  | P125: =IFERROR(L125*VLOOKUP(I125,Banco[#All],3,0)+(M125*VLOOKUP(I125,Banco[#All],4,0)),"") ->  | Q125: =IFERROR(P125/VLOOKUP(I125,Banco[#All],3,0),L125) -> 2 | AO125: 2
B126: P | C126: =IFERROR(VLOOKUP(I126,BANCO!A:J,10,0),"no") -> no | D126: 1 | E126: 0.075 | F126: 40 | G126: 0 | H126: POS.2 | I126: 121807 | J126: =IFERROR(VLOOKUP(I126,BANCO!_xlnm.Print_Area,2,0),"") ->  | K126: 44120 | L126: 3 | O126: =IFERROR(IF(OR(I126="",AND(L126="",M126="")),"",(K126-$L$7)/VLOOKUP(I126,Banco[#All],8,0)),"") ->  | P126: =IFERROR(L126*VLOOKUP(I126,Banco[#All],3,0)+(M126*VLOOKUP(I126,Banco[#All],4,0)),"") ->  | Q126: =IFERROR(P126/VLOOKUP(I126,Banco[#All],3,0),L126) -> 3 | AO126: 3
B127: P | C127: =IFERROR(VLOOKUP(I127,BANCO!A:J,10,0),"no") -> no | D127: 1 | E127: 0.075 | F127: 40 | G127: 0 | H127: POS.3 | I127: 120990 | J127: =IFERROR(VLOOKUP(I127,BANCO!_xlnm.Print_Area,2,0),"") ->  | K127: 44490 | L127: 3 | O127: =IFERROR(IF(OR(I127="",AND(L127="",M127="")),"",(K127-$L$7)/VLOOKUP(I127,Banco[#All],8,0)),"") ->  | P127: =IFERROR(L127*VLOOKUP(I127,Banco[#All],3,0)+(M127*VLOOKUP(I127,Banco[#All],4,0)),"") ->  | Q127: =IFERROR(P127/VLOOKUP(I127,Banco[#All],3,0),L127) -> 3 | AO127: 3
B128: P | C128: =IFERROR(VLOOKUP(I128,BANCO!A:J,10,0),"no") -> 1,5L Dec | D128: 0 | E128: 0.15 | F128: 40 | G128: 6 | H128: POS.4 | I128: 74161 | J128: =IFERROR(VLOOKUP(I128,BANCO!_xlnm.Print_Area,2,0),"") -> 1500X8 DECORADO | K128: 44533 | L128: 6 | O128: =IFERROR(IF(OR(I128="",AND(L128="",M128="")),"",(K128-$L$7)/VLOOKUP(I128,Banco[#All],8,0)),"") -> 0.9890510949 | P128: =IFERROR(L128*VLOOKUP(I128,Banco[#All],3,0)+(M128*VLOOKUP(I128,Banco[#All],4,0)),"") -> 4032 | Q128: =IFERROR(P128/VLOOKUP(I128,Banco[#All],3,0),L128) -> 6 | AO128: 6
B129: P | C129: =IFERROR(VLOOKUP(I129,BANCO!A:J,10,0),"no") -> no | D129: 0 | E129: 0.125 | F129: 40 | G129: 5 | H129: POS. 6 A | I129: 139880 | J129: =IFERROR(VLOOKUP(I129,BANCO!_xlnm.Print_Area,2,0),"") ->  | K129: 44154 | L129: 5 | O129: =IFERROR(IF(OR(I129="",AND(L129="",M129="")),"",(K129-$L$7)/VLOOKUP(I129,Banco[#All],8,0)),"") ->  | P129: =IFERROR(L129*VLOOKUP(I129,Banco[#All],3,0)+(M129*VLOOKUP(I129,Banco[#All],4,0)),"") ->  | Q129: =IFERROR(P129/VLOOKUP(I129,Banco[#All],3,0),L129) -> 5 | AO129: 5
B130: P | C130: =IFERROR(VLOOKUP(I130,BANCO!A:J,10,0),"no") -> no | D130: 0 | E130: 0.125 | F130: 40 | G130: 5 | H130: POS.7 | I130: 82163 | J130: =IFERROR(VLOOKUP(I130,BANCO!_xlnm.Print_Area,2,0),"") ->  | K130: 44490 | L130: 5 | O130: =IFERROR(IF(OR(I130="",AND(L130="",M130="")),"",(K130-$L$7)/VLOOKUP(I130,Banco[#All],8,0)),"") ->  | P130: =IFERROR(L130*VLOOKUP(I130,Banco[#All],3,0)+(M130*VLOOKUP(I130,Banco[#All],4,0)),"") ->  | Q130: =IFERROR(P130/VLOOKUP(I130,Banco[#All],3,0),L130) -> 5 | AO130: 5
B131: P | C131: =IFERROR(VLOOKUP(I131,BANCO!A:J,10,0),"no") -> no | D131: 1 | E131: 0 | F131: 40 | G131: 0 | H131: POS.8 | I131: 139916 | J131: =IFERROR(VLOOKUP(I131,BANCO!_xlnm.Print_Area,2,0),"") ->  | K131: 44154 | L131: 0 | M131: 440 | O131: =IFERROR(IF(OR(I131="",AND(L131="",M131="")),"",(K131-$L$7)/VLOOKUP(I131,Banco[#All],8,0)),"") ->  | P131: =IFERROR(L131*VLOOKUP(I131,Banco[#All],3,0)+(M131*VLOOKUP(I131,Banco[#All],4,0)),"") ->  | Q131: =IFERROR(P131/VLOOKUP(I131,Banco[#All],3,0),L131) -> 0 | AO131: 0
B132: P | C132: =IFERROR(VLOOKUP(I132,BANCO!A:J,10,0),"no") -> no | D132: 0 | E132: 0.2 | F132: 40 | G132: 8 | H132: POS.9 | I132: 139916 | J132: =IFERROR(VLOOKUP(I132,BANCO!_xlnm.Print_Area,2,0),"") ->  | K132: 44155 | L132: 8 | O132: =IFERROR(IF(OR(I132="",AND(L132="",M132="")),"",(K132-$L$7)/VLOOKUP(I132,Banco[#All],8,0)),"") ->  | P132: =IFERROR(L132*VLOOKUP(I132,Banco[#All],3,0)+(M132*VLOOKUP(I132,Banco[#All],4,0)),"") ->  | Q132: =IFERROR(P132/VLOOKUP(I132,Banco[#All],3,0),L132) -> 8 | AO132: 8
B133: P | C133: =IFERROR(VLOOKUP(I133,BANCO!A:J,10,0),"no") -> no | D133: 1 | E133: 0.075 | F133: 40 | G133: 0 | H133: POS. 10 | I133: 113235 | J133: =IFERROR(VLOOKUP(I133,BANCO!_xlnm.Print_Area,2,0),"") ->  | K133: 44431 | L133: 3 | O133: =IFERROR(IF(OR(I133="",AND(L133="",M133="")),"",(K133-$L$7)/VLOOKUP(I133,Banco[#All],8,0)),"") ->  | P133: =IFERROR(L133*VLOOKUP(I133,Banco[#All],3,0)+(M133*VLOOKUP(I133,Banco[#All],4,0)),"") ->  | Q133: =IFERROR(P133/VLOOKUP(I133,Banco[#All],3,0),L133) -> 3 | AO133: 3
B134: P | C134: =IFERROR(VLOOKUP(I134,BANCO!A:J,10,0),"no") -> no | D134: 1 | E134: 0.05 | F134: 40 | G134: 0 | H134: POS.11 | I134: 148121 | J134: =IFERROR(VLOOKUP(I134,BANCO!_xlnm.Print_Area,2,0),"") ->  | K134: 44151 | L134: 2 | O134: =IFERROR(IF(OR(I134="",AND(L134="",M134="")),"",(K134-$L$7)/VLOOKUP(I134,Banco[#All],8,0)),"") ->  | P134: =IFERROR(L134*VLOOKUP(I134,Banco[#All],3,0)+(M134*VLOOKUP(I134,Banco[#All],4,0)),"") ->  | Q134: =IFERROR(P134/VLOOKUP(I134,Banco[#All],3,0),L134) -> 2 | AO134: 2
B135: P | C135: =IFERROR(VLOOKUP(I135,BANCO!A:J,10,0),"no") -> no | D135: 0 | E135: 0.225 | F135: 40 | G135: 9 | H135: POS.12 | I135: 74158 | J135: =IFERROR(VLOOKUP(I135,BANCO!_xlnm.Print_Area,2,0),"") ->  | K135: 44470 | L135: 9 | O135: =IFERROR(IF(OR(I135="",AND(L135="",M135="")),"",(K135-$L$7)/VLOOKUP(I135,Banco[#All],8,0)),"") ->  | P135: =IFERROR(L135*VLOOKUP(I135,Banco[#All],3,0)+(M135*VLOOKUP(I135,Banco[#All],4,0)),"") ->  | Q135: =IFERROR(P135/VLOOKUP(I135,Banco[#All],3,0),L135) -> 9 | AO135: 9
B136: P | C136: =IFERROR(VLOOKUP(I136,BANCO!A:J,10,0),"no") -> no | D136: 0 | E136: 0.15 | F136: 40 | G136: 6 | H136: POS.13 | I136: 139916 | J136: =IFERROR(VLOOKUP(I136,BANCO!_xlnm.Print_Area,2,0),"") ->  | K136: 44155 | L136: 6 | O136: =IFERROR(IF(OR(I136="",AND(L136="",M136="")),"",(K136-$L$7)/VLOOKUP(I136,Banco[#All],8,0)),"") ->  | P136: =IFERROR(L136*VLOOKUP(I136,Banco[#All],3,0)+(M136*VLOOKUP(I136,Banco[#All],4,0)),"") ->  | Q136: =IFERROR(P136/VLOOKUP(I136,Banco[#All],3,0),L136) -> 6 | AO136: 6
B137: P | C137: =IFERROR(VLOOKUP(I137,BANCO!A:J,10,0),"no") -> 1,5L Dec | D137: 0 | E137: 0.28125 | F137: =IF(AND(S137="Drive em manutenção",Q137>0),8,32) -> 32 | G137: 9 | H137: POS.15 | I137: 74161 | J137: =IFERROR(VLOOKUP(I137,BANCO!_xlnm.Print_Area,2,0),"") -> 1500X8 DECORADO | K137: 44529 | L137: 9 | M137: 0 | O137: =IFERROR(IF(OR(I137="",AND(L137="",M137="")),"",(K137-$L$7)/VLOOKUP(I137,Banco[#All],8,0)),"") -> 0.9817518248 | P137: =IFERROR(L137*VLOOKUP(I137,Banco[#All],3,0)+(M137*VLOOKUP(I137,Banco[#All],4,0)),"") -> 6048 | Q137: =IFERROR(P137/VLOOKUP(I137,Banco[#All],3,0),L137) -> 9 | AO137: 9
B138: P | C138: =IFERROR(VLOOKUP(I138,BANCO!A:J,10,0),"no") -> 1,5L Dec | D138: 0 | E138: 0.28125 | F138: =IF(AND(S138="Drive em manutenção",Q138>0),8,32) -> 32 | G138: 9 | H138: POS.16 | I138: 74161 | J138: =IFERROR(VLOOKUP(I138,BANCO!_xlnm.Print_Area,2,0),"") -> 1500X8 DECORADO | K138: 44529 | L138: 9 | O138: =IFERROR(IF(OR(I138="",AND(L138="",M138="")),"",(K138-$L$7)/VLOOKUP(I138,Banco[#All],8,0)),"") -> 0.9817518248 | P138: =IFERROR(L138*VLOOKUP(I138,Banco[#All],3,0)+(M138*VLOOKUP(I138,Banco[#All],4,0)),"") -> 6048 | Q138: =IFERROR(P138/VLOOKUP(I138,Banco[#All],3,0),L138) -> 9 | AO138: 9
A139: RUA D | B139: =LEFT(H139,2) -> PO | C139: Classificação | D139: Vazio | E139: Ocupação | F139: Cap. | G139: Plts Ocupados | H139: POS. 17 | I139: 82435 | J139: =IFERROR(VLOOKUP(I139,BANCO!_xlnm.Print_Area,2,0),"") ->  | K139: 44533 | L139: 7 | O139: =IFERROR(IF(OR(I139="",AND(L139="",M139="")),"",(K139-$L$7)/VLOOKUP(I139,Banco[#All],8,0)),"") ->  | P139: =IFERROR(L139*VLOOKUP(I139,Banco[#All],3,0)+(M139*VLOOKUP(I139,Banco[#All],4,0)),"") ->  | Q139: =IFERROR(P139/VLOOKUP(I139,Banco[#All],3,0),L139) -> 7 | AO139: chep
B140: =LEFT(H140,1) -> P | C140: =IFERROR(VLOOKUP(I140,BANCO!A:J,10,0),"no") -> no | D140: =IF(G140<>0,0,1) -> 0 | E140: =IFERROR(ROUNDUP(Q140,0)/F140,"NO") -> 0.2142857143 | F140: =IF(AND(S140="Drive em Manutenção",Q140>0),7,28) -> 28 | G140: =IFERROR(IF(Q140<=4,0,ROUNDUP(Q140,0)),0) -> 6 | H140: POS.18 | I140: 82435 | J140: =IFERROR(VLOOKUP(I140,BANCO!_xlnm.Print_Area,2,0),"") ->  | K140: 44533 | L140: 6 | O140: =IFERROR(IF(OR(I140="",AND(L140="",M140="")),"",(K140-$L$7)/VLOOKUP(I140,Banco[#All],8,0)),"") ->  | P140: =IFERROR(L140*VLOOKUP(I140,Banco[#All],3,0)+(M140*VLOOKUP(I140,Banco[#All],4,0)),"") ->  | Q140: =IFERROR(P140/VLOOKUP(I140,Banco[#All],3,0),L140) -> 6 | AO140: =IFERROR(IF(Q140>0.4,ROUNDUP(Q140,0),0),0) -> 6
B141: P | C141: =IFERROR(VLOOKUP(I141,BANCO!A:J,10,0),"no") -> no | D141: 0 | E141: 0.2142857143 | F141: 28 | G141: 6 | H141: POS.19 | I141: 82435 | J141: =IFERROR(VLOOKUP(I141,BANCO!_xlnm.Print_Area,2,0),"") ->  | K141: 44533 | L141: 6 | O141: =IFERROR(IF(OR(I141="",AND(L141="",M141="")),"",(K141-$L$7)/VLOOKUP(I141,Banco[#All],8,0)),"") ->  | P141: =IFERROR(L141*VLOOKUP(I141,Banco[#All],3,0)+(M141*VLOOKUP(I141,Banco[#All],4,0)),"") ->  | Q141: =IFERROR(P141/VLOOKUP(I141,Banco[#All],3,0),L141) -> 6 | AO141: 6
B142: P | C142: =IFERROR(VLOOKUP(I142,BANCO!A:J,10,0),"no") -> no | D142: 0 | E142: 0.2857142857 | F142: 28 | G142: 8 | H142: POS.22 | I142: 106502 | J142: =IFERROR(VLOOKUP(I142,BANCO!_xlnm.Print_Area,2,0),"") ->  | K142: 44430 | L142: 8 | O142: =IFERROR(IF(OR(I142="",AND(L142="",M142="")),"",(K142-$L$7)/VLOOKUP(I142,Banco[#All],8,0)),"") ->  | P142: =IFERROR(L142*VLOOKUP(I142,Banco[#All],3,0)+(M142*VLOOKUP(I142,Banco[#All],4,0)),"") ->  | Q142: =IFERROR(P142/VLOOKUP(I142,Banco[#All],3,0),L142) -> 8 | AO142: 8
B143: P | C143: =IFERROR(VLOOKUP(I143,BANCO!A:J,10,0),"no") -> 1,5L Dec | D143: 0 | E143: 0.3928571429 | F143: 28 | G143: 11 | H143: POS. 23 | I143: 74161 | J143: =IFERROR(VLOOKUP(I143,BANCO!_xlnm.Print_Area,2,0),"") -> 1500X8 DECORADO | K143: 44529 | L143: 11 | O143: =IFERROR(IF(OR(I143="",AND(L143="",M143="")),"",(K143-$L$7)/VLOOKUP(I143,Banco[#All],8,0)),"") -> 0.9817518248 | P143: =IFERROR(L143*VLOOKUP(I143,Banco[#All],3,0)+(M143*VLOOKUP(I143,Banco[#All],4,0)),"") -> 7392 | Q143: =IFERROR(P143/VLOOKUP(I143,Banco[#All],3,0),L143) -> 11 | AO143: 11
B144: P | C144: =IFERROR(VLOOKUP(I144,BANCO!A:J,10,0),"no") -> no | D144: 1 | E144: 0.07142857143 | F144: 28 | G144: 0 | H144: POS.24 | I144: 106502 | J144: =IFERROR(VLOOKUP(I144,BANCO!_xlnm.Print_Area,2,0),"") ->  | K144: 44489 | L144: 2 | O144: =IFERROR(IF(OR(I144="",AND(L144="",M144="")),"",(K144-$L$7)/VLOOKUP(I144,Banco[#All],8,0)),"") ->  | P144: =IFERROR(L144*VLOOKUP(I144,Banco[#All],3,0)+(M144*VLOOKUP(I144,Banco[#All],4,0)),"") ->  | Q144: =IFERROR(P144/VLOOKUP(I144,Banco[#All],3,0),L144) -> 2 | AO144: 2
B145: P | C145: =IFERROR(VLOOKUP(I145,BANCO!A:J,10,0),"no") -> no | D145: 0 | E145: 0.1785714286 | F145: 28 | G145: 5 | H145: POS. 25 | I145: 120990 | J145: =IFERROR(VLOOKUP(I145,BANCO!_xlnm.Print_Area,2,0),"") ->  | K145: 44490 | L145: 5 | O145: =IFERROR(IF(OR(I145="",AND(L145="",M145="")),"",(K145-$L$7)/VLOOKUP(I145,Banco[#All],8,0)),"") ->  | P145: =IFERROR(L145*VLOOKUP(I145,Banco[#All],3,0)+(M145*VLOOKUP(I145,Banco[#All],4,0)),"") ->  | Q145: =IFERROR(P145/VLOOKUP(I145,Banco[#All],3,0),L145) -> 5 | AO145: 5
B146: P | C146: =IFERROR(VLOOKUP(I146,BANCO!A:J,10,0),"no") -> no | D146: 0 | E146: 0.3214285714 | F146: 28 | G146: 9 | H146: POS.26 | I146: 139916 | J146: =IFERROR(VLOOKUP(I146,BANCO!_xlnm.Print_Area,2,0),"") ->  | K146: 44155 | L146: 9 | O146: =IFERROR(IF(OR(I146="",AND(L146="",M146="")),"",(K146-$L$7)/VLOOKUP(I146,Banco[#All],8,0)),"") ->  | P146: =IFERROR(L146*VLOOKUP(I146,Banco[#All],3,0)+(M146*VLOOKUP(I146,Banco[#All],4,0)),"") ->  | Q146: =IFERROR(P146/VLOOKUP(I146,Banco[#All],3,0),L146) -> 9 | AO146: 9
B147: D | C147: =IFERROR(VLOOKUP(I147,BANCO!A:J,10,0),"no") -> no | D147: 0 | E147: 0.8214285714 | F147: 28 | G147: 23 | H147: DOCA | I147: 122040 | J147: =IFERROR(VLOOKUP(I147,BANCO!_xlnm.Print_Area,2,0),"") ->  | K147: 44139 | L147: 23 | O147: =IFERROR(IF(OR(I147="",AND(L147="",M147="")),"",(K147-$L$7)/VLOOKUP(I147,Banco[#All],8,0)),"") ->  | P147: =IFERROR(L147*VLOOKUP(I147,Banco[#All],3,0)+(M147*VLOOKUP(I147,Banco[#All],4,0)),"") ->  | Q147: =IFERROR(P147/VLOOKUP(I147,Banco[#All],3,0),L147) -> 23 | AO147: 23
B148: D | C148: =IFERROR(VLOOKUP(I148,BANCO!A:J,10,0),"no") -> no | D148: 1 | E148: 0.07142857143 | F148: 28 | G148: 0 | H148: DOCA | I148: 102032 | J148: =IFERROR(VLOOKUP(I148,BANCO!_xlnm.Print_Area,2,0),"") ->  | K148: 44213 | L148: 2 | O148: =IFERROR(IF(OR(I148="",AND(L148="",M148="")),"",(K148-$L$7)/VLOOKUP(I148,Banco[#All],8,0)),"") ->  | P148: =IFERROR(L148*VLOOKUP(I148,Banco[#All],3,0)+(M148*VLOOKUP(I148,Banco[#All],4,0)),"") ->  | Q148: =IFERROR(P148/VLOOKUP(I148,Banco[#All],3,0),L148) -> 2 | AO148: 2
B149: C | C149: =IFERROR(VLOOKUP(I149,BANCO!A:J,10,0),"no") -> no | D149: 0 | E149: 0.8571428571 | F149: 28 | G149: 24 | H149: CF | I149: 82435 | J149: =IFERROR(VLOOKUP(I149,BANCO!_xlnm.Print_Area,2,0),"") ->  | K149: 44499 | L149: 24 | O149: =IFERROR(IF(OR(I149="",AND(L149="",M149="")),"",(K149-$L$7)/VLOOKUP(I149,Banco[#All],8,0)),"") ->  | P149: =IFERROR(L149*VLOOKUP(I149,Banco[#All],3,0)+(M149*VLOOKUP(I149,Banco[#All],4,0)),"") ->  | Q149: =IFERROR(P149/VLOOKUP(I149,Banco[#All],3,0),L149) -> 24 | AO149: 24
B150: C | C150: =IFERROR(VLOOKUP(I150,BANCO!A:J,10,0),"no") -> no | D150: 0 | E150: 0.9285714286 | F150: 28 | G150: 26 | H150: CF | I150: 82428 | J150: =IFERROR(VLOOKUP(I150,BANCO!_xlnm.Print_Area,2,0),"") ->  | K150: 44509 | L150: 26 | O150: =IFERROR(IF(OR(I150="",AND(L150="",M150="")),"",(K150-$L$7)/VLOOKUP(I150,Banco[#All],8,0)),"") ->  | P150: =IFERROR(L150*VLOOKUP(I150,Banco[#All],3,0)+(M150*VLOOKUP(I150,Banco[#All],4,0)),"") ->  | Q150: =IFERROR(P150/VLOOKUP(I150,Banco[#All],3,0),L150) -> 26 | AO150: 26
B151: C | C151: =IFERROR(VLOOKUP(I151,BANCO!A:J,10,0),"no") -> 1,5L Dec | D151: 0 | E151: 0.9642857143 | F151: 28 | G151: 27 | H151: CF | I151: 74161 | J151: =IFERROR(VLOOKUP(I151,BANCO!_xlnm.Print_Area,2,0),"") -> 1500X8 DECORADO | K151: 44502 | L151: 27 | O151: =IFERROR(IF(OR(I151="",AND(L151="",M151="")),"",(K151-$L$7)/VLOOKUP(I151,Banco[#All],8,0)),"") -> 0.9324817518 | P151: =IFERROR(L151*VLOOKUP(I151,Banco[#All],3,0)+(M151*VLOOKUP(I151,Banco[#All],4,0)),"") -> 18144 | Q151: =IFERROR(P151/VLOOKUP(I151,Banco[#All],3,0),L151) -> 27 | AO151: 27
B152: C | C152: =IFERROR(VLOOKUP(I152,BANCO!A:J,10,0),"no") -> no | D152: 0 | E152: 0.9642857143 | F152: 28 | G152: 27 | H152: CF | I152: 82435 | J152: =IFERROR(VLOOKUP(I152,BANCO!_xlnm.Print_Area,2,0),"") ->  | K152: 44499 | L152: 27 | O152: =IFERROR(IF(OR(I152="",AND(L152="",M152="")),"",(K152-$L$7)/VLOOKUP(I152,Banco[#All],8,0)),"") ->  | P152: =IFERROR(L152*VLOOKUP(I152,Banco[#All],3,0)+(M152*VLOOKUP(I152,Banco[#All],4,0)),"") ->  | Q152: =IFERROR(P152/VLOOKUP(I152,Banco[#All],3,0),L152) -> 27 | AO152: 27
B153: C | C153: =IFERROR(VLOOKUP(I153,BANCO!A:J,10,0),"no") -> no | D153: 0 | E153: 0.9642857143 | F153: 28 | G153: 27 | H153: CF | I153: 82428 | J153: =IFERROR(VLOOKUP(I153,BANCO!_xlnm.Print_Area,2,0),"") ->  | K153: 44510 | L153: 27 | O153: =IFERROR(IF(OR(I153="",AND(L153="",M153="")),"",(K153-$L$7)/VLOOKUP(I153,Banco[#All],8,0)),"") ->  | P153: =IFERROR(L153*VLOOKUP(I153,Banco[#All],3,0)+(M153*VLOOKUP(I153,Banco[#All],4,0)),"") ->  | Q153: =IFERROR(P153/VLOOKUP(I153,Banco[#All],3,0),L153) -> 27 | AO153: 27
B154: C | C154: =IFERROR(VLOOKUP(I154,BANCO!A:J,10,0),"no") -> no | D154: 0 | E154: 0.8928571429 | F154: 28 | G154: 25 | H154: CF | I154: 82428 | J154: =IFERROR(VLOOKUP(I154,BANCO!_xlnm.Print_Area,2,0),"") ->  | K154: 44510 | L154: 25 | O154: =IFERROR(IF(OR(I154="",AND(L154="",M154="")),"",(K154-$L$7)/VLOOKUP(I154,Banco[#All],8,0)),"") ->  | P154: =IFERROR(L154*VLOOKUP(I154,Banco[#All],3,0)+(M154*VLOOKUP(I154,Banco[#All],4,0)),"") ->  | Q154: =IFERROR(P154/VLOOKUP(I154,Banco[#All],3,0),L154) -> 25 | AO154: 25
B155: C | C155: =IFERROR(VLOOKUP(I155,BANCO!A:J,10,0),"no") -> 1,5L Dec | D155: 0 | E155: 0.9642857143 | F155: 28 | G155: 27 | H155: CF | I155: 74161 | J155: =IFERROR(VLOOKUP(I155,BANCO!_xlnm.Print_Area,2,0),"") -> 1500X8 DECORADO | K155: 44511 | L155: 27 | O155: =IFERROR(IF(OR(I155="",AND(L155="",M155="")),"",(K155-$L$7)/VLOOKUP(I155,Banco[#All],8,0)),"") -> 0.9489051095 | P155: =IFERROR(L155*VLOOKUP(I155,Banco[#All],3,0)+(M155*VLOOKUP(I155,Banco[#All],4,0)),"") -> 18144 | Q155: =IFERROR(P155/VLOOKUP(I155,Banco[#All],3,0),L155) -> 27 | AO155: 27
B156: C | C156: =IFERROR(VLOOKUP(I156,BANCO!A:J,10,0),"no") -> 1,5L Dec | D156: 0 | E156: 0.9642857143 | F156: 28 | G156: 27 | H156: CF | I156: 74161 | J156: =IFERROR(VLOOKUP(I156,BANCO!_xlnm.Print_Area,2,0),"") -> 1500X8 DECORADO | K156: 44511 | L156: 27 | O156: =IFERROR(IF(OR(I156="",AND(L156="",M156="")),"",(K156-$L$7)/VLOOKUP(I156,Banco[#All],8,0)),"") -> 0.9489051095 | P156: =IFERROR(L156*VLOOKUP(I156,Banco[#All],3,0)+(M156*VLOOKUP(I156,Banco[#All],4,0)),"") -> 18144 | Q156: =IFERROR(P156/VLOOKUP(I156,Banco[#All],3,0),L156) -> 27 | AO156: 27
B157: C | C157: =IFERROR(VLOOKUP(I157,BANCO!A:J,10,0),"no") -> 1,5L Dec | D157: 0 | E157: 0.9642857143 | F157: 28 | G157: 27 | H157: CF | I157: 74161 | J157: =IFERROR(VLOOKUP(I157,BANCO!_xlnm.Print_Area,2,0),"") -> 1500X8 DECORADO | K157: 44502 | L157: 27 | O157: =IFERROR(IF(OR(I157="",AND(L157="",M157="")),"",(K157-$L$7)/VLOOKUP(I157,Banco[#All],8,0)),"") -> 0.9324817518 | P157: =IFERROR(L157*VLOOKUP(I157,Banco[#All],3,0)+(M157*VLOOKUP(I157,Banco[#All],4,0)),"") -> 18144 | Q157: =IFERROR(P157/VLOOKUP(I157,Banco[#All],3,0),L157) -> 27 | AO157: 27
B158: C | C158: =IFERROR(VLOOKUP(I158,BANCO!A:J,10,0),"no") -> 1,5L Dec | D158: 0 | E158: 0.9642857143 | F158: 28 | G158: 27 | H158: CF | I158: 74161 | J158: =IFERROR(VLOOKUP(I158,BANCO!_xlnm.Print_Area,2,0),"") -> 1500X8 DECORADO | K158: 44502 | L158: 27 | O158: =IFERROR(IF(OR(I158="",AND(L158="",M158="")),"",(K158-$L$7)/VLOOKUP(I158,Banco[#All],8,0)),"") -> 0.9324817518 | P158: =IFERROR(L158*VLOOKUP(I158,Banco[#All],3,0)+(M158*VLOOKUP(I158,Banco[#All],4,0)),"") -> 18144 | Q158: =IFERROR(P158/VLOOKUP(I158,Banco[#All],3,0),L158) -> 27 | AO158: 27
B159: C | C159: =IFERROR(VLOOKUP(I159,BANCO!A:J,10,0),"no") -> no | D159: 0 | E159: 0.6785714286 | F159: 28 | G159: 19 | H159: CF | I159: 151548 | J159: =IFERROR(VLOOKUP(I159,BANCO!_xlnm.Print_Area,2,0),"") ->  | K159: 44147 | L159: 19 | O159: =IFERROR(IF(OR(I159="",AND(L159="",M159="")),"",(K159-$L$7)/VLOOKUP(I159,Banco[#All],8,0)),"") ->  | P159: =IFERROR(L159*VLOOKUP(I159,Banco[#All],3,0)+(M159*VLOOKUP(I159,Banco[#All],4,0)),"") ->  | Q159: =IFERROR(P159/VLOOKUP(I159,Banco[#All],3,0),L159) -> 19 | AO159: 19
B160: C | C160: =IFERROR(VLOOKUP(I160,BANCO!A:J,10,0),"no") -> no | D160: 0 | E160: 0.4285714286 | F160: 28 | G160: 12 | H160: CF | I160: 82428 | J160: =IFERROR(VLOOKUP(I160,BANCO!_xlnm.Print_Area,2,0),"") ->  | K160: 44510 | L160: 12 | O160: =IFERROR(IF(OR(I160="",AND(L160="",M160="")),"",(K160-$L$7)/VLOOKUP(I160,Banco[#All],8,0)),"") ->  | P160: =IFERROR(L160*VLOOKUP(I160,Banco[#All],3,0)+(M160*VLOOKUP(I160,Banco[#All],4,0)),"") ->  | Q160: =IFERROR(P160/VLOOKUP(I160,Banco[#All],3,0),L160) -> 12 | AO160: 12
B161: E | C161: =IFERROR(VLOOKUP(I161,BANCO!A:J,10,0),"no") -> 1,5L Dec | D161: 0 | E161: 0.3214285714 | F161: 28 | G161: 9 | H161: EXP | I161: 74161 | J161: =IFERROR(VLOOKUP(I161,BANCO!_xlnm.Print_Area,2,0),"") -> 1500X8 DECORADO | K161: 44531 | L161: 9 | M161: 0 | O161: =IFERROR(IF(OR(I161="",AND(L161="",M161="")),"",(K161-$L$7)/VLOOKUP(I161,Banco[#All],8,0)),"") -> 0.9854014599 | P161: =IFERROR(L161*VLOOKUP(I161,Banco[#All],3,0)+(M161*VLOOKUP(I161,Banco[#All],4,0)),"") -> 6048 | Q161: =IFERROR(P161/VLOOKUP(I161,Banco[#All],3,0),L161) -> 9 | AO161: 9
B162: E | C162: =IFERROR(VLOOKUP(I162,BANCO!A:J,10,0),"no") -> 1,5L Dec | D162: 0 | E162: 0.3214285714 | F162: 28 | G162: 9 | H162: EXP | I162: 74161 | J162: =IFERROR(VLOOKUP(I162,BANCO!_xlnm.Print_Area,2,0),"") -> 1500X8 DECORADO | K162: 44531 | L162: 9 | M162: 0 | O162: =IFERROR(IF(OR(I162="",AND(L162="",M162="")),"",(K162-$L$7)/VLOOKUP(I162,Banco[#All],8,0)),"") -> 0.9854014599 | P162: =IFERROR(L162*VLOOKUP(I162,Banco[#All],3,0)+(M162*VLOOKUP(I162,Banco[#All],4,0)),"") -> 6048 | Q162: =IFERROR(P162/VLOOKUP(I162,Banco[#All],3,0),L162) -> 9 | AO162: 9
B163: E | C163: =IFERROR(VLOOKUP(I163,BANCO!A:J,10,0),"no") -> 1,5L Dec | D163: 0 | E163: 0.3214285714 | F163: 28 | G163: 9 | H163: EXP | I163: 74161 | J163: =IFERROR(VLOOKUP(I163,BANCO!_xlnm.Print_Area,2,0),"") -> 1500X8 DECORADO | K163: 44531 | L163: 9 | O163: =IFERROR(IF(OR(I163="",AND(L163="",M163="")),"",(K163-$L$7)/VLOOKUP(I163,Banco[#All],8,0)),"") -> 0.9854014599 | P163: =IFERROR(L163*VLOOKUP(I163,Banco[#All],3,0)+(M163*VLOOKUP(I163,Banco[#All],4,0)),"") -> 6048 | Q163: =IFERROR(P163/VLOOKUP(I163,Banco[#All],3,0),L163) -> 9 | AO163: 9
B164: E | C164: =IFERROR(VLOOKUP(I164,BANCO!A:J,10,0),"no") -> 1,5L Dec | D164: 0 | E164: 0.3214285714 | F164: 28 | G164: 9 | H164: EXP | I164: 74161 | J164: =IFERROR(VLOOKUP(I164,BANCO!_xlnm.Print_Area,2,0),"") -> 1500X8 DECORADO | K164: 44531 | L164: 9 | O164: =IFERROR(IF(OR(I164="",AND(L164="",M164="")),"",(K164-$L$7)/VLOOKUP(I164,Banco[#All],8,0)),"") -> 0.9854014599 | P164: =IFERROR(L164*VLOOKUP(I164,Banco[#All],3,0)+(M164*VLOOKUP(I164,Banco[#All],4,0)),"") -> 6048 | Q164: =IFERROR(P164/VLOOKUP(I164,Banco[#All],3,0),L164) -> 9 | AO164: 9
D165: 0 | E165: NO | G165: =ROUNDUP(Q165,0) -> 9 | H165: EXP | I165: 74161 | J165: =IFERROR(VLOOKUP(I165,BANCO!_xlnm.Print_Area,2,0),"") -> 1500X8 DECORADO | K165: 44529 | L165: 9 | O165: =IFERROR(IF(OR(I165="",AND(L165="",M165="")),"",(K165-$L$7)/VLOOKUP(I165,Banco[#All],8,0)),"") -> 0.9817518248 | P165: =IFERROR(L165*VLOOKUP(I165,Banco[#All],3,0)+(M165*VLOOKUP(I165,Banco[#All],4,0)),"") -> 6048 | Q165: =IFERROR(P165/VLOOKUP(I165,Banco[#All],3,0),L165) -> 9 | AO165: 9
H166: EXP | I166: 74161 | J166: =IFERROR(VLOOKUP(I166,BANCO!_xlnm.Print_Area,2,0),"") -> 1500X8 DECORADO | K166: 44529 | L166: 9 | M166: 0 | O166: =IFERROR(IF(OR(I166="",AND(L166="",M166="")),"",(K166-$L$7)/VLOOKUP(I166,Banco[#All],8,0)),"") -> 0.9817518248 | P166: =IFERROR(L166*VLOOKUP(I166,Banco[#All],3,0)+(M166*VLOOKUP(I166,Banco[#All],4,0)),"") -> 6048 | Q166: =IFERROR(P166/VLOOKUP(I166,Banco[#All],3,0),L166) -> 9
H167: EXP | I167: 122040 | J167: =IFERROR(VLOOKUP(I167,BANCO!_xlnm.Print_Area,2,0),"") ->  | K167: 44137 | L167: 11 | M167: 0 | O167: =IFERROR(IF(OR(I167="",AND(L167="",M167="")),"",(K167-$L$7)/VLOOKUP(I167,Banco[#All],8,0)),"") ->  | P167: =IFERROR(L167*VLOOKUP(I167,Banco[#All],3,0)+(M167*VLOOKUP(I167,Banco[#All],4,0)),"") ->  | Q167: =IFERROR(P167/VLOOKUP(I167,Banco[#All],3,0),L167) -> 11
H168: EXP | I168: 82435 | J168: =IFERROR(VLOOKUP(I168,BANCO!_xlnm.Print_Area,2,0),"") ->  | K168: 44533 | L168: 9 | O168: =IFERROR(IF(OR(I168="",AND(L168="",M168="")),"",(K168-$L$7)/VLOOKUP(I168,Banco[#All],8,0)),"") ->  | P168: =IFERROR(L168*VLOOKUP(I168,Banco[#All],3,0)+(M168*VLOOKUP(I168,Banco[#All],4,0)),"") ->  | Q168: =IFERROR(P168/VLOOKUP(I168,Banco[#All],3,0),L168) -> 9
H169: EXP | I169: 82435 | J169: =IFERROR(VLOOKUP(I169,BANCO!_xlnm.Print_Area,2,0),"") ->  | K169: 44533 | L169: 13 | O169: =IFERROR(IF(OR(I169="",AND(L169="",M169="")),"",(K169-$L$7)/VLOOKUP(I169,Banco[#All],8,0)),"") ->  | P169: =IFERROR(L169*VLOOKUP(I169,Banco[#All],3,0)+(M169*VLOOKUP(I169,Banco[#All],4,0)),"") ->  | Q169: =IFERROR(P169/VLOOKUP(I169,Banco[#All],3,0),L169) -> 13
H170: EXP | I170: 82435 | J170: =IFERROR(VLOOKUP(I170,BANCO!_xlnm.Print_Area,2,0),"") ->  | K170: 44533 | L170: 13 | O170: =IFERROR(IF(OR(I170="",AND(L170="",M170="")),"",(K170-$L$7)/VLOOKUP(I170,Banco[#All],8,0)),"") ->  | P170: =IFERROR(L170*VLOOKUP(I170,Banco[#All],3,0)+(M170*VLOOKUP(I170,Banco[#All],4,0)),"") ->  | Q170: =IFERROR(P170/VLOOKUP(I170,Banco[#All],3,0),L170) -> 13
H171: EXP | I171: 82435 | J171: =IFERROR(VLOOKUP(I171,BANCO!_xlnm.Print_Area,2,0),"") ->  | K171: 44535 | L171: 13 | O171: =IFERROR(IF(OR(I171="",AND(L171="",M171="")),"",(K171-$L$7)/VLOOKUP(I171,Banco[#All],8,0)),"") ->  | P171: =IFERROR(L171*VLOOKUP(I171,Banco[#All],3,0)+(M171*VLOOKUP(I171,Banco[#All],4,0)),"") ->  | Q171: =IFERROR(P171/VLOOKUP(I171,Banco[#All],3,0),L171) -> 13
H172: EXP | I172: 122040 | J172: =IFERROR(VLOOKUP(I172,BANCO!_xlnm.Print_Area,2,0),"") ->  | K172: 44140 | L172: 12 | O172: =IFERROR(IF(OR(I172="",AND(L172="",M172="")),"",(K172-$L$7)/VLOOKUP(I172,Banco[#All],8,0)),"") ->  | P172: =IFERROR(L172*VLOOKUP(I172,Banco[#All],3,0)+(M172*VLOOKUP(I172,Banco[#All],4,0)),"") ->  | Q172: =IFERROR(P172/VLOOKUP(I172,Banco[#All],3,0),L172) -> 12
H173: EXP | I173: 74161 | J173: =IFERROR(VLOOKUP(I173,BANCO!_xlnm.Print_Area,2,0),"") -> 1500X8 DECORADO | K173: 44531 | L173: 10 | O173: =IFERROR(IF(OR(I173="",AND(L173="",M173="")),"",(K173-$L$7)/VLOOKUP(I173,Banco[#All],8,0)),"") -> 0.9854014599 | P173: =IFERROR(L173*VLOOKUP(I173,Banco[#All],3,0)+(M173*VLOOKUP(I173,Banco[#All],4,0)),"") -> 6720 | Q173: =IFERROR(P173/VLOOKUP(I173,Banco[#All],3,0),L173) -> 10
H174: EXP | I174: 74161 | J174: =IFERROR(VLOOKUP(I174,BANCO!_xlnm.Print_Area,2,0),"") -> 1500X8 DECORADO | K174: 44532 | L174: 11 | O174: =IFERROR(IF(OR(I174="",AND(L174="",M174="")),"",(K174-$L$7)/VLOOKUP(I174,Banco[#All],8,0)),"") -> 0.9872262774 | P174: =IFERROR(L174*VLOOKUP(I174,Banco[#All],3,0)+(M174*VLOOKUP(I174,Banco[#All],4,0)),"") -> 7392 | Q174: =IFERROR(P174/VLOOKUP(I174,Banco[#All],3,0),L174) -> 11
H175: EXP | I175: 74161 | J175: =IFERROR(VLOOKUP(I175,BANCO!_xlnm.Print_Area,2,0),"") -> 1500X8 DECORADO | K175: 44532 | L175: 11 | O175: =IFERROR(IF(OR(I175="",AND(L175="",M175="")),"",(K175-$L$7)/VLOOKUP(I175,Banco[#All],8,0)),"") -> 0.9872262774 | P175: =IFERROR(L175*VLOOKUP(I175,Banco[#All],3,0)+(M175*VLOOKUP(I175,Banco[#All],4,0)),"") -> 7392 | Q175: =IFERROR(P175/VLOOKUP(I175,Banco[#All],3,0),L175) -> 11
H176: EXP | I176: 121806 | J176: =IFERROR(VLOOKUP(I176,BANCO!_xlnm.Print_Area,2,0),"") ->  | K176: 44462 | L176: 9 | O176: =IFERROR(IF(OR(I176="",AND(L176="",M176="")),"",(K176-$L$7)/VLOOKUP(I176,Banco[#All],8,0)),"") ->  | P176: =IFERROR(L176*VLOOKUP(I176,Banco[#All],3,0)+(M176*VLOOKUP(I176,Banco[#All],4,0)),"") ->  | Q176: =IFERROR(P176/VLOOKUP(I176,Banco[#All],3,0),L176) -> 9
H177: EXP | I177: 74161 | J177: =IFERROR(VLOOKUP(I177,BANCO!_xlnm.Print_Area,2,0),"") -> 1500X8 DECORADO | K177: 44531 | L177: 11 | M177: 0 | O177: =IFERROR(IF(OR(I177="",AND(L177="",M177="")),"",(K177-$L$7)/VLOOKUP(I177,Banco[#All],8,0)),"") -> 0.9854014599 | P177: =IFERROR(L177*VLOOKUP(I177,Banco[#All],3,0)+(M177*VLOOKUP(I177,Banco[#All],4,0)),"") -> 7392 | Q177: =IFERROR(P177/VLOOKUP(I177,Banco[#All],3,0),L177) -> 11
H178: EXP | I178: 74161 | J178: =IFERROR(VLOOKUP(I178,BANCO!_xlnm.Print_Area,2,0),"") -> 1500X8 DECORADO | K178: 44531 | L178: 11 | O178: =IFERROR(IF(OR(I178="",AND(L178="",M178="")),"",(K178-$L$7)/VLOOKUP(I178,Banco[#All],8,0)),"") -> 0.9854014599 | P178: =IFERROR(L178*VLOOKUP(I178,Banco[#All],3,0)+(M178*VLOOKUP(I178,Banco[#All],4,0)),"") -> 7392 | Q178: =IFERROR(P178/VLOOKUP(I178,Banco[#All],3,0),L178) -> 11
H179: EXP | I179: 74161 | J179: =IFERROR(VLOOKUP(I179,BANCO!_xlnm.Print_Area,2,0),"") -> 1500X8 DECORADO | K179: 44517 | L179: 11 | O179: =IFERROR(IF(OR(I179="",AND(L179="",M179="")),"",(K179-$L$7)/VLOOKUP(I179,Banco[#All],8,0)),"") -> 0.9598540146 | P179: =IFERROR(L179*VLOOKUP(I179,Banco[#All],3,0)+(M179*VLOOKUP(I179,Banco[#All],4,0)),"") -> 7392 | Q179: =IFERROR(P179/VLOOKUP(I179,Banco[#All],3,0),L179) -> 11
H180: EXP | I180: 74161 | J180: =IFERROR(VLOOKUP(I180,BANCO!_xlnm.Print_Area,2,0),"") -> 1500X8 DECORADO | K180: 44531 | L180: 11 | O180: =IFERROR(IF(OR(I180="",AND(L180="",M180="")),"",(K180-$L$7)/VLOOKUP(I180,Banco[#All],8,0)),"") -> 0.9854014599 | P180: =IFERROR(L180*VLOOKUP(I180,Banco[#All],3,0)+(M180*VLOOKUP(I180,Banco[#All],4,0)),"") -> 7392 | Q180: =IFERROR(P180/VLOOKUP(I180,Banco[#All],3,0),L180) -> 11
H181: EXP | I181: 74161 | J181: =IFERROR(VLOOKUP(I181,BANCO!_xlnm.Print_Area,2,0),"") -> 1500X8 DECORADO | K181: 44531 | L181: 11 | O181: =IFERROR(IF(OR(I181="",AND(L181="",M181="")),"",(K181-$L$7)/VLOOKUP(I181,Banco[#All],8,0)),"") -> 0.9854014599 | P181: =IFERROR(L181*VLOOKUP(I181,Banco[#All],3,0)+(M181*VLOOKUP(I181,Banco[#All],4,0)),"") -> 7392 | Q181: =IFERROR(P181/VLOOKUP(I181,Banco[#All],3,0),L181) -> 11
H182: EXP | I182: 74161 | J182: =IFERROR(VLOOKUP(I182,BANCO!_xlnm.Print_Area,2,0),"") -> 1500X8 DECORADO | K182: 44531 | L182: 11 | O182: =IFERROR(IF(OR(I182="",AND(L182="",M182="")),"",(K182-$L$7)/VLOOKUP(I182,Banco[#All],8,0)),"") -> 0.9854014599 | P182: =IFERROR(L182*VLOOKUP(I182,Banco[#All],3,0)+(M182*VLOOKUP(I182,Banco[#All],4,0)),"") -> 7392 | Q182: =IFERROR(P182/VLOOKUP(I182,Banco[#All],3,0),L182) -> 11
H183: EXP | I183: 74161 | J183: =IFERROR(VLOOKUP(I183,BANCO!_xlnm.Print_Area,2,0),"") -> 1500X8 DECORADO | K183: 44532 | L183: 11 | M183: 0 | O183: =IFERROR(IF(OR(I183="",AND(L183="",M183="")),"",(K183-$L$7)/VLOOKUP(I183,Banco[#All],8,0)),"") -> 0.9872262774 | P183: =IFERROR(L183*VLOOKUP(I183,Banco[#All],3,0)+(M183*VLOOKUP(I183,Banco[#All],4,0)),"") -> 7392 | Q183: =IFERROR(P183/VLOOKUP(I183,Banco[#All],3,0),L183) -> 11
H184: EXP | I184: 74161 | J184: =IFERROR(VLOOKUP(I184,BANCO!_xlnm.Print_Area,2,0),"") -> 1500X8 DECORADO | K184: 44532 | L184: 11 | O184: =IFERROR(IF(OR(I184="",AND(L184="",M184="")),"",(K184-$L$7)/VLOOKUP(I184,Banco[#All],8,0)),"") -> 0.9872262774 | P184: =IFERROR(L184*VLOOKUP(I184,Banco[#All],3,0)+(M184*VLOOKUP(I184,Banco[#All],4,0)),"") -> 7392 | Q184: =IFERROR(P184/VLOOKUP(I184,Banco[#All],3,0),L184) -> 11
H185: EXP | I185: 139226 | J185: =IFERROR(VLOOKUP(I185,BANCO!_xlnm.Print_Area,2,0),"") ->  | K185: 44125 | L185: 6 | O185: =IFERROR(IF(OR(I185="",AND(L185="",M185="")),"",(K185-$L$7)/VLOOKUP(I185,Banco[#All],8,0)),"") ->  | P185: =IFERROR(L185*VLOOKUP(I185,Banco[#All],3,0)+(M185*VLOOKUP(I185,Banco[#All],4,0)),"") ->  | Q185: =IFERROR(P185/VLOOKUP(I185,Banco[#All],3,0),L185) -> 6
H186: EXP | I186: 74161 | J186: =IFERROR(VLOOKUP(I186,BANCO!_xlnm.Print_Area,2,0),"") -> 1500X8 DECORADO | K186: 44532 | L186: 162 | O186: =IFERROR(IF(OR(I186="",AND(L186="",M186="")),"",(K186-$L$7)/VLOOKUP(I186,Banco[#All],8,0)),"") -> 0.9872262774 | P186: =IFERROR(L186*VLOOKUP(I186,Banco[#All],3,0)+(M186*VLOOKUP(I186,Banco[#All],4,0)),"") -> 108864 | Q186: =IFERROR(P186/VLOOKUP(I186,Banco[#All],3,0),L186) -> 162
H187: EXP | I187: 74161 | J187: =IFERROR(VLOOKUP(I187,BANCO!_xlnm.Print_Area,2,0),"") -> 1500X8 DECORADO | K187: 44533 | L187: 35 | O187: =IFERROR(IF(OR(I187="",AND(L187="",M187="")),"",(K187-$L$7)/VLOOKUP(I187,Banco[#All],8,0)),"") -> 0.9890510949 | P187: =IFERROR(L187*VLOOKUP(I187,Banco[#All],3,0)+(M187*VLOOKUP(I187,Banco[#All],4,0)),"") -> 23520 | Q187: =IFERROR(P187/VLOOKUP(I187,Banco[#All],3,0),L187) -> 35
H188: EXP | J188: =IFERROR(VLOOKUP(I188,BANCO!_xlnm.Print_Area,2,0),"") ->  | O188: =IFERROR(IF(OR(I188="",AND(L188="",M188="")),"",(K188-$L$7)/VLOOKUP(I188,Banco[#All],8,0)),"") ->  | P188: =IFERROR(L188*VLOOKUP(I188,Banco[#All],3,0)+(M188*VLOOKUP(I188,Banco[#All],4,0)),"") ->  | Q188: =IFERROR(P188/VLOOKUP(I188,Banco[#All],3,0),L188) -> 0
H189: EXP | J189: =IFERROR(VLOOKUP(I189,BANCO!_xlnm.Print_Area,2,0),"") ->  | O189: =IFERROR(IF(OR(I189="",AND(L189="",M189="")),"",(K189-$L$7)/VLOOKUP(I189,Banco[#All],8,0)),"") ->  | P189: =IFERROR(L189*VLOOKUP(I189,Banco[#All],3,0)+(M189*VLOOKUP(I189,Banco[#All],4,0)),"") ->  | Q189: =IFERROR(P189/VLOOKUP(I189,Banco[#All],3,0),L189) -> 0
H190: EXP | J190: =IFERROR(VLOOKUP(I190,BANCO!_xlnm.Print_Area,2,0),"") ->  | O190: =IFERROR(IF(OR(I190="",AND(L190="",M190="")),"",(K190-$L$7)/VLOOKUP(I190,Banco[#All],8,0)),"") ->  | P190: =IFERROR(L190*VLOOKUP(I190,Banco[#All],3,0)+(M190*VLOOKUP(I190,Banco[#All],4,0)),"") ->  | Q190: =IFERROR(P190/VLOOKUP(I190,Banco[#All],3,0),L190) -> 0
H191: EXP | J191: =IFERROR(VLOOKUP(I191,BANCO!_xlnm.Print_Area,2,0),"") ->  | O191: =IFERROR(IF(OR(I191="",AND(L191="",M191="")),"",(K191-$L$7)/VLOOKUP(I191,Banco[#All],8,0)),"") ->  | P191: =IFERROR(L191*VLOOKUP(I191,Banco[#All],3,0)+(M191*VLOOKUP(I191,Banco[#All],4,0)),"") ->  | Q191: =IFERROR(P191/VLOOKUP(I191,Banco[#All],3,0),L191) -> 0
H192: EXP | J192: =IFERROR(VLOOKUP(I192,BANCO!_xlnm.Print_Area,2,0),"") ->  | O192: =IFERROR(IF(OR(I192="",AND(L192="",M192="")),"",(K192-$L$7)/VLOOKUP(I192,Banco[#All],8,0)),"") ->  | P192: =IFERROR(L192*VLOOKUP(I192,Banco[#All],3,0)+(M192*VLOOKUP(I192,Banco[#All],4,0)),"") ->  | Q192: =IFERROR(P192/VLOOKUP(I192,Banco[#All],3,0),L192) -> 0
H193: EXP | J193: =IFERROR(VLOOKUP(I193,BANCO!_xlnm.Print_Area,2,0),"") ->  | O193: =IFERROR(IF(OR(I193="",AND(L193="",M193="")),"",(K193-$L$7)/VLOOKUP(I193,Banco[#All],8,0)),"") ->  | P193: =IFERROR(L193*VLOOKUP(I193,Banco[#All],3,0)+(M193*VLOOKUP(I193,Banco[#All],4,0)),"") ->  | Q193: =IFERROR(P193/VLOOKUP(I193,Banco[#All],3,0),L193) -> 0
H194: EXP | J194: =IFERROR(VLOOKUP(I194,BANCO!_xlnm.Print_Area,2,0),"") ->  | O194: =IFERROR(IF(OR(I194="",AND(L194="",M194="")),"",(K194-$L$7)/VLOOKUP(I194,Banco[#All],8,0)),"") ->  | P194: =IFERROR(L194*VLOOKUP(I194,Banco[#All],3,0)+(M194*VLOOKUP(I194,Banco[#All],4,0)),"") ->  | Q194: =IFERROR(P194/VLOOKUP(I194,Banco[#All],3,0),L194) -> 0
H195: EXP | J195: =IFERROR(VLOOKUP(I195,BANCO!_xlnm.Print_Area,2,0),"") ->  | O195: =IFERROR(IF(OR(I195="",AND(L195="",M195="")),"",(K195-$L$7)/VLOOKUP(I195,Banco[#All],8,0)),"") ->  | P195: =IFERROR(L195*VLOOKUP(I195,Banco[#All],3,0)+(M195*VLOOKUP(I195,Banco[#All],4,0)),"") ->  | Q195: =IFERROR(P195/VLOOKUP(I195,Banco[#All],3,0),L195) -> 0
H196: EXP | J196: =IFERROR(VLOOKUP(I196,BANCO!_xlnm.Print_Area,2,0),"") ->  | O196: =IFERROR(IF(OR(I196="",AND(L196="",M196="")),"",(K196-$L$7)/VLOOKUP(I196,Banco[#All],8,0)),"") ->  | P196: =IFERROR(L196*VLOOKUP(I196,Banco[#All],3,0)+(M196*VLOOKUP(I196,Banco[#All],4,0)),"") ->  | Q196: =IFERROR(P196/VLOOKUP(I196,Banco[#All],3,0),L196) -> 0
H197: EXP | J197: =IFERROR(VLOOKUP(I197,BANCO!_xlnm.Print_Area,2,0),"") ->  | O197: =IFERROR(IF(OR(I197="",AND(L197="",M197="")),"",(K197-$L$7)/VLOOKUP(I197,Banco[#All],8,0)),"") ->  | P197: =IFERROR(L197*VLOOKUP(I197,Banco[#All],3,0)+(M197*VLOOKUP(I197,Banco[#All],4,0)),"") ->  | Q197: =IFERROR(P197/VLOOKUP(I197,Banco[#All],3,0),L197) -> 0
H198: EXP | J198: =IFERROR(VLOOKUP(I198,BANCO!_xlnm.Print_Area,2,0),"") ->  | O198: =IFERROR(IF(OR(I198="",AND(L198="",M198="")),"",(K198-$L$7)/VLOOKUP(I198,Banco[#All],8,0)),"") ->  | P198: =IFERROR(L198*VLOOKUP(I198,Banco[#All],3,0)+(M198*VLOOKUP(I198,Banco[#All],4,0)),"") ->  | Q198: =IFERROR(P198/VLOOKUP(I198,Banco[#All],3,0),L198) -> 0
H199: EXP | J199: =IFERROR(VLOOKUP(I199,BANCO!_xlnm.Print_Area,2,0),"") ->  | O199: =IFERROR(IF(OR(I199="",AND(L199="",M199="")),"",(K199-$L$7)/VLOOKUP(I199,Banco[#All],8,0)),"") ->  | P199: =IFERROR(L199*VLOOKUP(I199,Banco[#All],3,0)+(M199*VLOOKUP(I199,Banco[#All],4,0)),"") ->  | Q199: =IFERROR(P199/VLOOKUP(I199,Banco[#All],3,0),L199) -> 0
H200: EXP | J200: =IFERROR(VLOOKUP(I200,BANCO!_xlnm.Print_Area,2,0),"") ->  | O200: =IFERROR(IF(OR(I200="",AND(L200="",M200="")),"",(K200-$L$7)/VLOOKUP(I200,Banco[#All],8,0)),"") ->  | P200: =IFERROR(L200*VLOOKUP(I200,Banco[#All],3,0)+(M200*VLOOKUP(I200,Banco[#All],4,0)),"") ->  | Q200: =IFERROR(P200/VLOOKUP(I200,Banco[#All],3,0),L200) -> 0
H201: EXP | J201: =IFERROR(VLOOKUP(I201,BANCO!_xlnm.Print_Area,2,0),"") ->  | O201: =IFERROR(IF(OR(I201="",AND(L201="",M201="")),"",(K201-$L$7)/VLOOKUP(I201,Banco[#All],8,0)),"") ->  | P201: =IFERROR(L201*VLOOKUP(I201,Banco[#All],3,0)+(M201*VLOOKUP(I201,Banco[#All],4,0)),"") ->  | Q201: =IFERROR(P201/VLOOKUP(I201,Banco[#All],3,0),L201) -> 0
... 8 more rows

Sheet Gráficos (hidden)
I1: Status | J1: (vazio) | L1: Status | M1: (vazio)
I2: Rua | J2: (vazio)
L3: Rótulos de Linha | M3: Soma de Qtd Und.
I4: Rótulos de Linha | J4: Soma de Qtd plts | L4: 74129 | M4: 68880
I5: no | J5: 0 | L5: 74161 | M5: 885696
I6: 1,5L Liso | J6: 0 | L6: 82428 | M6: 205296
I7: Total Geral | J7: 0 | L7: 82435 | M7: 647136
L8: 97243 | M8: 1620
L9: 106502 | M9: 9984
L10: 113235 | M10: 7488
L11: 120990 | M11: 61440
L12: 121806 | M12: 48720
L13: 121807 | M13: 125280
I14: VERIFICAR | L14: 122040 | M14: 79464
I15: OK < 33% | J15: =COUNTIFS('contagem diaria'!#REF!,"ok",'contagem diaria'!AU:AU,"<33%",'contagem diaria'!N:N,">1") ->  | L15: 139880 | M15: 38808
I16: Sem OK | J16: =COUNTIFS('contagem diaria'!AV:AV,">0",'contagem diaria'!#REF!,"") ->  | L16: 139916 | M16: 153384
L17: 139917 | M17: 157800
L18: 139918 | M18: 58200
B19: Produto Acabado Liberado | C19: =ROUNDUP(SUMIF('contagem diaria'!#REF!,"ok",'contagem diaria'!$H$8:$H$24),0) ->  | E19: TOTAL CHEP | L19: 148116 | M19: 23400
B20: Total - Matéria-Prima | C20: =ROUNDUP(IFERROR(GETPIVOTDATA("Cap.",Ocupação!$B$16,"SKU","PREFORMA"),0),0) -> 0 | E20: =SUM('contagem diaria'!#REF!) ->  | L20: 151548 | M20: 102000
B21: Vencimento | C21: =ROUNDUP(SUMIF('contagem diaria'!#REF!,"0005",'contagem diaria'!$H$7:$H$24),0) ->  | L21: (vazio) | M21: 0
B22: Descarte | C22: =ROUNDUP(SUMIF('contagem diaria'!#REF!,"0005Bloq",'contagem diaria'!$H$7:$H$24),0) ->  | L22: Total Geral | M22: 2674596
B23: Retido | C23: =ROUNDUP(SUMIF('contagem diaria'!#REF!,"0008Bloq",'contagem diaria'!$H$7:$H$24),0) -> 
B24: Quarentena | C24: =ROUNDUP(SUMIF('contagem diaria'!#REF!,"0001",'contagem diaria'!$H$7:$H$24)+SUMIF('contagem diaria'!#REF!,"0001Bloq",'contagem diaria'!$H$7:$H$24),0) -> 
B25: Idade Avançada | C25: =ROUNDUP(SUMIF('contagem diaria'!#REF!,"0006",'contagem diaria'!$H$7:$H$24),) -> 
B26: Outros | C26: =35+28 -> 63
B27: Efeito Colmeia | C27: =Ocupação!$H$51 -> -1703
B28: TOTAL PALLETS - CD JUNDIAÍ | C28: =SUM(C19:C26) -> 
B34: Rótulos de Linha | C34: TOTAL
B35: TOTAL PALLETS - CD JUNDIAÍ

Sheet Planilha2 (hidden)
A1: SKU | D1: SAP
A2: 74158 | B2: 108 | D2: =SUMIF('Saldo SAP'!C:E,Planilha2!A2,'Saldo SAP'!E:E) -> 84 | F2: =B2-D2 -> 24
A3: 74161 | B3: 40624 | D3: =SUMIF('Saldo SAP'!C:E,Planilha2!A3,'Saldo SAP'!E:E) -> 36008 | F3: =B3-D3 -> 4616
A4: 74390 | B4: 8736 | D4: =SUMIF('Saldo SAP'!C:E,Planilha2!A4,'Saldo SAP'!E:E) -> 0 | F4: 8736
A5: 82163 | B5: 3528 | D5: =SUMIF('Saldo SAP'!C:E,Planilha2!A5,'Saldo SAP'!E:E) -> 3516 | F5: 12
A6: 82428 | B6: 132624 | D6: =SUMIF('Saldo SAP'!C:E,Planilha2!A6,'Saldo SAP'!E:E) -> 49848 | F6: 82776
A7: 82435 | B7: 58912 | D7: =SUMIF('Saldo SAP'!C:E,Planilha2!A7,'Saldo SAP'!E:E) -> 58208 | F7: 704
A8: 87111 | B8: 552 | D8: =SUMIF('Saldo SAP'!C:E,Planilha2!A8,'Saldo SAP'!E:E) -> 690 | F8: -138
A9: 87113 | B9: 156 | D9: =SUMIF('Saldo SAP'!C:E,Planilha2!A9,'Saldo SAP'!E:E) -> 12 | F9: 144
A10: 97243 | B10: 2160 | D10: =SUMIF('Saldo SAP'!C:E,Planilha2!A10,'Saldo SAP'!E:E) -> 2115 | F10: 45
A11: 102032 | B11: 8400 | D11: =SUMIF('Saldo SAP'!C:E,Planilha2!A11,'Saldo SAP'!E:E) -> 8400 | F11: 0
A12: 113235 | B12: 660 | D12: =SUMIF('Saldo SAP'!C:E,Planilha2!A12,'Saldo SAP'!E:E) -> 636 | F12: 24
A13: 116344 | B13: 71561 | D13: =SUMIF('Saldo SAP'!C:E,Planilha2!A13,'Saldo SAP'!E:E) -> 72480 | F13: -919
A14: 119151 | B14: 2600 | D14: =SUMIF('Saldo SAP'!C:E,Planilha2!A14,'Saldo SAP'!E:E) -> 2600 | F14: 0
A15: 120990 | B15: 5216 | D15: =SUMIF('Saldo SAP'!C:E,Planilha2!A15,'Saldo SAP'!E:E) -> 2632 | F15: 2584
A16: 121806 | B16: 540 | D16: =SUMIF('Saldo SAP'!C:E,Planilha2!A16,'Saldo SAP'!E:E) -> 540 | F16: 0
A17: 121807 | B17: 456 | D17: =SUMIF('Saldo SAP'!C:E,Planilha2!A17,'Saldo SAP'!E:E) -> 396 | F17: 60
A18: 121884 | B18: =271238+7320 -> 278558 | D18: =SUMIF('Saldo SAP'!C:E,Planilha2!A18,'Saldo SAP'!E:E) -> 275883 | F18: 2675
A19: 122040 | B19: 20124 | D19: =SUMIF('Saldo SAP'!C:E,Planilha2!A19,'Saldo SAP'!E:E) -> 1644 | F19: 18480
A20: 139226 | B20: 62088 | D20: =SUMIF('Saldo SAP'!C:E,Planilha2!A20,'Saldo SAP'!E:E) -> 63000 | F20: -912
A21: 139917 | B21: 360 | D21: =SUMIF('Saldo SAP'!C:E,Planilha2!A21,'Saldo SAP'!E:E) -> 414 | F21: -54
A22: 139918 | B22: 30 | D22: =SUMIF('Saldo SAP'!C:E,Planilha2!A22,'Saldo SAP'!E:E) -> 0 | F22: 30
A23: 141799 | B23: 1305 | D23: =SUMIF('Saldo SAP'!C:E,Planilha2!A23,'Saldo SAP'!E:E) -> 1275 | F23: 30
A24: 141801 | B24: 810 | D24: =SUMIF('Saldo SAP'!C:E,Planilha2!A24,'Saldo SAP'!E:E) -> 810 | F24: 0
A25: 141802 | B25: 10425 | D25: =SUMIF('Saldo SAP'!C:E,Planilha2!A25,'Saldo SAP'!E:E) -> 10365 | F25: 60
A26: 148116 | B26: 804 | D26: =SUMIF('Saldo SAP'!C:E,Planilha2!A26,'Saldo SAP'!E:E) -> 804 | F26: 0
A27: 148121 | B27: 2880 | D27: =SUMIF('Saldo SAP'!C:E,Planilha2!A27,'Saldo SAP'!E:E) -> 1596 | F27: 1284
A28: 148214 | B28: 8352 | D28: =SUMIF('Saldo SAP'!C:E,Planilha2!A28,'Saldo SAP'!E:E) -> 8424 | F28: -72
A29: 148215 | B29: 1548 | D29: =SUMIF('Saldo SAP'!C:E,Planilha2!A29,'Saldo SAP'!E:E) -> 1908 | F29: -360
A30: 151548 | B30: 1956 | D30: =SUMIF('Saldo SAP'!C:E,Planilha2!A30,'Saldo SAP'!E:E) -> 720 | F30: 1236
A31: 155243 | B31: 1368 | D31: =SUMIF('Saldo SAP'!C:E,Planilha2!A31,'Saldo SAP'!E:E) -> 1416 | F31: -48
A32: 121884R3 | B32: 7320 | D32: =SUMIF('Saldo SAP'!C:E,Planilha2!A32,'Saldo SAP'!E:E) -> 0 | F32: 7320

Sheet Saldo SAP (hidden)
A1: Plant | B1: Storage Location | C1: Material | D1: Material Description | E1: Unrestricted | F1: Blocked | G1: Qual. Inspection | H1: Unit
A2: 2443 | B2: 5 | C2: 119151 | D2: MASCOTE FROZEN 8X330ML | E2: 2600 | F2: 0 | G2: 0 | H2: PC
A3: 2443 | B3: 5 | C3: 141802 | D3: REFRI SAUDAVEL CITRUS LATA 269 ML | E3: 7590 | F3: 0 | G3: 0 | H3: PC
A4: 2443 | B4: 5 | C4: 148116 | D4: BONAFONT C/ GAS 1270 ML TANGERINA | E4: 804 | F4: 0 | G4: 0 | H4: PC
A5: 2443 | B5: 5 | C5: 148214 | D5: TEA 4U 1L CAPIM LIMAO | E5: 8160 | F5: 0 | G5: 0 | H5: PC
A6: 2443 | B6: 5 | C6: 148215 | D6: TEA 4U 1L CHA PRETO | E6: 1704 | F6: 0 | G6: 0 | H6: PC
A7: 2443 | B7: 5 | C7: 155243 | D7: TEA 4U CHA MATE LIMAO YUZU E MEL 1L | E7: 1008 | F7: 0 | G7: 0 | H7: PC
B8: 5 | E8: 21866 | F8: 0 | G8: 0 | H8: PC
A9: 2443 | B9: 8 | C9: 74158 | D9: AGUA MINERAL NATUR BONAFONT 500ML | E9: 84 | F9: 0 | G9: 0 | H9: PC
A10: 2443 | B10: 8 | C10: 74161 | D10: AGUA MINERAL BONAFONT 1500 ML PROMO | E10: 36008 | F10: 0 | G10: 0 | H10: PC
A11: 2443 | B11: 8 | C11: 82163 | D11: AGUA MINERAL NATURAL BONAFONT KIDS 300ML | E11: 3516 | F11: 0 | G11: 0 | H11: PC
A12: 2443 | B12: 8 | C12: 82428 | D12: AGUA MINERAL BONAFONT 500ML X24 DECORADO | E12: 49848 | F12: 0 | G12: 0 | H12: PC
A13: 2443 | B13: 8 | C13: 82435 | D13: AGUA MINERAL BONAFONT 8X1,5L LISO | E13: 58208 | F13: 0 | G13: 0 | H13: PC
A14: 2443 | B14: 8 | C14: 87111 | D14: AGUA MINERAL NATURAL BONAFONT 2,25L | E14: 690 | F14: 0 | G14: 0 | H14: PC
A15: 2443 | B15: 8 | C15: 87113 | D15: AGUA MINERAL NATURAL BONAFONT 6X2,25L | E15: 12 | F15: 0 | G15: 0 | H15: PC
A16: 2443 | B16: 8 | C16: 97243 | D16: AGUA MINERAL NATURAL BONAFONT 650ML SPOR | E16: 2115 | F16: 0 | G16: 0 | H16: PC
A17: 2443 | B17: 8 | C17: 102032 | D17: AGUA MINERAL NATURAL 300ML DISNEY | E17: 8400 | F17: 0 | G17: 0 | H17: PC
A18: 2443 | B18: 8 | C18: 113235 | D18: AGUA BONAFONT MASCOTE FROZEN 330ML | E18: 636 | F18: 0 | G18: 0 | H18: PC
A19: 2443 | B19: 8 | C19: 116344 | D19: ÁGUA MINERAL BONAFONT 4500ML | E19: 72480 | F19: 0 | G19: 0 | H19: PC
A20: 2443 | B20: 8 | C20: 120990 | D20: BONAFONT MASCOTES 330ML ED. LIMITADA | E20: 2632 | F20: 0 | G20: 0 | H20: PC
A21: 2443 | B21: 8 | C21: 121806 | D21: AGUA MINERAL SEM GAS 330ML | E21: 540 | F21: 0 | G21: 0 | H21: PC
A22: 2443 | B22: 8 | C22: 121807 | D22: AGUA MINERAL COM GAS 330ML | E22: 396 | F22: 0 | G22: 0 | H22: PC
A23: 2443 | B23: 8 | C23: 121884 | D23: BONAFONT GALOES 7L | E23: 275883 | F23: 0 | G23: 0 | H23: PC
A24: 2443 | B24: 8 | C24: 122040 | D24: AGUA MINERAL COM GAS 500ML | E24: 1644 | F24: 0 | G24: 0 | H24: PC
A25: 2443 | B25: 8 | C25: 139226 | D25: AG COCO SQ1000ML | E25: 63000 | F25: 0 | G25: 0 | H25: PC
A26: 2443 | B26: 8 | C26: 139917 | D26: BONAFONT C/ GAS 1270ML 2 LIMOES | E26: 414 | F26: 0 | G26: 0 | H26: PC
A27: 2443 | B27: 8 | C27: 141799 | D27: CHÁ PRETO, HIBISCO E BERRIES LATA 310 ML | E27: 1275 | F27: 0 | G27: 0 | H27: PC
A28: 2443 | B28: 8 | C28: 141801 | D28: CHÁ CAPIM-LIMÃO E CITRICOS LATA 310 ML | E28: 810 | F28: 0 | G28: 0 | H28: PC
A29: 2443 | B29: 8 | C29: 141802 | D29: REFRI SAUDAVEL CITRUS LATA 269 ML | E29: 2775 | F29: 0 | G29: 0 | H29: PC
A30: 2443 | B30: 8 | C30: 148121 | D30: BONAFONT C/ GAS 500 ML TANGERINA | E30: 1596 | F30: 0 | G30: 0 | H30: PC
A31: 2443 | B31: 8 | C31: 148214 | D31: TEA 4U 1L CAPIM LIMAO | E31: 264 | F31: 0 | G31: 0 | H31: PC
A32: 2443 | B32: 8 | C32: 148215 | D32: TEA 4U 1L CHA PRETO | E32: 204 | F32: 0 | G32: 0 | H32: PC
A33: 2443 | B33: 8 | C33: 151548 | D33: BONAFONT COM GAS 1360ML | E33: 720 | F33: 0 | G33: 0 | H33: PC
A34: 2443 | B34: 8 | C34: 155243 | D34: TEA 4U CHA MATE LIMAO YUZU E MEL 1L | E34: 408 | F34: 0 | G34: 0 | H34: PC
B35: 8 | E35: 584558 | F35: 0 | G35: 0 | H35: PC

Sheet Ocupação (hidden)
B2: TOTAL DE POSIÇÕES PRODUTO ACABADO | C2: 2201
B4: Preforma/Materia-Prima | C4: =IFERROR(GETPIVOTDATA("Cap.",$B$16,"SKU","PREFORMA"),0) -> 0 | D4: =C4/$C$2 -> 0
B5: Arquivos/Cxs Vazias/Colunas | C5: =IFERROR(GETPIVOTDATA("Cap.",$B$16,"SKU","DIVERSOS"),0) -> 0 | D5: 0
B6: Consumo | C6: =IFERROR(GETPIVOTDATA("Cap.",$B$16,"SKU","CONSUMO"),0) -> 0 | D6: 0
B7: Qualidade | C7: =IFERROR(GETPIVOTDATA("Cap.",$B$16,"SKU","QUALIDADE"),0) -> 0 | D7: 0
B8: Retidos | C8: =IFERROR(GETPIVOTDATA("Cap.",$B$16,"SKU","RETIDOS"),0) -> 0 | D8: 0
B9: Posições Ocupadas com Outros | C9: =SUM(C4:C8) -> 0 | D9: 0
B11: TOTAL DE POSIÇÕES PRODUTO ACABADO | C11: =C2-C9 -> 2201 | D11: =C11/C2 -> 1
B12: Posições com Paletes | C12: =GETPIVOTDATA("Soma de Plts Ocupados",$B$39) -> 737 | D12: =C12/$C$11 -> 0.3348477965
B13: Adicionando Efeito Coméia | C13: =H49 -> 0 | D13: =(C12+C13)/C11 -> 0.3348477965
B14: Livres | C14: =C11-C12-C13 -> 1464 | D14: =C14/C11 -> 0.6651522035
B16: Rótulos de Linha | C16: Soma de Cap.
B17: Total Geral
B37: SKU | C37: (Vários itens)
B39: Rótulos de Linha | C39: Soma de Cap. | D39: Soma de Plts Ocupados | E39: Soma de % Ocupação | F39: Soma de Vazio | G39: Soma Drives Vazios - Pll | H39: Efeito Coméia PLL | K39: Drive-ins Vazios 6:00 | M39: QTD Drive-ins Vazios
B40: A | C40: 1454 | D40: 373 | E40: 0.2565337001 | F40: 26 | G40: =IFERROR(VLOOKUP(B40,$B$66:$C$74,2,0),0) -> 866 | H40: =C40-D40-G40 -> 215 | K40: Endereço | L40: Capacidade | M40: =COUNT(L41:L740) -> 0
B41: B | C41: 879 | D41: 364 | E41: 0.4141069397 | F41: 20 | G41: 725 | H41: =C41-D41-G41 -> -210 | K41: A - 01 | L41: =IFERROR(INDEX('contagem diaria'!$F$7:$F$24,MATCH(Ocupação!K41,'contagem diaria'!#REF!,0),0),"") -> 
B42: C | C42: 112 | D42: 0 | E42: 0 | F42: 4 | G42: 112 | H42: 0 | K42: A - 11 | L42: =IFERROR(INDEX('contagem diaria'!$F$7:$F$24,MATCH(Ocupação!K42,'contagem diaria'!#REF!,0),0),"") -> 
B43: Total Geral | C43: 2445 | D43: 737 | E43: 0.3014314928 | F43: 50 | G43: 1703 | H43: 5 | K43: A - 13 | L43: =IFERROR(INDEX('contagem diaria'!$F$7:$F$24,MATCH(Ocupação!K43,'contagem diaria'!#REF!,0),0),"") ->  | M43: QTD Espaço disponível
G44: 0 | H44: 0 | K44: A - 15 | L44: =IFERROR(INDEX('contagem diaria'!$F$7:$F$24,MATCH(Ocupação!K44,'contagem diaria'!#REF!,0),0),"") ->  | M44: =SUM(L41:L740) -> 0
G45: 0 | H45: 0 | K45: A - 17 | L45: =IFERROR(INDEX('contagem diaria'!$F$7:$F$24,MATCH(Ocupação!K45,'contagem diaria'!#REF!,0),0),"") -> 
G46: 0 | H46: 0 | K46: A - 19 | L46: =IFERROR(INDEX('contagem diaria'!$F$7:$F$24,MATCH(Ocupação!K46,'contagem diaria'!#REF!,0),0),"") ->  | O46: resta:
G47: 0 | H47: 0 | K47: A - 21 | L47: =IFERROR(INDEX('contagem diaria'!$F$7:$F$24,MATCH(Ocupação!K47,'contagem diaria'!#REF!,0),0),"") ->  | O47: =((M40/260)-1)*-1 -> 1 | P47: dos drive-ins
G48: 0 | H48: 0 | I48: Ocupação com efeito colmeia | K48: A - 23 | L48: =IFERROR(INDEX('contagem diaria'!$F$7:$F$24,MATCH(Ocupação!K48,'contagem diaria'!#REF!,0),0),"") -> 
G49: 0 | H49: 0 | K49: A - 25 | L49: =IFERROR(INDEX('contagem diaria'!$F$7:$F$24,MATCH(Ocupação!K49,'contagem diaria'!#REF!,0),0),"") -> 
G50: =IFERROR(VLOOKUP(B50,$B$66:$C$86,2,0),0) -> 0 | H50: 0 | K50: A - 29 | L50: =IFERROR(INDEX('contagem diaria'!$F$7:$F$24,MATCH(Ocupação!K50,'contagem diaria'!#REF!,0),0),"") -> 
G51: =GETPIVOTDATA("Soma de Cap.",$B$66) -> 1703 | H51: =C51-D51-G51 -> -1703 | I51: =(GETPIVOTDATA("Soma de Plts Ocupados",$B$39)+H51)/GETPIVOTDATA("Soma de Cap.",$B$39) -> -0.3950920245 | K51: A - 37 | L51: =IFERROR(INDEX('contagem diaria'!$F$7:$F$24,MATCH(Ocupação!K51,'contagem diaria'!#REF!,0),0),"") -> 
K52: A - 39 | L52: =IFERROR(INDEX('contagem diaria'!$F$7:$F$24,MATCH(Ocupação!K52,'contagem diaria'!#REF!,0),0),"") -> 
I53: =I51-GETPIVOTDATA("Soma de % Ocupação",$B$39) -> -0.6965235174 | K53: A - 41 | L53: =IFERROR(INDEX('contagem diaria'!$F$7:$F$24,MATCH(Ocupação!K53,'contagem diaria'!#REF!,0),0),"") -> 
K54: A - 02 | L54: =IFERROR(INDEX('contagem diaria'!$F$7:$F$24,MATCH(Ocupação!K54,'contagem diaria'!#REF!,0),0),"") -> 
K55: A - 04 | L55: =IFERROR(INDEX('contagem diaria'!$F$7:$F$24,MATCH(Ocupação!K55,'contagem diaria'!#REF!,0),0),"") -> 
K56: A - 06 | L56: =IFERROR(INDEX('contagem diaria'!$F$7:$F$24,MATCH(Ocupação!K56,'contagem diaria'!#REF!,0),0),"") -> 
K57: A - 08 | L57: =IFERROR(INDEX('contagem diaria'!$F$7:$F$24,MATCH(Ocupação!K57,'contagem diaria'!#REF!,0),0),"") -> 
K58: A - 10 | L58: =IFERROR(INDEX('contagem diaria'!$F$7:$F$24,MATCH(Ocupação!K58,'contagem diaria'!#REF!,0),0),"") -> 
K59: A - 14 | L59: =IFERROR(INDEX('contagem diaria'!$F$7:$F$24,MATCH(Ocupação!K59,'contagem diaria'!#REF!,0),0),"") -> 
K60: A - 16 | L60: =IFERROR(INDEX('contagem diaria'!$F$7:$F$24,MATCH(Ocupação!K60,'contagem diaria'!#REF!,0),0),"") -> 
K61: A - 22 | L61: =IFERROR(INDEX('contagem diaria'!$F$7:$F$24,MATCH(Ocupação!K61,'contagem diaria'!#REF!,0),0),"") -> 
K62: A - 30 | L62: =IFERROR(INDEX('contagem diaria'!$F$7:$F$24,MATCH(Ocupação!K62,'contagem diaria'!#REF!,0),0),"") -> 
B63: SKU | C63: (Vários itens) | K63: A - 38 | L63: =IFERROR(INDEX('contagem diaria'!$F$7:$F$24,MATCH(Ocupação!K63,'contagem diaria'!#REF!,0),0),"") -> 
B64: Vazio | C64: 1 | K64: A - 40 | L64: =IFERROR(INDEX('contagem diaria'!$F$7:$F$24,MATCH(Ocupação!K64,'contagem diaria'!#REF!,0),0),"") -> 
K65: B - 01 | L65: =IFERROR(INDEX('contagem diaria'!$F$7:$F$24,MATCH(Ocupação!K65,'contagem diaria'!#REF!,0),0),"") -> 
B66: Rótulos de Linha | C66: Soma de Cap. | D66: Soma de Plts Ocupados | K66: B - 03 | L66: =IFERROR(INDEX('contagem diaria'!$F$7:$F$24,MATCH(Ocupação!K66,'contagem diaria'!#REF!,0),0),"") -> 
B67: A | C67: 866 | D67: 0 | K67: B - 09 | L67: =IFERROR(INDEX('contagem diaria'!$F$7:$F$24,MATCH(Ocupação!K67,'contagem diaria'!#REF!,0),0),"") -> 
B68: B | C68: 725 | D68: 0 | K68: B - 19 | L68: =IFERROR(INDEX('contagem diaria'!$F$7:$F$24,MATCH(Ocupação!K68,'contagem diaria'!#REF!,0),0),"") -> 
B69: C | C69: 112 | D69: 0 | K69: B - 29 | L69: =IFERROR(INDEX('contagem diaria'!$F$7:$F$24,MATCH(Ocupação!K69,'contagem diaria'!#REF!,0),0),"") -> 
B70: Total Geral | C70: 1703 | D70: 0 | K70: B - 28 | L70: =IFERROR(INDEX('contagem diaria'!$F$7:$F$24,MATCH(Ocupação!K70,'contagem diaria'!#REF!,0),0),"") -> 
K71: B - 30 | L71: =IFERROR(INDEX('contagem diaria'!$F$7:$F$24,MATCH(Ocupação!K71,'contagem diaria'!#REF!,0),0),"") -> 
K72: B - 32 | L72: =IFERROR(INDEX('contagem diaria'!$F$7:$F$24,MATCH(Ocupação!K72,'contagem diaria'!#REF!,0),0),"") -> 
K73: B - 40 | L73: =IFERROR(INDEX('contagem diaria'!$F$7:$F$24,MATCH(Ocupação!K73,'contagem diaria'!#REF!,0),0),"") -> 
K74: B - 42 | L74: =IFERROR(INDEX('contagem diaria'!$F$7:$F$24,MATCH(Ocupação!K74,'contagem diaria'!#REF!,0),0),"") -> 
K75: C - 01 | L75: =IFERROR(INDEX('contagem diaria'!$F$7:$F$24,MATCH(Ocupação!K75,'contagem diaria'!#REF!,0),0),"") -> 
K76: C - 03 | L76: =IFERROR(INDEX('contagem diaria'!$F$7:$F$24,MATCH(Ocupação!K76,'contagem diaria'!#REF!,0),0),"") -> 
K77: C - 05 | L77: =IFERROR(INDEX('contagem diaria'!$F$7:$F$24,MATCH(Ocupação!K77,'contagem diaria'!#REF!,0),0),"") -> 
K78: C - 07 | L78: =IFERROR(INDEX('contagem diaria'!$F$7:$F$24,MATCH(Ocupação!K78,'contagem diaria'!#REF!,0),0),"") -> 
K79: C - 09 | L79: =IFERROR(INDEX('contagem diaria'!$F$7:$F$24,MATCH(Ocupação!K79,'contagem diaria'!#REF!,0),0),"") -> 
K80: C - 13 | L80: =IFERROR(INDEX('contagem diaria'!$F$7:$F$24,MATCH(Ocupação!K80,'contagem diaria'!#REF!,0),0),"") -> 
K81: C - 15 | L81: =IFERROR(INDEX('contagem diaria'!$F$7:$F$24,MATCH(Ocupação!K81,'contagem diaria'!#REF!,0),0),"") -> 
K82: C - 19 | L82: =IFERROR(INDEX('contagem diaria'!$F$7:$F$24,MATCH(Ocupação!K82,'contagem diaria'!#REF!,0),0),"") -> 
K83: C - 25 | L83: =IFERROR(INDEX('contagem diaria'!$F$7:$F$24,MATCH(Ocupação!K83,'contagem diaria'!#REF!,0),0),"") -> 
K84: C - 29 | L84: =IFERROR(INDEX('contagem diaria'!$F$7:$F$24,MATCH(Ocupação!K84,'contagem diaria'!#REF!,0),0),"") -> 
K85: C - 37 | L85: =IFERROR(INDEX('contagem diaria'!$F$7:$F$24,MATCH(Ocupação!K85,'contagem diaria'!#REF!,0),0),"") -> 
K86: C - 39 | L86: =IFERROR(INDEX('contagem diaria'!$F$7:$F$24,MATCH(Ocupação!K86,'contagem diaria'!#REF!,0),0),"") -> 
K87: C - 02 | L87: =IFERROR(INDEX('contagem diaria'!$F$7:$F$24,MATCH(Ocupação!K87,'contagem diaria'!#REF!,0),0),"") -> 
K88: C - 04 | L88: =IFERROR(INDEX('contagem diaria'!$F$7:$F$24,MATCH(Ocupação!K88,'contagem diaria'!#REF!,0),0),"") -> 
K89: C - 06 | L89: =IFERROR(INDEX('contagem diaria'!$F$7:$F$24,MATCH(Ocupação!K89,'contagem diaria'!#REF!,0),0),"") -> 
K90: C - 08 | L90: =IFERROR(INDEX('contagem diaria'!$F$7:$F$24,MATCH(Ocupação!K90,'contagem diaria'!#REF!,0),0),"") -> 
K91: C - 10 | L91: =IFERROR(INDEX('contagem diaria'!$F$7:$F$24,MATCH(Ocupação!K91,'contagem diaria'!#REF!,0),0),"") -> 
K92: C - 12 | L92: =IFERROR(INDEX('contagem diaria'!$F$7:$F$24,MATCH(Ocupação!K92,'contagem diaria'!#REF!,0),0),"") -> 
K93: C - 14 | L93: =IFERROR(INDEX('contagem diaria'!$F$7:$F$24,MATCH(Ocupação!K93,'contagem diaria'!#REF!,0),0),"") -> 
K94: C - 16 | L94: =IFERROR(INDEX('contagem diaria'!$F$7:$F$24,MATCH(Ocupação!K94,'contagem diaria'!#REF!,0),0),"") -> 
K95: C - 18 | L95: =IFERROR(INDEX('contagem diaria'!$F$7:$F$24,MATCH(Ocupação!K95,'contagem diaria'!#REF!,0),0),"") -> 
K96: C - 24 | L96: =IFERROR(INDEX('contagem diaria'!$F$7:$F$24,MATCH(Ocupação!K96,'contagem diaria'!#REF!,0),0),"") -> 
K97: C - 26 | L97: =IFERROR(INDEX('contagem diaria'!$F$7:$F$24,MATCH(Ocupação!K97,'contagem diaria'!#REF!,0),0),"") -> 
K98: C - 28 | L98: =IFERROR(INDEX('contagem diaria'!$F$7:$F$24,MATCH(Ocupação!K98,'contagem diaria'!#REF!,0),0),"") -> 
K99: C - 38 | L99: =IFERROR(INDEX('contagem diaria'!$F$7:$F$24,MATCH(Ocupação!K99,'contagem diaria'!#REF!,0),0),"") -> 
K100: C - 42 | L100: =IFERROR(INDEX('contagem diaria'!$F$7:$F$24,MATCH(Ocupação!K100,'contagem diaria'!#REF!,0),0),"") -> 
K101: D - 02 | L101: =IFERROR(INDEX('contagem diaria'!$F$7:$F$24,MATCH(Ocupação!K101,'contagem diaria'!#REF!,0),0),"") -> 
K102: D - 09 | L102: =IFERROR(INDEX('contagem diaria'!$F$7:$F$24,MATCH(Ocupação!K102,'contagem diaria'!#REF!,0),0),"") -> 
K103: D - 12 | L103: =IFERROR(INDEX('contagem diaria'!$F$7:$F$24,MATCH(Ocupação!K103,'contagem diaria'!#REF!,0),0),"") -> 
K104: D - 16 | L104: =IFERROR(INDEX('contagem diaria'!$F$7:$F$24,MATCH(Ocupação!K104,'contagem diaria'!#REF!,0),0),"") -> 
K105: D - 17 | L105: =IFERROR(INDEX('contagem diaria'!$F$7:$F$24,MATCH(Ocupação!K105,'contagem diaria'!#REF!,0),0),"") -> 
K106: D - 19 | L106: =IFERROR(INDEX('contagem diaria'!$F$7:$F$24,MATCH(Ocupação!K106,'contagem diaria'!#REF!,0),0),"") -> 
K107: D - 25 | L107: =IFERROR(INDEX('contagem diaria'!$F$7:$F$24,MATCH(Ocupação!K107,'contagem diaria'!#REF!,0),0),"") -> 
K108: E - 01 | L108: =IFERROR(INDEX('contagem diaria'!$F$7:$F$24,MATCH(Ocupação!K108,'contagem diaria'!#REF!,0),0),"") -> 
K109: E - 05 | L109: =IFERROR(INDEX('contagem diaria'!$F$7:$F$24,MATCH(Ocupação!K109,'contagem diaria'!#REF!,0),0),"") -> 
K110: E - 08 | L110: =IFERROR(INDEX('contagem diaria'!$F$7:$F$24,MATCH(Ocupação!K110,'contagem diaria'!#REF!,0),0),"") -> 
K111: E - 10 | L111: =IFERROR(INDEX('contagem diaria'!$F$7:$F$24,MATCH(Ocupação!K111,'contagem diaria'!#REF!,0),0),"") -> 
K112: E - 11 | L112: =IFERROR(INDEX('contagem diaria'!$F$7:$F$24,MATCH(Ocupação!K112,'contagem diaria'!#REF!,0),0),"") -> 
K113: E - 12 | L113: =IFERROR(INDEX('contagem diaria'!$F$7:$F$24,MATCH(Ocupação!K113,'contagem diaria'!#REF!,0),0),"") -> 
K114: E - 13 | L114: =IFERROR(INDEX('contagem diaria'!$F$7:$F$24,MATCH(Ocupação!K114,'contagem diaria'!#REF!,0),0),"") -> 
K115: E - 17 | L115: =IFERROR(INDEX('contagem diaria'!$F$7:$F$24,MATCH(Ocupação!K115,'contagem diaria'!#REF!,0),0),"") -> 
K116: E - 22 | L116: =IFERROR(INDEX('contagem diaria'!$F$7:$F$24,MATCH(Ocupação!K116,'contagem diaria'!#REF!,0),0),"") -> 
K117: F - 01 | L117: =IFERROR(INDEX('contagem diaria'!$F$7:$F$24,MATCH(Ocupação!K117,'contagem diaria'!#REF!,0),0),"") -> 
K118: F - 04 | L118: =IFERROR(INDEX('contagem diaria'!$F$7:$F$24,MATCH(Ocupação!K118,'contagem diaria'!#REF!,0),0),"") -> 
K119: F - 05 | L119: =IFERROR(INDEX('contagem diaria'!$F$7:$F$24,MATCH(Ocupação!K119,'contagem diaria'!#REF!,0),0),"") -> 
K120: F - 06 | L120: =IFERROR(INDEX('contagem diaria'!$F$7:$F$24,MATCH(Ocupação!K120,'contagem diaria'!#REF!,0),0),"") -> 
K121: G - 07 | L121: =IFERROR(INDEX('contagem diaria'!$F$7:$F$24,MATCH(Ocupação!K121,'contagem diaria'!#REF!,0),0),"") -> 
K122: G - 11 | L122: =IFERROR(INDEX('contagem diaria'!$F$7:$F$24,MATCH(Ocupação!K122,'contagem diaria'!#REF!,0),0),"") -> 
K123: G - 13 | L123: =IFERROR(INDEX('contagem diaria'!$F$7:$F$24,MATCH(Ocupação!K123,'contagem diaria'!#REF!,0),0),"") -> 
K124: G - 08 | L124: =IFERROR(INDEX('contagem diaria'!$F$7:$F$24,MATCH(Ocupação!K124,'contagem diaria'!#REF!,0),0),"") -> 
K125: G - 10 | L125: =IFERROR(INDEX('contagem diaria'!$F$7:$F$24,MATCH(Ocupação!K125,'contagem diaria'!#REF!,0),0),"") -> 
K126: G - 12 | L126: =IFERROR(INDEX('contagem diaria'!$F$7:$F$24,MATCH(Ocupação!K126,'contagem diaria'!#REF!,0),0),"") -> 
K127: H - 01 | L127: =IFERROR(INDEX('contagem diaria'!$F$7:$F$24,MATCH(Ocupação!K127,'contagem diaria'!#REF!,0),0),"") -> 
K128: H - 03 | L128: =IFERROR(INDEX('contagem diaria'!$F$7:$F$24,MATCH(Ocupação!K128,'contagem diaria'!#REF!,0),0),"") -> 
K129: H - 05 | L129: =IFERROR(INDEX('contagem diaria'!$F$7:$F$24,MATCH(Ocupação!K129,'contagem diaria'!#REF!,0),0),"") -> 
K130: H - 07 | L130: =IFERROR(INDEX('contagem diaria'!$F$7:$F$24,MATCH(Ocupação!K130,'contagem diaria'!#REF!,0),0),"") -> 
K131: H - 09 | L131: =IFERROR(INDEX('contagem diaria'!$F$7:$F$24,MATCH(Ocupação!K131,'contagem diaria'!#REF!,0),0),"") -> 
K132: H - 11 | L132: =IFERROR(INDEX('contagem diaria'!$F$7:$F$24,MATCH(Ocupação!K132,'contagem diaria'!#REF!,0),0),"") -> 
K133: H - 13 | L133: =IFERROR(INDEX('contagem diaria'!$F$7:$F$24,MATCH(Ocupação!K133,'contagem diaria'!#REF!,0),0),"") -> 
K134: H - 02 | L134: =IFERROR(INDEX('contagem diaria'!$F$7:$F$24,MATCH(Ocupação!K134,'contagem diaria'!#REF!,0),0),"") -> 
K135: H - 04 | L135: =IFERROR(INDEX('contagem diaria'!$F$7:$F$24,MATCH(Ocupação!K135,'contagem diaria'!#REF!,0),0),"") -> 
K136: H - 06 | L136: =IFERROR(INDEX('contagem diaria'!$F$7:$F$24,MATCH(Ocupação!K136,'contagem diaria'!#REF!,0),0),"") -> 
K137: H - 08 | L137: =IFERROR(INDEX('contagem diaria'!$F$7:$F$24,MATCH(Ocupação!K137,'contagem diaria'!#REF!,0),0),"") -> 
K138: H - 10 | L138: =IFERROR(INDEX('contagem diaria'!$F$7:$F$24,MATCH(Ocupação!K138,'contagem diaria'!#REF!,0),0),"") -> 
K139: H - 12 | L139: =IFERROR(INDEX('contagem diaria'!$F$7:$F$24,MATCH(Ocupação!K139,'contagem diaria'!#REF!,0),0),"") -> 
K140: H - 14 | L140: =IFERROR(INDEX('contagem diaria'!$F$7:$F$24,MATCH(Ocupação!K140,'contagem diaria'!#REF!,0),0),"") -> 
K141: H - 16 | L141: =IFERROR(INDEX('contagem diaria'!$F$7:$F$24,MATCH(Ocupação!K141,'contagem diaria'!#REF!,0),0),"") -> 
K142: G - 17 | L142: =IFERROR(INDEX('contagem diaria'!$F$7:$F$24,MATCH(Ocupação!K142,'contagem diaria'!#REF!,0),0),"") -> 
K143: I - 01 | L143: =IFERROR(INDEX('contagem diaria'!$F$7:$F$24,MATCH(Ocupação!K143,'contagem diaria'!#REF!,0),0),"") -> 
K144: I - 02 | L144: =IFERROR(INDEX('contagem diaria'!$F$7:$F$24,MATCH(Ocupação!K144,'contagem diaria'!#REF!,0),0),"") -> 
K145: I - 07 | L145: =IFERROR(INDEX('contagem diaria'!$F$7:$F$24,MATCH(Ocupação!K145,'contagem diaria'!#REF!,0),0),"") -> 
K146: I - 11 | L146: =IFERROR(INDEX('contagem diaria'!$F$7:$F$24,MATCH(Ocupação!K146,'contagem diaria'!#REF!,0),0),"") -> 
K147: I - 13 | L147: =IFERROR(INDEX('contagem diaria'!$F$7:$F$24,MATCH(Ocupação!K147,'contagem diaria'!#REF!,0),0),"") -> 
K148: I - 17 | L148: =IFERROR(INDEX('contagem diaria'!$F$7:$F$24,MATCH(Ocupação!K148,'contagem diaria'!#REF!,0),0),"") -> 
K149: I - 04 | L149: =IFERROR(INDEX('contagem diaria'!$F$7:$F$24,MATCH(Ocupação!K149,'contagem diaria'!#REF!,0),0),"") -> 
K150: I - 06 | L150: =IFERROR(INDEX('contagem diaria'!$F$7:$F$24,MATCH(Ocupação!K150,'contagem diaria'!#REF!,0),0),"") -> 
K151: I - 08 | L151: =IFERROR(INDEX('contagem diaria'!$F$7:$F$24,MATCH(Ocupação!K151,'contagem diaria'!#REF!,0),0),"") -> 
K152: I - 10 | L152: =IFERROR(INDEX('contagem diaria'!$F$7:$F$24,MATCH(Ocupação!K152,'contagem diaria'!#REF!,0),0),"") -> 
K153: I - 12 | L153: =IFERROR(INDEX('contagem diaria'!$F$7:$F$24,MATCH(Ocupação!K153,'contagem diaria'!#REF!,0),0),"") -> 
K154: I - 14 | L154: =IFERROR(INDEX('contagem diaria'!$F$7:$F$24,MATCH(Ocupação!K154,'contagem diaria'!#REF!,0),0),"") -> 
K155: I - 16 | L155: =IFERROR(INDEX('contagem diaria'!$F$7:$F$24,MATCH(Ocupação!K155,'contagem diaria'!#REF!,0),0),"") -> 
K156: I - 18 | L156: =IFERROR(INDEX('contagem diaria'!$F$7:$F$24,MATCH(Ocupação!K156,'contagem diaria'!#REF!,0),0),"") -> 
K157: J - 14 | L157: =IFERROR(INDEX('contagem diaria'!$F$7:$F$24,MATCH(Ocupação!K157,'contagem diaria'!#REF!,0),0),"") -> 
K158: J - 15 | L158: =IFERROR(INDEX('contagem diaria'!$F$7:$F$24,MATCH(Ocupação!K158,'contagem diaria'!#REF!,0),0),"") -> 
K159: J - 16 | L159: =IFERROR(INDEX('contagem diaria'!$F$7:$F$24,MATCH(Ocupação!K159,'contagem diaria'!#REF!,0),0),"") -> 
K160: J - 17 | L160: =IFERROR(INDEX('contagem diaria'!$F$7:$F$24,MATCH(Ocupação!K160,'contagem diaria'!#REF!,0),0),"") -> 
K161: J - 18 | L161: =IFERROR(INDEX('contagem diaria'!$F$7:$F$24,MATCH(Ocupação!K161,'contagem diaria'!#REF!,0),0),"") -> 
K162: J - 19 | L162: =IFERROR(INDEX('contagem diaria'!$F$7:$F$24,MATCH(Ocupação!K162,'contagem diaria'!#REF!,0),0),"") -> 
K163: J - 20 | L163: =IFERROR(INDEX('contagem diaria'!$F$7:$F$24,MATCH(Ocupação!K163,'contagem diaria'!#REF!,0),0),"") -> 
K164: J - 21 | L164: =IFERROR(INDEX('contagem diaria'!$F$7:$F$24,MATCH(Ocupação!K164,'contagem diaria'!#REF!,0),0),"") -> 
